Workbook

Sheet MOG
A1: 2020 | B1: مغلفات | D1: =ALL!C1 -> 2020-12-01 | E1: =ALL!G1 -> 2020-12-08 | F1: =ALL!K1 -> 2020-12-14 | G1: =ALL!O1 -> 2020-12-18 | H1: =ALL!S1 -> 2020-12-22 | I1: =ALL!W1 -> 00:00:00 | J1: =ALL!AA1 -> 00:00:00 | K1: =ALL!AE1 -> 00:00:00 | L1: =ALL!AL1 -> 00:00:00 | M1: =ALL!AM1 -> 00:00:00 | N1: =ALL!AQ1 -> 00:00:00 | O1: =ALL!AU1 -> 00:00:00 | P1: =ALL!AY1 -> 00:00:00 | Q1: =ALL!BC1 -> 00:00:00 | R1: =ALL!BG1 -> 00:00:00 | S1: =ALL!BK1 -> 00:00:00 | T1: =ALL!BO1 -> 00:00:00 | U1: =ALL!BS1 -> 00:00:00 | V1: =ALL!BW1 -> 00:00:00 | W1: =ALL!CA1 -> 00:00:00 | X1: =ALL!CE1 -> 00:00:00 | Y1: =ALL!CI1 -> 00:00:00 | Z1: =ALL!CM1 -> 00:00:00 | AA1: =ALL!CQ1 -> 00:00:00 | AB1: =ALL!CU1 -> 00:00:00 | AC1: =ALL!CY1 -> 00:00:00 | AD1: =ALL!DC1 -> 00:00:00 | AE1: =ALL!DG1 -> 00:00:00 | AF1: =ALL!DK1 -> 00:00:00 | AG1: =ALL!DO1 -> 00:00:00 | AH1: =ALL!DS1 -> 00:00:00
A2: كانون اول | B2: رمز | C2: المنصرم | D2: =ALL!C2 -> 02/12/ | E2: =ALL!G2 -> 09/12/ | F2: =ALL!K2 -> 15/12/ | G2: =ALL!O2 -> 21/12/ | H2: =ALL!S2 -> 23/12/ | I2: =ALL!W2 -> 00:00:00 | J2: =ALL!AA2 -> 00:00:00 | K2: =ALL!AE2 -> 00:00:00 | L2: =ALL!AL2 -> 00:00:00 | M2: =ALL!AM2 -> 00:00:00 | N2: =ALL!AQ2 -> 00:00:00 | O2: =ALL!AU2 -> 00:00:00 | P2: =ALL!AY2 -> 00:00:00 | Q2: =ALL!BC2 -> 00:00:00 | R2: =ALL!BG2 -> 00:00:00 | S2: =ALL!BK2 -> 00:00:00 | T2: =ALL!BO2 -> 00:00:00 | U2: =ALL!BS2 -> 00:00:00 | V2: =ALL!BW2 -> 00:00:00 | W2: =ALL!CA2 -> 00:00:00 | X2: =ALL!CE2 -> 00:00:00 | Y2: =ALL!CI2 -> 00:00:00 | Z2: =ALL!CM2 -> 00:00:00 | AA2: =ALL!CQ2 -> 00:00:00 | AB2: =ALL!CU2 -> 00:00:00 | AC2: =ALL!CY2 -> 00:00:00 | AD2: =ALL!DC2 -> 00:00:00 | AE2: =ALL!DG2 -> 00:00:00 | AF2: =ALL!DK2 -> 00:00:00 | AG2: =ALL!DO2 -> 00:00:00 | AH2: =ALL!DS2 -> 00:00:00 | AK2: مغلفات مستلمة | AL2: مغلفات مستلمة+ المنصرم | AM2: مغلفات غير مسلّمة
A3: بيروت | B3: A | C3: =JARD_MOG!D3 -> 0 | D3: =IFERROR(VLOOKUP($A3&$B3,CHOOSE({1,2},ALL!$A$4:$A$500&ALL!$B$4:$B$500,ALL!$C$4:$C$500),2,FALSE),"") -> 4 | E3: =ALL!G4 -> 30 | F3: =ALL!K4 -> 17 | G3: =ALL!O4 -> 12 | H3: =ALL!S4 -> 14 | I3: =ALL!W4 -> 0 | J3: =ALL!AA4 -> 0 | K3: =ALL!AE4 -> 0 | L3: =ALL!AL4 -> 0 | M3: =ALL!AM4 -> 0 | N3: =ALL!AQ4 -> 0 | O3: =ALL!AU4 -> 0 | P3: =ALL!AY4 -> 0 | Q3: =ALL!BC4 -> 0 | R3: =ALL!BG4 -> 0 | S3: =ALL!BK4 -> 0 | T3: =ALL!BO4 -> 0 | U3: =ALL!BS4 -> 0 | V3: =ALL!BW4 -> 0 | W3: =ALL!CA4 -> 0 | X3: =ALL!CE4 -> 0 | Y3: =ALL!CI4 -> 0 | Z3: =ALL!CM4 -> 0 | AA3: =ALL!CQ4 -> 0 | AB3: =ALL!CU4 -> 0 | AC3: =ALL!CY4 -> 0 | AD3: =ALL!DC4 -> 0 | AE3: =ALL!DG4 -> 0 | AF3: =ALL!DK4 -> 0 | AG3: =ALL!DO4 -> 0 | AH3: =ALL!DS4 -> 0 | AK3: =SUM(D3:AH3) -> 77 | AL3: =SUM(AK3+C3) -> 77 | AM3: 0
A4: بعبدا | B4: B1 | C4: =JARD_MOG!D4 -> 0 | D4: =IFERROR(VLOOKUP($A4&$B4,CHOOSE({1,2},ALL!$A$4:$A$500&ALL!$B$4:$B$500,ALL!$C$4:$C$500),2,FALSE),"") -> 3 | E4: =ALL!G5 -> 3 | F4: =ALL!K5 -> 3 | G4: =ALL!O5 -> 3 | H4: =ALL!S5 -> 3 | I4: =ALL!W5 -> 0 | J4: =ALL!AA5 -> 0 | K4: =ALL!AE5 -> 0 | L4: =ALL!AL5 -> 0 | M4: =ALL!AM5 -> 0 | N4: =ALL!AQ5 -> 0 | O4: =ALL!AU5 -> 0 | P4: =ALL!AY5 -> 0 | Q4: =ALL!BC5 -> 0 | R4: =ALL!BG5 -> 0 | S4: =ALL!BK5 -> 0 | T4: =ALL!BO5 -> 0 | U4: =ALL!BS5 -> 0 | V4: =ALL!BW5 -> 0 | W4: =ALL!CA5 -> 0 | X4: =ALL!CE5 -> 0 | Y4: =ALL!CI5 -> 0 | Z4: =ALL!CM5 -> 0 | AA4: =ALL!CQ5 -> 0 | AB4: =ALL!CU5 -> 0 | AC4: =ALL!CY5 -> 0 | AD4: =ALL!DC5 -> 0 | AE4: =ALL!DG5 -> 0 | AF4: =ALL!DK5 -> 0 | AG4: =ALL!DO5 -> 0 | AH4: =ALL!DS5 -> 0 | AK4: =SUM(D4:AH4) -> 15 | AL4: =SUM(AK4+C4) -> 15 | AM4: 6
A5: بكفيا | B5: B10 | C5: =JARD_MOG!D5 -> 0 | D5: =IFERROR(VLOOKUP($A5&$B5,CHOOSE({1,2},ALL!$A$4:$A$500&ALL!$B$4:$B$500,ALL!$C$4:$C$500),2,FALSE),"") -> 4 | E5: =ALL!G6 -> 4 | F5: =ALL!K6 -> 0 | G5: =ALL!O6 -> 9 | H5: =ALL!S6 -> 0 | I5: =ALL!W6 -> 0 | J5: =ALL!AA6 -> 0 | K5: =ALL!AE6 -> 0 | L5: =ALL!AL6 -> 0 | M5: =ALL!AM6 -> 0 | N5: =ALL!AQ6 -> 0 | O5: =ALL!AU6 -> 0 | P5: =ALL!AY6 -> 0 | Q5: =ALL!BC6 -> 0 | R5: =ALL!BG6 -> 0 | S5: =ALL!BK6 -> 0 | T5: =ALL!BO6 -> 0 | U5: =ALL!BS6 -> 0 | V5: =ALL!BW6 -> 0 | W5: =ALL!CA6 -> 0 | X5: =ALL!CE6 -> 0 | Y5: =ALL!CI6 -> 0 | Z5: =ALL!CM6 -> 0 | AA5: =ALL!CQ6 -> 0 | AB5: =ALL!CU6 -> 0 | AC5: =ALL!CY6 -> 0 | AD5: =ALL!DC6 -> 0 | AE5: =ALL!DG6 -> 0 | AF5: =ALL!DK6 -> 0 | AG5: =ALL!DO6 -> 0 | AH5: =ALL!DS6 -> 0 | AK5: 17 | AL5: 17 | AM5: 9
A6: المتن الشمالي العالي | B6: B11 | C6: =JARD_MOG!D6 -> 0 | D6: =IFERROR(VLOOKUP($A6&$B6,CHOOSE({1,2},ALL!$A$4:$A$500&ALL!$B$4:$B$500,ALL!$C$4:$C$500),2,FALSE),"") -> 5 | E6: =ALL!G7 -> 0 | F6: =ALL!K7 -> 0 | G6: =ALL!O7 -> 5 | H6: =ALL!S7 -> 0 | I6: =ALL!W7 -> 0 | J6: =ALL!AA7 -> 0 | K6: =ALL!AE7 -> 0 | L6: =ALL!AL7 -> 0 | M6: =ALL!AM7 -> 0 | N6: =ALL!AQ7 -> 0 | O6: =ALL!AU7 -> 0 | P6: =ALL!AY7 -> 0 | Q6: =ALL!BC7 -> 0 | R6: =ALL!BG7 -> 0 | S6: =ALL!BK7 -> 0 | T6: =ALL!BO7 -> 0 | U6: =ALL!BS7 -> 0 | V6: =ALL!BW7 -> 0 | W6: =ALL!CA7 -> 0 | X6: =ALL!CE7 -> 0 | Y6: =ALL!CI7 -> 0 | Z6: =ALL!CM7 -> 0 | AA6: =ALL!CQ7 -> 0 | AB6: =ALL!CU7 -> 0 | AC6: =ALL!CY7 -> 0 | AD6: =ALL!DC7 -> 0 | AE6: =ALL!DG7 -> 0 | AF6: =ALL!DK7 -> 0 | AG6: =ALL!DO7 -> 0 | AH6: =ALL!DS7 -> 0 | AK6: 10 | AL6: 10 | AM6: 5
A7: كسروان | B7: B12 | C7: =JARD_MOG!D7 -> 0 | D7: =IFERROR(VLOOKUP($A7&$B7,CHOOSE({1,2},ALL!$A$4:$A$500&ALL!$B$4:$B$500,ALL!$C$4:$C$500),2,FALSE),"") -> 12 | E7: =ALL!G8 -> 7 | F7: =ALL!K8 -> 2 | G7: =ALL!O8 -> 11 | H7: =ALL!S8 -> 1 | I7: =ALL!W8 -> 0 | J7: =ALL!AA8 -> 0 | K7: =ALL!AE8 -> 0 | L7: =ALL!AL8 -> 0 | M7: =ALL!AM8 -> 0 | N7: =ALL!AQ8 -> 0 | O7: =ALL!AU8 -> 0 | P7: =ALL!AY8 -> 0 | Q7: =ALL!BC8 -> 0 | R7: =ALL!BG8 -> 0 | S7: =ALL!BK8 -> 0 | T7: =ALL!BO8 -> 0 | U7: =ALL!BS8 -> 0 | V7: =ALL!BW8 -> 0 | W7: =ALL!CA8 -> 0 | X7: =ALL!CE8 -> 0 | Y7: =ALL!CI8 -> 0 | Z7: =ALL!CM8 -> 0 | AA7: =ALL!CQ8 -> 0 | AB7: =ALL!CU8 -> 0 | AC7: =ALL!CY8 -> 0 | AD7: =ALL!DC8 -> 0 | AE7: =ALL!DG8 -> 0 | AF7: =ALL!DK8 -> 0 | AG7: =ALL!DO8 -> 0 | AH7: =ALL!DS8 -> 0 | AK7: 33 | AL7: 33 | AM7: 14
A8: جبيل | B8: B13 | C8: =JARD_MOG!D8 -> 0 | D8: =IFERROR(VLOOKUP($A8&$B8,CHOOSE({1,2},ALL!$A$4:$A$500&ALL!$B$4:$B$500,ALL!$C$4:$C$500),2,FALSE),"") -> 0 | E8: =ALL!G9 -> 1 | F8: =ALL!K9 -> 2 | G8: =ALL!O9 -> 0 | H8: =ALL!S9 -> 6 | I8: =ALL!W9 -> 0 | J8: =ALL!AA9 -> 0 | K8: =ALL!AE9 -> 0 | L8: =ALL!AL9 -> 0 | M8: =ALL!AM9 -> 0 | N8: =ALL!AQ9 -> 0 | O8: =ALL!AU9 -> 0 | P8: =ALL!AY9 -> 0 | Q8: =ALL!BC9 -> 0 | R8: =ALL!BG9 -> 0 | S8: =ALL!BK9 -> 0 | T8: =ALL!BO9 -> 0 | U8: =ALL!BS9 -> 0 | V8: =ALL!BW9 -> 0 | W8: =ALL!CA9 -> 0 | X8: =ALL!CE9 -> 0 | Y8: =ALL!CI9 -> 0 | Z8: =ALL!CM9 -> 0 | AA8: =ALL!CQ9 -> 0 | AB8: =ALL!CU9 -> 0 | AC8: =ALL!CY9 -> 0 | AD8: =ALL!DC9 -> 0 | AE8: =ALL!DG9 -> 0 | AF8: =ALL!DK9 -> 0 | AG8: =ALL!DO9 -> 0 | AH8: =ALL!DS9 -> 0 | AK8: 9 | AL8: 9 | AM8: 6
A9: فتوح كسروان | B9: B14 | C9: =JARD_MOG!D9 -> 0 | D9: =IFERROR(VLOOKUP($A9&$B9,CHOOSE({1,2},ALL!$A$4:$A$500&ALL!$B$4:$B$500,ALL!$C$4:$C$500),2,FALSE),"") -> 4 | E9: =ALL!G10 -> 1 | F9: =ALL!K10 -> 0 | G9: =ALL!O10 -> 6 | H9: =ALL!S10 -> 0 | I9: =ALL!W10 -> 0 | J9: =ALL!AA10 -> 0 | K9: =ALL!AE10 -> 0 | L9: =ALL!AL10 -> 0 | M9: =ALL!AM10 -> 0 | N9: =ALL!AQ10 -> 0 | O9: =ALL!AU10 -> 0 | P9: =ALL!AY10 -> 0 | Q9: =ALL!BC10 -> 0 | R9: =ALL!BG10 -> 0 | S9: =ALL!BK10 -> 0 | T9: =ALL!BO10 -> 0 | U9: =ALL!BS10 -> 0 | V9: =ALL!BW10 -> 0 | W9: =ALL!CA10 -> 0 | X9: =ALL!CE10 -> 0 | Y9: =ALL!CI10 -> 0 | Z9: =ALL!CM10 -> 0 | AA9: =ALL!CQ10 -> 0 | AB9: =ALL!CU10 -> 0 | AC9: =ALL!CY10 -> 0 | AD9: =ALL!DC10 -> 0 | AE9: =ALL!DG10 -> 0 | AF9: =ALL!DK10 -> 0 | AG9: =ALL!DO10 -> 0 | AH9: =ALL!DS10 -> 0 | AK9: 11 | AL9: 11 | AM9: 6
A10: الشويفات | B10: B2 | C10: =JARD_MOG!D10 -> 0 | D10: =IFERROR(VLOOKUP($A10&$B10,CHOOSE({1,2},ALL!$A$4:$A$500&ALL!$B$4:$B$500,ALL!$C$4:$C$500),2,FALSE),"") -> 8 | E10: =ALL!G11 -> 8 | F10: =ALL!K11 -> 3 | G10: =ALL!O11 -> 11 | H10: =ALL!S11 -> 0 | I10: =ALL!W11 -> 0 | J10: =ALL!AA11 -> 0 | K10: =ALL!AE11 -> 0 | L10: =ALL!AL11 -> 0 | M10: =ALL!AM11 -> 0 | N10: =ALL!AQ11 -> 0 | O10: =ALL!AU11 -> 0 | P10: =ALL!AY11 -> 0 | Q10: =ALL!BC11 -> 0 | R10: =ALL!BG11 -> 0 | S10: =ALL!BK11 -> 0 | T10: =ALL!BO11 -> 0 | U10: =ALL!BS11 -> 0 | V10: =ALL!BW11 -> 0 | W10: =ALL!CA11 -> 0 | X10: =ALL!CE11 -> 0 | Y10: =ALL!CI11 -> 0 | Z10: =ALL!CM11 -> 0 | AA10: =ALL!CQ11 -> 0 | AB10: =ALL!CU11 -> 0 | AC10: =ALL!CY11 -> 0 | AD10: =ALL!DC11 -> 0 | AE10: =ALL!DG11 -> 0 | AF10: =ALL!DK11 -> 0 | AG10: =ALL!DO11 -> 0 | AH10: =ALL!DS11 -> 0 | AK10: 30 | AL10: 30 | AM10: 11
A11: برجا | B11: B3 | C11: =JARD_MOG!D11 -> 0 | D11: =IFERROR(VLOOKUP($A11&$B11,CHOOSE({1,2},ALL!$A$4:$A$500&ALL!$B$4:$B$500,ALL!$C$4:$C$500),2,FALSE),"") -> 0 | E11: =ALL!G12 -> 0 | F11: =ALL!K12 -> 2 | G11: =ALL!O12 -> 5 | H11: =ALL!S12 -> 0 | I11: =ALL!W12 -> 0 | J11: =ALL!AA12 -> 0 | K11: =ALL!AE12 -> 0 | L11: =ALL!AL12 -> 0 | M11: =ALL!AM12 -> 0 | N11: =ALL!AQ12 -> 0 | O11: =ALL!AU12 -> 0 | P11: =ALL!AY12 -> 0 | Q11: =ALL!BC12 -> 0 | R11: =ALL!BG12 -> 0 | S11: =ALL!BK12 -> 0 | T11: =ALL!BO12 -> 0 | U11: =ALL!BS12 -> 0 | V11: =ALL!BW12 -> 0 | W11: =ALL!CA12 -> 0 | X11: =ALL!CE12 -> 0 | Y11: =ALL!CI12 -> 0 | Z11: =ALL!CM12 -> 0 | AA11: =ALL!CQ12 -> 0 | AB11: =ALL!CU12 -> 0 | AC11: =ALL!CY12 -> 0 | AD11: =ALL!DC12 -> 0 | AE11: =ALL!DG12 -> 0 | AF11: =ALL!DK12 -> 0 | AG11: =ALL!DO12 -> 0 | AH11: =ALL!DS12 -> 0 | AK11: 7 | AL11: 7 | AM11: 7
A12: شحيم | B12: B4 | C12: =JARD_MOG!D12 -> 0 | D12: =IFERROR(VLOOKUP($A12&$B12,CHOOSE({1,2},ALL!$A$4:$A$500&ALL!$B$4:$B$500,ALL!$C$4:$C$500),2,FALSE),"") -> 0 | E12: =ALL!G13 -> 1 | F12: =ALL!K13 -> 0 | G12: =ALL!O13 -> 7 | H12: =ALL!S13 -> 0 | I12: =ALL!W13 -> 0 | J12: =ALL!AA13 -> 0 | K12: =ALL!AE13 -> 0 | L12: =ALL!AL13 -> 0 | M12: =ALL!AM13 -> 0 | N12: =ALL!AQ13 -> 0 | O12: =ALL!AU13 -> 0 | P12: =ALL!AY13 -> 0 | Q12: =ALL!BC13 -> 0 | R12: =ALL!BG13 -> 0 | S12: =ALL!BK13 -> 0 | T12: =ALL!BO13 -> 0 | U12: =ALL!BS13 -> 0 | V12: =ALL!BW13 -> 0 | W12: =ALL!CA13 -> 0 | X12: =ALL!CE13 -> 0 | Y12: =ALL!CI13 -> 0 | Z12: =ALL!CM13 -> 0 | AA12: =ALL!CQ13 -> 0 | AB12: =ALL!CU13 -> 0 | AC12: =ALL!CY13 -> 0 | AD12: =ALL!DC13 -> 0 | AE12: =ALL!DG13 -> 0 | AF12: =ALL!DK13 -> 0 | AG12: =ALL!DO13 -> 0 | AH12: =ALL!DS13 -> 0 | AK12: 8 | AL12: 8 | AM12: 7
A13: عاليه | B13: B5 | C13: =JARD_MOG!D13 -> 0 | D13: =IFERROR(VLOOKUP($A13&$B13,CHOOSE({1,2},ALL!$A$4:$A$500&ALL!$B$4:$B$500,ALL!$C$4:$C$500),2,FALSE),"") -> 5 | E13: =ALL!G14 -> 6 | F13: =ALL!K14 -> 3 | G13: =ALL!O14 -> 3 | H13: =ALL!S14 -> 0 | I13: =ALL!W14 -> 0 | J13: =ALL!AA14 -> 0 | K13: =ALL!AE14 -> 0 | L13: =ALL!AL14 -> 0 | M13: =ALL!AM14 -> 0 | N13: =ALL!AQ14 -> 0 | O13: =ALL!AU14 -> 0 | P13: =ALL!AY14 -> 0 | Q13: =ALL!BC14 -> 0 | R13: =ALL!BG14 -> 0 | S13: =ALL!BK14 -> 0 | T13: =ALL!BO14 -> 0 | U13: =ALL!BS14 -> 0 | V13: =ALL!BW14 -> 0 | W13: =ALL!CA14 -> 0 | X13: =ALL!CE14 -> 0 | Y13: =ALL!CI14 -> 0 | Z13: =ALL!CM14 -> 0 | AA13: =ALL!CQ14 -> 0 | AB13: =ALL!CU14 -> 0 | AC13: =ALL!CY14 -> 0 | AD13: =ALL!DC14 -> 0 | AE13: =ALL!DG14 -> 0 | AF13: =ALL!DK14 -> 0 | AG13: =ALL!DO14 -> 0 | AH13: =ALL!DS14 -> 0 | AK13: 17 | AL13: 17 | AM13: 3
A14: حمانا | B14: B6 | C14: =JARD_MOG!D14 -> 0 | D14: =IFERROR(VLOOKUP($A14&$B14,CHOOSE({1,2},ALL!$A$4:$A$500&ALL!$B$4:$B$500,ALL!$C$4:$C$500),2,FALSE),"") -> 0 | E14: =ALL!G15 -> 1 | F14: =ALL!K15 -> 1 | G14: =ALL!O15 -> 1 | H14: =ALL!S15 -> 2 | I14: =ALL!W15 -> 0 | J14: =ALL!AA15 -> 0 | K14: =ALL!AE15 -> 0 | L14: =ALL!AL15 -> 0 | M14: =ALL!AM15 -> 0 | N14: =ALL!AQ15 -> 0 | O14: =ALL!AU15 -> 0 | P14: =ALL!AY15 -> 0 | Q14: =ALL!BC15 -> 0 | R14: =ALL!BG15 -> 0 | S14: =ALL!BK15 -> 0 | T14: =ALL!BO15 -> 0 | U14: =ALL!BS15 -> 0 | V14: =ALL!BW15 -> 0 | W14: =ALL!CA15 -> 0 | X14: =ALL!CE15 -> 0 | Y14: =ALL!CI15 -> 0 | Z14: =ALL!CM15 -> 0 | AA14: =ALL!CQ15 -> 0 | AB14: =ALL!CU15 -> 0 | AC14: =ALL!CY15 -> 0 | AD14: =ALL!DC15 -> 0 | AE14: =ALL!DG15 -> 0 | AF14: =ALL!DK15 -> 0 | AG14: =ALL!DO15 -> 0 | AH14: =ALL!DS15 -> 0 | AK14: 5 | AL14: 5 | AM14: 3
A15: الشوف | B15: B7 | C15: =JARD_MOG!D15 -> 0 | D15: =IFERROR(VLOOKUP($A15&$B15,CHOOSE({1,2},ALL!$A$4:$A$500&ALL!$B$4:$B$500,ALL!$C$4:$C$500),2,FALSE),"") -> 1 | E15: =ALL!G16 -> 2 | F15: =ALL!K16 -> 0 | G15: =ALL!O16 -> 6 | H15: =ALL!S16 -> 0 | I15: =ALL!W16 -> 0 | J15: =ALL!AA16 -> 0 | K15: =ALL!AE16 -> 0 | L15: =ALL!AL16 -> 0 | M15: =ALL!AM16 -> 0 | N15: =ALL!AQ16 -> 0 | O15: =ALL!AU16 -> 0 | P15: =ALL!AY16 -> 0 | Q15: =ALL!BC16 -> 0 | R15: =ALL!BG16 -> 0 | S15: =ALL!BK16 -> 0 | T15: =ALL!BO16 -> 0 | U15: =ALL!BS16 -> 0 | V15: =ALL!BW16 -> 0 | W15: =ALL!CA16 -> 0 | X15: =ALL!CE16 -> 0 | Y15: =ALL!CI16 -> 0 | Z15: =ALL!CM16 -> 0 | AA15: =ALL!CQ16 -> 0 | AB15: =ALL!CU16 -> 0 | AC15: =ALL!CY16 -> 0 | AD15: =ALL!DC16 -> 0 | AE15: =ALL!DG16 -> 0 | AF15: =ALL!DK16 -> 0 | AG15: =ALL!DO16 -> 0 | AH15: =ALL!DS16 -> 0 | AK15: 9 | AL15: 9 | AM15: 6
A16: المتن | B16: B8 | C16: =JARD_MOG!D16 -> 0 | D16: =IFERROR(VLOOKUP($A16&$B16,CHOOSE({1,2},ALL!$A$4:$A$500&ALL!$B$4:$B$500,ALL!$C$4:$C$500),2,FALSE),"") -> 6 | E16: =ALL!G17 -> 6 | F16: =ALL!K17 -> 3 | G16: =ALL!O17 -> 11 | H16: =ALL!S17 -> 0 | I16: =ALL!W17 -> 0 | J16: =ALL!AA17 -> 0 | K16: =ALL!AE17 -> 0 | L16: =ALL!AL17 -> 0 | M16: =ALL!AM17 -> 0 | N16: =ALL!AQ17 -> 0 | O16: =ALL!AU17 -> 0 | P16: =ALL!AY17 -> 0 | Q16: =ALL!BC17 -> 0 | R16: =ALL!BG17 -> 0 | S16: =ALL!BK17 -> 0 | T16: =ALL!BO17 -> 0 | U16: =ALL!BS17 -> 0 | V16: =ALL!BW17 -> 0 | W16: =ALL!CA17 -> 0 | X16: =ALL!CE17 -> 0 | Y16: =ALL!CI17 -> 0 | Z16: =ALL!CM17 -> 0 | AA16: =ALL!CQ17 -> 0 | AB16: =ALL!CU17 -> 0 | AC16: =ALL!CY17 -> 0 | AD16: =ALL!DC17 -> 0 | AE16: =ALL!DG17 -> 0 | AF16: =ALL!DK17 -> 0 | AG16: =ALL!DO17 -> 0 | AH16: =ALL!DS17 -> 0 | AK16: 26 | AL16: 26 | AM16: 14
A17: انطلياس | B17: B9 | C17: =JARD_MOG!D17 -> 0 | D17: =IFERROR(VLOOKUP($A17&$B17,CHOOSE({1,2},ALL!$A$4:$A$500&ALL!$B$4:$B$500,ALL!$C$4:$C$500),2,FALSE),"") -> 7 | E17: =ALL!G18 -> 4 | F17: =ALL!K18 -> 0 | G17: =ALL!O18 -> 6 | H17: =ALL!S18 -> 3 | I17: =ALL!W18 -> 0 | J17: =ALL!AA18 -> 0 | K17: =ALL!AE18 -> 0 | L17: =ALL!AL18 -> 0 | M17: =ALL!AM18 -> 0 | N17: =ALL!AQ18 -> 0 | O17: =ALL!AU18 -> 0 | P17: =ALL!AY18 -> 0 | Q17: =ALL!BC18 -> 0 | R17: =ALL!BG18 -> 0 | S17: =ALL!BK18 -> 0 | T17: =ALL!BO18 -> 0 | U17: =ALL!BS18 -> 0 | V17: =ALL!BW18 -> 0 | W17: =ALL!CA18 -> 0 | X17: =ALL!CE18 -> 0 | Y17: =ALL!CI18 -> 0 | Z17: =ALL!CM18 -> 0 | AA17: =ALL!CQ18 -> 0 | AB17: =ALL!CU18 -> 0 | AC17: =ALL!CY18 -> 0 | AD17: =ALL!DC18 -> 0 | AE17: =ALL!DG18 -> 0 | AF17: =ALL!DK18 -> 0 | AG17: =ALL!DO18 -> 0 | AH17: =ALL!DS18 -> 0 | AK17: 20 | AL17: 20 | AM17: 9
A18: صيدا | B18: C1 | C18: =JARD_MOG!D18 -> 0 | D18: =IFERROR(VLOOKUP($A18&$B18,CHOOSE({1,2},ALL!$A$4:$A$500&ALL!$B$4:$B$500,ALL!$C$4:$C$500),2,FALSE),"") -> 0 | E18: =ALL!G19 -> 0 | F18: =ALL!K19 -> 0 | G18: =ALL!O19 -> 0 | H18: =ALL!S19 -> 0 | I18: =ALL!W19 -> 0 | J18: =ALL!AA19 -> 0 | K18: =ALL!AE19 -> 0 | L18: =ALL!AL19 -> 0 | M18: =ALL!AM19 -> 0 | N18: =ALL!AQ19 -> 0 | O18: =ALL!AU19 -> 0 | P18: =ALL!AY19 -> 0 | Q18: =ALL!BC19 -> 0 | R18: =ALL!BG19 -> 0 | S18: =ALL!BK19 -> 0 | T18: =ALL!BO19 -> 0 | U18: =ALL!BS19 -> 0 | V18: =ALL!BW19 -> 0 | W18: =ALL!CA19 -> 0 | X18: =ALL!CE19 -> 0 | Y18: =ALL!CI19 -> 0 | Z18: =ALL!CM19 -> 0 | AA18: =ALL!CQ19 -> 0 | AB18: =ALL!CU19 -> 0 | AC18: =ALL!CY19 -> 0 | AD18: =ALL!DC19 -> 0 | AE18: =ALL!DG19 -> 0 | AF18: =ALL!DK19 -> 0 | AG18: =ALL!DO19 -> 0 | AH18: =ALL!DS19 -> 0 | AK18: 0 | AL18: 0 | AM18: 0
A19: جويا | B19: C10 | C19: =JARD_MOG!D19 -> 0 | D19: =IFERROR(VLOOKUP($A19&$B19,CHOOSE({1,2},ALL!$A$4:$A$500&ALL!$B$4:$B$500,ALL!$C$4:$C$500),2,FALSE),"") -> 0 | E19: =ALL!G20 -> 9 | F19: =ALL!K20 -> 14 | G19: =ALL!O20 -> 4 | H19: =ALL!S20 -> 0 | I19: =ALL!W20 -> 0 | J19: =ALL!AA20 -> 0 | K19: =ALL!AE20 -> 0 | L19: =ALL!AL20 -> 0 | M19: =ALL!AM20 -> 0 | N19: =ALL!AQ20 -> 0 | O19: =ALL!AU20 -> 0 | P19: =ALL!AY20 -> 0 | Q19: =ALL!BC20 -> 0 | R19: =ALL!BG20 -> 0 | S19: =ALL!BK20 -> 0 | T19: =ALL!BO20 -> 0 | U19: =ALL!BS20 -> 0 | V19: =ALL!BW20 -> 0 | W19: =ALL!CA20 -> 0 | X19: =ALL!CE20 -> 0 | Y19: =ALL!CI20 -> 0 | Z19: =ALL!CM20 -> 0 | AA19: =ALL!CQ20 -> 0 | AB19: =ALL!CU20 -> 0 | AC19: =ALL!CY20 -> 0 | AD19: =ALL!DC20 -> 0 | AE19: =ALL!DG20 -> 0 | AF19: =ALL!DK20 -> 0 | AG19: =ALL!DO20 -> 0 | AH19: =ALL!DS20 -> 0 | AK19: 27 | AL19: 27 | AM19: 27
A20: ميس الجبل | B20: C11 | C20: =JARD_MOG!D20 -> 0 | D20: =IFERROR(VLOOKUP($A20&$B20,CHOOSE({1,2},ALL!$A$4:$A$500&ALL!$B$4:$B$500,ALL!$C$4:$C$500),2,FALSE),"") -> 0 | E20: =ALL!G21 -> 0 | F20: =ALL!K21 -> 0 | G20: =ALL!O21 -> 14 | H20: =ALL!S21 -> 0 | I20: =ALL!W21 -> 0 | J20: =ALL!AA21 -> 0 | K20: =ALL!AE21 -> 0 | L20: =ALL!AL21 -> 0 | M20: =ALL!AM21 -> 0 | N20: =ALL!AQ21 -> 0 | O20: =ALL!AU21 -> 0 | P20: =ALL!AY21 -> 0 | Q20: =ALL!BC21 -> 0 | R20: =ALL!BG21 -> 0 | S20: =ALL!BK21 -> 0 | T20: =ALL!BO21 -> 0 | U20: =ALL!BS21 -> 0 | V20: =ALL!BW21 -> 0 | W20: =ALL!CA21 -> 0 | X20: =ALL!CE21 -> 0 | Y20: =ALL!CI21 -> 0 | Z20: =ALL!CM21 -> 0 | AA20: =ALL!CQ21 -> 0 | AB20: =ALL!CU21 -> 0 | AC20: =ALL!CY21 -> 0 | AD20: =ALL!DC21 -> 0 | AE20: =ALL!DG21 -> 0 | AF20: =ALL!DK21 -> 0 | AG20: =ALL!DO21 -> 0 | AH20: =ALL!DS21 -> 0 | AK20: 14 | AL20: 14 | AM20: 14
A21: صور | B21: C2 | C21: =JARD_MOG!D21 -> 0 | D21: =IFERROR(VLOOKUP($A21&$B21,CHOOSE({1,2},ALL!$A$4:$A$500&ALL!$B$4:$B$500,ALL!$C$4:$C$500),2,FALSE),"") -> 0 | E21: =ALL!G22 -> 0 | F21: =ALL!K22 -> 30 | G21: =ALL!O22 -> 0 | H21: =ALL!S22 -> 0 | I21: =ALL!W22 -> 0 | J21: =ALL!AA22 -> 0 | K21: =ALL!AE22 -> 0 | L21: =ALL!AL22 -> 0 | M21: =ALL!AM22 -> 0 | N21: =ALL!AQ22 -> 0 | O21: =ALL!AU22 -> 0 | P21: =ALL!AY22 -> 0 | Q21: =ALL!BC22 -> 0 | R21: =ALL!BG22 -> 0 | S21: =ALL!BK22 -> 0 | T21: =ALL!BO22 -> 0 | U21: =ALL!BS22 -> 0 | V21: =ALL!BW22 -> 0 | W21: =ALL!CA22 -> 0 | X21: =ALL!CE22 -> 0 | Y21: =ALL!CI22 -> 0 | Z21: =ALL!CM22 -> 0 | AA21: =ALL!CQ22 -> 0 | AB21: =ALL!CU22 -> 0 | AC21: =ALL!CY22 -> 0 | AD21: =ALL!DC22 -> 0 | AE21: =ALL!DG22 -> 0 | AF21: =ALL!DK22 -> 0 | AG21: =ALL!DO22 -> 0 | AH21: =ALL!DS22 -> 0 | AK21: 30 | AL21: 30 | AM21: 30
A22: جزين | B22: C3 | C22: =JARD_MOG!D22 -> 0 | D22: =IFERROR(VLOOKUP($A22&$B22,CHOOSE({1,2},ALL!$A$4:$A$500&ALL!$B$4:$B$500,ALL!$C$4:$C$500),2,FALSE),"") -> 0 | E22: =ALL!G23 -> 0 | F22: =ALL!K23 -> 0 | G22: =ALL!O23 -> 10 | H22: =ALL!S23 -> 0 | I22: =ALL!W23 -> 0 | J22: =ALL!AA23 -> 0 | K22: =ALL!AE23 -> 0 | L22: =ALL!AL23 -> 0 | M22: =ALL!AM23 -> 0 | N22: =ALL!AQ23 -> 0 | O22: =ALL!AU23 -> 0 | P22: =ALL!AY23 -> 0 | Q22: =ALL!BC23 -> 0 | R22: =ALL!BG23 -> 0 | S22: =ALL!BK23 -> 0 | T22: =ALL!BO23 -> 0 | U22: =ALL!BS23 -> 0 | V22: =ALL!BW23 -> 0 | W22: =ALL!CA23 -> 0 | X22: =ALL!CE23 -> 0 | Y22: =ALL!CI23 -> 0 | Z22: =ALL!CM23 -> 0 | AA22: =ALL!CQ23 -> 0 | AB22: =ALL!CU23 -> 0 | AC22: =ALL!CY23 -> 0 | AD22: =ALL!DC23 -> 0 | AE22: =ALL!DG23 -> 0 | AF22: =ALL!DK23 -> 0 | AG22: =ALL!DO23 -> 0 | AH22: =ALL!DS23 -> 0 | AK22: 10 | AL22: 10 | AM22: 10
A23: النبطية | B23: C4 | C23: =JARD_MOG!D23 -> 0 | D23: =IFERROR(VLOOKUP($A23&$B23,CHOOSE({1,2},ALL!$A$4:$A$500&ALL!$B$4:$B$500,ALL!$C$4:$C$500),2,FALSE),"") -> 2 | E23: =ALL!G24 -> 3 | F23: =ALL!K24 -> 5 | G23: =ALL!O24 -> 16 | H23: =ALL!S24 -> 3 | I23: =ALL!W24 -> 0 | J23: =ALL!AA24 -> 0 | K23: =ALL!AE24 -> 0 | L23: =ALL!AL24 -> 0 | M23: =ALL!AM24 -> 0 | N23: =ALL!AQ24 -> 0 | O23: =ALL!AU24 -> 0 | P23: =ALL!AY24 -> 0 | Q23: =ALL!BC24 -> 0 | R23: =ALL!BG24 -> 0 | S23: =ALL!BK24 -> 0 | T23: =ALL!BO24 -> 0 | U23: =ALL!BS24 -> 0 | V23: =ALL!BW24 -> 0 | W23: =ALL!CA24 -> 0 | X23: =ALL!CE24 -> 0 | Y23: =ALL!CI24 -> 0 | Z23: =ALL!CM24 -> 0 | AA23: =ALL!CQ24 -> 0 | AB23: =ALL!CU24 -> 0 | AC23: =ALL!CY24 -> 0 | AD23: =ALL!DC24 -> 0 | AE23: =ALL!DG24 -> 0 | AF23: =ALL!DK24 -> 0 | AG23: =ALL!DO24 -> 0 | AH23: =ALL!DS24 -> 0 | AK23: 29 | AL23: 29 | AM23: 24
A24: بنت جبيل | B24: C5 | C24: =JARD_MOG!D24 -> 0 | D24: =IFERROR(VLOOKUP($A24&$B24,CHOOSE({1,2},ALL!$A$4:$A$500&ALL!$B$4:$B$500,ALL!$C$4:$C$500),2,FALSE),"") -> 2 | E24: =ALL!G25 -> 2 | F24: =ALL!K25 -> 23 | G24: =ALL!O25 -> 3 | H24: =ALL!S25 -> 6 | I24: =ALL!W25 -> 0 | J24: =ALL!AA25 -> 0 | K24: =ALL!AE25 -> 0 | L24: =ALL!AL25 -> 0 | M24: =ALL!AM25 -> 0 | N24: =ALL!AQ25 -> 0 | O24: =ALL!AU25 -> 0 | P24: =ALL!AY25 -> 0 | Q24: =ALL!BC25 -> 0 | R24: =ALL!BG25 -> 0 | S24: =ALL!BK25 -> 0 | T24: =ALL!BO25 -> 0 | U24: =ALL!BS25 -> 0 | V24: =ALL!BW25 -> 0 | W24: =ALL!CA25 -> 0 | X24: =ALL!CE25 -> 0 | Y24: =ALL!CI25 -> 0 | Z24: =ALL!CM25 -> 0 | AA24: =ALL!CQ25 -> 0 | AB24: =ALL!CU25 -> 0 | AC24: =ALL!CY25 -> 0 | AD24: =ALL!DC25 -> 0 | AE24: =ALL!DG25 -> 0 | AF24: =ALL!DK25 -> 0 | AG24: =ALL!DO25 -> 0 | AH24: =ALL!DS25 -> 0 | AK24: 36 | AL24: 36 | AM24: 34
A25: مرجعيون | B25: C6 | C25: =JARD_MOG!D25 -> 0 | D25: =IFERROR(VLOOKUP($A25&$B25,CHOOSE({1,2},ALL!$A$4:$A$500&ALL!$B$4:$B$500,ALL!$C$4:$C$500),2,FALSE),"") -> 0 | E25: =ALL!G26 -> 0 | F25: =ALL!K26 -> 0 | G25: =ALL!O26 -> 20 | H25: =ALL!S26 -> 0 | I25: =ALL!W26 -> 0 | J25: =ALL!AA26 -> 0 | K25: =ALL!AE26 -> 0 | L25: =ALL!AL26 -> 0 | M25: =ALL!AM26 -> 0 | N25: =ALL!AQ26 -> 0 | O25: =ALL!AU26 -> 0 | P25: =ALL!AY26 -> 0 | Q25: =ALL!BC26 -> 0 | R25: =ALL!BG26 -> 0 | S25: =ALL!BK26 -> 0 | T25: =ALL!BO26 -> 0 | U25: =ALL!BS26 -> 0 | V25: =ALL!BW26 -> 0 | W25: =ALL!CA26 -> 0 | X25: =ALL!CE26 -> 0 | Y25: =ALL!CI26 -> 0 | Z25: =ALL!CM26 -> 0 | AA25: =ALL!CQ26 -> 0 | AB25: =ALL!CU26 -> 0 | AC25: =ALL!CY26 -> 0 | AD25: =ALL!DC26 -> 0 | AE25: =ALL!DG26 -> 0 | AF25: =ALL!DK26 -> 0 | AG25: =ALL!DO26 -> 0 | AH25: =ALL!DS26 -> 0 | AK25: 20 | AL25: 20 | AM25: 20
A26: حاصبيا | B26: C7 | C26: =JARD_MOG!D26 -> 0 | D26: =IFERROR(VLOOKUP($A26&$B26,CHOOSE({1,2},ALL!$A$4:$A$500&ALL!$B$4:$B$500,ALL!$C$4:$C$500),2,FALSE),"") -> 0 | E26: =ALL!G27 -> 1 | F26: =ALL!K27 -> 3 | G26: =ALL!O27 -> 12 | H26: =ALL!S27 -> 2 | I26: =ALL!W27 -> 0 | J26: =ALL!AA27 -> 0 | K26: =ALL!AE27 -> 0 | L26: =ALL!AL27 -> 0 | M26: =ALL!AM27 -> 0 | N26: =ALL!AQ27 -> 0 | O26: =ALL!AU27 -> 0 | P26: =ALL!AY27 -> 0 | Q26: =ALL!BC27 -> 0 | R26: =ALL!BG27 -> 0 | S26: =ALL!BK27 -> 0 | T26: =ALL!BO27 -> 0 | U26: =ALL!BS27 -> 0 | V26: =ALL!BW27 -> 0 | W26: =ALL!CA27 -> 0 | X26: =ALL!CE27 -> 0 | Y26: =ALL!CI27 -> 0 | Z26: =ALL!CM27 -> 0 | AA26: =ALL!CQ27 -> 0 | AB26: =ALL!CU27 -> 0 | AC26: =ALL!CY27 -> 0 | AD26: =ALL!DC27 -> 0 | AE26: =ALL!DG27 -> 0 | AF26: =ALL!DK27 -> 0 | AG26: =ALL!DO27 -> 0 | AH26: =ALL!DS27 -> 0 | AK26: 18 | AL26: 18 | AM26: 17
A27: تبنين | B27: C8 | C27: =JARD_MOG!D27 -> 0 | D27: =IFERROR(VLOOKUP($A27&$B27,CHOOSE({1,2},ALL!$A$4:$A$500&ALL!$B$4:$B$500,ALL!$C$4:$C$500),2,FALSE),"") -> 2 | E27: =ALL!G28 -> 4 | F27: =ALL!K28 -> 17 | G27: =ALL!O28 -> 6 | H27: =ALL!S28 -> 2 | I27: =ALL!W28 -> 0 | J27: =ALL!AA28 -> 0 | K27: =ALL!AE28 -> 0 | L27: =ALL!AL28 -> 0 | M27: =ALL!AM28 -> 0 | N27: =ALL!AQ28 -> 0 | O27: =ALL!AU28 -> 0 | P27: =ALL!AY28 -> 0 | Q27: =ALL!BC28 -> 0 | R27: =ALL!BG28 -> 0 | S27: =ALL!BK28 -> 0 | T27: =ALL!BO28 -> 0 | U27: =ALL!BS28 -> 0 | V27: =ALL!BW28 -> 0 | W27: =ALL!CA28 -> 0 | X27: =ALL!CE28 -> 0 | Y27: =ALL!CI28 -> 0 | Z27: =ALL!CM28 -> 0 | AA27: =ALL!CQ28 -> 0 | AB27: =ALL!CU28 -> 0 | AC27: =ALL!CY28 -> 0 | AD27: =ALL!DC28 -> 0 | AE27: =ALL!DG28 -> 0 | AF27: =ALL!DK28 -> 0 | AG27: =ALL!DO28 -> 0 | AH27: =ALL!DS28 -> 0 | AK27: 31 | AL27: 31 | AM27: 29
A28: جباع | B28: C9 | C28: =JARD_MOG!D28 -> 0 | D28: =IFERROR(VLOOKUP($A28&$B28,CHOOSE({1,2},ALL!$A$4:$A$500&ALL!$B$4:$B$500,ALL!$C$4:$C$500),2,FALSE),"") -> 1 | E28: =ALL!G29 -> 0 | F28: =ALL!K29 -> 1 | G28: =ALL!O29 -> 11 | H28: =ALL!S29 -> 0 | I28: =ALL!W29 -> 0 | J28: =ALL!AA29 -> 0 | K28: =ALL!AE29 -> 0 | L28: =ALL!AL29 -> 0 | M28: =ALL!AM29 -> 0 | N28: =ALL!AQ29 -> 0 | O28: =ALL!AU29 -> 0 | P28: =ALL!AY29 -> 0 | Q28: =ALL!BC29 -> 0 | R28: =ALL!BG29 -> 0 | S28: =ALL!BK29 -> 0 | T28: =ALL!BO29 -> 0 | U28: =ALL!BS29 -> 0 | V28: =ALL!BW29 -> 0 | W28: =ALL!CA29 -> 0 | X28: =ALL!CE29 -> 0 | Y28: =ALL!CI29 -> 0 | Z28: =ALL!CM29 -> 0 | AA28: =ALL!CQ29 -> 0 | AB28: =ALL!CU29 -> 0 | AC28: =ALL!CY29 -> 0 | AD28: =ALL!DC29 -> 0 | AE28: =ALL!DG29 -> 0 | AF28: =ALL!DK29 -> 0 | AG28: =ALL!DO29 -> 0 | AH28: =ALL!DS29 -> 0 | AK28: 13 | AL28: 13 | AM28: 12
A29: زحلة | B29: D1 | C29: =JARD_MOG!D29 -> 0 | D29: =IFERROR(VLOOKUP($A29&$B29,CHOOSE({1,2},ALL!$A$4:$A$500&ALL!$B$4:$B$500,ALL!$C$4:$C$500),2,FALSE),"") -> 4 | E29: =ALL!G30 -> 14 | F29: =ALL!K30 -> 32 | G29: =ALL!O30 -> 16 | H29: =ALL!S30 -> 8 | I29: =ALL!W30 -> 0 | J29: =ALL!AA30 -> 0 | K29: =ALL!AE30 -> 0 | L29: =ALL!AL30 -> 0 | M29: =ALL!AM30 -> 0 | N29: =ALL!AQ30 -> 0 | O29: =ALL!AU30 -> 0 | P29: =ALL!AY30 -> 0 | Q29: =ALL!BC30 -> 0 | R29: =ALL!BG30 -> 0 | S29: =ALL!BK30 -> 0 | T29: =ALL!BO30 -> 0 | U29: =ALL!BS30 -> 0 | V29: =ALL!BW30 -> 0 | W29: =ALL!CA30 -> 0 | X29: =ALL!CE30 -> 0 | Y29: =ALL!CI30 -> 0 | Z29: =ALL!CM30 -> 0 | AA29: =ALL!CQ30 -> 0 | AB29: =ALL!CU30 -> 0 | AC29: =ALL!CY30 -> 0 | AD29: =ALL!DC30 -> 0 | AE29: =ALL!DG30 -> 0 | AF29: =ALL!DK30 -> 0 | AG29: =ALL!DO30 -> 0 | AH29: =ALL!DS30 -> 0 | AK29: 74 | AL29: 74 | AM29: 70
A30: النبي شيت | B30: D10 | C30: =JARD_MOG!D30 -> 0 | D30: =IFERROR(VLOOKUP($A30&$B30,CHOOSE({1,2},ALL!$A$4:$A$500&ALL!$B$4:$B$500,ALL!$C$4:$C$500),2,FALSE),"") -> 11 | E30: =ALL!G31 -> 2 | F30: =ALL!K31 -> 2 | G30: =ALL!O31 -> 7 | H30: =ALL!S31 -> 0 | I30: =ALL!W31 -> 0 | J30: =ALL!AA31 -> 0 | K30: =ALL!AE31 -> 0 | L30: =ALL!AL31 -> 0 | M30: =ALL!AM31 -> 0 | N30: =ALL!AQ31 -> 0 | O30: =ALL!AU31 -> 0 | P30: =ALL!AY31 -> 0 | Q30: =ALL!BC31 -> 0 | R30: =ALL!BG31 -> 0 | S30: =ALL!BK31 -> 0 | T30: =ALL!BO31 -> 0 | U30: =ALL!BS31 -> 0 | V30: =ALL!BW31 -> 0 | W30: =ALL!CA31 -> 0 | X30: =ALL!CE31 -> 0 | Y30: =ALL!CI31 -> 0 | Z30: =ALL!CM31 -> 0 | AA30: =ALL!CQ31 -> 0 | AB30: =ALL!CU31 -> 0 | AC30: =ALL!CY31 -> 0 | AD30: =ALL!DC31 -> 0 | AE30: =ALL!DG31 -> 0 | AF30: =ALL!DK31 -> 0 | AG30: =ALL!DO31 -> 0 | AH30: =ALL!DS31 -> 0 | AK30: 22 | AL30: 22 | AM30: 9
A31: راشيا | B31: D2 | C31: =JARD_MOG!D31 -> 0 | D31: =IFERROR(VLOOKUP($A31&$B31,CHOOSE({1,2},ALL!$A$4:$A$500&ALL!$B$4:$B$500,ALL!$C$4:$C$500),2,FALSE),"") -> 0 | E31: =ALL!G32 -> 0 | F31: =ALL!K32 -> 25 | G31: =ALL!O32 -> 2 | H31: =ALL!S32 -> 0 | I31: =ALL!W32 -> 0 | J31: =ALL!AA32 -> 0 | K31: =ALL!AE32 -> 0 | L31: =ALL!AL32 -> 0 | M31: =ALL!AM32 -> 0 | N31: =ALL!AQ32 -> 0 | O31: =ALL!AU32 -> 0 | P31: =ALL!AY32 -> 0 | Q31: =ALL!BC32 -> 0 | R31: =ALL!BG32 -> 0 | S31: =ALL!BK32 -> 0 | T31: =ALL!BO32 -> 0 | U31: =ALL!BS32 -> 0 | V31: =ALL!BW32 -> 0 | W31: =ALL!CA32 -> 0 | X31: =ALL!CE32 -> 0 | Y31: =ALL!CI32 -> 0 | Z31: =ALL!CM32 -> 0 | AA31: =ALL!CQ32 -> 0 | AB31: =ALL!CU32 -> 0 | AC31: =ALL!CY32 -> 0 | AD31: =ALL!DC32 -> 0 | AE31: =ALL!DG32 -> 0 | AF31: =ALL!DK32 -> 0 | AG31: =ALL!DO32 -> 0 | AH31: =ALL!DS32 -> 0 | AK31: 27 | AL31: 27 | AM31: 27
A32: البقاع الغربي | B32: D3 | C32: =JARD_MOG!D32 -> 0 | D32: =IFERROR(VLOOKUP($A32&$B32,CHOOSE({1,2},ALL!$A$4:$A$500&ALL!$B$4:$B$500,ALL!$C$4:$C$500),2,FALSE),"") -> 2 | E32: =ALL!G33 -> 4 | F32: =ALL!K33 -> 0 | G32: =ALL!O33 -> 2 | H32: =ALL!S33 -> 0 | I32: =ALL!W33 -> 0 | J32: =ALL!AA33 -> 0 | K32: =ALL!AE33 -> 0 | L32: =ALL!AL33 -> 0 | M32: =ALL!AM33 -> 0 | N32: =ALL!AQ33 -> 0 | O32: =ALL!AU33 -> 0 | P32: =ALL!AY33 -> 0 | Q32: =ALL!BC33 -> 0 | R32: =ALL!BG33 -> 0 | S32: =ALL!BK33 -> 0 | T32: =ALL!BO33 -> 0 | U32: =ALL!BS33 -> 0 | V32: =ALL!BW33 -> 0 | W32: =ALL!CA33 -> 0 | X32: =ALL!CE33 -> 0 | Y32: =ALL!CI33 -> 0 | Z32: =ALL!CM33 -> 0 | AA32: =ALL!CQ33 -> 0 | AB32: =ALL!CU33 -> 0 | AC32: =ALL!CY33 -> 0 | AD32: =ALL!DC33 -> 0 | AE32: =ALL!DG33 -> 0 | AF32: =ALL!DK33 -> 0 | AG32: =ALL!DO33 -> 0 | AH32: =ALL!DS33 -> 0 | AK32: 8 | AL32: 8 | AM32: 8
A33: شمسطار | B33: D4 | C33: =JARD_MOG!D33 -> 0 | D33: =IFERROR(VLOOKUP($A33&$B33,CHOOSE({1,2},ALL!$A$4:$A$500&ALL!$B$4:$B$500,ALL!$C$4:$C$500),2,FALSE),"") -> 5 | E33: =ALL!G34 -> 6 | F33: =ALL!K34 -> 4 | G33: =ALL!O34 -> 3 | H33: =ALL!S34 -> 8 | I33: =ALL!W34 -> 0 | J33: =ALL!AA34 -> 0 | K33: =ALL!AE34 -> 0 | L33: =ALL!AL34 -> 0 | M33: =ALL!AM34 -> 0 | N33: =ALL!AQ34 -> 0 | O33: =ALL!AU34 -> 0 | P33: =ALL!AY34 -> 0 | Q33: =ALL!BC34 -> 0 | R33: =ALL!BG34 -> 0 | S33: =ALL!BK34 -> 0 | T33: =ALL!BO34 -> 0 | U33: =ALL!BS34 -> 0 | V33: =ALL!BW34 -> 0 | W33: =ALL!CA34 -> 0 | X33: =ALL!CE34 -> 0 | Y33: =ALL!CI34 -> 0 | Z33: =ALL!CM34 -> 0 | AA33: =ALL!CQ34 -> 0 | AB33: =ALL!CU34 -> 0 | AC33: =ALL!CY34 -> 0 | AD33: =ALL!DC34 -> 0 | AE33: =ALL!DG34 -> 0 | AF33: =ALL!DK34 -> 0 | AG33: =ALL!DO34 -> 0 | AH33: =ALL!DS34 -> 0 | AK33: 26 | AL33: 26 | AM33: 15
A34: بعلبك | B34: D5 | C34: =JARD_MOG!D34 -> 0 | D34: =IFERROR(VLOOKUP($A34&$B34,CHOOSE({1,2},ALL!$A$4:$A$500&ALL!$B$4:$B$500,ALL!$C$4:$C$500),2,FALSE),"") -> 19 | E34: =ALL!G35 -> 0 | F34: =ALL!K35 -> 0 | G34: =ALL!O35 -> 36 | H34: =ALL!S35 -> 0 | I34: =ALL!W35 -> 0 | J34: =ALL!AA35 -> 0 | K34: =ALL!AE35 -> 0 | L34: =ALL!AL35 -> 0 | M34: =ALL!AM35 -> 0 | N34: =ALL!AQ35 -> 0 | O34: =ALL!AU35 -> 0 | P34: =ALL!AY35 -> 0 | Q34: =ALL!BC35 -> 0 | R34: =ALL!BG35 -> 0 | S34: =ALL!BK35 -> 0 | T34: =ALL!BO35 -> 0 | U34: =ALL!BS35 -> 0 | V34: =ALL!BW35 -> 0 | W34: =ALL!CA35 -> 0 | X34: =ALL!CE35 -> 0 | Y34: =ALL!CI35 -> 0 | Z34: =ALL!CM35 -> 0 | AA34: =ALL!CQ35 -> 0 | AB34: =ALL!CU35 -> 0 | AC34: =ALL!CY35 -> 0 | AD34: =ALL!DC35 -> 0 | AE34: =ALL!DG35 -> 0 | AF34: =ALL!DK35 -> 0 | AG34: =ALL!DO35 -> 0 | AH34: =ALL!DS35 -> 0 | AK34: 55 | AL34: 55 | AM34: 36
A35: الهرمل | B35: D6 | C35: =JARD_MOG!D35 -> 0 | D35: =IFERROR(VLOOKUP($A35&$B35,CHOOSE({1,2},ALL!$A$4:$A$500&ALL!$B$4:$B$500,ALL!$C$4:$C$500),2,FALSE),"") -> 0 | E35: =ALL!G36 -> 0 | F35: =ALL!K36 -> 4 | G35: =ALL!O36 -> 1 | H35: =ALL!S36 -> 0 | I35: =ALL!W36 -> 0 | J35: =ALL!AA36 -> 0 | K35: =ALL!AE36 -> 0 | L35: =ALL!AL36 -> 0 | M35: =ALL!AM36 -> 0 | N35: =ALL!AQ36 -> 0 | O35: =ALL!AU36 -> 0 | P35: =ALL!AY36 -> 0 | Q35: =ALL!BC36 -> 0 | R35: =ALL!BG36 -> 0 | S35: =ALL!BK36 -> 0 | T35: =ALL!BO36 -> 0 | U35: =ALL!BS36 -> 0 | V35: =ALL!BW36 -> 0 | W35: =ALL!CA36 -> 0 | X35: =ALL!CE36 -> 0 | Y35: =ALL!CI36 -> 0 | Z35: =ALL!CM36 -> 0 | AA35: =ALL!CQ36 -> 0 | AB35: =ALL!CU36 -> 0 | AC35: =ALL!CY36 -> 0 | AD35: =ALL!DC36 -> 0 | AE35: =ALL!DG36 -> 0 | AF35: =ALL!DK36 -> 0 | AG35: =ALL!DO36 -> 0 | AH35: =ALL!DS36 -> 0 | AK35: 5 | AL35: 5 | AM35: 5
A36: دير الاحمر | B36: D7 | C36: =JARD_MOG!D36 -> 0 | D36: =IFERROR(VLOOKUP($A36&$B36,CHOOSE({1,2},ALL!$A$4:$A$500&ALL!$B$4:$B$500,ALL!$C$4:$C$500),2,FALSE),"") -> 6 | E36: =ALL!G37 -> 0 | F36: =ALL!K37 -> 0 | G36: =ALL!O37 -> 8 | H36: =ALL!S37 -> 0 | I36: =ALL!W37 -> 0 | J36: =ALL!AA37 -> 0 | K36: =ALL!AE37 -> 0 | L36: =ALL!AL37 -> 0 | M36: =ALL!AM37 -> 0 | N36: =ALL!AQ37 -> 0 | O36: =ALL!AU37 -> 0 | P36: =ALL!AY37 -> 0 | Q36: =ALL!BC37 -> 0 | R36: =ALL!BG37 -> 0 | S36: =ALL!BK37 -> 0 | T36: =ALL!BO37 -> 0 | U36: =ALL!BS37 -> 0 | V36: =ALL!BW37 -> 0 | W36: =ALL!CA37 -> 0 | X36: =ALL!CE37 -> 0 | Y36: =ALL!CI37 -> 0 | Z36: =ALL!CM37 -> 0 | AA36: =ALL!CQ37 -> 0 | AB36: =ALL!CU37 -> 0 | AC36: =ALL!CY37 -> 0 | AD36: =ALL!DC37 -> 0 | AE36: =ALL!DG37 -> 0 | AF36: =ALL!DK37 -> 0 | AG36: =ALL!DO37 -> 0 | AH36: =ALL!DS37 -> 0 | AK36: 14 | AL36: 14 | AM36: 8
A37: اللبوة | B37: D8 | C37: =JARD_MOG!D37 -> 0 | D37: =IFERROR(VLOOKUP($A37&$B37,CHOOSE({1,2},ALL!$A$4:$A$500&ALL!$B$4:$B$500,ALL!$C$4:$C$500),2,FALSE),"") -> 0 | E37: =ALL!G38 -> 2 | F37: =ALL!K38 -> 14 | G37: =ALL!O38 -> 5 | H37: =ALL!S38 -> 5 | I37: =ALL!W38 -> 0 | J37: =ALL!AA38 -> 0 | K37: =ALL!AE38 -> 0 | L37: =ALL!AL38 -> 0 | M37: =ALL!AM38 -> 0 | N37: =ALL!AQ38 -> 0 | O37: =ALL!AU38 -> 0 | P37: =ALL!AY38 -> 0 | Q37: =ALL!BC38 -> 0 | R37: =ALL!BG38 -> 0 | S37: =ALL!BK38 -> 0 | T37: =ALL!BO38 -> 0 | U37: =ALL!BS38 -> 0 | V37: =ALL!BW38 -> 0 | W37: =ALL!CA38 -> 0 | X37: =ALL!CE38 -> 0 | Y37: =ALL!CI38 -> 0 | Z37: =ALL!CM38 -> 0 | AA37: =ALL!CQ38 -> 0 | AB37: =ALL!CU38 -> 0 | AC37: =ALL!CY38 -> 0 | AD37: =ALL!DC38 -> 0 | AE37: =ALL!DG38 -> 0 | AF37: =ALL!DK38 -> 0 | AG37: =ALL!DO38 -> 0 | AH37: =ALL!DS38 -> 0 | AK37: 26 | AL37: 26 | AM37: 26
A38: صغبين | B38: D9 | C38: =JARD_MOG!D38 -> 0 | D38: =IFERROR(VLOOKUP($A38&$B38,CHOOSE({1,2},ALL!$A$4:$A$500&ALL!$B$4:$B$500,ALL!$C$4:$C$500),2,FALSE),"") -> 2 | E38: =ALL!G39 -> 1 | F38: =ALL!K39 -> 11 | G38: =ALL!O39 -> 1 | H38: =ALL!S39 -> 0 | I38: =ALL!W39 -> 0 | J38: =ALL!AA39 -> 0 | K38: =ALL!AE39 -> 0 | L38: =ALL!AL39 -> 0 | M38: =ALL!AM39 -> 0 | N38: =ALL!AQ39 -> 0 | O38: =ALL!AU39 -> 0 | P38: =ALL!AY39 -> 0 | Q38: =ALL!BC39 -> 0 | R38: =ALL!BG39 -> 0 | S38: =ALL!BK39 -> 0 | T38: =ALL!BO39 -> 0 | U38: =ALL!BS39 -> 0 | V38: =ALL!BW39 -> 0 | W38: =ALL!CA39 -> 0 | X38: =ALL!CE39 -> 0 | Y38: =ALL!CI39 -> 0 | Z38: =ALL!CM39 -> 0 | AA38: =ALL!CQ39 -> 0 | AB38: =ALL!CU39 -> 0 | AC38: =ALL!CY39 -> 0 | AD38: =ALL!DC39 -> 0 | AE38: =ALL!DG39 -> 0 | AF38: =ALL!DK39 -> 0 | AG38: =ALL!DO39 -> 0 | AH38: =ALL!DS39 -> 0 | AK38: 15 | AL38: 15 | AM38: 13
A39: طرابلس | B39: E1 | C39: =JARD_MOG!D39 -> 0 | D39: =IFERROR(VLOOKUP($A39&$B39,CHOOSE({1,2},ALL!$A$4:$A$500&ALL!$B$4:$B$500,ALL!$C$4:$C$500),2,FALSE),"") -> 4 | E39: =ALL!G40 -> 5 | F39: =ALL!K40 -> 0 | G39: =ALL!O40 -> 4 | H39: =ALL!S40 -> 37 | I39: =ALL!W40 -> 0 | J39: =ALL!AA40 -> 0 | K39: =ALL!AE40 -> 0 | L39: =ALL!AL40 -> 0 | M39: =ALL!AM40 -> 0 | N39: =ALL!AQ40 -> 0 | O39: =ALL!AU40 -> 0 | P39: =ALL!AY40 -> 0 | Q39: =ALL!BC40 -> 0 | R39: =ALL!BG40 -> 0 | S39: =ALL!BK40 -> 0 | T39: =ALL!BO40 -> 0 | U39: =ALL!BS40 -> 0 | V39: =ALL!BW40 -> 0 | W39: =ALL!CA40 -> 0 | X39: =ALL!CE40 -> 0 | Y39: =ALL!CI40 -> 0 | Z39: =ALL!CM40 -> 0 | AA39: =ALL!CQ40 -> 0 | AB39: =ALL!CU40 -> 0 | AC39: =ALL!CY40 -> 0 | AD39: =ALL!DC40 -> 0 | AE39: =ALL!DG40 -> 0 | AF39: =ALL!DK40 -> 0 | AG39: =ALL!DO40 -> 0 | AH39: =ALL!DS40 -> 0 | AK39: 50 | AL39: 50 | AM39: 41
A40: دوما | B40: E10 | C40: =JARD_MOG!D40 -> 0 | D40: =IFERROR(VLOOKUP($A40&$B40,CHOOSE({1,2},ALL!$A$4:$A$500&ALL!$B$4:$B$500,ALL!$C$4:$C$500),2,FALSE),"") -> 4 | E40: =ALL!G41 -> 0 | F40: =ALL!K41 -> 0 | G40: =ALL!O41 -> 0 | H40: =ALL!S41 -> 0 | I40: =ALL!W41 -> 0 | J40: =ALL!AA41 -> 0 | K40: =ALL!AE41 -> 0 | L40: =ALL!AL41 -> 0 | M40: =ALL!AM41 -> 0 | N40: =ALL!AQ41 -> 0 | O40: =ALL!AU41 -> 0 | P40: =ALL!AY41 -> 0 | Q40: =ALL!BC41 -> 0 | R40: =ALL!BG41 -> 0 | S40: =ALL!BK41 -> 0 | T40: =ALL!BO41 -> 0 | U40: =ALL!BS41 -> 0 | V40: =ALL!BW41 -> 0 | W40: =ALL!CA41 -> 0 | X40: =ALL!CE41 -> 0 | Y40: =ALL!CI41 -> 0 | Z40: =ALL!CM41 -> 0 | AA40: =ALL!CQ41 -> 0 | AB40: =ALL!CU41 -> 0 | AC40: =ALL!CY41 -> 0 | AD40: =ALL!DC41 -> 0 | AE40: =ALL!DG41 -> 0 | AF40: =ALL!DK41 -> 0 | AG40: =ALL!DO41 -> 0 | AH40: =ALL!DS41 -> 0 | AK40: 4 | AL40: 4 | AM40: 0
A41: العبدة | B41: E11 | C41: =JARD_MOG!D41 -> 0 | D41: =IFERROR(VLOOKUP($A41&$B41,CHOOSE({1,2},ALL!$A$4:$A$500&ALL!$B$4:$B$500,ALL!$C$4:$C$500),2,FALSE),"") -> 0 | E41: =ALL!G42 -> 0 | F41: =ALL!K42 -> 1 | G41: =ALL!O42 -> 1 | H41: =ALL!S42 -> 15 | I41: =ALL!W42 -> 0 | J41: =ALL!AA42 -> 0 | K41: =ALL!AE42 -> 0 | L41: =ALL!AL42 -> 0 | M41: =ALL!AM42 -> 0 | N41: =ALL!AQ42 -> 0 | O41: =ALL!AU42 -> 0 | P41: =ALL!AY42 -> 0 | Q41: =ALL!BC42 -> 0 | R41: =ALL!BG42 -> 0 | S41: =ALL!BK42 -> 0 | T41: =ALL!BO42 -> 0 | U41: =ALL!BS42 -> 0 | V41: =ALL!BW42 -> 0 | W41: =ALL!CA42 -> 0 | X41: =ALL!CE42 -> 0 | Y41: =ALL!CI42 -> 0 | Z41: =ALL!CM42 -> 0 | AA41: =ALL!CQ42 -> 0 | AB41: =ALL!CU42 -> 0 | AC41: =ALL!CY42 -> 0 | AD41: =ALL!DC42 -> 0 | AE41: =ALL!DG42 -> 0 | AF41: =ALL!DK42 -> 0 | AG41: =ALL!DO42 -> 0 | AH41: =ALL!DS42 -> 0 | AK41: 17 | AL41: 17 | AM41: 16
A42: بخعون | B42: E12 | C42: =JARD_MOG!D42 -> 0 | D42: =IFERROR(VLOOKUP($A42&$B42,CHOOSE({1,2},ALL!$A$4:$A$500&ALL!$B$4:$B$500,ALL!$C$4:$C$500),2,FALSE),"") -> 0 | E42: =ALL!G43 -> 5 | F42: =ALL!K43 -> 0 | G42: =ALL!O43 -> 3 | H42: =ALL!S43 -> 0 | I42: =ALL!W43 -> 0 | J42: =ALL!AA43 -> 0 | K42: =ALL!AE43 -> 0 | L42: =ALL!AL43 -> 0 | M42: =ALL!AM43 -> 0 | N42: =ALL!AQ43 -> 0 | O42: =ALL!AU43 -> 0 | P42: =ALL!AY43 -> 0 | Q42: =ALL!BC43 -> 0 | R42: =ALL!BG43 -> 0 | S42: =ALL!BK43 -> 0 | T42: =ALL!BO43 -> 0 | U42: =ALL!BS43 -> 0 | V42: =ALL!BW43 -> 0 | W42: =ALL!CA43 -> 0 | X42: =ALL!CE43 -> 0 | Y42: =ALL!CI43 -> 0 | Z42: =ALL!CM43 -> 0 | AA42: =ALL!CQ43 -> 0 | AB42: =ALL!CU43 -> 0 | AC42: =ALL!CY43 -> 0 | AD42: =ALL!DC43 -> 0 | AE42: =ALL!DG43 -> 0 | AF42: =ALL!DK43 -> 0 | AG42: =ALL!DO43 -> 0 | AH42: =ALL!DS43 -> 0 | AK42: 8 | AL42: 8 | AM42: 3
A43: بيت ملات | B43: E13 | C43: =JARD_MOG!D43 -> 0 | D43: =IFERROR(VLOOKUP($A43&$B43,CHOOSE({1,2},ALL!$A$4:$A$500&ALL!$B$4:$B$500,ALL!$C$4:$C$500),2,FALSE),"") -> 0 | E43: =ALL!G44 -> 1 | F43: =ALL!K44 -> 1 | G43: =ALL!O44 -> 1 | H43: =ALL!S44 -> 9 | I43: =ALL!W44 -> 0 | J43: =ALL!AA44 -> 0 | K43: =ALL!AE44 -> 0 | L43: =ALL!AL44 -> 0 | M43: =ALL!AM44 -> 0 | N43: =ALL!AQ44 -> 0 | O43: =ALL!AU44 -> 0 | P43: =ALL!AY44 -> 0 | Q43: =ALL!BC44 -> 0 | R43: =ALL!BG44 -> 0 | S43: =ALL!BK44 -> 0 | T43: =ALL!BO44 -> 0 | U43: =ALL!BS44 -> 0 | V43: =ALL!BW44 -> 0 | W43: =ALL!CA44 -> 0 | X43: =ALL!CE44 -> 0 | Y43: =ALL!CI44 -> 0 | Z43: =ALL!CM44 -> 0 | AA43: =ALL!CQ44 -> 0 | AB43: =ALL!CU44 -> 0 | AC43: =ALL!CY44 -> 0 | AD43: =ALL!DC44 -> 0 | AE43: =ALL!DG44 -> 0 | AF43: =ALL!DK44 -> 0 | AG43: =ALL!DO44 -> 0 | AH43: =ALL!DS44 -> 0 | AK43: 12 | AL43: 12 | AM43: 10
A44: المنية | B44: E2 | C44: =JARD_MOG!D44 -> 0 | D44: =IFERROR(VLOOKUP($A44&$B44,CHOOSE({1,2},ALL!$A$4:$A$500&ALL!$B$4:$B$500,ALL!$C$4:$C$500),2,FALSE),"") -> 1 | E44: =ALL!G45 -> 1 | F44: =ALL!K45 -> 2 | G44: =ALL!O45 -> 4 | H44: =ALL!S45 -> 10 | I44: =ALL!W45 -> 0 | J44: =ALL!AA45 -> 0 | K44: =ALL!AE45 -> 0 | L44: =ALL!AL45 -> 0 | M44: =ALL!AM45 -> 0 | N44: =ALL!AQ45 -> 0 | O44: =ALL!AU45 -> 0 | P44: =ALL!AY45 -> 0 | Q44: =ALL!BC45 -> 0 | R44: =ALL!BG45 -> 0 | S44: =ALL!BK45 -> 0 | T44: =ALL!BO45 -> 0 | U44: =ALL!BS45 -> 0 | V44: =ALL!BW45 -> 0 | W44: =ALL!CA45 -> 0 | X44: =ALL!CE45 -> 0 | Y44: =ALL!CI45 -> 0 | Z44: =ALL!CM45 -> 0 | AA44: =ALL!CQ45 -> 0 | AB44: =ALL!CU45 -> 0 | AC44: =ALL!CY45 -> 0 | AD44: =ALL!DC45 -> 0 | AE44: =ALL!DG45 -> 0 | AF44: =ALL!DK45 -> 0 | AG44: =ALL!DO45 -> 0 | AH44: =ALL!DS45 -> 0 | AK44: 18 | AL44: 18 | AM44: 14
A45: سير الضنية | B45: E3 | C45: =JARD_MOG!D45 -> 0 | D45: =IFERROR(VLOOKUP($A45&$B45,CHOOSE({1,2},ALL!$A$4:$A$500&ALL!$B$4:$B$500,ALL!$C$4:$C$500),2,FALSE),"") -> 2 | E45: =ALL!G46 -> 0 | F45: =ALL!K46 -> 2 | G45: =ALL!O46 -> 3 | H45: =ALL!S46 -> 3 | I45: =ALL!W46 -> 0 | J45: =ALL!AA46 -> 0 | K45: =ALL!AE46 -> 0 | L45: =ALL!AL46 -> 0 | M45: =ALL!AM46 -> 0 | N45: =ALL!AQ46 -> 0 | O45: =ALL!AU46 -> 0 | P45: =ALL!AY46 -> 0 | Q45: =ALL!BC46 -> 0 | R45: =ALL!BG46 -> 0 | S45: =ALL!BK46 -> 0 | T45: =ALL!BO46 -> 0 | U45: =ALL!BS46 -> 0 | V45: =ALL!BW46 -> 0 | W45: =ALL!CA46 -> 0 | X45: =ALL!CE46 -> 0 | Y45: =ALL!CI46 -> 0 | Z45: =ALL!CM46 -> 0 | AA45: =ALL!CQ46 -> 0 | AB45: =ALL!CU46 -> 0 | AC45: =ALL!CY46 -> 0 | AD45: =ALL!DC46 -> 0 | AE45: =ALL!DG46 -> 0 | AF45: =ALL!DK46 -> 0 | AG45: =ALL!DO46 -> 0 | AH45: =ALL!DS46 -> 0 | AK45: 10 | AL45: 10 | AM45: 6
A46: حلبا عكار | B46: E4 | C46: =JARD_MOG!D46 -> 0 | D46: =IFERROR(VLOOKUP($A46&$B46,CHOOSE({1,2},ALL!$A$4:$A$500&ALL!$B$4:$B$500,ALL!$C$4:$C$500),2,FALSE),"") -> 0 | E46: =ALL!G47 -> 3 | F46: =ALL!K47 -> 5 | G46: =ALL!O47 -> 0 | H46: =ALL!S47 -> 12 | I46: =ALL!W47 -> 0 | J46: =ALL!AA47 -> 0 | K46: =ALL!AE47 -> 0 | L46: =ALL!AL47 -> 0 | M46: =ALL!AM47 -> 0 | N46: =ALL!AQ47 -> 0 | O46: =ALL!AU47 -> 0 | P46: =ALL!AY47 -> 0 | Q46: =ALL!BC47 -> 0 | R46: =ALL!BG47 -> 0 | S46: =ALL!BK47 -> 0 | T46: =ALL!BO47 -> 0 | U46: =ALL!BS47 -> 0 | V46: =ALL!BW47 -> 0 | W46: =ALL!CA47 -> 0 | X46: =ALL!CE47 -> 0 | Y46: =ALL!CI47 -> 0 | Z46: =ALL!CM47 -> 0 | AA46: =ALL!CQ47 -> 0 | AB46: =ALL!CU47 -> 0 | AC46: =ALL!CY47 -> 0 | AD46: =ALL!DC47 -> 0 | AE46: =ALL!DG47 -> 0 | AF46: =ALL!DK47 -> 0 | AG46: =ALL!DO47 -> 0 | AH46: =ALL!DS47 -> 0 | AK46: 20 | AL46: 20 | AM46: 12
A47: القبيات | B47: E5 | C47: =JARD_MOG!D47 -> 0 | D47: =IFERROR(VLOOKUP($A47&$B47,CHOOSE({1,2},ALL!$A$4:$A$500&ALL!$B$4:$B$500,ALL!$C$4:$C$500),2,FALSE),"") -> 0 | E47: =ALL!G48 -> 0 | F47: =ALL!K48 -> 0 | G47: =ALL!O48 -> 3 | H47: =ALL!S48 -> 22 | I47: =ALL!W48 -> 0 | J47: =ALL!AA48 -> 0 | K47: =ALL!AE48 -> 0 | L47: =ALL!AL48 -> 0 | M47: =ALL!AM48 -> 0 | N47: =ALL!AQ48 -> 0 | O47: =ALL!AU48 -> 0 | P47: =ALL!AY48 -> 0 | Q47: =ALL!BC48 -> 0 | R47: =ALL!BG48 -> 0 | S47: =ALL!BK48 -> 0 | T47: =ALL!BO48 -> 0 | U47: =ALL!BS48 -> 0 | V47: =ALL!BW48 -> 0 | W47: =ALL!CA48 -> 0 | X47: =ALL!CE48 -> 0 | Y47: =ALL!CI48 -> 0 | Z47: =ALL!CM48 -> 0 | AA47: =ALL!CQ48 -> 0 | AB47: =ALL!CU48 -> 0 | AC47: =ALL!CY48 -> 0 | AD47: =ALL!DC48 -> 0 | AE47: =ALL!DG48 -> 0 | AF47: =ALL!DK48 -> 0 | AG47: =ALL!DO48 -> 0 | AH47: =ALL!DS48 -> 0 | AK47: 25 | AL47: 25 | AM47: 25
A48: البترون | B48: E6 | C48: =JARD_MOG!D48 -> 0 | D48: =IFERROR(VLOOKUP($A48&$B48,CHOOSE({1,2},ALL!$A$4:$A$500&ALL!$B$4:$B$500,ALL!$C$4:$C$500),2,FALSE),"") -> 3 | E48: =ALL!G49 -> 0 | F48: =ALL!K49 -> 3 | G48: =ALL!O49 -> 1 | H48: =ALL!S49 -> 1 | I48: =ALL!W49 -> 0 | J48: =ALL!AA49 -> 0 | K48: =ALL!AE49 -> 0 | L48: =ALL!AL49 -> 0 | M48: =ALL!AM49 -> 0 | N48: =ALL!AQ49 -> 0 | O48: =ALL!AU49 -> 0 | P48: =ALL!AY49 -> 0 | Q48: =ALL!BC49 -> 0 | R48: =ALL!BG49 -> 0 | S48: =ALL!BK49 -> 0 | T48: =ALL!BO49 -> 0 | U48: =ALL!BS49 -> 0 | V48: =ALL!BW49 -> 0 | W48: =ALL!CA49 -> 0 | X48: =ALL!CE49 -> 0 | Y48: =ALL!CI49 -> 0 | Z48: =ALL!CM49 -> 0 | AA48: =ALL!CQ49 -> 0 | AB48: =ALL!CU49 -> 0 | AC48: =ALL!CY49 -> 0 | AD48: =ALL!DC49 -> 0 | AE48: =ALL!DG49 -> 0 | AF48: =ALL!DK49 -> 0 | AG48: =ALL!DO49 -> 0 | AH48: =ALL!DS49 -> 0 | AK48: 8 | AL48: 8 | AM48: 2
A49: الكورة | B49: E7 | C49: =JARD_MOG!D49 -> 0 | D49: =IFERROR(VLOOKUP($A49&$B49,CHOOSE({1,2},ALL!$A$4:$A$500&ALL!$B$4:$B$500,ALL!$C$4:$C$500),2,FALSE),"") -> 5 | E49: =ALL!G50 -> 4 | F49: =ALL!K50 -> 0 | G49: =ALL!O50 -> 4 | H49: =ALL!S50 -> 0 | I49: =ALL!W50 -> 0 | J49: =ALL!AA50 -> 0 | K49: =ALL!AE50 -> 0 | L49: =ALL!AL50 -> 0 | M49: =ALL!AM50 -> 0 | N49: =ALL!AQ50 -> 0 | O49: =ALL!AU50 -> 0 | P49: =ALL!AY50 -> 0 | Q49: =ALL!BC50 -> 0 | R49: =ALL!BG50 -> 0 | S49: =ALL!BK50 -> 0 | T49: =ALL!BO50 -> 0 | U49: =ALL!BS50 -> 0 | V49: =ALL!BW50 -> 0 | W49: =ALL!CA50 -> 0 | X49: =ALL!CE50 -> 0 | Y49: =ALL!CI50 -> 0 | Z49: =ALL!CM50 -> 0 | AA49: =ALL!CQ50 -> 0 | AB49: =ALL!CU50 -> 0 | AC49: =ALL!CY50 -> 0 | AD49: =ALL!DC50 -> 0 | AE49: =ALL!DG50 -> 0 | AF49: =ALL!DK50 -> 0 | AG49: =ALL!DO50 -> 0 | AH49: =ALL!DS50 -> 0 | AK49: 13 | AL49: 13 | AM49: 4
A50: زغرتا | B50: E8 | C50: =JARD_MOG!D50 -> 0 | D50: =IFERROR(VLOOKUP($A50&$B50,CHOOSE({1,2},ALL!$A$4:$A$500&ALL!$B$4:$B$500,ALL!$C$4:$C$500),2,FALSE),"") -> 1 | E50: =ALL!G51 -> 1 | F50: =ALL!K51 -> 1 | G50: =ALL!O51 -> 0 | H50: =ALL!S51 -> 3 | I50: =ALL!W51 -> 0 | J50: =ALL!AA51 -> 0 | K50: =ALL!AE51 -> 0 | L50: =ALL!AL51 -> 0 | M50: =ALL!AM51 -> 0 | N50: =ALL!AQ51 -> 0 | O50: =ALL!AU51 -> 0 | P50: =ALL!AY51 -> 0 | Q50: =ALL!BC51 -> 0 | R50: =ALL!BG51 -> 0 | S50: =ALL!BK51 -> 0 | T50: =ALL!BO51 -> 0 | U50: =ALL!BS51 -> 0 | V50: =ALL!BW51 -> 0 | W50: =ALL!CA51 -> 0 | X50: =ALL!CE51 -> 0 | Y50: =ALL!CI51 -> 0 | Z50: =ALL!CM51 -> 0 | AA50: =ALL!CQ51 -> 0 | AB50: =ALL!CU51 -> 0 | AC50: =ALL!CY51 -> 0 | AD50: =ALL!DC51 -> 0 | AE50: =ALL!DG51 -> 0 | AF50: =ALL!DK51 -> 0 | AG50: =ALL!DO51 -> 0 | AH50: =ALL!DS51 -> 0 | AK50: 6 | AL50: 6 | AM50: 3
A51: بشري | B51: E9 | C51: =JARD_MOG!D51 -> 0 | D51: =IFERROR(VLOOKUP($A51&$B51,CHOOSE({1,2},ALL!$A$4:$A$500&ALL!$B$4:$B$500,ALL!$C$4:$C$500),2,FALSE),"") -> 4 | E51: =ALL!G52 -> 0 | F51: =ALL!K52 -> 1 | G51: =ALL!O52 -> 0 | H51: =ALL!S52 -> 0 | I51: =ALL!W52 -> 0 | J51: =ALL!AA52 -> 0 | K51: =ALL!AE52 -> 0 | L51: =ALL!AL52 -> 0 | M51: =ALL!AM52 -> 0 | N51: =ALL!AQ52 -> 0 | O51: =ALL!AU52 -> 0 | P51: =ALL!AY52 -> 0 | Q51: =ALL!BC52 -> 0 | R51: =ALL!BG52 -> 0 | S51: =ALL!BK52 -> 0 | T51: =ALL!BO52 -> 0 | U51: =ALL!BS52 -> 0 | V51: =ALL!BW52 -> 0 | W51: =ALL!CA52 -> 0 | X51: =ALL!CE52 -> 0 | Y51: =ALL!CI52 -> 0 | Z51: =ALL!CM52 -> 0 | AA51: =ALL!CQ52 -> 0 | AB51: =ALL!CU52 -> 0 | AC51: =ALL!CY52 -> 0 | AD51: =ALL!DC52 -> 0 | AE51: =ALL!DG52 -> 0 | AF51: =ALL!DK52 -> 0 | AG51: =ALL!DO52 -> 0 | AH51: =ALL!DS52 -> 0 | AK51: 5 | AL51: 5 | AM51: 0
A52: المجموع | C52: =JARD_MOG!D52 -> 0 | D52: =SUM(D3:D51) -> 139 | E52: 142 | F52: 237 | G52: 297 | H52: 175 | I52: 0 | J52: 0 | K52: 0 | L52: 0 | M52: 0 | N52: =SUM(N3:N51) -> 0 | O52: 0 | P52: 0 | Q52: 0 | R52: 0 | S52: 0 | T52: 0 | U52: 0 | V52: 0 | W52: 0 | X52: 0 | Y52: 0 | Z52: 0 | AA52: 0 | AB52: 0 | AC52: 0 | AD52: 0 | AE52: 0 | AF52: 0 | AG52: 0 | AH52: 0 | AK52: =SUM(AK3:AK50) -> 985 | AL52: =SUM(AL3:AL51) -> 990 | AM52: =SUM(AM3:AM51) -> 676

Sheet HA
A1: 2020 | B1: هويات | D1: =ALL!C1 -> 2020-12-01 | E1: =ALL!G1 -> 2020-12-08 | F1: =ALL!K1 -> 2020-12-14 | G1: =ALL!O1 -> 2020-12-18 | H1: =ALL!S1 -> 2020-12-22 | I1: =ALL!W1 -> 00:00:00 | J1: =ALL!AA1 -> 00:00:00 | K1: =ALL!AE1 -> 00:00:00 | L1: =ALL!AL1 -> 00:00:00 | M1: =ALL!AM1 -> 00:00:00 | N1: =ALL!AQ1 -> 00:00:00 | O1: =ALL!AU1 -> 00:00:00 | P1: =ALL!AY1 -> 00:00:00 | Q1: =ALL!BC1 -> 00:00:00 | R1: =ALL!BG1 -> 00:00:00 | S1: =ALL!BK1 -> 00:00:00 | T1: =ALL!BO1 -> 00:00:00 | U1: =ALL!BS1 -> 00:00:00 | V1: =ALL!BW1 -> 00:00:00 | W1: =ALL!CA1 -> 00:00:00 | X1: =ALL!CE1 -> 00:00:00 | Y1: =ALL!CI1 -> 00:00:00 | Z1: =ALL!CM1 -> 00:00:00 | AA1: =ALL!CQ1 -> 00:00:00 | AB1: =ALL!CU1 -> 00:00:00 | AC1: =ALL!CY1 -> 00:00:00 | AD1: =ALL!DC1 -> 00:00:00 | AE1: =ALL!DG1 -> 00:00:00 | AF1: =ALL!DK1 -> 00:00:00 | AG1: =ALL!DO1 -> 00:00:00 | AH1: =ALL!DS1 -> 00:00:00
A2: كانون اول | B2: رمز | C2: المنصرم | D2: =ALL!C2 -> 02/12/ | E2: =ALL!G2 -> 09/12/ | F2: =ALL!K2 -> 15/12/ | G2: =ALL!O2 -> 21/12/ | H2: =ALL!S2 -> 23/12/ | I2: =ALL!W2 -> 00:00:00 | J2: =ALL!AA2 -> 00:00:00 | K2: =ALL!AE2 -> 00:00:00 | L2: =ALL!AL2 -> 00:00:00 | M2: =ALL!AM2 -> 00:00:00 | N2: =ALL!AQ2 -> 00:00:00 | O2: =ALL!AU2 -> 00:00:00 | P2: =ALL!AY2 -> 00:00:00 | Q2: =ALL!BC2 -> 00:00:00 | R2: =ALL!BG2 -> 00:00:00 | S2: =ALL!BK2 -> 00:00:00 | T2: =ALL!BO2 -> 00:00:00 | U2: =ALL!BS2 -> 00:00:00 | V2: =ALL!BW2 -> 00:00:00 | W2: =ALL!CA2 -> 00:00:00 | X2: =ALL!CE2 -> 00:00:00 | Y2: =ALL!CI2 -> 00:00:00 | Z2: =ALL!CM2 -> 00:00:00 | AA2: =ALL!CQ2 -> 00:00:00 | AB2: =ALL!CU2 -> 00:00:00 | AC2: =ALL!CY2 -> 00:00:00 | AD2: =ALL!DC2 -> 00:00:00 | AE2: =ALL!DG2 -> 00:00:00 | AF2: =ALL!DK2 -> 00:00:00 | AG2: =ALL!DO2 -> 00:00:00 | AH2: =ALL!DS2 -> 00:00:00 | AK2: هويات مستلمة | AL2: هويات مستلمة + المنصرم | AM2: هويات غير مسلّمة
A3: بيروت | B3: A | C3: =JARD_HA!D3 -> 0 | D3: =IFERROR(VLOOKUP($A3&$B3,CHOOSE({1,2},ALL!$A$4:$A$500&ALL!$B$4:$B$500,ALL!$D$4:$D$500),2,FALSE),"") -> 4 | E3: =ALL!H4 -> 266 | F3: =ALL!L4 -> 107 | G3: =ALL!P4 -> 146 | H3: =ALL!T4 -> 137 | I3: =ALL!X4 -> 0 | J3: =ALL!AB4 -> 0 | K3: =ALL!AF4 -> 0 | L3: =ALL!AJ4 -> 0 | M3: =ALL!AN4 -> 0 | N3: =ALL!AR4 -> 0 | O3: =ALL!AV4 -> 0 | P3: =ALL!AZ4 -> 0 | Q3: =ALL!BD4 -> 0 | R3: =ALL!BH4 -> 0 | S3: =ALL!BL4 -> 0 | T3: =ALL!BP4 -> 0 | U3: =ALL!BT4 -> 0 | V3: =ALL!BX4 -> 0 | W3: =ALL!CB4 -> 0 | X3: =ALL!CF4 -> 0 | Y3: =ALL!CJ4 -> 0 | Z3: =ALL!CN4 -> 0 | AA3: =ALL!CR4 -> 0 | AB3: =ALL!CV4 -> 0 | AC3: =ALL!CZ4 -> 0 | AD3: =ALL!DD4 -> 0 | AE3: =ALL!DH4 -> 0 | AF3: =ALL!DL4 -> 0 | AG3: =ALL!DP4 -> 0 | AH3: =ALL!DT4 -> 0 | AK3: =SUM(D3:AH3) -> 660 | AL3: =SUM(AK3+C3) -> 660 | AM3: 0
A4: بعبدا | B4: B1 | C4: =JARD_HA!D4 -> 48 | D4: =IFERROR(VLOOKUP($A4&$B4,CHOOSE({1,2},ALL!$A$4:$A$500&ALL!$B$4:$B$500,ALL!$D$4:$D$500),2,FALSE),"") -> 22 | E4: =ALL!H5 -> 11 | F4: =ALL!L5 -> 12 | G4: =ALL!P5 -> 7 | H4: =ALL!T5 -> 12 | I4: =ALL!X5 -> 0 | J4: =ALL!AB5 -> 0 | K4: =ALL!AF5 -> 0 | L4: =ALL!AJ5 -> 0 | M4: =ALL!AN5 -> 0 | N4: =ALL!AR5 -> 0 | O4: =ALL!AV5 -> 0 | P4: =ALL!AZ5 -> 0 | Q4: =ALL!BD5 -> 0 | R4: =ALL!BH5 -> 0 | S4: =ALL!BL5 -> 0 | T4: =ALL!BP5 -> 0 | U4: =ALL!BT5 -> 0 | V4: =ALL!BX5 -> 0 | W4: =ALL!CB5 -> 0 | X4: =ALL!CF5 -> 0 | Y4: =ALL!CJ5 -> 0 | Z4: =ALL!CN5 -> 0 | AA4: =ALL!CR5 -> 0 | AB4: =ALL!CV5 -> 0 | AC4: =ALL!CZ5 -> 0 | AD4: =ALL!DD5 -> 0 | AE4: =ALL!DH5 -> 0 | AF4: =ALL!DL5 -> 0 | AG4: =ALL!DP5 -> 0 | AH4: =ALL!DT5 -> 0 | AK4: =SUM(D4:AH4) -> 64 | AL4: =SUM(AK4+C4) -> 112 | AM4: 19
A5: بكفيا | B5: B10 | C5: =JARD_HA!D5 -> 11 | D5: =IFERROR(VLOOKUP($A5&$B5,CHOOSE({1,2},ALL!$A$4:$A$500&ALL!$B$4:$B$500,ALL!$D$4:$D$500),2,FALSE),"") -> 82 | E5: =ALL!H6 -> 9 | F5: =ALL!L6 -> 0 | G5: =ALL!P6 -> 38 | H5: =ALL!T6 -> 0 | I5: =ALL!X6 -> 0 | J5: =ALL!AB6 -> 0 | K5: =ALL!AF6 -> 0 | L5: =ALL!AJ6 -> 0 | M5: =ALL!AN6 -> 0 | N5: =ALL!AR6 -> 0 | O5: =ALL!AV6 -> 0 | P5: =ALL!AZ6 -> 0 | Q5: =ALL!BD6 -> 0 | R5: =ALL!BH6 -> 0 | S5: =ALL!BL6 -> 0 | T5: =ALL!BP6 -> 0 | U5: =ALL!BT6 -> 0 | V5: =ALL!BX6 -> 0 | W5: =ALL!CB6 -> 0 | X5: =ALL!CF6 -> 0 | Y5: =ALL!CJ6 -> 0 | Z5: =ALL!CN6 -> 0 | AA5: =ALL!CR6 -> 0 | AB5: =ALL!CV6 -> 0 | AC5: =ALL!CZ6 -> 0 | AD5: =ALL!DD6 -> 0 | AE5: =ALL!DH6 -> 0 | AF5: =ALL!DL6 -> 0 | AG5: =ALL!DP6 -> 0 | AH5: =ALL!DT6 -> 0 | AK5: 129 | AL5: 140 | AM5: 38
A6: المتن الشمالي العالي | B6: B11 | C6: =JARD_HA!D6 -> 0 | D6: =IFERROR(VLOOKUP($A6&$B6,CHOOSE({1,2},ALL!$A$4:$A$500&ALL!$B$4:$B$500,ALL!$D$4:$D$500),2,FALSE),"") -> 9 | E6: =ALL!H7 -> 0 | F6: =ALL!L7 -> 0 | G6: =ALL!P7 -> 11 | H6: =ALL!T7 -> 0 | I6: =ALL!X7 -> 0 | J6: =ALL!AB7 -> 0 | K6: =ALL!AF7 -> 0 | L6: =ALL!AJ7 -> 0 | M6: =ALL!AN7 -> 0 | N6: =ALL!AR7 -> 0 | O6: =ALL!AV7 -> 0 | P6: =ALL!AZ7 -> 0 | Q6: =ALL!BD7 -> 0 | R6: =ALL!BH7 -> 0 | S6: =ALL!BL7 -> 0 | T6: =ALL!BP7 -> 0 | U6: =ALL!BT7 -> 0 | V6: =ALL!BX7 -> 0 | W6: =ALL!CB7 -> 0 | X6: =ALL!CF7 -> 0 | Y6: =ALL!CJ7 -> 0 | Z6: =ALL!CN7 -> 0 | AA6: =ALL!CR7 -> 0 | AB6: =ALL!CV7 -> 0 | AC6: =ALL!CZ7 -> 0 | AD6: =ALL!DD7 -> 0 | AE6: =ALL!DH7 -> 0 | AF6: =ALL!DL7 -> 0 | AG6: =ALL!DP7 -> 0 | AH6: =ALL!DT7 -> 0 | AK6: 20 | AL6: 20 | AM6: 11
A7: كسروان | B7: B12 | C7: =JARD_HA!D7 -> 0 | D7: =IFERROR(VLOOKUP($A7&$B7,CHOOSE({1,2},ALL!$A$4:$A$500&ALL!$B$4:$B$500,ALL!$D$4:$D$500),2,FALSE),"") -> 63 | E7: =ALL!H8 -> 11 | F7: =ALL!L8 -> 2 | G7: =ALL!P8 -> 38 | H7: =ALL!T8 -> 2 | I7: =ALL!X8 -> 0 | J7: =ALL!AB8 -> 0 | K7: =ALL!AF8 -> 0 | L7: =ALL!AJ8 -> 0 | M7: =ALL!AN8 -> 0 | N7: =ALL!AR8 -> 0 | O7: =ALL!AV8 -> 0 | P7: =ALL!AZ8 -> 0 | Q7: =ALL!BD8 -> 0 | R7: =ALL!BH8 -> 0 | S7: =ALL!BL8 -> 0 | T7: =ALL!BP8 -> 0 | U7: =ALL!BT8 -> 0 | V7: =ALL!BX8 -> 0 | W7: =ALL!CB8 -> 0 | X7: =ALL!CF8 -> 0 | Y7: =ALL!CJ8 -> 0 | Z7: =ALL!CN8 -> 0 | AA7: =ALL!CR8 -> 0 | AB7: =ALL!CV8 -> 0 | AC7: =ALL!CZ8 -> 0 | AD7: =ALL!DD8 -> 0 | AE7: =ALL!DH8 -> 0 | AF7: =ALL!DL8 -> 0 | AG7: =ALL!DP8 -> 0 | AH7: =ALL!DT8 -> 0 | AK7: 116 | AL7: 116 | AM7: 42
A8: جبيل | B8: B13 | C8: =JARD_HA!D8 -> 68 | D8: =IFERROR(VLOOKUP($A8&$B8,CHOOSE({1,2},ALL!$A$4:$A$500&ALL!$B$4:$B$500,ALL!$D$4:$D$500),2,FALSE),"") -> 0 | E8: =ALL!H9 -> 2 | F8: =ALL!L9 -> 4 | G8: =ALL!P9 -> 0 | H8: =ALL!T9 -> 48 | I8: =ALL!X9 -> 0 | J8: =ALL!AB9 -> 0 | K8: =ALL!AF9 -> 0 | L8: =ALL!AJ9 -> 0 | M8: =ALL!AN9 -> 0 | N8: =ALL!AR9 -> 0 | O8: =ALL!AV9 -> 0 | P8: =ALL!AZ9 -> 0 | Q8: =ALL!BD9 -> 0 | R8: =ALL!BH9 -> 0 | S8: =ALL!BL9 -> 0 | T8: =ALL!BP9 -> 0 | U8: =ALL!BT9 -> 0 | V8: =ALL!BX9 -> 0 | W8: =ALL!CB9 -> 0 | X8: =ALL!CF9 -> 0 | Y8: =ALL!CJ9 -> 0 | Z8: =ALL!CN9 -> 0 | AA8: =ALL!CR9 -> 0 | AB8: =ALL!CV9 -> 0 | AC8: =ALL!CZ9 -> 0 | AD8: =ALL!DD9 -> 0 | AE8: =ALL!DH9 -> 0 | AF8: =ALL!DL9 -> 0 | AG8: =ALL!DP9 -> 0 | AH8: =ALL!DT9 -> 0 | AK8: 54 | AL8: 122 | AM8: 48
A9: فتوح كسروان | B9: B14 | C9: =JARD_HA!D9 -> 0 | D9: =IFERROR(VLOOKUP($A9&$B9,CHOOSE({1,2},ALL!$A$4:$A$500&ALL!$B$4:$B$500,ALL!$D$4:$D$500),2,FALSE),"") -> 22 | E9: =ALL!H10 -> 1 | F9: =ALL!L10 -> 0 | G9: =ALL!P10 -> 13 | H9: =ALL!T10 -> 0 | I9: =ALL!X10 -> 0 | J9: =ALL!AB10 -> 0 | K9: =ALL!AF10 -> 0 | L9: =ALL!AJ10 -> 0 | M9: =ALL!AN10 -> 0 | N9: =ALL!AR10 -> 0 | O9: =ALL!AV10 -> 0 | P9: =ALL!AZ10 -> 0 | Q9: =ALL!BD10 -> 0 | R9: =ALL!BH10 -> 0 | S9: =ALL!BL10 -> 0 | T9: =ALL!BP10 -> 0 | U9: =ALL!BT10 -> 0 | V9: =ALL!BX10 -> 0 | W9: =ALL!CB10 -> 0 | X9: =ALL!CF10 -> 0 | Y9: =ALL!CJ10 -> 0 | Z9: =ALL!CN10 -> 0 | AA9: =ALL!CR10 -> 0 | AB9: =ALL!CV10 -> 0 | AC9: =ALL!CZ10 -> 0 | AD9: =ALL!DD10 -> 0 | AE9: =ALL!DH10 -> 0 | AF9: =ALL!DL10 -> 0 | AG9: =ALL!DP10 -> 0 | AH9: =ALL!DT10 -> 0 | AK9: 36 | AL9: 36 | AM9: 13
A10: الشويفات | B10: B2 | C10: =JARD_HA!D10 -> 14 | D10: =IFERROR(VLOOKUP($A10&$B10,CHOOSE({1,2},ALL!$A$4:$A$500&ALL!$B$4:$B$500,ALL!$D$4:$D$500),2,FALSE),"") -> 24 | E10: =ALL!H11 -> 15 | F10: =ALL!L11 -> 4 | G10: =ALL!P11 -> 20 | H10: =ALL!T11 -> 0 | I10: =ALL!X11 -> 0 | J10: =ALL!AB11 -> 0 | K10: =ALL!AF11 -> 0 | L10: =ALL!AJ11 -> 0 | M10: =ALL!AN11 -> 0 | N10: =ALL!AR11 -> 0 | O10: =ALL!AV11 -> 0 | P10: =ALL!AZ11 -> 0 | Q10: =ALL!BD11 -> 0 | R10: =ALL!BH11 -> 0 | S10: =ALL!BL11 -> 0 | T10: =ALL!BP11 -> 0 | U10: =ALL!BT11 -> 0 | V10: =ALL!BX11 -> 0 | W10: =ALL!CB11 -> 0 | X10: =ALL!CF11 -> 0 | Y10: =ALL!CJ11 -> 0 | Z10: =ALL!CN11 -> 0 | AA10: =ALL!CR11 -> 0 | AB10: =ALL!CV11 -> 0 | AC10: =ALL!CZ11 -> 0 | AD10: =ALL!DD11 -> 0 | AE10: =ALL!DH11 -> 0 | AF10: =ALL!DL11 -> 0 | AG10: =ALL!DP11 -> 0 | AH10: =ALL!DT11 -> 0 | AK10: 63 | AL10: 77 | AM10: 20
A11: برجا | B11: B3 | C11: =JARD_HA!D11 -> 40 | D11: =IFERROR(VLOOKUP($A11&$B11,CHOOSE({1,2},ALL!$A$4:$A$500&ALL!$B$4:$B$500,ALL!$D$4:$D$500),2,FALSE),"") -> 0 | E11: =ALL!H12 -> 0 | F11: =ALL!L12 -> 3 | G11: =ALL!P12 -> 6 | H11: =ALL!T12 -> 0 | I11: =ALL!X12 -> 0 | J11: =ALL!AB12 -> 0 | K11: =ALL!AF12 -> 0 | L11: =ALL!AJ12 -> 0 | M11: =ALL!AN12 -> 0 | N11: =ALL!AR12 -> 0 | O11: =ALL!AV12 -> 0 | P11: =ALL!AZ12 -> 0 | Q11: =ALL!BD12 -> 0 | R11: =ALL!BH12 -> 0 | S11: =ALL!BL12 -> 0 | T11: =ALL!BP12 -> 0 | U11: =ALL!BT12 -> 0 | V11: =ALL!BX12 -> 0 | W11: =ALL!CB12 -> 0 | X11: =ALL!CF12 -> 0 | Y11: =ALL!CJ12 -> 0 | Z11: =ALL!CN12 -> 0 | AA11: =ALL!CR12 -> 0 | AB11: =ALL!CV12 -> 0 | AC11: =ALL!CZ12 -> 0 | AD11: =ALL!DD12 -> 0 | AE11: =ALL!DH12 -> 0 | AF11: =ALL!DL12 -> 0 | AG11: =ALL!DP12 -> 0 | AH11: =ALL!DT12 -> 0 | AK11: 9 | AL11: 49 | AM11: 9
A12: شحيم | B12: B4 | C12: =JARD_HA!D12 -> 13 | D12: =IFERROR(VLOOKUP($A12&$B12,CHOOSE({1,2},ALL!$A$4:$A$500&ALL!$B$4:$B$500,ALL!$D$4:$D$500),2,FALSE),"") -> 0 | E12: =ALL!H13 -> 1 | F12: =ALL!L13 -> 0 | G12: =ALL!P13 -> 22 | H12: =ALL!T13 -> 0 | I12: =ALL!X13 -> 0 | J12: =ALL!AB13 -> 0 | K12: =ALL!AF13 -> 0 | L12: =ALL!AJ13 -> 0 | M12: =ALL!AN13 -> 0 | N12: =ALL!AR13 -> 0 | O12: =ALL!AV13 -> 0 | P12: =ALL!AZ13 -> 0 | Q12: =ALL!BD13 -> 0 | R12: =ALL!BH13 -> 0 | S12: =ALL!BL13 -> 0 | T12: =ALL!BP13 -> 0 | U12: =ALL!BT13 -> 0 | V12: =ALL!BX13 -> 0 | W12: =ALL!CB13 -> 0 | X12: =ALL!CF13 -> 0 | Y12: =ALL!CJ13 -> 0 | Z12: =ALL!CN13 -> 0 | AA12: =ALL!CR13 -> 0 | AB12: =ALL!CV13 -> 0 | AC12: =ALL!CZ13 -> 0 | AD12: =ALL!DD13 -> 0 | AE12: =ALL!DH13 -> 0 | AF12: =ALL!DL13 -> 0 | AG12: =ALL!DP13 -> 0 | AH12: =ALL!DT13 -> 0 | AK12: 23 | AL12: 36 | AM12: 22
A13: عاليه | B13: B5 | C13: =JARD_HA!D13 -> 78 | D13: =IFERROR(VLOOKUP($A13&$B13,CHOOSE({1,2},ALL!$A$4:$A$500&ALL!$B$4:$B$500,ALL!$D$4:$D$500),2,FALSE),"") -> 7 | E13: =ALL!H14 -> 14 | F13: =ALL!L14 -> 4 | G13: =ALL!P14 -> 4 | H13: =ALL!T14 -> 0 | I13: =ALL!X14 -> 0 | J13: =ALL!AB14 -> 0 | K13: =ALL!AF14 -> 0 | L13: =ALL!AJ14 -> 0 | M13: =ALL!AN14 -> 0 | N13: =ALL!AR14 -> 0 | O13: =ALL!AV14 -> 0 | P13: =ALL!AZ14 -> 0 | Q13: =ALL!BD14 -> 0 | R13: =ALL!BH14 -> 0 | S13: =ALL!BL14 -> 0 | T13: =ALL!BP14 -> 0 | U13: =ALL!BT14 -> 0 | V13: =ALL!BX14 -> 0 | W13: =ALL!CB14 -> 0 | X13: =ALL!CF14 -> 0 | Y13: =ALL!CJ14 -> 0 | Z13: =ALL!CN14 -> 0 | AA13: =ALL!CR14 -> 0 | AB13: =ALL!CV14 -> 0 | AC13: =ALL!CZ14 -> 0 | AD13: =ALL!DD14 -> 0 | AE13: =ALL!DH14 -> 0 | AF13: =ALL!DL14 -> 0 | AG13: =ALL!DP14 -> 0 | AH13: =ALL!DT14 -> 0 | AK13: 29 | AL13: 107 | AM13: 4
A14: حمانا | B14: B6 | C14: =JARD_HA!D14 -> 10 | D14: =IFERROR(VLOOKUP($A14&$B14,CHOOSE({1,2},ALL!$A$4:$A$500&ALL!$B$4:$B$500,ALL!$D$4:$D$500),2,FALSE),"") -> 0 | E14: =ALL!H15 -> 0 | F14: =ALL!L15 -> 2 | G14: =ALL!P15 -> 2 | H14: =ALL!T15 -> 2 | I14: =ALL!X15 -> 0 | J14: =ALL!AB15 -> 0 | K14: =ALL!AF15 -> 0 | L14: =ALL!AJ15 -> 0 | M14: =ALL!AN15 -> 0 | N14: =ALL!AR15 -> 0 | O14: =ALL!AV15 -> 0 | P14: =ALL!AZ15 -> 0 | Q14: =ALL!BD15 -> 0 | R14: =ALL!BH15 -> 0 | S14: =ALL!BL15 -> 0 | T14: =ALL!BP15 -> 0 | U14: =ALL!BT15 -> 0 | V14: =ALL!BX15 -> 0 | W14: =ALL!CB15 -> 0 | X14: =ALL!CF15 -> 0 | Y14: =ALL!CJ15 -> 0 | Z14: =ALL!CN15 -> 0 | AA14: =ALL!CR15 -> 0 | AB14: =ALL!CV15 -> 0 | AC14: =ALL!CZ15 -> 0 | AD14: =ALL!DD15 -> 0 | AE14: =ALL!DH15 -> 0 | AF14: =ALL!DL15 -> 0 | AG14: =ALL!DP15 -> 0 | AH14: =ALL!DT15 -> 0 | AK14: 6 | AL14: 16 | AM14: 4
A15: الشوف | B15: B7 | C15: =JARD_HA!D15 -> 14 | D15: =IFERROR(VLOOKUP($A15&$B15,CHOOSE({1,2},ALL!$A$4:$A$500&ALL!$B$4:$B$500,ALL!$D$4:$D$500),2,FALSE),"") -> 1 | E15: =ALL!H16 -> 5 | F15: =ALL!L16 -> 0 | G15: =ALL!P16 -> 11 | H15: =ALL!T16 -> 0 | I15: =ALL!X16 -> 0 | J15: =ALL!AB16 -> 0 | K15: =ALL!AF16 -> 0 | L15: =ALL!AJ16 -> 0 | M15: =ALL!AN16 -> 0 | N15: =ALL!AR16 -> 0 | O15: =ALL!AV16 -> 0 | P15: =ALL!AZ16 -> 0 | Q15: =ALL!BD16 -> 0 | R15: =ALL!BH16 -> 0 | S15: =ALL!BL16 -> 0 | T15: =ALL!BP16 -> 0 | U15: =ALL!BT16 -> 0 | V15: =ALL!BX16 -> 0 | W15: =ALL!CB16 -> 0 | X15: =ALL!CF16 -> 0 | Y15: =ALL!CJ16 -> 0 | Z15: =ALL!CN16 -> 0 | AA15: =ALL!CR16 -> 0 | AB15: =ALL!CV16 -> 0 | AC15: =ALL!CZ16 -> 0 | AD15: =ALL!DD16 -> 0 | AE15: =ALL!DH16 -> 0 | AF15: =ALL!DL16 -> 0 | AG15: =ALL!DP16 -> 0 | AH15: =ALL!DT16 -> 0 | AK15: 17 | AL15: 31 | AM15: 11
A16: المتن | B16: B8 | C16: =JARD_HA!D16 -> 15 | D16: =IFERROR(VLOOKUP($A16&$B16,CHOOSE({1,2},ALL!$A$4:$A$500&ALL!$B$4:$B$500,ALL!$D$4:$D$500),2,FALSE),"") -> 14 | E16: =ALL!H17 -> 22 | F16: =ALL!L17 -> 15 | G16: =ALL!P17 -> 45 | H16: =ALL!T17 -> 0 | I16: =ALL!X17 -> 0 | J16: =ALL!AB17 -> 0 | K16: =ALL!AF17 -> 0 | L16: =ALL!AJ17 -> 0 | M16: =ALL!AN17 -> 0 | N16: =ALL!AR17 -> 0 | O16: =ALL!AV17 -> 0 | P16: =ALL!AZ17 -> 0 | Q16: =ALL!BD17 -> 0 | R16: =ALL!BH17 -> 0 | S16: =ALL!BL17 -> 0 | T16: =ALL!BP17 -> 0 | U16: =ALL!BT17 -> 0 | V16: =ALL!BX17 -> 0 | W16: =ALL!CB17 -> 0 | X16: =ALL!CF17 -> 0 | Y16: =ALL!CJ17 -> 0 | Z16: =ALL!CN17 -> 0 | AA16: =ALL!CR17 -> 0 | AB16: =ALL!CV17 -> 0 | AC16: =ALL!CZ17 -> 0 | AD16: =ALL!DD17 -> 0 | AE16: =ALL!DH17 -> 0 | AF16: =ALL!DL17 -> 0 | AG16: =ALL!DP17 -> 0 | AH16: =ALL!DT17 -> 0 | AK16: 96 | AL16: 111 | AM16: 60
A17: انطلياس | B17: B9 | C17: =JARD_HA!D17 -> 0 | D17: =IFERROR(VLOOKUP($A17&$B17,CHOOSE({1,2},ALL!$A$4:$A$500&ALL!$B$4:$B$500,ALL!$D$4:$D$500),2,FALSE),"") -> 28 | E17: =ALL!H18 -> 12 | F17: =ALL!L18 -> 0 | G17: =ALL!P18 -> 27 | H17: =ALL!T18 -> 8 | I17: =ALL!X18 -> 0 | J17: =ALL!AB18 -> 0 | K17: =ALL!AF18 -> 0 | L17: =ALL!AJ18 -> 0 | M17: =ALL!AN18 -> 0 | N17: =ALL!AR18 -> 0 | O17: =ALL!AV18 -> 0 | P17: =ALL!AZ18 -> 0 | Q17: =ALL!BD18 -> 0 | R17: =ALL!BH18 -> 0 | S17: =ALL!BL18 -> 0 | T17: =ALL!BP18 -> 0 | U17: =ALL!BT18 -> 0 | V17: =ALL!BX18 -> 0 | W17: =ALL!CB18 -> 0 | X17: =ALL!CF18 -> 0 | Y17: =ALL!CJ18 -> 0 | Z17: =ALL!CN18 -> 0 | AA17: =ALL!CR18 -> 0 | AB17: =ALL!CV18 -> 0 | AC17: =ALL!CZ18 -> 0 | AD17: =ALL!DD18 -> 0 | AE17: =ALL!DH18 -> 0 | AF17: =ALL!DL18 -> 0 | AG17: =ALL!DP18 -> 0 | AH17: =ALL!DT18 -> 0 | AK17: 75 | AL17: 75 | AM17: 35
A18: صيدا | B18: C1 | C18: =JARD_HA!D18 -> 52 | D18: =IFERROR(VLOOKUP($A18&$B18,CHOOSE({1,2},ALL!$A$4:$A$500&ALL!$B$4:$B$500,ALL!$D$4:$D$500),2,FALSE),"") -> 0 | E18: =ALL!H19 -> 0 | F18: =ALL!L19 -> 0 | G18: =ALL!P19 -> 0 | H18: =ALL!T19 -> 0 | I18: =ALL!X19 -> 0 | J18: =ALL!AB19 -> 0 | K18: =ALL!AF19 -> 0 | L18: =ALL!AJ19 -> 0 | M18: =ALL!AN19 -> 0 | N18: =ALL!AR19 -> 0 | O18: =ALL!AV19 -> 0 | P18: =ALL!AZ19 -> 0 | Q18: =ALL!BD19 -> 0 | R18: =ALL!BH19 -> 0 | S18: =ALL!BL19 -> 0 | T18: =ALL!BP19 -> 0 | U18: =ALL!BT19 -> 0 | V18: =ALL!BX19 -> 0 | W18: =ALL!CB19 -> 0 | X18: =ALL!CF19 -> 0 | Y18: =ALL!CJ19 -> 0 | Z18: =ALL!CN19 -> 0 | AA18: =ALL!CR19 -> 0 | AB18: =ALL!CV19 -> 0 | AC18: =ALL!CZ19 -> 0 | AD18: =ALL!DD19 -> 0 | AE18: =ALL!DH19 -> 0 | AF18: =ALL!DL19 -> 0 | AG18: =ALL!DP19 -> 0 | AH18: =ALL!DT19 -> 0 | AK18: 0 | AL18: 52 | AM18: 0
A19: جويا | B19: C10 | C19: =JARD_HA!D19 -> 107 | D19: =IFERROR(VLOOKUP($A19&$B19,CHOOSE({1,2},ALL!$A$4:$A$500&ALL!$B$4:$B$500,ALL!$D$4:$D$500),2,FALSE),"") -> 0 | E19: =ALL!H20 -> 18 | F19: =ALL!L20 -> 30 | G19: =ALL!P20 -> 57 | H19: =ALL!T20 -> 0 | I19: =ALL!X20 -> 0 | J19: =ALL!AB20 -> 0 | K19: =ALL!AF20 -> 0 | L19: =ALL!AJ20 -> 0 | M19: =ALL!AN20 -> 0 | N19: =ALL!AR20 -> 0 | O19: =ALL!AV20 -> 0 | P19: =ALL!AZ20 -> 0 | Q19: =ALL!BD20 -> 0 | R19: =ALL!BH20 -> 0 | S19: =ALL!BL20 -> 0 | T19: =ALL!BP20 -> 0 | U19: =ALL!BT20 -> 0 | V19: =ALL!BX20 -> 0 | W19: =ALL!CB20 -> 0 | X19: =ALL!CF20 -> 0 | Y19: =ALL!CJ20 -> 0 | Z19: =ALL!CN20 -> 0 | AA19: =ALL!CR20 -> 0 | AB19: =ALL!CV20 -> 0 | AC19: =ALL!CZ20 -> 0 | AD19: =ALL!DD20 -> 0 | AE19: =ALL!DH20 -> 0 | AF19: =ALL!DL20 -> 0 | AG19: =ALL!DP20 -> 0 | AH19: =ALL!DT20 -> 0 | AK19: 105 | AL19: 212 | AM19: 105
A20: ميس الجبل | B20: C11 | C20: =JARD_HA!D20 -> 14 | D20: =IFERROR(VLOOKUP($A20&$B20,CHOOSE({1,2},ALL!$A$4:$A$500&ALL!$B$4:$B$500,ALL!$D$4:$D$500),2,FALSE),"") -> 0 | E20: =ALL!H21 -> 0 | F20: =ALL!L21 -> 0 | G20: =ALL!P21 -> 110 | H20: =ALL!T21 -> 0 | I20: =ALL!X21 -> 0 | J20: =ALL!AB21 -> 0 | K20: =ALL!AF21 -> 0 | L20: =ALL!AJ21 -> 0 | M20: =ALL!AN21 -> 0 | N20: =ALL!AR21 -> 0 | O20: =ALL!AV21 -> 0 | P20: =ALL!AZ21 -> 0 | Q20: =ALL!BD21 -> 0 | R20: =ALL!BH21 -> 0 | S20: =ALL!BL21 -> 0 | T20: =ALL!BP21 -> 0 | U20: =ALL!BT21 -> 0 | V20: =ALL!BX21 -> 0 | W20: =ALL!CB21 -> 0 | X20: =ALL!CF21 -> 0 | Y20: =ALL!CJ21 -> 0 | Z20: =ALL!CN21 -> 0 | AA20: =ALL!CR21 -> 0 | AB20: =ALL!CV21 -> 0 | AC20: =ALL!CZ21 -> 0 | AD20: =ALL!DD21 -> 0 | AE20: =ALL!DH21 -> 0 | AF20: =ALL!DL21 -> 0 | AG20: =ALL!DP21 -> 0 | AH20: =ALL!DT21 -> 0 | AK20: 110 | AL20: 124 | AM20: 110
A21: صور | B21: C2 | C21: =JARD_HA!D21 -> 35 | D21: =IFERROR(VLOOKUP($A21&$B21,CHOOSE({1,2},ALL!$A$4:$A$500&ALL!$B$4:$B$500,ALL!$D$4:$D$500),2,FALSE),"") -> 0 | E21: =ALL!H22 -> 0 | F21: =ALL!L22 -> 130 | G21: =ALL!P22 -> 0 | H21: =ALL!T22 -> 0 | I21: =ALL!X22 -> 0 | J21: =ALL!AB22 -> 0 | K21: =ALL!AF22 -> 0 | L21: =ALL!AJ22 -> 0 | M21: =ALL!AN22 -> 0 | N21: =ALL!AR22 -> 0 | O21: =ALL!AV22 -> 0 | P21: =ALL!AZ22 -> 0 | Q21: =ALL!BD22 -> 0 | R21: =ALL!BH22 -> 0 | S21: =ALL!BL22 -> 0 | T21: =ALL!BP22 -> 0 | U21: =ALL!BT22 -> 0 | V21: =ALL!BX22 -> 0 | W21: =ALL!CB22 -> 0 | X21: =ALL!CF22 -> 0 | Y21: =ALL!CJ22 -> 0 | Z21: =ALL!CN22 -> 0 | AA21: =ALL!CR22 -> 0 | AB21: =ALL!CV22 -> 0 | AC21: =ALL!CZ22 -> 0 | AD21: =ALL!DD22 -> 0 | AE21: =ALL!DH22 -> 0 | AF21: =ALL!DL22 -> 0 | AG21: =ALL!DP22 -> 0 | AH21: =ALL!DT22 -> 0 | AK21: 130 | AL21: 165 | AM21: 130
A22: جزين | B22: C3 | C22: =JARD_HA!D22 -> 0 | D22: =IFERROR(VLOOKUP($A22&$B22,CHOOSE({1,2},ALL!$A$4:$A$500&ALL!$B$4:$B$500,ALL!$D$4:$D$500),2,FALSE),"") -> 0 | E22: =ALL!H23 -> 0 | F22: =ALL!L23 -> 0 | G22: =ALL!P23 -> 20 | H22: =ALL!T23 -> 0 | I22: =ALL!X23 -> 0 | J22: =ALL!AB23 -> 0 | K22: =ALL!AF23 -> 0 | L22: =ALL!AJ23 -> 0 | M22: =ALL!AN23 -> 0 | N22: =ALL!AR23 -> 0 | O22: =ALL!AV23 -> 0 | P22: =ALL!AZ23 -> 0 | Q22: =ALL!BD23 -> 0 | R22: =ALL!BH23 -> 0 | S22: =ALL!BL23 -> 0 | T22: =ALL!BP23 -> 0 | U22: =ALL!BT23 -> 0 | V22: =ALL!BX23 -> 0 | W22: =ALL!CB23 -> 0 | X22: =ALL!CF23 -> 0 | Y22: =ALL!CJ23 -> 0 | Z22: =ALL!CN23 -> 0 | AA22: =ALL!CR23 -> 0 | AB22: =ALL!CV23 -> 0 | AC22: =ALL!CZ23 -> 0 | AD22: =ALL!DD23 -> 0 | AE22: =ALL!DH23 -> 0 | AF22: =ALL!DL23 -> 0 | AG22: =ALL!DP23 -> 0 | AH22: =ALL!DT23 -> 0 | AK22: 20 | AL22: 20 | AM22: 20
A23: النبطية | B23: C4 | C23: =JARD_HA!D23 -> 84 | D23: =IFERROR(VLOOKUP($A23&$B23,CHOOSE({1,2},ALL!$A$4:$A$500&ALL!$B$4:$B$500,ALL!$D$4:$D$500),2,FALSE),"") -> 2 | E23: =ALL!H24 -> 4 | F23: =ALL!L24 -> 5 | G23: =ALL!P24 -> 28 | H23: =ALL!T24 -> 5 | I23: =ALL!X24 -> 0 | J23: =ALL!AB24 -> 0 | K23: =ALL!AF24 -> 0 | L23: =ALL!AJ24 -> 0 | M23: =ALL!AN24 -> 0 | N23: =ALL!AR24 -> 0 | O23: =ALL!AV24 -> 0 | P23: =ALL!AZ24 -> 0 | Q23: =ALL!BD24 -> 0 | R23: =ALL!BH24 -> 0 | S23: =ALL!BL24 -> 0 | T23: =ALL!BP24 -> 0 | U23: =ALL!BT24 -> 0 | V23: =ALL!BX24 -> 0 | W23: =ALL!CB24 -> 0 | X23: =ALL!CF24 -> 0 | Y23: =ALL!CJ24 -> 0 | Z23: =ALL!CN24 -> 0 | AA23: =ALL!CR24 -> 0 | AB23: =ALL!CV24 -> 0 | AC23: =ALL!CZ24 -> 0 | AD23: =ALL!DD24 -> 0 | AE23: =ALL!DH24 -> 0 | AF23: =ALL!DL24 -> 0 | AG23: =ALL!DP24 -> 0 | AH23: =ALL!DT24 -> 0 | AK23: 44 | AL23: 128 | AM23: 38
A24: بنت جبيل | B24: C5 | C24: =JARD_HA!D24 -> 50 | D24: =IFERROR(VLOOKUP($A24&$B24,CHOOSE({1,2},ALL!$A$4:$A$500&ALL!$B$4:$B$500,ALL!$D$4:$D$500),2,FALSE),"") -> 3 | E24: =ALL!H25 -> 4 | F24: =ALL!L25 -> 77 | G24: =ALL!P25 -> 4 | H24: =ALL!T25 -> 10 | I24: =ALL!X25 -> 0 | J24: =ALL!AB25 -> 0 | K24: =ALL!AF25 -> 0 | L24: =ALL!AJ25 -> 0 | M24: =ALL!AN25 -> 0 | N24: =ALL!AR25 -> 0 | O24: =ALL!AV25 -> 0 | P24: =ALL!AZ25 -> 0 | Q24: =ALL!BD25 -> 0 | R24: =ALL!BH25 -> 0 | S24: =ALL!BL25 -> 0 | T24: =ALL!BP25 -> 0 | U24: =ALL!BT25 -> 0 | V24: =ALL!BX25 -> 0 | W24: =ALL!CB25 -> 0 | X24: =ALL!CF25 -> 0 | Y24: =ALL!CJ25 -> 0 | Z24: =ALL!CN25 -> 0 | AA24: =ALL!CR25 -> 0 | AB24: =ALL!CV25 -> 0 | AC24: =ALL!CZ25 -> 0 | AD24: =ALL!DD25 -> 0 | AE24: =ALL!DH25 -> 0 | AF24: =ALL!DL25 -> 0 | AG24: =ALL!DP25 -> 0 | AH24: =ALL!DT25 -> 0 | AK24: 98 | AL24: 148 | AM24: 95
A25: مرجعيون | B25: C6 | C25: =JARD_HA!D25 -> 48 | D25: =IFERROR(VLOOKUP($A25&$B25,CHOOSE({1,2},ALL!$A$4:$A$500&ALL!$B$4:$B$500,ALL!$D$4:$D$500),2,FALSE),"") -> 0 | E25: =ALL!H26 -> 0 | F25: =ALL!L26 -> 0 | G25: =ALL!P26 -> 41 | H25: =ALL!T26 -> 0 | I25: =ALL!X26 -> 0 | J25: =ALL!AB26 -> 0 | K25: =ALL!AF26 -> 0 | L25: =ALL!AJ26 -> 0 | M25: =ALL!AN26 -> 0 | N25: =ALL!AR26 -> 0 | O25: =ALL!AV26 -> 0 | P25: =ALL!AZ26 -> 0 | Q25: =ALL!BD26 -> 0 | R25: =ALL!BH26 -> 0 | S25: =ALL!BL26 -> 0 | T25: =ALL!BP26 -> 0 | U25: =ALL!BT26 -> 0 | V25: =ALL!BX26 -> 0 | W25: =ALL!CB26 -> 0 | X25: =ALL!CF26 -> 0 | Y25: =ALL!CJ26 -> 0 | Z25: =ALL!CN26 -> 0 | AA25: =ALL!CR26 -> 0 | AB25: =ALL!CV26 -> 0 | AC25: =ALL!CZ26 -> 0 | AD25: =ALL!DD26 -> 0 | AE25: =ALL!DH26 -> 0 | AF25: =ALL!DL26 -> 0 | AG25: =ALL!DP26 -> 0 | AH25: =ALL!DT26 -> 0 | AK25: 41 | AL25: 89 | AM25: 41
A26: حاصبيا | B26: C7 | C26: =JARD_HA!D26 -> 10 | D26: =IFERROR(VLOOKUP($A26&$B26,CHOOSE({1,2},ALL!$A$4:$A$500&ALL!$B$4:$B$500,ALL!$D$4:$D$500),2,FALSE),"") -> 0 | E26: =ALL!H27 -> 1 | F26: =ALL!L27 -> 3 | G26: =ALL!P27 -> 20 | H26: =ALL!T27 -> 2 | I26: =ALL!X27 -> 0 | J26: =ALL!AB27 -> 0 | K26: =ALL!AF27 -> 0 | L26: =ALL!AJ27 -> 0 | M26: =ALL!AN27 -> 0 | N26: =ALL!AR27 -> 0 | O26: =ALL!AV27 -> 0 | P26: =ALL!AZ27 -> 0 | Q26: =ALL!BD27 -> 0 | R26: =ALL!BH27 -> 0 | S26: =ALL!BL27 -> 0 | T26: =ALL!BP27 -> 0 | U26: =ALL!BT27 -> 0 | V26: =ALL!BX27 -> 0 | W26: =ALL!CB27 -> 0 | X26: =ALL!CF27 -> 0 | Y26: =ALL!CJ27 -> 0 | Z26: =ALL!CN27 -> 0 | AA26: =ALL!CR27 -> 0 | AB26: =ALL!CV27 -> 0 | AC26: =ALL!CZ27 -> 0 | AD26: =ALL!DD27 -> 0 | AE26: =ALL!DH27 -> 0 | AF26: =ALL!DL27 -> 0 | AG26: =ALL!DP27 -> 0 | AH26: =ALL!DT27 -> 0 | AK26: 26 | AL26: 36 | AM26: 25
A27: تبنين | B27: C8 | C27: =JARD_HA!D27 -> 80 | D27: =IFERROR(VLOOKUP($A27&$B27,CHOOSE({1,2},ALL!$A$4:$A$500&ALL!$B$4:$B$500,ALL!$D$4:$D$500),2,FALSE),"") -> 3 | E27: =ALL!H28 -> 4 | F27: =ALL!L28 -> 55 | G27: =ALL!P28 -> 14 | H27: =ALL!T28 -> 2 | I27: =ALL!X28 -> 0 | J27: =ALL!AB28 -> 0 | K27: =ALL!AF28 -> 0 | L27: =ALL!AJ28 -> 0 | M27: =ALL!AN28 -> 0 | N27: =ALL!AR28 -> 0 | O27: =ALL!AV28 -> 0 | P27: =ALL!AZ28 -> 0 | Q27: =ALL!BD28 -> 0 | R27: =ALL!BH28 -> 0 | S27: =ALL!BL28 -> 0 | T27: =ALL!BP28 -> 0 | U27: =ALL!BT28 -> 0 | V27: =ALL!BX28 -> 0 | W27: =ALL!CB28 -> 0 | X27: =ALL!CF28 -> 0 | Y27: =ALL!CJ28 -> 0 | Z27: =ALL!CN28 -> 0 | AA27: =ALL!CR28 -> 0 | AB27: =ALL!CV28 -> 0 | AC27: =ALL!CZ28 -> 0 | AD27: =ALL!DD28 -> 0 | AE27: =ALL!DH28 -> 0 | AF27: =ALL!DL28 -> 0 | AG27: =ALL!DP28 -> 0 | AH27: =ALL!DT28 -> 0 | AK27: 78 | AL27: 158 | AM27: 75
A28: جباع | B28: C9 | C28: =JARD_HA!D28 -> 43 | D28: =IFERROR(VLOOKUP($A28&$B28,CHOOSE({1,2},ALL!$A$4:$A$500&ALL!$B$4:$B$500,ALL!$D$4:$D$500),2,FALSE),"") -> 1 | E28: =ALL!H29 -> 0 | F28: =ALL!L29 -> 3 | G28: =ALL!P29 -> 31 | H28: =ALL!T29 -> 0 | I28: =ALL!X29 -> 0 | J28: =ALL!AB29 -> 0 | K28: =ALL!AF29 -> 0 | L28: =ALL!AJ29 -> 0 | M28: =ALL!AN29 -> 0 | N28: =ALL!AR29 -> 0 | O28: =ALL!AV29 -> 0 | P28: =ALL!AZ29 -> 0 | Q28: =ALL!BD29 -> 0 | R28: =ALL!BH29 -> 0 | S28: =ALL!BL29 -> 0 | T28: =ALL!BP29 -> 0 | U28: =ALL!BT29 -> 0 | V28: =ALL!BX29 -> 0 | W28: =ALL!CB29 -> 0 | X28: =ALL!CF29 -> 0 | Y28: =ALL!CJ29 -> 0 | Z28: =ALL!CN29 -> 0 | AA28: =ALL!CR29 -> 0 | AB28: =ALL!CV29 -> 0 | AC28: =ALL!CZ29 -> 0 | AD28: =ALL!DD29 -> 0 | AE28: =ALL!DH29 -> 0 | AF28: =ALL!DL29 -> 0 | AG28: =ALL!DP29 -> 0 | AH28: =ALL!DT29 -> 0 | AK28: 35 | AL28: 78 | AM28: 34
A29: زحلة | B29: D1 | C29: =JARD_HA!D29 -> 229 | D29: =IFERROR(VLOOKUP($A29&$B29,CHOOSE({1,2},ALL!$A$4:$A$500&ALL!$B$4:$B$500,ALL!$D$4:$D$500),2,FALSE),"") -> 21 | E29: =ALL!H30 -> 49 | F29: =ALL!L30 -> 104 | G29: =ALL!P30 -> 64 | H29: =ALL!T30 -> 28 | I29: =ALL!X30 -> 0 | J29: =ALL!AB30 -> 0 | K29: =ALL!AF30 -> 0 | L29: =ALL!AJ30 -> 0 | M29: =ALL!AN30 -> 0 | N29: =ALL!AR30 -> 0 | O29: =ALL!AV30 -> 0 | P29: =ALL!AZ30 -> 0 | Q29: =ALL!BD30 -> 0 | R29: =ALL!BH30 -> 0 | S29: =ALL!BL30 -> 0 | T29: =ALL!BP30 -> 0 | U29: =ALL!BT30 -> 0 | V29: =ALL!BX30 -> 0 | W29: =ALL!CB30 -> 0 | X29: =ALL!CF30 -> 0 | Y29: =ALL!CJ30 -> 0 | Z29: =ALL!CN30 -> 0 | AA29: =ALL!CR30 -> 0 | AB29: =ALL!CV30 -> 0 | AC29: =ALL!CZ30 -> 0 | AD29: =ALL!DD30 -> 0 | AE29: =ALL!DH30 -> 0 | AF29: =ALL!DL30 -> 0 | AG29: =ALL!DP30 -> 0 | AH29: =ALL!DT30 -> 0 | AK29: 266 | AL29: 495 | AM29: 245
A30: النبي شيت | B30: D10 | C30: =JARD_HA!D30 -> 1 | D30: =IFERROR(VLOOKUP($A30&$B30,CHOOSE({1,2},ALL!$A$4:$A$500&ALL!$B$4:$B$500,ALL!$D$4:$D$500),2,FALSE),"") -> 68 | E30: =ALL!H31 -> 3 | F30: =ALL!L31 -> 2 | G30: =ALL!P31 -> 25 | H30: =ALL!T31 -> 0 | I30: =ALL!X31 -> 0 | J30: =ALL!AB31 -> 0 | K30: =ALL!AF31 -> 0 | L30: =ALL!AJ31 -> 0 | M30: =ALL!AN31 -> 0 | N30: =ALL!AR31 -> 0 | O30: =ALL!AV31 -> 0 | P30: =ALL!AZ31 -> 0 | Q30: =ALL!BD31 -> 0 | R30: =ALL!BH31 -> 0 | S30: =ALL!BL31 -> 0 | T30: =ALL!BP31 -> 0 | U30: =ALL!BT31 -> 0 | V30: =ALL!BX31 -> 0 | W30: =ALL!CB31 -> 0 | X30: =ALL!CF31 -> 0 | Y30: =ALL!CJ31 -> 0 | Z30: =ALL!CN31 -> 0 | AA30: =ALL!CR31 -> 0 | AB30: =ALL!CV31 -> 0 | AC30: =ALL!CZ31 -> 0 | AD30: =ALL!DD31 -> 0 | AE30: =ALL!DH31 -> 0 | AF30: =ALL!DL31 -> 0 | AG30: =ALL!DP31 -> 0 | AH30: =ALL!DT31 -> 0 | AK30: 98 | AL30: 99 | AM30: 27
A31: راشيا | B31: D2 | C31: =JARD_HA!D31 -> 0 | D31: =IFERROR(VLOOKUP($A31&$B31,CHOOSE({1,2},ALL!$A$4:$A$500&ALL!$B$4:$B$500,ALL!$D$4:$D$500),2,FALSE),"") -> 0 | E31: =ALL!H32 -> 0 | F31: =ALL!L32 -> 60 | G31: =ALL!P32 -> 4 | H31: =ALL!T32 -> 0 | I31: =ALL!X32 -> 0 | J31: =ALL!AB32 -> 0 | K31: =ALL!AF32 -> 0 | L31: =ALL!AJ32 -> 0 | M31: =ALL!AN32 -> 0 | N31: =ALL!AR32 -> 0 | O31: =ALL!AV32 -> 0 | P31: =ALL!AZ32 -> 0 | Q31: =ALL!BD32 -> 0 | R31: =ALL!BH32 -> 0 | S31: =ALL!BL32 -> 0 | T31: =ALL!BP32 -> 0 | U31: =ALL!BT32 -> 0 | V31: =ALL!BX32 -> 0 | W31: =ALL!CB32 -> 0 | X31: =ALL!CF32 -> 0 | Y31: =ALL!CJ32 -> 0 | Z31: =ALL!CN32 -> 0 | AA31: =ALL!CR32 -> 0 | AB31: =ALL!CV32 -> 0 | AC31: =ALL!CZ32 -> 0 | AD31: =ALL!DD32 -> 0 | AE31: =ALL!DH32 -> 0 | AF31: =ALL!DL32 -> 0 | AG31: =ALL!DP32 -> 0 | AH31: =ALL!DT32 -> 0 | AK31: 64 | AL31: 64 | AM31: 64
A32: البقاع الغربي | B32: D3 | C32: =JARD_HA!D32 -> 95 | D32: =IFERROR(VLOOKUP($A32&$B32,CHOOSE({1,2},ALL!$A$4:$A$500&ALL!$B$4:$B$500,ALL!$D$4:$D$500),2,FALSE),"") -> 4 | E32: =ALL!H33 -> 9 | F32: =ALL!L33 -> 0 | G32: =ALL!P33 -> 4 | H32: =ALL!T33 -> 0 | I32: =ALL!X33 -> 0 | J32: =ALL!AB33 -> 0 | K32: =ALL!AF33 -> 0 | L32: =ALL!AJ33 -> 0 | M32: =ALL!AN33 -> 0 | N32: =ALL!AR33 -> 0 | O32: =ALL!AV33 -> 0 | P32: =ALL!AZ33 -> 0 | Q32: =ALL!BD33 -> 0 | R32: =ALL!BH33 -> 0 | S32: =ALL!BL33 -> 0 | T32: =ALL!BP33 -> 0 | U32: =ALL!BT33 -> 0 | V32: =ALL!BX33 -> 0 | W32: =ALL!CB33 -> 0 | X32: =ALL!CF33 -> 0 | Y32: =ALL!CJ33 -> 0 | Z32: =ALL!CN33 -> 0 | AA32: =ALL!CR33 -> 0 | AB32: =ALL!CV33 -> 0 | AC32: =ALL!CZ33 -> 0 | AD32: =ALL!DD33 -> 0 | AE32: =ALL!DH33 -> 0 | AF32: =ALL!DL33 -> 0 | AG32: =ALL!DP33 -> 0 | AH32: =ALL!DT33 -> 0 | AK32: 17 | AL32: 112 | AM32: 17
A33: شمسطار | B33: D4 | C33: =JARD_HA!D33 -> 29 | D33: =IFERROR(VLOOKUP($A33&$B33,CHOOSE({1,2},ALL!$A$4:$A$500&ALL!$B$4:$B$500,ALL!$D$4:$D$500),2,FALSE),"") -> 10 | E33: =ALL!H34 -> 10 | F33: =ALL!L34 -> 17 | G33: =ALL!P34 -> 5 | H33: =ALL!T34 -> 41 | I33: =ALL!X34 -> 0 | J33: =ALL!AB34 -> 0 | K33: =ALL!AF34 -> 0 | L33: =ALL!AJ34 -> 0 | M33: =ALL!AN34 -> 0 | N33: =ALL!AR34 -> 0 | O33: =ALL!AV34 -> 0 | P33: =ALL!AZ34 -> 0 | Q33: =ALL!BD34 -> 0 | R33: =ALL!BH34 -> 0 | S33: =ALL!BL34 -> 0 | T33: =ALL!BP34 -> 0 | U33: =ALL!BT34 -> 0 | V33: =ALL!BX34 -> 0 | W33: =ALL!CB34 -> 0 | X33: =ALL!CF34 -> 0 | Y33: =ALL!CJ34 -> 0 | Z33: =ALL!CN34 -> 0 | AA33: =ALL!CR34 -> 0 | AB33: =ALL!CV34 -> 0 | AC33: =ALL!CZ34 -> 0 | AD33: =ALL!DD34 -> 0 | AE33: =ALL!DH34 -> 0 | AF33: =ALL!DL34 -> 0 | AG33: =ALL!DP34 -> 0 | AH33: =ALL!DT34 -> 0 | AK33: 83 | AL33: 112 | AM33: 63
A34: بعلبك | B34: D5 | C34: =JARD_HA!D34 -> 3 | D34: =IFERROR(VLOOKUP($A34&$B34,CHOOSE({1,2},ALL!$A$4:$A$500&ALL!$B$4:$B$500,ALL!$D$4:$D$500),2,FALSE),"") -> 58 | E34: =ALL!H35 -> 0 | F34: =ALL!L35 -> 0 | G34: =ALL!P35 -> 147 | H34: =ALL!T35 -> 0 | I34: =ALL!X35 -> 0 | J34: =ALL!AB35 -> 0 | K34: =ALL!AF35 -> 0 | L34: =ALL!AJ35 -> 0 | M34: =ALL!AN35 -> 0 | N34: =ALL!AR35 -> 0 | O34: =ALL!AV35 -> 0 | P34: =ALL!AZ35 -> 0 | Q34: =ALL!BD35 -> 0 | R34: =ALL!BH35 -> 0 | S34: =ALL!BL35 -> 0 | T34: =ALL!BP35 -> 0 | U34: =ALL!BT35 -> 0 | V34: =ALL!BX35 -> 0 | W34: =ALL!CB35 -> 0 | X34: =ALL!CF35 -> 0 | Y34: =ALL!CJ35 -> 0 | Z34: =ALL!CN35 -> 0 | AA34: =ALL!CR35 -> 0 | AB34: =ALL!CV35 -> 0 | AC34: =ALL!CZ35 -> 0 | AD34: =ALL!DD35 -> 0 | AE34: =ALL!DH35 -> 0 | AF34: =ALL!DL35 -> 0 | AG34: =ALL!DP35 -> 0 | AH34: =ALL!DT35 -> 0 | AK34: 205 | AL34: 208 | AM34: 147
A35: الهرمل | B35: D6 | C35: =JARD_HA!D35 -> 47 | D35: =IFERROR(VLOOKUP($A35&$B35,CHOOSE({1,2},ALL!$A$4:$A$500&ALL!$B$4:$B$500,ALL!$D$4:$D$500),2,FALSE),"") -> 0 | E35: =ALL!H36 -> 0 | F35: =ALL!L36 -> 7 | G35: =ALL!P36 -> 1 | H35: =ALL!T36 -> 0 | I35: =ALL!X36 -> 0 | J35: =ALL!AB36 -> 0 | K35: =ALL!AF36 -> 0 | L35: =ALL!AJ36 -> 0 | M35: =ALL!AN36 -> 0 | N35: =ALL!AR36 -> 0 | O35: =ALL!AV36 -> 0 | P35: =ALL!AZ36 -> 0 | Q35: =ALL!BD36 -> 0 | R35: =ALL!BH36 -> 0 | S35: =ALL!BL36 -> 0 | T35: =ALL!BP36 -> 0 | U35: =ALL!BT36 -> 0 | V35: =ALL!BX36 -> 0 | W35: =ALL!CB36 -> 0 | X35: =ALL!CF36 -> 0 | Y35: =ALL!CJ36 -> 0 | Z35: =ALL!CN36 -> 0 | AA35: =ALL!CR36 -> 0 | AB35: =ALL!CV36 -> 0 | AC35: =ALL!CZ36 -> 0 | AD35: =ALL!DD36 -> 0 | AE35: =ALL!DH36 -> 0 | AF35: =ALL!DL36 -> 0 | AG35: =ALL!DP36 -> 0 | AH35: =ALL!DT36 -> 0 | AK35: 8 | AL35: 55 | AM35: 8
A36: دير الاحمر | B36: D7 | C36: =JARD_HA!D36 -> 0 | D36: =IFERROR(VLOOKUP($A36&$B36,CHOOSE({1,2},ALL!$A$4:$A$500&ALL!$B$4:$B$500,ALL!$D$4:$D$500),2,FALSE),"") -> 14 | E36: =ALL!H37 -> 0 | F36: =ALL!L37 -> 0 | G36: =ALL!P37 -> 23 | H36: =ALL!T37 -> 0 | I36: =ALL!X37 -> 0 | J36: =ALL!AB37 -> 0 | K36: =ALL!AF37 -> 0 | L36: =ALL!AJ37 -> 0 | M36: =ALL!AN37 -> 0 | N36: =ALL!AR37 -> 0 | O36: =ALL!AV37 -> 0 | P36: =ALL!AZ37 -> 0 | Q36: =ALL!BD37 -> 0 | R36: =ALL!BH37 -> 0 | S36: =ALL!BL37 -> 0 | T36: =ALL!BP37 -> 0 | U36: =ALL!BT37 -> 0 | V36: =ALL!BX37 -> 0 | W36: =ALL!CB37 -> 0 | X36: =ALL!CF37 -> 0 | Y36: =ALL!CJ37 -> 0 | Z36: =ALL!CN37 -> 0 | AA36: =ALL!CR37 -> 0 | AB36: =ALL!CV37 -> 0 | AC36: =ALL!CZ37 -> 0 | AD36: =ALL!DD37 -> 0 | AE36: =ALL!DH37 -> 0 | AF36: =ALL!DL37 -> 0 | AG36: =ALL!DP37 -> 0 | AH36: =ALL!DT37 -> 0 | AK36: 37 | AL36: 37 | AM36: 23
A37: اللبوة | B37: D8 | C37: =JARD_HA!D37 -> 80 | D37: =IFERROR(VLOOKUP($A37&$B37,CHOOSE({1,2},ALL!$A$4:$A$500&ALL!$B$4:$B$500,ALL!$D$4:$D$500),2,FALSE),"") -> 0 | E37: =ALL!H38 -> 5 | F37: =ALL!L38 -> 36 | G37: =ALL!P38 -> 12 | H37: =ALL!T38 -> 8 | I37: =ALL!X38 -> 0 | J37: =ALL!AB38 -> 0 | K37: =ALL!AF38 -> 0 | L37: =ALL!AJ38 -> 0 | M37: =ALL!AN38 -> 0 | N37: =ALL!AR38 -> 0 | O37: =ALL!AV38 -> 0 | P37: =ALL!AZ38 -> 0 | Q37: =ALL!BD38 -> 0 | R37: =ALL!BH38 -> 0 | S37: =ALL!BL38 -> 0 | T37: =ALL!BP38 -> 0 | U37: =ALL!BT38 -> 0 | V37: =ALL!BX38 -> 0 | W37: =ALL!CB38 -> 0 | X37: =ALL!CF38 -> 0 | Y37: =ALL!CJ38 -> 0 | Z37: =ALL!CN38 -> 0 | AA37: =ALL!CR38 -> 0 | AB37: =ALL!CV38 -> 0 | AC37: =ALL!CZ38 -> 0 | AD37: =ALL!DD38 -> 0 | AE37: =ALL!DH38 -> 0 | AF37: =ALL!DL38 -> 0 | AG37: =ALL!DP38 -> 0 | AH37: =ALL!DT38 -> 0 | AK37: 61 | AL37: 141 | AM37: 61
A38: صغبين | B38: D9 | C38: =JARD_HA!D38 -> 44 | D38: =IFERROR(VLOOKUP($A38&$B38,CHOOSE({1,2},ALL!$A$4:$A$500&ALL!$B$4:$B$500,ALL!$D$4:$D$500),2,FALSE),"") -> 2 | E38: =ALL!H39 -> 2 | F38: =ALL!L39 -> 32 | G38: =ALL!P39 -> 1 | H38: =ALL!T39 -> 0 | I38: =ALL!X39 -> 0 | J38: =ALL!AB39 -> 0 | K38: =ALL!AF39 -> 0 | L38: =ALL!AJ39 -> 0 | M38: =ALL!AN39 -> 0 | N38: =ALL!AR39 -> 0 | O38: =ALL!AV39 -> 0 | P38: =ALL!AZ39 -> 0 | Q38: =ALL!BD39 -> 0 | R38: =ALL!BH39 -> 0 | S38: =ALL!BL39 -> 0 | T38: =ALL!BP39 -> 0 | U38: =ALL!BT39 -> 0 | V38: =ALL!BX39 -> 0 | W38: =ALL!CB39 -> 0 | X38: =ALL!CF39 -> 0 | Y38: =ALL!CJ39 -> 0 | Z38: =ALL!CN39 -> 0 | AA38: =ALL!CR39 -> 0 | AB38: =ALL!CV39 -> 0 | AC38: =ALL!CZ39 -> 0 | AD38: =ALL!DD39 -> 0 | AE38: =ALL!DH39 -> 0 | AF38: =ALL!DL39 -> 0 | AG38: =ALL!DP39 -> 0 | AH38: =ALL!DT39 -> 0 | AK38: 37 | AL38: 81 | AM38: 35
A39: طرابلس | B39: E1 | C39: =JARD_HA!D39 -> 159 | D39: =IFERROR(VLOOKUP($A39&$B39,CHOOSE({1,2},ALL!$A$4:$A$500&ALL!$B$4:$B$500,ALL!$D$4:$D$500),2,FALSE),"") -> 7 | E39: =ALL!H40 -> 8 | F39: =ALL!L40 -> 0 | G39: =ALL!P40 -> 9 | H39: =ALL!T40 -> 179 | I39: =ALL!X40 -> 0 | J39: =ALL!AB40 -> 0 | K39: =ALL!AF40 -> 0 | L39: =ALL!AJ40 -> 0 | M39: =ALL!AN40 -> 0 | N39: =ALL!AR40 -> 0 | O39: =ALL!AV40 -> 0 | P39: =ALL!AZ40 -> 0 | Q39: =ALL!BD40 -> 0 | R39: =ALL!BH40 -> 0 | S39: =ALL!BL40 -> 0 | T39: =ALL!BP40 -> 0 | U39: =ALL!BT40 -> 0 | V39: =ALL!BX40 -> 0 | W39: =ALL!CB40 -> 0 | X39: =ALL!CF40 -> 0 | Y39: =ALL!CJ40 -> 0 | Z39: =ALL!CN40 -> 0 | AA39: =ALL!CR40 -> 0 | AB39: =ALL!CV40 -> 0 | AC39: =ALL!CZ40 -> 0 | AD39: =ALL!DD40 -> 0 | AE39: =ALL!DH40 -> 0 | AF39: =ALL!DL40 -> 0 | AG39: =ALL!DP40 -> 0 | AH39: =ALL!DT40 -> 0 | AK39: 203 | AL39: 362 | AM39: 188
A40: دوما | B40: E10 | C40: =JARD_HA!D40 -> 0 | D40: =IFERROR(VLOOKUP($A40&$B40,CHOOSE({1,2},ALL!$A$4:$A$500&ALL!$B$4:$B$500,ALL!$D$4:$D$500),2,FALSE),"") -> 9 | E40: =ALL!H41 -> 0 | F40: =ALL!L41 -> 0 | G40: =ALL!P41 -> 0 | H40: =ALL!T41 -> 0 | I40: =ALL!X41 -> 0 | J40: =ALL!AB41 -> 0 | K40: =ALL!AF41 -> 0 | L40: =ALL!AJ41 -> 0 | M40: =ALL!AN41 -> 0 | N40: =ALL!AR41 -> 0 | O40: =ALL!AV41 -> 0 | P40: =ALL!AZ41 -> 0 | Q40: =ALL!BD41 -> 0 | R40: =ALL!BH41 -> 0 | S40: =ALL!BL41 -> 0 | T40: =ALL!BP41 -> 0 | U40: =ALL!BT41 -> 0 | V40: =ALL!BX41 -> 0 | W40: =ALL!CB41 -> 0 | X40: =ALL!CF41 -> 0 | Y40: =ALL!CJ41 -> 0 | Z40: =ALL!CN41 -> 0 | AA40: =ALL!CR41 -> 0 | AB40: =ALL!CV41 -> 0 | AC40: =ALL!CZ41 -> 0 | AD40: =ALL!DD41 -> 0 | AE40: =ALL!DH41 -> 0 | AF40: =ALL!DL41 -> 0 | AG40: =ALL!DP41 -> 0 | AH40: =ALL!DT41 -> 0 | AK40: 9 | AL40: 9 | AM40: 0
A41: العبدة | B41: E11 | C41: =JARD_HA!D41 -> 16 | D41: =IFERROR(VLOOKUP($A41&$B41,CHOOSE({1,2},ALL!$A$4:$A$500&ALL!$B$4:$B$500,ALL!$D$4:$D$500),2,FALSE),"") -> 0 | E41: =ALL!H42 -> 0 | F41: =ALL!L42 -> 1 | G41: =ALL!P42 -> 1 | H41: =ALL!T42 -> 27 | I41: =ALL!X42 -> 0 | J41: =ALL!AB42 -> 0 | K41: =ALL!AF42 -> 0 | L41: =ALL!AJ42 -> 0 | M41: =ALL!AN42 -> 0 | N41: =ALL!AR42 -> 0 | O41: =ALL!AV42 -> 0 | P41: =ALL!AZ42 -> 0 | Q41: =ALL!BD42 -> 0 | R41: =ALL!BH42 -> 0 | S41: =ALL!BL42 -> 0 | T41: =ALL!BP42 -> 0 | U41: =ALL!BT42 -> 0 | V41: =ALL!BX42 -> 0 | W41: =ALL!CB42 -> 0 | X41: =ALL!CF42 -> 0 | Y41: =ALL!CJ42 -> 0 | Z41: =ALL!CN42 -> 0 | AA41: =ALL!CR42 -> 0 | AB41: =ALL!CV42 -> 0 | AC41: =ALL!CZ42 -> 0 | AD41: =ALL!DD42 -> 0 | AE41: =ALL!DH42 -> 0 | AF41: =ALL!DL42 -> 0 | AG41: =ALL!DP42 -> 0 | AH41: =ALL!DT42 -> 0 | AK41: 29 | AL41: 45 | AM41: 28
A42: بخعون | B42: E12 | C42: =JARD_HA!D42 -> 22 | D42: =IFERROR(VLOOKUP($A42&$B42,CHOOSE({1,2},ALL!$A$4:$A$500&ALL!$B$4:$B$500,ALL!$D$4:$D$500),2,FALSE),"") -> 0 | E42: =ALL!H43 -> 9 | F42: =ALL!L43 -> 0 | G42: =ALL!P43 -> 14 | H42: =ALL!T43 -> 0 | I42: =ALL!X43 -> 0 | J42: =ALL!AB43 -> 0 | K42: =ALL!AF43 -> 0 | L42: =ALL!AJ43 -> 0 | M42: =ALL!AN43 -> 0 | N42: =ALL!AR43 -> 0 | O42: =ALL!AV43 -> 0 | P42: =ALL!AZ43 -> 0 | Q42: =ALL!BD43 -> 0 | R42: =ALL!BH43 -> 0 | S42: =ALL!BL43 -> 0 | T42: =ALL!BP43 -> 0 | U42: =ALL!BT43 -> 0 | V42: =ALL!BX43 -> 0 | W42: =ALL!CB43 -> 0 | X42: =ALL!CF43 -> 0 | Y42: =ALL!CJ43 -> 0 | Z42: =ALL!CN43 -> 0 | AA42: =ALL!CR43 -> 0 | AB42: =ALL!CV43 -> 0 | AC42: =ALL!CZ43 -> 0 | AD42: =ALL!DD43 -> 0 | AE42: =ALL!DH43 -> 0 | AF42: =ALL!DL43 -> 0 | AG42: =ALL!DP43 -> 0 | AH42: =ALL!DT43 -> 0 | AK42: 23 | AL42: 45 | AM42: 14
A43: بيت ملات | B43: E13 | C43: =JARD_HA!D43 -> 56 | D43: =IFERROR(VLOOKUP($A43&$B43,CHOOSE({1,2},ALL!$A$4:$A$500&ALL!$B$4:$B$500,ALL!$D$4:$D$500),2,FALSE),"") -> 0 | E43: =ALL!H44 -> 1 | F43: =ALL!L44 -> 1 | G43: =ALL!P44 -> 1 | H43: =ALL!T44 -> 22 | I43: =ALL!X44 -> 0 | J43: =ALL!AB44 -> 0 | K43: =ALL!AF44 -> 0 | L43: =ALL!AJ44 -> 0 | M43: =ALL!AN44 -> 0 | N43: =ALL!AR44 -> 0 | O43: =ALL!AV44 -> 0 | P43: =ALL!AZ44 -> 0 | Q43: =ALL!BD44 -> 0 | R43: =ALL!BH44 -> 0 | S43: =ALL!BL44 -> 0 | T43: =ALL!BP44 -> 0 | U43: =ALL!BT44 -> 0 | V43: =ALL!BX44 -> 0 | W43: =ALL!CB44 -> 0 | X43: =ALL!CF44 -> 0 | Y43: =ALL!CJ44 -> 0 | Z43: =ALL!CN44 -> 0 | AA43: =ALL!CR44 -> 0 | AB43: =ALL!CV44 -> 0 | AC43: =ALL!CZ44 -> 0 | AD43: =ALL!DD44 -> 0 | AE43: =ALL!DH44 -> 0 | AF43: =ALL!DL44 -> 0 | AG43: =ALL!DP44 -> 0 | AH43: =ALL!DT44 -> 0 | AK43: 25 | AL43: 81 | AM43: 23
A44: المنية | B44: E2 | C44: =JARD_HA!D44 -> 45 | D44: =IFERROR(VLOOKUP($A44&$B44,CHOOSE({1,2},ALL!$A$4:$A$500&ALL!$B$4:$B$500,ALL!$D$4:$D$500),2,FALSE),"") -> 2 | E44: =ALL!H45 -> 1 | F44: =ALL!L45 -> 2 | G44: =ALL!P45 -> 7 | H44: =ALL!T45 -> 41 | I44: =ALL!X45 -> 0 | J44: =ALL!AB45 -> 0 | K44: =ALL!AF45 -> 0 | L44: =ALL!AJ45 -> 0 | M44: =ALL!AN45 -> 0 | N44: =ALL!AR45 -> 0 | O44: =ALL!AV45 -> 0 | P44: =ALL!AZ45 -> 0 | Q44: =ALL!BD45 -> 0 | R44: =ALL!BH45 -> 0 | S44: =ALL!BL45 -> 0 | T44: =ALL!BP45 -> 0 | U44: =ALL!BT45 -> 0 | V44: =ALL!BX45 -> 0 | W44: =ALL!CB45 -> 0 | X44: =ALL!CF45 -> 0 | Y44: =ALL!CJ45 -> 0 | Z44: =ALL!CN45 -> 0 | AA44: =ALL!CR45 -> 0 | AB44: =ALL!CV45 -> 0 | AC44: =ALL!CZ45 -> 0 | AD44: =ALL!DD45 -> 0 | AE44: =ALL!DH45 -> 0 | AF44: =ALL!DL45 -> 0 | AG44: =ALL!DP45 -> 0 | AH44: =ALL!DT45 -> 0 | AK44: 53 | AL44: 98 | AM44: 48
A45: سير الضنية | B45: E3 | C45: =JARD_HA!D45 -> 43 | D45: =IFERROR(VLOOKUP($A45&$B45,CHOOSE({1,2},ALL!$A$4:$A$500&ALL!$B$4:$B$500,ALL!$D$4:$D$500),2,FALSE),"") -> 2 | E45: =ALL!H46 -> 0 | F45: =ALL!L46 -> 3 | G45: =ALL!P46 -> 3 | H45: =ALL!T46 -> 18 | I45: =ALL!X46 -> 0 | J45: =ALL!AB46 -> 0 | K45: =ALL!AF46 -> 0 | L45: =ALL!AJ46 -> 0 | M45: =ALL!AN46 -> 0 | N45: =ALL!AR46 -> 0 | O45: =ALL!AV46 -> 0 | P45: =ALL!AZ46 -> 0 | Q45: =ALL!BD46 -> 0 | R45: =ALL!BH46 -> 0 | S45: =ALL!BL46 -> 0 | T45: =ALL!BP46 -> 0 | U45: =ALL!BT46 -> 0 | V45: =ALL!BX46 -> 0 | W45: =ALL!CB46 -> 0 | X45: =ALL!CF46 -> 0 | Y45: =ALL!CJ46 -> 0 | Z45: =ALL!CN46 -> 0 | AA45: =ALL!CR46 -> 0 | AB45: =ALL!CV46 -> 0 | AC45: =ALL!CZ46 -> 0 | AD45: =ALL!DD46 -> 0 | AE45: =ALL!DH46 -> 0 | AF45: =ALL!DL46 -> 0 | AG45: =ALL!DP46 -> 0 | AH45: =ALL!DT46 -> 0 | AK45: 26 | AL45: 69 | AM45: 21
A46: حلبا عكار | B46: E4 | C46: =JARD_HA!D46 -> 91 | D46: =IFERROR(VLOOKUP($A46&$B46,CHOOSE({1,2},ALL!$A$4:$A$500&ALL!$B$4:$B$500,ALL!$D$4:$D$500),2,FALSE),"") -> 0 | E46: =ALL!H47 -> 3 | F46: =ALL!L47 -> 8 | G46: =ALL!P47 -> 0 | H46: =ALL!T47 -> 110 | I46: =ALL!X47 -> 0 | J46: =ALL!AB47 -> 0 | K46: =ALL!AF47 -> 0 | L46: =ALL!AJ47 -> 0 | M46: =ALL!AN47 -> 0 | N46: =ALL!AR47 -> 0 | O46: =ALL!AV47 -> 0 | P46: =ALL!AZ47 -> 0 | Q46: =ALL!BD47 -> 0 | R46: =ALL!BH47 -> 0 | S46: =ALL!BL47 -> 0 | T46: =ALL!BP47 -> 0 | U46: =ALL!BT47 -> 0 | V46: =ALL!BX47 -> 0 | W46: =ALL!CB47 -> 0 | X46: =ALL!CF47 -> 0 | Y46: =ALL!CJ47 -> 0 | Z46: =ALL!CN47 -> 0 | AA46: =ALL!CR47 -> 0 | AB46: =ALL!CV47 -> 0 | AC46: =ALL!CZ47 -> 0 | AD46: =ALL!DD47 -> 0 | AE46: =ALL!DH47 -> 0 | AF46: =ALL!DL47 -> 0 | AG46: =ALL!DP47 -> 0 | AH46: =ALL!DT47 -> 0 | AK46: 121 | AL46: 212 | AM46: 110
A47: القبيات | B47: E5 | C47: =JARD_HA!D47 -> 54 | D47: =IFERROR(VLOOKUP($A47&$B47,CHOOSE({1,2},ALL!$A$4:$A$500&ALL!$B$4:$B$500,ALL!$D$4:$D$500),2,FALSE),"") -> 0 | E47: =ALL!H48 -> 0 | F47: =ALL!L48 -> 0 | G47: =ALL!P48 -> 4 | H47: =ALL!T48 -> 49 | I47: =ALL!X48 -> 0 | J47: =ALL!AB48 -> 0 | K47: =ALL!AF48 -> 0 | L47: =ALL!AJ48 -> 0 | M47: =ALL!AN48 -> 0 | N47: =ALL!AR48 -> 0 | O47: =ALL!AV48 -> 0 | P47: =ALL!AZ48 -> 0 | Q47: =ALL!BD48 -> 0 | R47: =ALL!BH48 -> 0 | S47: =ALL!BL48 -> 0 | T47: =ALL!BP48 -> 0 | U47: =ALL!BT48 -> 0 | V47: =ALL!BX48 -> 0 | W47: =ALL!CB48 -> 0 | X47: =ALL!CF48 -> 0 | Y47: =ALL!CJ48 -> 0 | Z47: =ALL!CN48 -> 0 | AA47: =ALL!CR48 -> 0 | AB47: =ALL!CV48 -> 0 | AC47: =ALL!CZ48 -> 0 | AD47: =ALL!DD48 -> 0 | AE47: =ALL!DH48 -> 0 | AF47: =ALL!DL48 -> 0 | AG47: =ALL!DP48 -> 0 | AH47: =ALL!DT48 -> 0 | AK47: 53 | AL47: 107 | AM47: 53
A48: البترون | B48: E6 | C48: =JARD_HA!D48 -> 3 | D48: =IFERROR(VLOOKUP($A48&$B48,CHOOSE({1,2},ALL!$A$4:$A$500&ALL!$B$4:$B$500,ALL!$D$4:$D$500),2,FALSE),"") -> 8 | E48: =ALL!H49 -> 0 | F48: =ALL!L49 -> 3 | G48: =ALL!P49 -> 1 | H48: =ALL!T49 -> 1 | I48: =ALL!X49 -> 0 | J48: =ALL!AB49 -> 0 | K48: =ALL!AF49 -> 0 | L48: =ALL!AJ49 -> 0 | M48: =ALL!AN49 -> 0 | N48: =ALL!AR49 -> 0 | O48: =ALL!AV49 -> 0 | P48: =ALL!AZ49 -> 0 | Q48: =ALL!BD49 -> 0 | R48: =ALL!BH49 -> 0 | S48: =ALL!BL49 -> 0 | T48: =ALL!BP49 -> 0 | U48: =ALL!BT49 -> 0 | V48: =ALL!BX49 -> 0 | W48: =ALL!CB49 -> 0 | X48: =ALL!CF49 -> 0 | Y48: =ALL!CJ49 -> 0 | Z48: =ALL!CN49 -> 0 | AA48: =ALL!CR49 -> 0 | AB48: =ALL!CV49 -> 0 | AC48: =ALL!CZ49 -> 0 | AD48: =ALL!DD49 -> 0 | AE48: =ALL!DH49 -> 0 | AF48: =ALL!DL49 -> 0 | AG48: =ALL!DP49 -> 0 | AH48: =ALL!DT49 -> 0 | AK48: 13 | AL48: 16 | AM48: 2
A49: الكورة | B49: E7 | C49: =JARD_HA!D49 -> 3 | D49: =IFERROR(VLOOKUP($A49&$B49,CHOOSE({1,2},ALL!$A$4:$A$500&ALL!$B$4:$B$500,ALL!$D$4:$D$500),2,FALSE),"") -> 36 | E49: =ALL!H50 -> 5 | F49: =ALL!L50 -> 0 | G49: =ALL!P50 -> 6 | H49: =ALL!T50 -> 0 | I49: =ALL!X50 -> 0 | J49: =ALL!AB50 -> 0 | K49: =ALL!AF50 -> 0 | L49: =ALL!AJ50 -> 0 | M49: =ALL!AN50 -> 0 | N49: =ALL!AR50 -> 0 | O49: =ALL!AV50 -> 0 | P49: =ALL!AZ50 -> 0 | Q49: =ALL!BD50 -> 0 | R49: =ALL!BH50 -> 0 | S49: =ALL!BL50 -> 0 | T49: =ALL!BP50 -> 0 | U49: =ALL!BT50 -> 0 | V49: =ALL!BX50 -> 0 | W49: =ALL!CB50 -> 0 | X49: =ALL!CF50 -> 0 | Y49: =ALL!CJ50 -> 0 | Z49: =ALL!CN50 -> 0 | AA49: =ALL!CR50 -> 0 | AB49: =ALL!CV50 -> 0 | AC49: =ALL!CZ50 -> 0 | AD49: =ALL!DD50 -> 0 | AE49: =ALL!DH50 -> 0 | AF49: =ALL!DL50 -> 0 | AG49: =ALL!DP50 -> 0 | AH49: =ALL!DT50 -> 0 | AK49: 47 | AL49: 50 | AM49: 6
A50: زغرتا | B50: E8 | C50: =JARD_HA!D50 -> 68 | D50: =IFERROR(VLOOKUP($A50&$B50,CHOOSE({1,2},ALL!$A$4:$A$500&ALL!$B$4:$B$500,ALL!$D$4:$D$500),2,FALSE),"") -> 2 | E50: =ALL!H51 -> 1 | F50: =ALL!L51 -> 1 | G50: =ALL!P51 -> 0 | H50: =ALL!T51 -> 26 | I50: =ALL!X51 -> 0 | J50: =ALL!AB51 -> 0 | K50: =ALL!AF51 -> 0 | L50: =ALL!AJ51 -> 0 | M50: =ALL!AN51 -> 0 | N50: =ALL!AR51 -> 0 | O50: =ALL!AV51 -> 0 | P50: =ALL!AZ51 -> 0 | Q50: =ALL!BD51 -> 0 | R50: =ALL!BH51 -> 0 | S50: =ALL!BL51 -> 0 | T50: =ALL!BP51 -> 0 | U50: =ALL!BT51 -> 0 | V50: =ALL!BX51 -> 0 | W50: =ALL!CB51 -> 0 | X50: =ALL!CF51 -> 0 | Y50: =ALL!CJ51 -> 0 | Z50: =ALL!CN51 -> 0 | AA50: =ALL!CR51 -> 0 | AB50: =ALL!CV51 -> 0 | AC50: =ALL!CZ51 -> 0 | AD50: =ALL!DD51 -> 0 | AE50: =ALL!DH51 -> 0 | AF50: =ALL!DL51 -> 0 | AG50: =ALL!DP51 -> 0 | AH50: =ALL!DT51 -> 0 | AK50: 30 | AL50: 98 | AM50: 26
A51: بشري | B51: E9 | C51: =JARD_HA!D51 -> 0 | D51: =IFERROR(VLOOKUP($A51&$B51,CHOOSE({1,2},ALL!$A$4:$A$500&ALL!$B$4:$B$500,ALL!$D$4:$D$500),2,FALSE),"") -> 22 | E51: =ALL!H52 -> 0 | F51: =ALL!L52 -> 1 | G51: =ALL!P52 -> 0 | H51: =ALL!T52 -> 0 | I51: =ALL!X52 -> 0 | J51: =ALL!AB52 -> 0 | K51: =ALL!AF52 -> 0 | L51: =ALL!AJ52 -> 0 | M51: =ALL!AN52 -> 0 | N51: =ALL!AR52 -> 0 | O51: =ALL!AV52 -> 0 | P51: =ALL!AZ52 -> 0 | Q51: =ALL!BD52 -> 0 | R51: =ALL!BH52 -> 0 | S51: =ALL!BL52 -> 0 | T51: =ALL!BP52 -> 0 | U51: =ALL!BT52 -> 0 | V51: =ALL!BX52 -> 0 | W51: =ALL!CB52 -> 0 | X51: =ALL!CF52 -> 0 | Y51: =ALL!CJ52 -> 0 | Z51: =ALL!CN52 -> 0 | AA51: =ALL!CR52 -> 0 | AB51: =ALL!CV52 -> 0 | AC51: =ALL!CZ52 -> 0 | AD51: =ALL!DD52 -> 0 | AE51: =ALL!DH52 -> 0 | AF51: =ALL!DL52 -> 0 | AG51: =ALL!DP52 -> 0 | AH51: =ALL!DT52 -> 0 | AK51: 23 | AL51: 23 | AM51: 0
A52: المجموع | C52: =SUM(C3:C51) -> 1922 | D52: =SUM(D3:D51) -> 550 | E52: 506 | F52: 734 | G52: 1047 | H52: 778 | I52: 0 | J52: 0 | K52: 0 | L52: 0 | M52: 0 | N52: 0 | O52: 0 | P52: 0 | Q52: 0 | R52: 0 | S52: 0 | T52: 0 | U52: 0 | V52: 0 | W52: 0 | X52: 0 | Y52: 0 | Z52: 0 | AA52: 0 | AB52: 0 | AC52: 0 | AD52: 0 | AE52: 0 | AF52: 0 | AG52: 0 | AH52: 0 | AK52: =SUM(AK3:AK51) -> 3615 | AL52: =SUM(AL3:AL51) -> 5537 | AM52: =SUM(AM3:AM51) -> 2218

Sheet MOG_OMT
A1: 2020 | B1: مغلفات OMT | C1: =ALL!B1 -> ALL | D1: =ALL!C1 -> 2020-12-01 | E1: =ALL!G1 -> 2020-12-08 | F1: =ALL!K1 -> 2020-12-14 | G1: =ALL!O1 -> 2020-12-18 | H1: =ALL!S1 -> 2020-12-22 | I1: =ALL!W1 -> 00:00:00 | J1: =ALL!AA1 -> 00:00:00 | K1: =ALL!AE1 -> 00:00:00 | L1: =ALL!AL1 -> 00:00:00 | M1: =ALL!AM1 -> 00:00:00 | N1: =ALL!AQ1 -> 00:00:00 | O1: =ALL!AU1 -> 00:00:00 | P1: =ALL!AY1 -> 00:00:00 | Q1: =ALL!BC1 -> 00:00:00 | R1: =ALL!BG1 -> 00:00:00 | S1: =ALL!BK1 -> 00:00:00 | T1: =ALL!BO1 -> 00:00:00 | U1: =ALL!BS1 -> 00:00:00 | V1: =ALL!BW1 -> 00:00:00 | W1: =ALL!CA1 -> 00:00:00 | X1: =ALL!CE1 -> 00:00:00 | Y1: =ALL!CI1 -> 00:00:00 | Z1: =ALL!CM1 -> 00:00:00 | AA1: =ALL!CQ1 -> 00:00:00 | AB1: =ALL!CU1 -> 00:00:00 | AC1: =ALL!CY1 -> 00:00:00 | AD1: =ALL!DC1 -> 00:00:00 | AE1: =ALL!DG1 -> 00:00:00 | AF1: =ALL!DK1 -> 00:00:00 | AG1: =ALL!DO1 -> 00:00:00 | AH1: =ALL!DS1 -> 00:00:00
A2: كانون اول | B2: رمز | C2: المنصرم | D2: =ALL!C2 -> 02/12/ | E2: =ALL!G2 -> 09/12/ | F2: =ALL!K2 -> 15/12/ | G2: =ALL!O2 -> 21/12/ | H2: =ALL!S2 -> 23/12/ | I2: =ALL!W2 -> 00:00:00 | J2: =ALL!AA2 -> 00:00:00 | K2: =ALL!AE2 -> 00:00:00 | L2: =ALL!AL2 -> 00:00:00 | M2: =ALL!AM2 -> 00:00:00 | N2: =ALL!AQ2 -> 00:00:00 | O2: =ALL!AU2 -> 00:00:00 | P2: =ALL!AY2 -> 00:00:00 | Q2: =ALL!BC2 -> 00:00:00 | R2: =ALL!BG2 -> 00:00:00 | S2: =ALL!BK2 -> 00:00:00 | T2: =ALL!BO2 -> 00:00:00 | U2: =ALL!BS2 -> 00:00:00 | V2: =ALL!BW2 -> 00:00:00 | W2: =ALL!CA2 -> 00:00:00 | X2: =ALL!CE2 -> 00:00:00 | Y2: =ALL!CI2 -> 00:00:00 | Z2: =ALL!CM2 -> 00:00:00 | AA2: =ALL!CQ2 -> 00:00:00 | AB2: =ALL!CU2 -> 00:00:00 | AC2: =ALL!CY2 -> 00:00:00 | AD2: =ALL!DC2 -> 00:00:00 | AE2: =ALL!DG2 -> 00:00:00 | AF2: =ALL!DK2 -> 00:00:00 | AG2: =ALL!DO2 -> 00:00:00 | AH2: =ALL!DS2 -> 00:00:00 | AJ2: مغلفات OMTمستلمة | AL2: مغلفات OMTمستلمة + المنصرم | AM2: مغلفات OMT غير مسلمة
A3: بيروت | B3: A | C3: =JARD_MOG_OMT!D3 -> 0 | D3: =IFERROR(VLOOKUP($A3&$B3,CHOOSE({1,2},ALL!$A$4:$A$500&ALL!$B$4:$B$500,ALL!$E$4:$E$500),2,FALSE),"") -> 2 | E3: =ALL!I4 -> 6 | F3: =ALL!M4 -> 9 | G3: =ALL!Q4 -> 0 | H3: =ALL!U4 -> 6 | I3: =ALL!Y4 -> 0 | J3: =ALL!AC4 -> 0 | K3: =ALL!AG4 -> 0 | L3: =ALL!AK4 -> 0 | M3: =ALL!AO4 -> 0 | N3: =ALL!AS4 -> 0 | O3: =ALL!AW4 -> 0 | P3: =ALL!BA4 -> 0 | Q3: =ALL!BE4 -> 0 | R3: =ALL!BI4 -> 0 | S3: =ALL!BM4 -> 0 | T3: =ALL!BQ4 -> 0 | U3: =ALL!BU4 -> 0 | V3: =ALL!BY4 -> 0 | W3: =ALL!CD4 -> 0 | X3: =ALL!CG4 -> 0 | Y3: =ALL!CK4 -> 0 | Z3: =ALL!CO4 -> 0 | AA3: =ALL!CS4 -> 0 | AB3: =ALL!CW4 -> 0 | AC3: =ALL!DA4 -> 0 | AD3: =ALL!DE4 -> 0 | AE3: =ALL!DI4 -> 0 | AF3: =ALL!DM4 -> 0 | AG3: =ALL!DQ4 -> 0 | AH3: =ALL!DU4 -> 0 | AJ3: =SUM(D3:AH3) -> 23 | AL3: =SUM(AJ3+C3) -> 23 | AM3: 17
A4: بعبدا | B4: B1 | C4: =JARD_MOG_OMT!D4 -> 0 | D4: =IFERROR(VLOOKUP($A4&$B4,CHOOSE({1,2},ALL!$A$4:$A$500&ALL!$B$4:$B$500,ALL!$E$4:$E$500),2,FALSE),"") -> 3 | E4: =ALL!I5 -> 3 | F4: =ALL!M5 -> 3 | G4: =ALL!Q5 -> 3 | H4: =ALL!U5 -> 3 | I4: =ALL!Y5 -> 0 | J4: =ALL!AC5 -> 0 | K4: =ALL!AG5 -> 0 | L4: =ALL!AK5 -> 0 | M4: =ALL!AO5 -> 0 | N4: =ALL!AS5 -> 0 | O4: =ALL!AW5 -> 0 | P4: =ALL!BA5 -> 0 | Q4: =ALL!BE5 -> 0 | R4: =ALL!BI5 -> 0 | S4: =ALL!BM5 -> 0 | T4: =ALL!BQ5 -> 0 | U4: =ALL!BU5 -> 0 | V4: =ALL!BY5 -> 0 | W4: =ALL!CD5 -> 0 | X4: =ALL!CG5 -> 0 | Y4: =ALL!CK5 -> 0 | Z4: =ALL!CO5 -> 0 | AA4: =ALL!CS5 -> 0 | AB4: =ALL!CW5 -> 0 | AC4: =ALL!DA5 -> 0 | AD4: =ALL!DE5 -> 0 | AE4: =ALL!DI5 -> 0 | AF4: =ALL!DM5 -> 0 | AG4: =ALL!DQ5 -> 0 | AH4: =ALL!DU5 -> 0 | AJ4: =SUM(D4:AH4) -> 15 | AL4: =SUM(AJ4+C4) -> 15 | AM4: 9
A5: بكفيا | B5: B10 | C5: =JARD_MOG_OMT!D5 -> 0 | D5: =IFERROR(VLOOKUP($A5&$B5,CHOOSE({1,2},ALL!$A$4:$A$500&ALL!$B$4:$B$500,ALL!$E$4:$E$500),2,FALSE),"") -> 0 | E5: =ALL!I6 -> 4 | F5: =ALL!M6 -> 0 | G5: =ALL!Q6 -> 3 | H5: =ALL!U6 -> 0 | I5: =ALL!Y6 -> 0 | J5: =ALL!AC6 -> 0 | K5: =ALL!AG6 -> 0 | L5: =ALL!AK6 -> 0 | M5: =ALL!AO6 -> 0 | N5: =ALL!AS6 -> 0 | O5: =ALL!AW6 -> 0 | P5: =ALL!BA6 -> 0 | Q5: =ALL!BE6 -> 0 | R5: =ALL!BI6 -> 0 | S5: =ALL!BM6 -> 0 | T5: =ALL!BQ6 -> 0 | U5: =ALL!BU6 -> 0 | V5: =ALL!BY6 -> 0 | W5: =ALL!CD6 -> 0 | X5: =ALL!CG6 -> 0 | Y5: =ALL!CK6 -> 0 | Z5: =ALL!CO6 -> 0 | AA5: =ALL!CS6 -> 0 | AB5: =ALL!CW6 -> 0 | AC5: =ALL!DA6 -> 0 | AD5: =ALL!DE6 -> 0 | AE5: =ALL!DI6 -> 0 | AF5: =ALL!DM6 -> 0 | AG5: =ALL!DQ6 -> 0 | AH5: =ALL!DU6 -> 0 | AJ5: 7 | AL5: 7 | AM5: 4
A6: المتن الشمالي العالي | B6: B11 | C6: =JARD_MOG_OMT!D6 -> 0 | D6: =IFERROR(VLOOKUP($A6&$B6,CHOOSE({1,2},ALL!$A$4:$A$500&ALL!$B$4:$B$500,ALL!$E$4:$E$500),2,FALSE),"") -> 0 | E6: =ALL!I7 -> 0 | F6: =ALL!M7 -> 0 | G6: =ALL!Q7 -> 0 | H6: =ALL!U7 -> 0 | I6: =ALL!Y7 -> 0 | J6: =ALL!AC7 -> 0 | K6: =ALL!AG7 -> 0 | L6: =ALL!AK7 -> 0 | M6: =ALL!AO7 -> 0 | N6: =ALL!AS7 -> 0 | O6: =ALL!AW7 -> 0 | P6: =ALL!BA7 -> 0 | Q6: =ALL!BE7 -> 0 | R6: =ALL!BI7 -> 0 | S6: =ALL!BM7 -> 0 | T6: =ALL!BQ7 -> 0 | U6: =ALL!BU7 -> 0 | V6: =ALL!BY7 -> 0 | W6: =ALL!CD7 -> 0 | X6: =ALL!CG7 -> 0 | Y6: =ALL!CK7 -> 0 | Z6: =ALL!CO7 -> 0 | AA6: =ALL!CS7 -> 0 | AB6: =ALL!CW7 -> 0 | AC6: =ALL!DA7 -> 0 | AD6: =ALL!DE7 -> 0 | AE6: =ALL!DI7 -> 0 | AF6: =ALL!DM7 -> 0 | AG6: =ALL!DQ7 -> 0 | AH6: =ALL!DU7 -> 0 | AJ6: 0 | AL6: 0 | AM6: 0
A7: كسروان | B7: B12 | C7: =JARD_MOG_OMT!D7 -> 0 | D7: =IFERROR(VLOOKUP($A7&$B7,CHOOSE({1,2},ALL!$A$4:$A$500&ALL!$B$4:$B$500,ALL!$E$4:$E$500),2,FALSE),"") -> 3 | E7: =ALL!I8 -> 7 | F7: =ALL!M8 -> 2 | G7: =ALL!Q8 -> 7 | H7: =ALL!U8 -> 1 | I7: =ALL!Y8 -> 0 | J7: =ALL!AC8 -> 0 | K7: =ALL!AG8 -> 0 | L7: =ALL!AK8 -> 0 | M7: =ALL!AO8 -> 0 | N7: =ALL!AS8 -> 0 | O7: =ALL!AW8 -> 0 | P7: =ALL!BA8 -> 0 | Q7: =ALL!BE8 -> 0 | R7: =ALL!BI8 -> 0 | S7: =ALL!BM8 -> 0 | T7: =ALL!BQ8 -> 0 | U7: =ALL!BU8 -> 0 | V7: =ALL!BY8 -> 0 | W7: =ALL!CD8 -> 0 | X7: =ALL!CG8 -> 0 | Y7: =ALL!CK8 -> 0 | Z7: =ALL!CO8 -> 0 | AA7: =ALL!CS8 -> 0 | AB7: =ALL!CW8 -> 0 | AC7: =ALL!DA8 -> 0 | AD7: =ALL!DE8 -> 0 | AE7: =ALL!DI8 -> 0 | AF7: =ALL!DM8 -> 0 | AG7: =ALL!DQ8 -> 0 | AH7: =ALL!DU8 -> 0 | AJ7: 20 | AL7: 20 | AM7: 12
A8: جبيل | B8: B13 | C8: =JARD_MOG_OMT!D8 -> 0 | D8: =IFERROR(VLOOKUP($A8&$B8,CHOOSE({1,2},ALL!$A$4:$A$500&ALL!$B$4:$B$500,ALL!$E$4:$E$500),2,FALSE),"") -> 0 | E8: =ALL!I9 -> 1 | F8: =ALL!M9 -> 2 | G8: =ALL!Q9 -> 0 | H8: =ALL!U9 -> 1 | I8: =ALL!Y9 -> 0 | J8: =ALL!AC9 -> 0 | K8: =ALL!AG9 -> 0 | L8: =ALL!AK9 -> 0 | M8: =ALL!AO9 -> 0 | N8: =ALL!AS9 -> 0 | O8: =ALL!AW9 -> 0 | P8: =ALL!BA9 -> 0 | Q8: =ALL!BE9 -> 0 | R8: =ALL!BI9 -> 0 | S8: =ALL!BM9 -> 0 | T8: =ALL!BQ9 -> 0 | U8: =ALL!BU9 -> 0 | V8: =ALL!BY9 -> 0 | W8: =ALL!CD9 -> 0 | X8: =ALL!CG9 -> 0 | Y8: =ALL!CK9 -> 0 | Z8: =ALL!CO9 -> 0 | AA8: =ALL!CS9 -> 0 | AB8: =ALL!CW9 -> 0 | AC8: =ALL!DA9 -> 0 | AD8: =ALL!DE9 -> 0 | AE8: =ALL!DI9 -> 0 | AF8: =ALL!DM9 -> 0 | AG8: =ALL!DQ9 -> 0 | AH8: =ALL!DU9 -> 0 | AJ8: 4 | AL8: 4 | AM8: 3
A9: فتوح كسروان | B9: B14 | C9: =JARD_MOG_OMT!D9 -> 0 | D9: =IFERROR(VLOOKUP($A9&$B9,CHOOSE({1,2},ALL!$A$4:$A$500&ALL!$B$4:$B$500,ALL!$E$4:$E$500),2,FALSE),"") -> 0 | E9: =ALL!I10 -> 1 | F9: =ALL!M10 -> 0 | G9: =ALL!Q10 -> 2 | H9: =ALL!U10 -> 0 | I9: =ALL!Y10 -> 0 | J9: =ALL!AC10 -> 0 | K9: =ALL!AG10 -> 0 | L9: =ALL!AK10 -> 0 | M9: =ALL!AO10 -> 0 | N9: =ALL!AS10 -> 0 | O9: =ALL!AW10 -> 0 | P9: =ALL!BA10 -> 0 | Q9: =ALL!BE10 -> 0 | R9: =ALL!BI10 -> 0 | S9: =ALL!BM10 -> 0 | T9: =ALL!BQ10 -> 0 | U9: =ALL!BU10 -> 0 | V9: =ALL!BY10 -> 0 | W9: =ALL!CD10 -> 0 | X9: =ALL!CG10 -> 0 | Y9: =ALL!CK10 -> 0 | Z9: =ALL!CO10 -> 0 | AA9: =ALL!CS10 -> 0 | AB9: =ALL!CW10 -> 0 | AC9: =ALL!DA10 -> 0 | AD9: =ALL!DE10 -> 0 | AE9: =ALL!DI10 -> 0 | AF9: =ALL!DM10 -> 0 | AG9: =ALL!DQ10 -> 0 | AH9: =ALL!DU10 -> 0 | AJ9: 3 | AL9: 3 | AM9: 1
A10: الشويفات | B10: B2 | C10: =JARD_MOG_OMT!D10 -> 0 | D10: =IFERROR(VLOOKUP($A10&$B10,CHOOSE({1,2},ALL!$A$4:$A$500&ALL!$B$4:$B$500,ALL!$E$4:$E$500),2,FALSE),"") -> 5 | E10: =ALL!I11 -> 8 | F10: =ALL!M11 -> 3 | G10: =ALL!Q11 -> 11 | H10: =ALL!U11 -> 0 | I10: =ALL!Y11 -> 0 | J10: =ALL!AC11 -> 0 | K10: =ALL!AG11 -> 0 | L10: =ALL!AK11 -> 0 | M10: =ALL!AO11 -> 0 | N10: =ALL!AS11 -> 0 | O10: =ALL!AW11 -> 0 | P10: =ALL!BA11 -> 0 | Q10: =ALL!BE11 -> 0 | R10: =ALL!BI11 -> 0 | S10: =ALL!BM11 -> 0 | T10: =ALL!BQ11 -> 0 | U10: =ALL!BU11 -> 0 | V10: =ALL!BY11 -> 0 | W10: =ALL!CD11 -> 0 | X10: =ALL!CG11 -> 0 | Y10: =ALL!CK11 -> 0 | Z10: =ALL!CO11 -> 0 | AA10: =ALL!CS11 -> 0 | AB10: =ALL!CW11 -> 0 | AC10: =ALL!DA11 -> 0 | AD10: =ALL!DE11 -> 0 | AE10: =ALL!DI11 -> 0 | AF10: =ALL!DM11 -> 0 | AG10: =ALL!DQ11 -> 0 | AH10: =ALL!DU11 -> 0 | AJ10: 27 | AL10: 27 | AM10: 16
A11: برجا | B11: B3 | C11: =JARD_MOG_OMT!D11 -> 0 | D11: =IFERROR(VLOOKUP($A11&$B11,CHOOSE({1,2},ALL!$A$4:$A$500&ALL!$B$4:$B$500,ALL!$E$4:$E$500),2,FALSE),"") -> 0 | E11: =ALL!I12 -> 0 | F11: =ALL!M12 -> 2 | G11: =ALL!Q12 -> 5 | H11: =ALL!U12 -> 0 | I11: =ALL!Y12 -> 0 | J11: =ALL!AC12 -> 0 | K11: =ALL!AG12 -> 0 | L11: =ALL!AK12 -> 0 | M11: =ALL!AO12 -> 0 | N11: =ALL!AS12 -> 0 | O11: =ALL!AW12 -> 0 | P11: =ALL!BA12 -> 0 | Q11: =ALL!BE12 -> 0 | R11: =ALL!BI12 -> 0 | S11: =ALL!BM12 -> 0 | T11: =ALL!BQ12 -> 0 | U11: =ALL!BU12 -> 0 | V11: =ALL!BY12 -> 0 | W11: =ALL!CD12 -> 0 | X11: =ALL!CG12 -> 0 | Y11: =ALL!CK12 -> 0 | Z11: =ALL!CO12 -> 0 | AA11: =ALL!CS12 -> 0 | AB11: =ALL!CW12 -> 0 | AC11: =ALL!DA12 -> 0 | AD11: =ALL!DE12 -> 0 | AE11: =ALL!DI12 -> 0 | AF11: =ALL!DM12 -> 0 | AG11: =ALL!DQ12 -> 0 | AH11: =ALL!DU12 -> 0 | AJ11: 7 | AL11: 7 | AM11: 2
A12: شحيم | B12: B4 | C12: =JARD_MOG_OMT!D12 -> 0 | D12: =IFERROR(VLOOKUP($A12&$B12,CHOOSE({1,2},ALL!$A$4:$A$500&ALL!$B$4:$B$500,ALL!$E$4:$E$500),2,FALSE),"") -> 0 | E12: =ALL!I13 -> 1 | F12: =ALL!M13 -> 0 | G12: =ALL!Q13 -> 1 | H12: =ALL!U13 -> 0 | I12: =ALL!Y13 -> 0 | J12: =ALL!AC13 -> 0 | K12: =ALL!AG13 -> 0 | L12: =ALL!AK13 -> 0 | M12: =ALL!AO13 -> 0 | N12: =ALL!AS13 -> 0 | O12: =ALL!AW13 -> 0 | P12: =ALL!BA13 -> 0 | Q12: =ALL!BE13 -> 0 | R12: =ALL!BI13 -> 0 | S12: =ALL!BM13 -> 0 | T12: =ALL!BQ13 -> 0 | U12: =ALL!BU13 -> 0 | V12: =ALL!BY13 -> 0 | W12: =ALL!CD13 -> 0 | X12: =ALL!CG13 -> 0 | Y12: =ALL!CK13 -> 0 | Z12: =ALL!CO13 -> 0 | AA12: =ALL!CS13 -> 0 | AB12: =ALL!CW13 -> 0 | AC12: =ALL!DA13 -> 0 | AD12: =ALL!DE13 -> 0 | AE12: =ALL!DI13 -> 0 | AF12: =ALL!DM13 -> 0 | AG12: =ALL!DQ13 -> 0 | AH12: =ALL!DU13 -> 0 | AJ12: 2 | AL12: 2 | AM12: 1
A13: عاليه | B13: B5 | C13: =JARD_MOG_OMT!D13 -> 0 | D13: =IFERROR(VLOOKUP($A13&$B13,CHOOSE({1,2},ALL!$A$4:$A$500&ALL!$B$4:$B$500,ALL!$E$4:$E$500),2,FALSE),"") -> 5 | E13: =ALL!I14 -> 6 | F13: =ALL!M14 -> 3 | G13: =ALL!Q14 -> 3 | H13: =ALL!U14 -> 0 | I13: =ALL!Y14 -> 0 | J13: =ALL!AC14 -> 0 | K13: =ALL!AG14 -> 0 | L13: =ALL!AK14 -> 0 | M13: =ALL!AO14 -> 0 | N13: =ALL!AS14 -> 0 | O13: =ALL!AW14 -> 0 | P13: =ALL!BA14 -> 0 | Q13: =ALL!BE14 -> 0 | R13: =ALL!BI14 -> 0 | S13: =ALL!BM14 -> 0 | T13: =ALL!BQ14 -> 0 | U13: =ALL!BU14 -> 0 | V13: =ALL!BY14 -> 0 | W13: =ALL!CD14 -> 0 | X13: =ALL!CG14 -> 0 | Y13: =ALL!CK14 -> 0 | Z13: =ALL!CO14 -> 0 | AA13: =ALL!CS14 -> 0 | AB13: =ALL!CW14 -> 0 | AC13: =ALL!DA14 -> 0 | AD13: =ALL!DE14 -> 0 | AE13: =ALL!DI14 -> 0 | AF13: =ALL!DM14 -> 0 | AG13: =ALL!DQ14 -> 0 | AH13: =ALL!DU14 -> 0 | AJ13: 17 | AL13: 17 | AM13: 14
A14: حمانا | B14: B6 | C14: =JARD_MOG_OMT!D14 -> 0 | D14: =IFERROR(VLOOKUP($A14&$B14,CHOOSE({1,2},ALL!$A$4:$A$500&ALL!$B$4:$B$500,ALL!$E$4:$E$500),2,FALSE),"") -> 0 | E14: =ALL!I15 -> 1 | F14: =ALL!M15 -> 1 | G14: =ALL!Q15 -> 1 | H14: =ALL!U15 -> 2 | I14: =ALL!Y15 -> 0 | J14: =ALL!AC15 -> 0 | K14: =ALL!AG15 -> 0 | L14: =ALL!AK15 -> 0 | M14: =ALL!AO15 -> 0 | N14: =ALL!AS15 -> 0 | O14: =ALL!AW15 -> 0 | P14: =ALL!BA15 -> 0 | Q14: =ALL!BE15 -> 0 | R14: =ALL!BI15 -> 0 | S14: =ALL!BM15 -> 0 | T14: =ALL!BQ15 -> 0 | U14: =ALL!BU15 -> 0 | V14: =ALL!BY15 -> 0 | W14: =ALL!CD15 -> 0 | X14: =ALL!CG15 -> 0 | Y14: =ALL!CK15 -> 0 | Z14: =ALL!CO15 -> 0 | AA14: =ALL!CS15 -> 0 | AB14: =ALL!CW15 -> 0 | AC14: =ALL!DA15 -> 0 | AD14: =ALL!DE15 -> 0 | AE14: =ALL!DI15 -> 0 | AF14: =ALL!DM15 -> 0 | AG14: =ALL!DQ15 -> 0 | AH14: =ALL!DU15 -> 0 | AJ14: 5 | AL14: 5 | AM14: 2
A15: الشوف | B15: B7 | C15: =JARD_MOG_OMT!D15 -> 0 | D15: =IFERROR(VLOOKUP($A15&$B15,CHOOSE({1,2},ALL!$A$4:$A$500&ALL!$B$4:$B$500,ALL!$E$4:$E$500),2,FALSE),"") -> 1 | E15: =ALL!I16 -> 2 | F15: =ALL!M16 -> 0 | G15: =ALL!Q16 -> 2 | H15: =ALL!U16 -> 0 | I15: =ALL!Y16 -> 0 | J15: =ALL!AC16 -> 0 | K15: =ALL!AG16 -> 0 | L15: =ALL!AK16 -> 0 | M15: =ALL!AO16 -> 0 | N15: =ALL!AS16 -> 0 | O15: =ALL!AW16 -> 0 | P15: =ALL!BA16 -> 0 | Q15: =ALL!BE16 -> 0 | R15: =ALL!BI16 -> 0 | S15: =ALL!BM16 -> 0 | T15: =ALL!BQ16 -> 0 | U15: =ALL!BU16 -> 0 | V15: =ALL!BY16 -> 0 | W15: =ALL!CD16 -> 0 | X15: =ALL!CG16 -> 0 | Y15: =ALL!CK16 -> 0 | Z15: =ALL!CO16 -> 0 | AA15: =ALL!CS16 -> 0 | AB15: =ALL!CW16 -> 0 | AC15: =ALL!DA16 -> 0 | AD15: =ALL!DE16 -> 0 | AE15: =ALL!DI16 -> 0 | AF15: =ALL!DM16 -> 0 | AG15: =ALL!DQ16 -> 0 | AH15: =ALL!DU16 -> 0 | AJ15: 5 | AL15: 5 | AM15: 3
A16: المتن | B16: B8 | C16: =JARD_MOG_OMT!D16 -> 0 | D16: =IFERROR(VLOOKUP($A16&$B16,CHOOSE({1,2},ALL!$A$4:$A$500&ALL!$B$4:$B$500,ALL!$E$4:$E$500),2,FALSE),"") -> 5 | E16: =ALL!I17 -> 6 | F16: =ALL!M17 -> 3 | G16: =ALL!Q17 -> 3 | H16: =ALL!U17 -> 0 | I16: =ALL!Y17 -> 0 | J16: =ALL!AC17 -> 0 | K16: =ALL!AG17 -> 0 | L16: =ALL!AK17 -> 0 | M16: =ALL!AO17 -> 0 | N16: =ALL!AS17 -> 0 | O16: =ALL!AW17 -> 0 | P16: =ALL!BA17 -> 0 | Q16: =ALL!BE17 -> 0 | R16: =ALL!BI17 -> 0 | S16: =ALL!BM17 -> 0 | T16: =ALL!BQ17 -> 0 | U16: =ALL!BU17 -> 0 | V16: =ALL!BY17 -> 0 | W16: =ALL!CD17 -> 0 | X16: =ALL!CG17 -> 0 | Y16: =ALL!CK17 -> 0 | Z16: =ALL!CO17 -> 0 | AA16: =ALL!CS17 -> 0 | AB16: =ALL!CW17 -> 0 | AC16: =ALL!DA17 -> 0 | AD16: =ALL!DE17 -> 0 | AE16: =ALL!DI17 -> 0 | AF16: =ALL!DM17 -> 0 | AG16: =ALL!DQ17 -> 0 | AH16: =ALL!DU17 -> 0 | AJ16: 17 | AL16: 17 | AM16: 14
A17: انطلياس | B17: B9 | C17: =JARD_MOG_OMT!D17 -> 0 | D17: =IFERROR(VLOOKUP($A17&$B17,CHOOSE({1,2},ALL!$A$4:$A$500&ALL!$B$4:$B$500,ALL!$E$4:$E$500),2,FALSE),"") -> 3 | E17: =ALL!I18 -> 4 | F17: =ALL!M18 -> 0 | G17: =ALL!Q18 -> 3 | H17: =ALL!U18 -> 3 | I17: =ALL!Y18 -> 0 | J17: =ALL!AC18 -> 0 | K17: =ALL!AG18 -> 0 | L17: =ALL!AK18 -> 0 | M17: =ALL!AO18 -> 0 | N17: =ALL!AS18 -> 0 | O17: =ALL!AW18 -> 0 | P17: =ALL!BA18 -> 0 | Q17: =ALL!BE18 -> 0 | R17: =ALL!BI18 -> 0 | S17: =ALL!BM18 -> 0 | T17: =ALL!BQ18 -> 0 | U17: =ALL!BU18 -> 0 | V17: =ALL!BY18 -> 0 | W17: =ALL!CD18 -> 0 | X17: =ALL!CG18 -> 0 | Y17: =ALL!CK18 -> 0 | Z17: =ALL!CO18 -> 0 | AA17: =ALL!CS18 -> 0 | AB17: =ALL!CW18 -> 0 | AC17: =ALL!DA18 -> 0 | AD17: =ALL!DE18 -> 0 | AE17: =ALL!DI18 -> 0 | AF17: =ALL!DM18 -> 0 | AG17: =ALL!DQ18 -> 0 | AH17: =ALL!DU18 -> 0 | AJ17: 13 | AL17: 13 | AM17: 7
A18: صيدا | B18: C1 | C18: =JARD_MOG_OMT!D18 -> 0 | D18: =IFERROR(VLOOKUP($A18&$B18,CHOOSE({1,2},ALL!$A$4:$A$500&ALL!$B$4:$B$500,ALL!$E$4:$E$500),2,FALSE),"") -> 0 | E18: =ALL!I19 -> 0 | F18: =ALL!M19 -> 0 | G18: =ALL!Q19 -> 0 | H18: =ALL!U19 -> 0 | I18: =ALL!Y19 -> 0 | J18: =ALL!AC19 -> 0 | K18: =ALL!AG19 -> 0 | L18: =ALL!AK19 -> 0 | M18: =ALL!AO19 -> 0 | N18: =ALL!AS19 -> 0 | O18: =ALL!AW19 -> 0 | P18: =ALL!BA19 -> 0 | Q18: =ALL!BE19 -> 0 | R18: =ALL!BI19 -> 0 | S18: =ALL!BM19 -> 0 | T18: =ALL!BQ19 -> 0 | U18: =ALL!BU19 -> 0 | V18: =ALL!BY19 -> 0 | W18: =ALL!CD19 -> 0 | X18: =ALL!CG19 -> 0 | Y18: =ALL!CK19 -> 0 | Z18: =ALL!CO19 -> 0 | AA18: =ALL!CS19 -> 0 | AB18: =ALL!CW19 -> 0 | AC18: =ALL!DA19 -> 0 | AD18: =ALL!DE19 -> 0 | AE18: =ALL!DI19 -> 0 | AF18: =ALL!DM19 -> 0 | AG18: =ALL!DQ19 -> 0 | AH18: =ALL!DU19 -> 0 | AJ18: 0 | AL18: 0 | AM18: 0
A19: جويا | B19: C10 | C19: =JARD_MOG_OMT!D19 -> 0 | D19: =IFERROR(VLOOKUP($A19&$B19,CHOOSE({1,2},ALL!$A$4:$A$500&ALL!$B$4:$B$500,ALL!$E$4:$E$500),2,FALSE),"") -> 0 | E19: =ALL!I20 -> 9 | F19: =ALL!M20 -> 0 | G19: =ALL!Q20 -> 0 | H19: =ALL!U20 -> 0 | I19: =ALL!Y20 -> 0 | J19: =ALL!AC20 -> 0 | K19: =ALL!AG20 -> 0 | L19: =ALL!AK20 -> 0 | M19: =ALL!AO20 -> 0 | N19: =ALL!AS20 -> 0 | O19: =ALL!AW20 -> 0 | P19: =ALL!BA20 -> 0 | Q19: =ALL!BE20 -> 0 | R19: =ALL!BI20 -> 0 | S19: =ALL!BM20 -> 0 | T19: =ALL!BQ20 -> 0 | U19: =ALL!BU20 -> 0 | V19: =ALL!BY20 -> 0 | W19: =ALL!CD20 -> 0 | X19: =ALL!CG20 -> 0 | Y19: =ALL!CK20 -> 0 | Z19: =ALL!CO20 -> 0 | AA19: =ALL!CS20 -> 0 | AB19: =ALL!CW20 -> 0 | AC19: =ALL!DA20 -> 0 | AD19: =ALL!DE20 -> 0 | AE19: =ALL!DI20 -> 0 | AF19: =ALL!DM20 -> 0 | AG19: =ALL!DQ20 -> 0 | AH19: =ALL!DU20 -> 0 | AJ19: 9 | AL19: 9 | AM19: 9
A20: ميس الجبل | B20: C11 | C20: =JARD_MOG_OMT!D20 -> 0 | D20: =IFERROR(VLOOKUP($A20&$B20,CHOOSE({1,2},ALL!$A$4:$A$500&ALL!$B$4:$B$500,ALL!$E$4:$E$500),2,FALSE),"") -> 0 | E20: =ALL!I21 -> 0 | F20: =ALL!M21 -> 0 | G20: =ALL!Q21 -> 2 | H20: =ALL!U21 -> 0 | I20: =ALL!Y21 -> 0 | J20: =ALL!AC21 -> 0 | K20: =ALL!AG21 -> 0 | L20: =ALL!AK21 -> 0 | M20: =ALL!AO21 -> 0 | N20: =ALL!AS21 -> 0 | O20: =ALL!AW21 -> 0 | P20: =ALL!BA21 -> 0 | Q20: =ALL!BE21 -> 0 | R20: =ALL!BI21 -> 0 | S20: =ALL!BM21 -> 0 | T20: =ALL!BQ21 -> 0 | U20: =ALL!BU21 -> 0 | V20: =ALL!BY21 -> 0 | W20: =ALL!CD21 -> 0 | X20: =ALL!CG21 -> 0 | Y20: =ALL!CK21 -> 0 | Z20: =ALL!CO21 -> 0 | AA20: =ALL!CS21 -> 0 | AB20: =ALL!CW21 -> 0 | AC20: =ALL!DA21 -> 0 | AD20: =ALL!DE21 -> 0 | AE20: =ALL!DI21 -> 0 | AF20: =ALL!DM21 -> 0 | AG20: =ALL!DQ21 -> 0 | AH20: =ALL!DU21 -> 0 | AJ20: 2 | AL20: 2 | AM20: 0
A21: صور | B21: C2 | C21: =JARD_MOG_OMT!D21 -> 0 | D21: =IFERROR(VLOOKUP($A21&$B21,CHOOSE({1,2},ALL!$A$4:$A$500&ALL!$B$4:$B$500,ALL!$E$4:$E$500),2,FALSE),"") -> 0 | E21: =ALL!I22 -> 0 | F21: =ALL!M22 -> 0 | G21: =ALL!Q22 -> 0 | H21: =ALL!U22 -> 0 | I21: =ALL!Y22 -> 0 | J21: =ALL!AC22 -> 0 | K21: =ALL!AG22 -> 0 | L21: =ALL!AK22 -> 0 | M21: =ALL!AO22 -> 0 | N21: =ALL!AS22 -> 0 | O21: =ALL!AW22 -> 0 | P21: =ALL!BA22 -> 0 | Q21: =ALL!BE22 -> 0 | R21: =ALL!BI22 -> 0 | S21: =ALL!BM22 -> 0 | T21: =ALL!BQ22 -> 0 | U21: =ALL!BU22 -> 0 | V21: =ALL!BY22 -> 0 | W21: =ALL!CD22 -> 0 | X21: =ALL!CG22 -> 0 | Y21: =ALL!CK22 -> 0 | Z21: =ALL!CO22 -> 0 | AA21: =ALL!CS22 -> 0 | AB21: =ALL!CW22 -> 0 | AC21: =ALL!DA22 -> 0 | AD21: =ALL!DE22 -> 0 | AE21: =ALL!DI22 -> 0 | AF21: =ALL!DM22 -> 0 | AG21: =ALL!DQ22 -> 0 | AH21: =ALL!DU22 -> 0 | AJ21: 0 | AL21: 0 | AM21: 0
A22: جزين | B22: C3 | C22: =JARD_MOG_OMT!D22 -> 0 | D22: =IFERROR(VLOOKUP($A22&$B22,CHOOSE({1,2},ALL!$A$4:$A$500&ALL!$B$4:$B$500,ALL!$E$4:$E$500),2,FALSE),"") -> 0 | E22: =ALL!I23 -> 0 | F22: =ALL!M23 -> 0 | G22: =ALL!Q23 -> 0 | H22: =ALL!U23 -> 0 | I22: =ALL!Y23 -> 0 | J22: =ALL!AC23 -> 0 | K22: =ALL!AG23 -> 0 | L22: =ALL!AK23 -> 0 | M22: =ALL!AO23 -> 0 | N22: =ALL!AS23 -> 0 | O22: =ALL!AW23 -> 0 | P22: =ALL!BA23 -> 0 | Q22: =ALL!BE23 -> 0 | R22: =ALL!BI23 -> 0 | S22: =ALL!BM23 -> 0 | T22: =ALL!BQ23 -> 0 | U22: =ALL!BU23 -> 0 | V22: =ALL!BY23 -> 0 | W22: =ALL!CD23 -> 0 | X22: =ALL!CG23 -> 0 | Y22: =ALL!CK23 -> 0 | Z22: =ALL!CO23 -> 0 | AA22: =ALL!CS23 -> 0 | AB22: =ALL!CW23 -> 0 | AC22: =ALL!DA23 -> 0 | AD22: =ALL!DE23 -> 0 | AE22: =ALL!DI23 -> 0 | AF22: =ALL!DM23 -> 0 | AG22: =ALL!DQ23 -> 0 | AH22: =ALL!DU23 -> 0 | AJ22: 0 | AL22: 0 | AM22: 0
A23: النبطية | B23: C4 | C23: =JARD_MOG_OMT!D23 -> 0 | D23: =IFERROR(VLOOKUP($A23&$B23,CHOOSE({1,2},ALL!$A$4:$A$500&ALL!$B$4:$B$500,ALL!$E$4:$E$500),2,FALSE),"") -> 2 | E23: =ALL!I24 -> 3 | F23: =ALL!M24 -> 5 | G23: =ALL!Q24 -> 11 | H23: =ALL!U24 -> 3 | I23: =ALL!Y24 -> 0 | J23: =ALL!AC24 -> 0 | K23: =ALL!AG24 -> 0 | L23: =ALL!AK24 -> 0 | M23: =ALL!AO24 -> 0 | N23: =ALL!AS24 -> 0 | O23: =ALL!AW24 -> 0 | P23: =ALL!BA24 -> 0 | Q23: =ALL!BE24 -> 0 | R23: =ALL!BI24 -> 0 | S23: =ALL!BM24 -> 0 | T23: =ALL!BQ24 -> 0 | U23: =ALL!BU24 -> 0 | V23: =ALL!BY24 -> 0 | W23: =ALL!CD24 -> 0 | X23: =ALL!CG24 -> 0 | Y23: =ALL!CK24 -> 0 | Z23: =ALL!CO24 -> 0 | AA23: =ALL!CS24 -> 0 | AB23: =ALL!CW24 -> 0 | AC23: =ALL!DA24 -> 0 | AD23: =ALL!DE24 -> 0 | AE23: =ALL!DI24 -> 0 | AF23: =ALL!DM24 -> 0 | AG23: =ALL!DQ24 -> 0 | AH23: =ALL!DU24 -> 0 | AJ23: 24 | AL23: 24 | AM23: 10
A24: بنت جبيل | B24: C5 | C24: =JARD_MOG_OMT!D24 -> 0 | D24: =IFERROR(VLOOKUP($A24&$B24,CHOOSE({1,2},ALL!$A$4:$A$500&ALL!$B$4:$B$500,ALL!$E$4:$E$500),2,FALSE),"") -> 2 | E24: =ALL!I25 -> 2 | F24: =ALL!M25 -> 2 | G24: =ALL!Q25 -> 3 | H24: =ALL!U25 -> 6 | I24: =ALL!Y25 -> 0 | J24: =ALL!AC25 -> 0 | K24: =ALL!AG25 -> 0 | L24: =ALL!AK25 -> 0 | M24: =ALL!AO25 -> 0 | N24: =ALL!AS25 -> 0 | O24: =ALL!AW25 -> 0 | P24: =ALL!BA25 -> 0 | Q24: =ALL!BE25 -> 0 | R24: =ALL!BI25 -> 0 | S24: =ALL!BM25 -> 0 | T24: =ALL!BQ25 -> 0 | U24: =ALL!BU25 -> 0 | V24: =ALL!BY25 -> 0 | W24: =ALL!CD25 -> 0 | X24: =ALL!CG25 -> 0 | Y24: =ALL!CK25 -> 0 | Z24: =ALL!CO25 -> 0 | AA24: =ALL!CS25 -> 0 | AB24: =ALL!CW25 -> 0 | AC24: =ALL!DA25 -> 0 | AD24: =ALL!DE25 -> 0 | AE24: =ALL!DI25 -> 0 | AF24: =ALL!DM25 -> 0 | AG24: =ALL!DQ25 -> 0 | AH24: =ALL!DU25 -> 0 | AJ24: 15 | AL24: 15 | AM24: 6
A25: مرجعيون | B25: C6 | C25: =JARD_MOG_OMT!D25 -> 0 | D25: =IFERROR(VLOOKUP($A25&$B25,CHOOSE({1,2},ALL!$A$4:$A$500&ALL!$B$4:$B$500,ALL!$E$4:$E$500),2,FALSE),"") -> 0 | E25: =ALL!I26 -> 0 | F25: =ALL!M26 -> 0 | G25: =ALL!Q26 -> 0 | H25: =ALL!U26 -> 0 | I25: =ALL!Y26 -> 0 | J25: =ALL!AC26 -> 0 | K25: =ALL!AG26 -> 0 | L25: =ALL!AK26 -> 0 | M25: =ALL!AO26 -> 0 | N25: =ALL!AS26 -> 0 | O25: =ALL!AW26 -> 0 | P25: =ALL!BA26 -> 0 | Q25: =ALL!BE26 -> 0 | R25: =ALL!BI26 -> 0 | S25: =ALL!BM26 -> 0 | T25: =ALL!BQ26 -> 0 | U25: =ALL!BU26 -> 0 | V25: =ALL!BY26 -> 0 | W25: =ALL!CD26 -> 0 | X25: =ALL!CG26 -> 0 | Y25: =ALL!CK26 -> 0 | Z25: =ALL!CO26 -> 0 | AA25: =ALL!CS26 -> 0 | AB25: =ALL!CW26 -> 0 | AC25: =ALL!DA26 -> 0 | AD25: =ALL!DE26 -> 0 | AE25: =ALL!DI26 -> 0 | AF25: =ALL!DM26 -> 0 | AG25: =ALL!DQ26 -> 0 | AH25: =ALL!DU26 -> 0 | AJ25: 0 | AL25: 0 | AM25: 0
A26: حاصبيا | B26: C7 | C26: =JARD_MOG_OMT!D26 -> 0 | D26: =IFERROR(VLOOKUP($A26&$B26,CHOOSE({1,2},ALL!$A$4:$A$500&ALL!$B$4:$B$500,ALL!$E$4:$E$500),2,FALSE),"") -> 0 | E26: =ALL!I27 -> 1 | F26: =ALL!M27 -> 3 | G26: =ALL!Q27 -> 1 | H26: =ALL!U27 -> 2 | I26: =ALL!Y27 -> 0 | J26: =ALL!AC27 -> 0 | K26: =ALL!AG27 -> 0 | L26: =ALL!AK27 -> 0 | M26: =ALL!AO27 -> 0 | N26: =ALL!AS27 -> 0 | O26: =ALL!AW27 -> 0 | P26: =ALL!BA27 -> 0 | Q26: =ALL!BE27 -> 0 | R26: =ALL!BI27 -> 0 | S26: =ALL!BM27 -> 0 | T26: =ALL!BQ27 -> 0 | U26: =ALL!BU27 -> 0 | V26: =ALL!BY27 -> 0 | W26: =ALL!CD27 -> 0 | X26: =ALL!CG27 -> 0 | Y26: =ALL!CK27 -> 0 | Z26: =ALL!CO27 -> 0 | AA26: =ALL!CS27 -> 0 | AB26: =ALL!CW27 -> 0 | AC26: =ALL!DA27 -> 0 | AD26: =ALL!DE27 -> 0 | AE26: =ALL!DI27 -> 0 | AF26: =ALL!DM27 -> 0 | AG26: =ALL!DQ27 -> 0 | AH26: =ALL!DU27 -> 0 | AJ26: 7 | AL26: 7 | AM26: 4
A27: تبنين | B27: C8 | C27: =JARD_MOG_OMT!D27 -> 0 | D27: =IFERROR(VLOOKUP($A27&$B27,CHOOSE({1,2},ALL!$A$4:$A$500&ALL!$B$4:$B$500,ALL!$E$4:$E$500),2,FALSE),"") -> 2 | E27: =ALL!I28 -> 4 | F27: =ALL!M28 -> 5 | G27: =ALL!Q28 -> 5 | H27: =ALL!U28 -> 2 | I27: =ALL!Y28 -> 0 | J27: =ALL!AC28 -> 0 | K27: =ALL!AG28 -> 0 | L27: =ALL!AK28 -> 0 | M27: =ALL!AO28 -> 0 | N27: =ALL!AS28 -> 0 | O27: =ALL!AW28 -> 0 | P27: =ALL!BA28 -> 0 | Q27: =ALL!BE28 -> 0 | R27: =ALL!BI28 -> 0 | S27: =ALL!BM28 -> 0 | T27: =ALL!BQ28 -> 0 | U27: =ALL!BU28 -> 0 | V27: =ALL!BY28 -> 0 | W27: =ALL!CD28 -> 0 | X27: =ALL!CG28 -> 0 | Y27: =ALL!CK28 -> 0 | Z27: =ALL!CO28 -> 0 | AA27: =ALL!CS28 -> 0 | AB27: =ALL!CW28 -> 0 | AC27: =ALL!DA28 -> 0 | AD27: =ALL!DE28 -> 0 | AE27: =ALL!DI28 -> 0 | AF27: =ALL!DM28 -> 0 | AG27: =ALL!DQ28 -> 0 | AH27: =ALL!DU28 -> 0 | AJ27: 18 | AL27: 18 | AM27: 11
A28: جباع | B28: C9 | C28: =JARD_MOG_OMT!D28 -> 0 | D28: =IFERROR(VLOOKUP($A28&$B28,CHOOSE({1,2},ALL!$A$4:$A$500&ALL!$B$4:$B$500,ALL!$E$4:$E$500),2,FALSE),"") -> 1 | E28: =ALL!I29 -> 0 | F28: =ALL!M29 -> 1 | G28: =ALL!Q29 -> 3 | H28: =ALL!U29 -> 0 | I28: =ALL!Y29 -> 0 | J28: =ALL!AC29 -> 0 | K28: =ALL!AG29 -> 0 | L28: =ALL!AK29 -> 0 | M28: =ALL!AO29 -> 0 | N28: =ALL!AS29 -> 0 | O28: =ALL!AW29 -> 0 | P28: =ALL!BA29 -> 0 | Q28: =ALL!BE29 -> 0 | R28: =ALL!BI29 -> 0 | S28: =ALL!BM29 -> 0 | T28: =ALL!BQ29 -> 0 | U28: =ALL!BU29 -> 0 | V28: =ALL!BY29 -> 0 | W28: =ALL!CD29 -> 0 | X28: =ALL!CG29 -> 0 | Y28: =ALL!CK29 -> 0 | Z28: =ALL!CO29 -> 0 | AA28: =ALL!CS29 -> 0 | AB28: =ALL!CW29 -> 0 | AC28: =ALL!DA29 -> 0 | AD28: =ALL!DE29 -> 0 | AE28: =ALL!DI29 -> 0 | AF28: =ALL!DM29 -> 0 | AG28: =ALL!DQ29 -> 0 | AH28: =ALL!DU29 -> 0 | AJ28: 5 | AL28: 5 | AM28: 2
A29: زحلة | B29: D1 | C29: =JARD_MOG_OMT!D29 -> 0 | D29: =IFERROR(VLOOKUP($A29&$B29,CHOOSE({1,2},ALL!$A$4:$A$500&ALL!$B$4:$B$500,ALL!$E$4:$E$500),2,FALSE),"") -> 4 | E29: =ALL!I30 -> 14 | F29: =ALL!M30 -> 2 | G29: =ALL!Q30 -> 16 | H29: =ALL!U30 -> 8 | I29: =ALL!Y30 -> 0 | J29: =ALL!AC30 -> 0 | K29: =ALL!AG30 -> 0 | L29: =ALL!AK30 -> 0 | M29: =ALL!AO30 -> 0 | N29: =ALL!AS30 -> 0 | O29: =ALL!AW30 -> 0 | P29: =ALL!BA30 -> 0 | Q29: =ALL!BE30 -> 0 | R29: =ALL!BI30 -> 0 | S29: =ALL!BM30 -> 0 | T29: =ALL!BQ30 -> 0 | U29: =ALL!BU30 -> 0 | V29: =ALL!BY30 -> 0 | W29: =ALL!CD30 -> 0 | X29: =ALL!CG30 -> 0 | Y29: =ALL!CK30 -> 0 | Z29: =ALL!CO30 -> 0 | AA29: =ALL!CS30 -> 0 | AB29: =ALL!CW30 -> 0 | AC29: =ALL!DA30 -> 0 | AD29: =ALL!DE30 -> 0 | AE29: =ALL!DI30 -> 0 | AF29: =ALL!DM30 -> 0 | AG29: =ALL!DQ30 -> 0 | AH29: =ALL!DU30 -> 0 | AJ29: 44 | AL29: 44 | AM29: 20
A30: النبي شيت | B30: D10 | C30: =JARD_MOG_OMT!D30 -> 0 | D30: =IFERROR(VLOOKUP($A30&$B30,CHOOSE({1,2},ALL!$A$4:$A$500&ALL!$B$4:$B$500,ALL!$E$4:$E$500),2,FALSE),"") -> 0 | E30: =ALL!I31 -> 2 | F30: =ALL!M31 -> 2 | G30: =ALL!Q31 -> 0 | H30: =ALL!U31 -> 0 | I30: =ALL!Y31 -> 0 | J30: =ALL!AC31 -> 0 | K30: =ALL!AG31 -> 0 | L30: =ALL!AK31 -> 0 | M30: =ALL!AO31 -> 0 | N30: =ALL!AS31 -> 0 | O30: =ALL!AW31 -> 0 | P30: =ALL!BA31 -> 0 | Q30: =ALL!BE31 -> 0 | R30: =ALL!BI31 -> 0 | S30: =ALL!BM31 -> 0 | T30: =ALL!BQ31 -> 0 | U30: =ALL!BU31 -> 0 | V30: =ALL!BY31 -> 0 | W30: =ALL!CD31 -> 0 | X30: =ALL!CG31 -> 0 | Y30: =ALL!CK31 -> 0 | Z30: =ALL!CO31 -> 0 | AA30: =ALL!CS31 -> 0 | AB30: =ALL!CW31 -> 0 | AC30: =ALL!DA31 -> 0 | AD30: =ALL!DE31 -> 0 | AE30: =ALL!DI31 -> 0 | AF30: =ALL!DM31 -> 0 | AG30: =ALL!DQ31 -> 0 | AH30: =ALL!DU31 -> 0 | AJ30: 4 | AL30: 4 | AM30: 4
A31: راشيا | B31: D2 | C31: =JARD_MOG_OMT!D31 -> 0 | D31: =IFERROR(VLOOKUP($A31&$B31,CHOOSE({1,2},ALL!$A$4:$A$500&ALL!$B$4:$B$500,ALL!$E$4:$E$500),2,FALSE),"") -> 0 | E31: =ALL!I32 -> 0 | F31: =ALL!M32 -> 0 | G31: =ALL!Q32 -> 2 | H31: =ALL!U32 -> 0 | I31: =ALL!Y32 -> 0 | J31: =ALL!AC32 -> 0 | K31: =ALL!AG32 -> 0 | L31: =ALL!AK32 -> 0 | M31: =ALL!AO32 -> 0 | N31: =ALL!AS32 -> 0 | O31: =ALL!AW32 -> 0 | P31: =ALL!BA32 -> 0 | Q31: =ALL!BE32 -> 0 | R31: =ALL!BI32 -> 0 | S31: =ALL!BM32 -> 0 | T31: =ALL!BQ32 -> 0 | U31: =ALL!BU32 -> 0 | V31: =ALL!BY32 -> 0 | W31: =ALL!CD32 -> 0 | X31: =ALL!CG32 -> 0 | Y31: =ALL!CK32 -> 0 | Z31: =ALL!CO32 -> 0 | AA31: =ALL!CS32 -> 0 | AB31: =ALL!CW32 -> 0 | AC31: =ALL!DA32 -> 0 | AD31: =ALL!DE32 -> 0 | AE31: =ALL!DI32 -> 0 | AF31: =ALL!DM32 -> 0 | AG31: =ALL!DQ32 -> 0 | AH31: =ALL!DU32 -> 0 | AJ31: 2 | AL31: 2 | AM31: 0
A32: البقاع الغربي | B32: D3 | C32: =JARD_MOG_OMT!D32 -> 0 | D32: =IFERROR(VLOOKUP($A32&$B32,CHOOSE({1,2},ALL!$A$4:$A$500&ALL!$B$4:$B$500,ALL!$E$4:$E$500),2,FALSE),"") -> 2 | E32: =ALL!I33 -> 4 | F32: =ALL!M33 -> 0 | G32: =ALL!Q33 -> 2 | H32: =ALL!U33 -> 0 | I32: =ALL!Y33 -> 0 | J32: =ALL!AC33 -> 0 | K32: =ALL!AG33 -> 0 | L32: =ALL!AK33 -> 0 | M32: =ALL!AO33 -> 0 | N32: =ALL!AS33 -> 0 | O32: =ALL!AW33 -> 0 | P32: =ALL!BA33 -> 0 | Q32: =ALL!BE33 -> 0 | R32: =ALL!BI33 -> 0 | S32: =ALL!BM33 -> 0 | T32: =ALL!BQ33 -> 0 | U32: =ALL!BU33 -> 0 | V32: =ALL!BY33 -> 0 | W32: =ALL!CD33 -> 0 | X32: =ALL!CG33 -> 0 | Y32: =ALL!CK33 -> 0 | Z32: =ALL!CO33 -> 0 | AA32: =ALL!CS33 -> 0 | AB32: =ALL!CW33 -> 0 | AC32: =ALL!DA33 -> 0 | AD32: =ALL!DE33 -> 0 | AE32: =ALL!DI33 -> 0 | AF32: =ALL!DM33 -> 0 | AG32: =ALL!DQ33 -> 0 | AH32: =ALL!DU33 -> 0 | AJ32: 8 | AL32: 8 | AM32: 6
A33: شمسطار | B33: D4 | C33: =JARD_MOG_OMT!D33 -> 0 | D33: =IFERROR(VLOOKUP($A33&$B33,CHOOSE({1,2},ALL!$A$4:$A$500&ALL!$B$4:$B$500,ALL!$E$4:$E$500),2,FALSE),"") -> 0 | E33: =ALL!I34 -> 6 | F33: =ALL!M34 -> 4 | G33: =ALL!Q34 -> 0 | H33: =ALL!U34 -> 8 | I33: =ALL!Y34 -> 0 | J33: =ALL!AC34 -> 0 | K33: =ALL!AG34 -> 0 | L33: =ALL!AK34 -> 0 | M33: =ALL!AO34 -> 0 | N33: =ALL!AS34 -> 0 | O33: =ALL!AW34 -> 0 | P33: =ALL!BA34 -> 0 | Q33: =ALL!BE34 -> 0 | R33: =ALL!BI34 -> 0 | S33: =ALL!BM34 -> 0 | T33: =ALL!BQ34 -> 0 | U33: =ALL!BU34 -> 0 | V33: =ALL!BY34 -> 0 | W33: =ALL!CD34 -> 0 | X33: =ALL!CG34 -> 0 | Y33: =ALL!CK34 -> 0 | Z33: =ALL!CO34 -> 0 | AA33: =ALL!CS34 -> 0 | AB33: =ALL!CW34 -> 0 | AC33: =ALL!DA34 -> 0 | AD33: =ALL!DE34 -> 0 | AE33: =ALL!DI34 -> 0 | AF33: =ALL!DM34 -> 0 | AG33: =ALL!DQ34 -> 0 | AH33: =ALL!DU34 -> 0 | AJ33: 18 | AL33: 18 | AM33: 10
A34: بعلبك | B34: D5 | C34: =JARD_MOG_OMT!D34 -> 0 | D34: =IFERROR(VLOOKUP($A34&$B34,CHOOSE({1,2},ALL!$A$4:$A$500&ALL!$B$4:$B$500,ALL!$E$4:$E$500),2,FALSE),"") -> 0 | E34: =ALL!I35 -> 0 | F34: =ALL!M35 -> 0 | G34: =ALL!Q35 -> 4 | H34: =ALL!U35 -> 0 | I34: =ALL!Y35 -> 0 | J34: =ALL!AC35 -> 0 | K34: =ALL!AG35 -> 0 | L34: =ALL!AK35 -> 0 | M34: =ALL!AO35 -> 0 | N34: =ALL!AS35 -> 0 | O34: =ALL!AW35 -> 0 | P34: =ALL!BA35 -> 0 | Q34: =ALL!BE35 -> 0 | R34: =ALL!BI35 -> 0 | S34: =ALL!BM35 -> 0 | T34: =ALL!BQ35 -> 0 | U34: =ALL!BU35 -> 0 | V34: =ALL!BY35 -> 0 | W34: =ALL!CD35 -> 0 | X34: =ALL!CG35 -> 0 | Y34: =ALL!CK35 -> 0 | Z34: =ALL!CO35 -> 0 | AA34: =ALL!CS35 -> 0 | AB34: =ALL!CW35 -> 0 | AC34: =ALL!DA35 -> 0 | AD34: =ALL!DE35 -> 0 | AE34: =ALL!DI35 -> 0 | AF34: =ALL!DM35 -> 0 | AG34: =ALL!DQ35 -> 0 | AH34: =ALL!DU35 -> 0 | AJ34: 4 | AL34: 4 | AM34: 0
A35: الهرمل | B35: D6 | C35: =JARD_MOG_OMT!D35 -> 0 | D35: =IFERROR(VLOOKUP($A35&$B35,CHOOSE({1,2},ALL!$A$4:$A$500&ALL!$B$4:$B$500,ALL!$E$4:$E$500),2,FALSE),"") -> 0 | E35: =ALL!I36 -> 0 | F35: =ALL!M36 -> 0 | G35: =ALL!Q36 -> 1 | H35: =ALL!U36 -> 0 | I35: =ALL!Y36 -> 0 | J35: =ALL!AC36 -> 0 | K35: =ALL!AG36 -> 0 | L35: =ALL!AK36 -> 0 | M35: =ALL!AO36 -> 0 | N35: =ALL!AS36 -> 0 | O35: =ALL!AW36 -> 0 | P35: =ALL!BA36 -> 0 | Q35: =ALL!BE36 -> 0 | R35: =ALL!BI36 -> 0 | S35: =ALL!BM36 -> 0 | T35: =ALL!BQ36 -> 0 | U35: =ALL!BU36 -> 0 | V35: =ALL!BY36 -> 0 | W35: =ALL!CD36 -> 0 | X35: =ALL!CG36 -> 0 | Y35: =ALL!CK36 -> 0 | Z35: =ALL!CO36 -> 0 | AA35: =ALL!CS36 -> 0 | AB35: =ALL!CW36 -> 0 | AC35: =ALL!DA36 -> 0 | AD35: =ALL!DE36 -> 0 | AE35: =ALL!DI36 -> 0 | AF35: =ALL!DM36 -> 0 | AG35: =ALL!DQ36 -> 0 | AH35: =ALL!DU36 -> 0 | AJ35: 1 | AL35: 1 | AM35: 0
A36: دير الاحمر | B36: D7 | C36: =JARD_MOG_OMT!D36 -> 0 | D36: =IFERROR(VLOOKUP($A36&$B36,CHOOSE({1,2},ALL!$A$4:$A$500&ALL!$B$4:$B$500,ALL!$E$4:$E$500),2,FALSE),"") -> 0 | E36: =ALL!I37 -> 0 | F36: =ALL!M37 -> 0 | G36: =ALL!Q37 -> 4 | H36: =ALL!U37 -> 0 | I36: =ALL!Y37 -> 0 | J36: =ALL!AC37 -> 0 | K36: =ALL!AG37 -> 0 | L36: =ALL!AK37 -> 0 | M36: =ALL!AO37 -> 0 | N36: =ALL!AS37 -> 0 | O36: =ALL!AW37 -> 0 | P36: =ALL!BA37 -> 0 | Q36: =ALL!BE37 -> 0 | R36: =ALL!BI37 -> 0 | S36: =ALL!BM37 -> 0 | T36: =ALL!BQ37 -> 0 | U36: =ALL!BU37 -> 0 | V36: =ALL!BY37 -> 0 | W36: =ALL!CD37 -> 0 | X36: =ALL!CG37 -> 0 | Y36: =ALL!CK37 -> 0 | Z36: =ALL!CO37 -> 0 | AA36: =ALL!CS37 -> 0 | AB36: =ALL!CW37 -> 0 | AC36: =ALL!DA37 -> 0 | AD36: =ALL!DE37 -> 0 | AE36: =ALL!DI37 -> 0 | AF36: =ALL!DM37 -> 0 | AG36: =ALL!DQ37 -> 0 | AH36: =ALL!DU37 -> 0 | AJ36: 4 | AL36: 4 | AM36: 0
A37: اللبوة | B37: D8 | C37: =JARD_MOG_OMT!D37 -> 0 | D37: =IFERROR(VLOOKUP($A37&$B37,CHOOSE({1,2},ALL!$A$4:$A$500&ALL!$B$4:$B$500,ALL!$E$4:$E$500),2,FALSE),"") -> 0 | E37: =ALL!I38 -> 2 | F37: =ALL!M38 -> 4 | G37: =ALL!Q38 -> 5 | H37: =ALL!U38 -> 5 | I37: =ALL!Y38 -> 0 | J37: =ALL!AC38 -> 0 | K37: =ALL!AG38 -> 0 | L37: =ALL!AK38 -> 0 | M37: =ALL!AO38 -> 0 | N37: =ALL!AS38 -> 0 | O37: =ALL!AW38 -> 0 | P37: =ALL!BA38 -> 0 | Q37: =ALL!BE38 -> 0 | R37: =ALL!BI38 -> 0 | S37: =ALL!BM38 -> 0 | T37: =ALL!BQ38 -> 0 | U37: =ALL!BU38 -> 0 | V37: =ALL!BY38 -> 0 | W37: =ALL!CD38 -> 0 | X37: =ALL!CG38 -> 0 | Y37: =ALL!CK38 -> 0 | Z37: =ALL!CO38 -> 0 | AA37: =ALL!CS38 -> 0 | AB37: =ALL!CW38 -> 0 | AC37: =ALL!DA38 -> 0 | AD37: =ALL!DE38 -> 0 | AE37: =ALL!DI38 -> 0 | AF37: =ALL!DM38 -> 0 | AG37: =ALL!DQ38 -> 0 | AH37: =ALL!DU38 -> 0 | AJ37: 16 | AL37: 16 | AM37: 6
A38: صغبين | B38: D9 | C38: =JARD_MOG_OMT!D38 -> 0 | D38: =IFERROR(VLOOKUP($A38&$B38,CHOOSE({1,2},ALL!$A$4:$A$500&ALL!$B$4:$B$500,ALL!$E$4:$E$500),2,FALSE),"") -> 2 | E38: =ALL!I39 -> 1 | F38: =ALL!M39 -> 0 | G38: =ALL!Q39 -> 1 | H38: =ALL!U39 -> 0 | I38: =ALL!Y39 -> 0 | J38: =ALL!AC39 -> 0 | K38: =ALL!AG39 -> 0 | L38: =ALL!AK39 -> 0 | M38: =ALL!AO39 -> 0 | N38: =ALL!AS39 -> 0 | O38: =ALL!AW39 -> 0 | P38: =ALL!BA39 -> 0 | Q38: =ALL!BE39 -> 0 | R38: =ALL!BI39 -> 0 | S38: =ALL!BM39 -> 0 | T38: =ALL!BQ39 -> 0 | U38: =ALL!BU39 -> 0 | V38: =ALL!BY39 -> 0 | W38: =ALL!CD39 -> 0 | X38: =ALL!CG39 -> 0 | Y38: =ALL!CK39 -> 0 | Z38: =ALL!CO39 -> 0 | AA38: =ALL!CS39 -> 0 | AB38: =ALL!CW39 -> 0 | AC38: =ALL!DA39 -> 0 | AD38: =ALL!DE39 -> 0 | AE38: =ALL!DI39 -> 0 | AF38: =ALL!DM39 -> 0 | AG38: =ALL!DQ39 -> 0 | AH38: =ALL!DU39 -> 0 | AJ38: 4 | AL38: 4 | AM38: 3
A39: طرابلس | B39: E1 | C39: =JARD_MOG_OMT!D39 -> 0 | D39: =IFERROR(VLOOKUP($A39&$B39,CHOOSE({1,2},ALL!$A$4:$A$500&ALL!$B$4:$B$500,ALL!$E$4:$E$500),2,FALSE),"") -> 4 | E39: =ALL!I40 -> 5 | F39: =ALL!M40 -> 0 | G39: =ALL!Q40 -> 4 | H39: =ALL!U40 -> 0 | I39: =ALL!Y40 -> 0 | J39: =ALL!AC40 -> 0 | K39: =ALL!AG40 -> 0 | L39: =ALL!AK40 -> 0 | M39: =ALL!AO40 -> 0 | N39: =ALL!AS40 -> 0 | O39: =ALL!AW40 -> 0 | P39: =ALL!BA40 -> 0 | Q39: =ALL!BE40 -> 0 | R39: =ALL!BI40 -> 0 | S39: =ALL!BM40 -> 0 | T39: =ALL!BQ40 -> 0 | U39: =ALL!BU40 -> 0 | V39: =ALL!BY40 -> 0 | W39: =ALL!CD40 -> 0 | X39: =ALL!CG40 -> 0 | Y39: =ALL!CK40 -> 0 | Z39: =ALL!CO40 -> 0 | AA39: =ALL!CS40 -> 0 | AB39: =ALL!CW40 -> 0 | AC39: =ALL!DA40 -> 0 | AD39: =ALL!DE40 -> 0 | AE39: =ALL!DI40 -> 0 | AF39: =ALL!DM40 -> 0 | AG39: =ALL!DQ40 -> 0 | AH39: =ALL!DU40 -> 0 | AJ39: 13 | AL39: 13 | AM39: 9
A40: دوما | B40: E10 | C40: =JARD_MOG_OMT!D40 -> 0 | D40: =IFERROR(VLOOKUP($A40&$B40,CHOOSE({1,2},ALL!$A$4:$A$500&ALL!$B$4:$B$500,ALL!$E$4:$E$500),2,FALSE),"") -> 0 | E40: =ALL!I41 -> 0 | F40: =ALL!M41 -> 0 | G40: =ALL!Q41 -> 0 | H40: =ALL!U41 -> 0 | I40: =ALL!Y41 -> 0 | J40: =ALL!AC41 -> 0 | K40: =ALL!AG41 -> 0 | L40: =ALL!AK41 -> 0 | M40: =ALL!AO41 -> 0 | N40: =ALL!AS41 -> 0 | O40: =ALL!AW41 -> 0 | P40: =ALL!BA41 -> 0 | Q40: =ALL!BE41 -> 0 | R40: =ALL!BI41 -> 0 | S40: =ALL!BM41 -> 0 | T40: =ALL!BQ41 -> 0 | U40: =ALL!BU41 -> 0 | V40: =ALL!BY41 -> 0 | W40: =ALL!CD41 -> 0 | X40: =ALL!CG41 -> 0 | Y40: =ALL!CK41 -> 0 | Z40: =ALL!CO41 -> 0 | AA40: =ALL!CS41 -> 0 | AB40: =ALL!CW41 -> 0 | AC40: =ALL!DA41 -> 0 | AD40: =ALL!DE41 -> 0 | AE40: =ALL!DI41 -> 0 | AF40: =ALL!DM41 -> 0 | AG40: =ALL!DQ41 -> 0 | AH40: =ALL!DU41 -> 0 | AJ40: 0 | AL40: 0 | AM40: 0
A41: العبدة | B41: E11 | C41: =JARD_MOG_OMT!D41 -> 0 | D41: =IFERROR(VLOOKUP($A41&$B41,CHOOSE({1,2},ALL!$A$4:$A$500&ALL!$B$4:$B$500,ALL!$E$4:$E$500),2,FALSE),"") -> 0 | E41: =ALL!I42 -> 0 | F41: =ALL!M42 -> 1 | G41: =ALL!Q42 -> 0 | H41: =ALL!U42 -> 3 | I41: =ALL!Y42 -> 0 | J41: =ALL!AC42 -> 0 | K41: =ALL!AG42 -> 0 | L41: =ALL!AK42 -> 0 | M41: =ALL!AO42 -> 0 | N41: =ALL!AS42 -> 0 | O41: =ALL!AW42 -> 0 | P41: =ALL!BA42 -> 0 | Q41: =ALL!BE42 -> 0 | R41: =ALL!BI42 -> 0 | S41: =ALL!BM42 -> 0 | T41: =ALL!BQ42 -> 0 | U41: =ALL!BU42 -> 0 | V41: =ALL!BY42 -> 0 | W41: =ALL!CD42 -> 0 | X41: =ALL!CG42 -> 0 | Y41: =ALL!CK42 -> 0 | Z41: =ALL!CO42 -> 0 | AA41: =ALL!CS42 -> 0 | AB41: =ALL!CW42 -> 0 | AC41: =ALL!DA42 -> 0 | AD41: =ALL!DE42 -> 0 | AE41: =ALL!DI42 -> 0 | AF41: =ALL!DM42 -> 0 | AG41: =ALL!DQ42 -> 0 | AH41: =ALL!DU42 -> 0 | AJ41: 4 | AL41: 4 | AM41: 1
A42: بخعون | B42: E12 | C42: =JARD_MOG_OMT!D42 -> 0 | D42: =IFERROR(VLOOKUP($A42&$B42,CHOOSE({1,2},ALL!$A$4:$A$500&ALL!$B$4:$B$500,ALL!$E$4:$E$500),2,FALSE),"") -> 0 | E42: =ALL!I43 -> 5 | F42: =ALL!M43 -> 0 | G42: =ALL!Q43 -> 3 | H42: =ALL!U43 -> 0 | I42: =ALL!Y43 -> 0 | J42: =ALL!AC43 -> 0 | K42: =ALL!AG43 -> 0 | L42: =ALL!AK43 -> 0 | M42: =ALL!AO43 -> 0 | N42: =ALL!AS43 -> 0 | O42: =ALL!AW43 -> 0 | P42: =ALL!BA43 -> 0 | Q42: =ALL!BE43 -> 0 | R42: =ALL!BI43 -> 0 | S42: =ALL!BM43 -> 0 | T42: =ALL!BQ43 -> 0 | U42: =ALL!BU43 -> 0 | V42: =ALL!BY43 -> 0 | W42: =ALL!CD43 -> 0 | X42: =ALL!CG43 -> 0 | Y42: =ALL!CK43 -> 0 | Z42: =ALL!CO43 -> 0 | AA42: =ALL!CS43 -> 0 | AB42: =ALL!CW43 -> 0 | AC42: =ALL!DA43 -> 0 | AD42: =ALL!DE43 -> 0 | AE42: =ALL!DI43 -> 0 | AF42: =ALL!DM43 -> 0 | AG42: =ALL!DQ43 -> 0 | AH42: =ALL!DU43 -> 0 | AJ42: 8 | AL42: 8 | AM42: 5
A43: بيت ملات | B43: E13 | C43: =JARD_MOG_OMT!D43 -> 0 | D43: =IFERROR(VLOOKUP($A43&$B43,CHOOSE({1,2},ALL!$A$4:$A$500&ALL!$B$4:$B$500,ALL!$E$4:$E$500),2,FALSE),"") -> 0 | E43: =ALL!I44 -> 1 | F43: =ALL!M44 -> 1 | G43: =ALL!Q44 -> 1 | H43: =ALL!U44 -> 3 | I43: =ALL!Y44 -> 0 | J43: =ALL!AC44 -> 0 | K43: =ALL!AG44 -> 0 | L43: =ALL!AK44 -> 0 | M43: =ALL!AO44 -> 0 | N43: =ALL!AS44 -> 0 | O43: =ALL!AW44 -> 0 | P43: =ALL!BA44 -> 0 | Q43: =ALL!BE44 -> 0 | R43: =ALL!BI44 -> 0 | S43: =ALL!BM44 -> 0 | T43: =ALL!BQ44 -> 0 | U43: =ALL!BU44 -> 0 | V43: =ALL!BY44 -> 0 | W43: =ALL!CD44 -> 0 | X43: =ALL!CG44 -> 0 | Y43: =ALL!CK44 -> 0 | Z43: =ALL!CO44 -> 0 | AA43: =ALL!CS44 -> 0 | AB43: =ALL!CW44 -> 0 | AC43: =ALL!DA44 -> 0 | AD43: =ALL!DE44 -> 0 | AE43: =ALL!DI44 -> 0 | AF43: =ALL!DM44 -> 0 | AG43: =ALL!DQ44 -> 0 | AH43: =ALL!DU44 -> 0 | AJ43: 6 | AL43: 6 | AM43: 2
A44: المنية | B44: E2 | C44: =JARD_MOG_OMT!D44 -> 0 | D44: =IFERROR(VLOOKUP($A44&$B44,CHOOSE({1,2},ALL!$A$4:$A$500&ALL!$B$4:$B$500,ALL!$E$4:$E$500),2,FALSE),"") -> 1 | E44: =ALL!I45 -> 1 | F44: =ALL!M45 -> 2 | G44: =ALL!Q45 -> 4 | H44: =ALL!U45 -> 3 | I44: =ALL!Y45 -> 0 | J44: =ALL!AC45 -> 0 | K44: =ALL!AG45 -> 0 | L44: =ALL!AK45 -> 0 | M44: =ALL!AO45 -> 0 | N44: =ALL!AS45 -> 0 | O44: =ALL!AW45 -> 0 | P44: =ALL!BA45 -> 0 | Q44: =ALL!BE45 -> 0 | R44: =ALL!BI45 -> 0 | S44: =ALL!BM45 -> 0 | T44: =ALL!BQ45 -> 0 | U44: =ALL!BU45 -> 0 | V44: =ALL!BY45 -> 0 | W44: =ALL!CD45 -> 0 | X44: =ALL!CG45 -> 0 | Y44: =ALL!CK45 -> 0 | Z44: =ALL!CO45 -> 0 | AA44: =ALL!CS45 -> 0 | AB44: =ALL!CW45 -> 0 | AC44: =ALL!DA45 -> 0 | AD44: =ALL!DE45 -> 0 | AE44: =ALL!DI45 -> 0 | AF44: =ALL!DM45 -> 0 | AG44: =ALL!DQ45 -> 0 | AH44: =ALL!DU45 -> 0 | AJ44: 11 | AL44: 11 | AM44: 4
A45: سير الضنية | B45: E3 | C45: =JARD_MOG_OMT!D45 -> 0 | D45: =IFERROR(VLOOKUP($A45&$B45,CHOOSE({1,2},ALL!$A$4:$A$500&ALL!$B$4:$B$500,ALL!$E$4:$E$500),2,FALSE),"") -> 2 | E45: =ALL!I46 -> 0 | F45: =ALL!M46 -> 2 | G45: =ALL!Q46 -> 3 | H45: =ALL!U46 -> 0 | I45: =ALL!Y46 -> 0 | J45: =ALL!AC46 -> 0 | K45: =ALL!AG46 -> 0 | L45: =ALL!AK46 -> 0 | M45: =ALL!AO46 -> 0 | N45: =ALL!AS46 -> 0 | O45: =ALL!AW46 -> 0 | P45: =ALL!BA46 -> 0 | Q45: =ALL!BE46 -> 0 | R45: =ALL!BI46 -> 0 | S45: =ALL!BM46 -> 0 | T45: =ALL!BQ46 -> 0 | U45: =ALL!BU46 -> 0 | V45: =ALL!BY46 -> 0 | W45: =ALL!CD46 -> 0 | X45: =ALL!CG46 -> 0 | Y45: =ALL!CK46 -> 0 | Z45: =ALL!CO46 -> 0 | AA45: =ALL!CS46 -> 0 | AB45: =ALL!CW46 -> 0 | AC45: =ALL!DA46 -> 0 | AD45: =ALL!DE46 -> 0 | AE45: =ALL!DI46 -> 0 | AF45: =ALL!DM46 -> 0 | AG45: =ALL!DQ46 -> 0 | AH45: =ALL!DU46 -> 0 | AJ45: 7 | AL45: 7 | AM45: 4
A46: حلبا عكار | B46: E4 | C46: =JARD_MOG_OMT!D46 -> 0 | D46: =IFERROR(VLOOKUP($A46&$B46,CHOOSE({1,2},ALL!$A$4:$A$500&ALL!$B$4:$B$500,ALL!$E$4:$E$500),2,FALSE),"") -> 0 | E46: =ALL!I47 -> 3 | F46: =ALL!M47 -> 5 | G46: =ALL!Q47 -> 0 | H46: =ALL!U47 -> 2 | I46: =ALL!Y47 -> 0 | J46: =ALL!AC47 -> 0 | K46: =ALL!AG47 -> 0 | L46: =ALL!AK47 -> 0 | M46: =ALL!AO47 -> 0 | N46: =ALL!AS47 -> 0 | O46: =ALL!AW47 -> 0 | P46: =ALL!BA47 -> 0 | Q46: =ALL!BE47 -> 0 | R46: =ALL!BI47 -> 0 | S46: =ALL!BM47 -> 0 | T46: =ALL!BQ47 -> 0 | U46: =ALL!BU47 -> 0 | V46: =ALL!BY47 -> 0 | W46: =ALL!CD47 -> 0 | X46: =ALL!CG47 -> 0 | Y46: =ALL!CK47 -> 0 | Z46: =ALL!CO47 -> 0 | AA46: =ALL!CS47 -> 0 | AB46: =ALL!CW47 -> 0 | AC46: =ALL!DA47 -> 0 | AD46: =ALL!DE47 -> 0 | AE46: =ALL!DI47 -> 0 | AF46: =ALL!DM47 -> 0 | AG46: =ALL!DQ47 -> 0 | AH46: =ALL!DU47 -> 0 | AJ46: 10 | AL46: 10 | AM46: 8
A47: القبيات | B47: E5 | C47: =JARD_MOG_OMT!D47 -> 0 | D47: =IFERROR(VLOOKUP($A47&$B47,CHOOSE({1,2},ALL!$A$4:$A$500&ALL!$B$4:$B$500,ALL!$E$4:$E$500),2,FALSE),"") -> 0 | E47: =ALL!I48 -> 0 | F47: =ALL!M48 -> 0 | G47: =ALL!Q48 -> 3 | H47: =ALL!U48 -> 0 | I47: =ALL!Y48 -> 0 | J47: =ALL!AC48 -> 0 | K47: =ALL!AG48 -> 0 | L47: =ALL!AK48 -> 0 | M47: =ALL!AO48 -> 0 | N47: =ALL!AS48 -> 0 | O47: =ALL!AW48 -> 0 | P47: =ALL!BA48 -> 0 | Q47: =ALL!BE48 -> 0 | R47: =ALL!BI48 -> 0 | S47: =ALL!BM48 -> 0 | T47: =ALL!BQ48 -> 0 | U47: =ALL!BU48 -> 0 | V47: =ALL!BY48 -> 0 | W47: =ALL!CD48 -> 0 | X47: =ALL!CG48 -> 0 | Y47: =ALL!CK48 -> 0 | Z47: =ALL!CO48 -> 0 | AA47: =ALL!CS48 -> 0 | AB47: =ALL!CW48 -> 0 | AC47: =ALL!DA48 -> 0 | AD47: =ALL!DE48 -> 0 | AE47: =ALL!DI48 -> 0 | AF47: =ALL!DM48 -> 0 | AG47: =ALL!DQ48 -> 0 | AH47: =ALL!DU48 -> 0 | AJ47: 3 | AL47: 3 | AM47: 0
A48: البترون | B48: E6 | C48: =JARD_MOG_OMT!D48 -> 0 | D48: =IFERROR(VLOOKUP($A48&$B48,CHOOSE({1,2},ALL!$A$4:$A$500&ALL!$B$4:$B$500,ALL!$E$4:$E$500),2,FALSE),"") -> 0 | E48: =ALL!I49 -> 0 | F48: =ALL!M49 -> 3 | G48: =ALL!Q49 -> 1 | H48: =ALL!U49 -> 1 | I48: =ALL!Y49 -> 0 | J48: =ALL!AC49 -> 0 | K48: =ALL!AG49 -> 0 | L48: =ALL!AK49 -> 0 | M48: =ALL!AO49 -> 0 | N48: =ALL!AS49 -> 0 | O48: =ALL!AW49 -> 0 | P48: =ALL!BA49 -> 0 | Q48: =ALL!BE49 -> 0 | R48: =ALL!BI49 -> 0 | S48: =ALL!BM49 -> 0 | T48: =ALL!BQ49 -> 0 | U48: =ALL!BU49 -> 0 | V48: =ALL!BY49 -> 0 | W48: =ALL!CD49 -> 0 | X48: =ALL!CG49 -> 0 | Y48: =ALL!CK49 -> 0 | Z48: =ALL!CO49 -> 0 | AA48: =ALL!CS49 -> 0 | AB48: =ALL!CW49 -> 0 | AC48: =ALL!DA49 -> 0 | AD48: =ALL!DE49 -> 0 | AE48: =ALL!DI49 -> 0 | AF48: =ALL!DM49 -> 0 | AG48: =ALL!DQ49 -> 0 | AH48: =ALL!DU49 -> 0 | AJ48: 5 | AL48: 5 | AM48: 3
A49: الكورة | B49: E7 | C49: =JARD_MOG_OMT!D49 -> 0 | D49: =IFERROR(VLOOKUP($A49&$B49,CHOOSE({1,2},ALL!$A$4:$A$500&ALL!$B$4:$B$500,ALL!$E$4:$E$500),2,FALSE),"") -> 0 | E49: =ALL!I50 -> 4 | F49: =ALL!M50 -> 0 | G49: =ALL!Q50 -> 4 | H49: =ALL!U50 -> 0 | I49: =ALL!Y50 -> 0 | J49: =ALL!AC50 -> 0 | K49: =ALL!AG50 -> 0 | L49: =ALL!AK50 -> 0 | M49: =ALL!AO50 -> 0 | N49: =ALL!AS50 -> 0 | O49: =ALL!AW50 -> 0 | P49: =ALL!BA50 -> 0 | Q49: =ALL!BE50 -> 0 | R49: =ALL!BI50 -> 0 | S49: =ALL!BM50 -> 0 | T49: =ALL!BQ50 -> 0 | U49: =ALL!BU50 -> 0 | V49: =ALL!BY50 -> 0 | W49: =ALL!CD50 -> 0 | X49: =ALL!CG50 -> 0 | Y49: =ALL!CK50 -> 0 | Z49: =ALL!CO50 -> 0 | AA49: =ALL!CS50 -> 0 | AB49: =ALL!CW50 -> 0 | AC49: =ALL!DA50 -> 0 | AD49: =ALL!DE50 -> 0 | AE49: =ALL!DI50 -> 0 | AF49: =ALL!DM50 -> 0 | AG49: =ALL!DQ50 -> 0 | AH49: =ALL!DU50 -> 0 | AJ49: 8 | AL49: 8 | AM49: 4
A50: زغرتا | B50: E8 | C50: =JARD_MOG_OMT!D50 -> 0 | D50: =IFERROR(VLOOKUP($A50&$B50,CHOOSE({1,2},ALL!$A$4:$A$500&ALL!$B$4:$B$500,ALL!$E$4:$E$500),2,FALSE),"") -> 1 | E50: =ALL!I51 -> 1 | F50: =ALL!M51 -> 1 | G50: =ALL!Q51 -> 0 | H50: =ALL!U51 -> 0 | I50: =ALL!Y51 -> 0 | J50: =ALL!AC51 -> 0 | K50: =ALL!AG51 -> 0 | L50: =ALL!AK51 -> 0 | M50: =ALL!AO51 -> 0 | N50: =ALL!AS51 -> 0 | O50: =ALL!AW51 -> 0 | P50: =ALL!BA51 -> 0 | Q50: =ALL!BE51 -> 0 | R50: =ALL!BI51 -> 0 | S50: =ALL!BM51 -> 0 | T50: =ALL!BQ51 -> 0 | U50: =ALL!BU51 -> 0 | V50: =ALL!BY51 -> 0 | W50: =ALL!CD51 -> 0 | X50: =ALL!CG51 -> 0 | Y50: =ALL!CK51 -> 0 | Z50: =ALL!CO51 -> 0 | AA50: =ALL!CS51 -> 0 | AB50: =ALL!CW51 -> 0 | AC50: =ALL!DA51 -> 0 | AD50: =ALL!DE51 -> 0 | AE50: =ALL!DI51 -> 0 | AF50: =ALL!DM51 -> 0 | AG50: =ALL!DQ51 -> 0 | AH50: =ALL!DU51 -> 0 | AJ50: 3 | AL50: 3 | AM50: 3
A51: بشري | B51: E9 | C51: =JARD_MOG_OMT!D51 -> 0 | D51: =IFERROR(VLOOKUP($A51&$B51,CHOOSE({1,2},ALL!$A$4:$A$500&ALL!$B$4:$B$500,ALL!$E$4:$E$500),2,FALSE),"") -> 0 | E51: =ALL!I52 -> 0 | F51: =ALL!M52 -> 1 | G51: =ALL!Q52 -> 0 | H51: =ALL!U52 -> 0 | I51: =ALL!Y52 -> 0 | J51: =ALL!AC52 -> 0 | K51: =ALL!AG52 -> 0 | L51: =ALL!AK52 -> 0 | M51: =ALL!AO52 -> 0 | N51: =ALL!AS52 -> 0 | O51: =ALL!AW52 -> 0 | P51: =ALL!BA52 -> 0 | Q51: =ALL!BE52 -> 0 | R51: =ALL!BI52 -> 0 | S51: =ALL!BM52 -> 0 | T51: =ALL!BQ52 -> 0 | U51: =ALL!BU52 -> 0 | V51: =ALL!BY52 -> 0 | W51: =ALL!CD52 -> 0 | X51: =ALL!CG52 -> 0 | Y51: =ALL!CK52 -> 0 | Z51: =ALL!CO52 -> 0 | AA51: =ALL!CS52 -> 0 | AB51: =ALL!CW52 -> 0 | AC51: =ALL!DA52 -> 0 | AD51: =ALL!DE52 -> 0 | AE51: =ALL!DI52 -> 0 | AF51: =ALL!DM52 -> 0 | AG51: =ALL!DQ52 -> 0 | AH51: =ALL!DU52 -> 0 | AJ51: 1 | AL51: 1 | AM51: 1
A52: المجموع | C52: =SUM(C3:C51) -> 0 | D52: =SUM(D3:D51) -> 50 | E52: 118 | F52: 72 | G52: 127 | H52: 62 | I52: 0 | J52: 0 | K52: 0 | L52: =SUM(L3:L51) -> 0 | M52: 0 | N52: 0 | O52: 0 | P52: 0 | Q52: 0 | R52: 0 | S52: 0 | T52: 0 | U52: 0 | V52: 0 | W52: 0 | X52: 0 | Y52: 0 | Z52: 0 | AA52: 0 | AB52: 0 | AC52: 0 | AD52: 0 | AE52: 0 | AF52: 0 | AG52: 0 | AH52: =SUM(AH3:AH52) -> 0 | AJ52: =SUM(AJ3:AJ50) -> 428 | AL52: =SUM(AL3:AL51) -> 429 | AM52: 91

Sheet HA_OMT
A1: 2020 | B1: هويات OMT | C1: =ALL!B1 -> ALL | D1: =ALL!C1 -> 2020-12-01 | E1: =ALL!G1 -> 2020-12-08 | F1: =ALL!K1 -> 2020-12-14 | G1: =ALL!O1 -> 2020-12-18 | H1: =ALL!S1 -> 2020-12-22 | I1: =ALL!W1 -> 00:00:00 | J1: =ALL!AA1 -> 00:00:00 | K1: =ALL!AE1 -> 00:00:00 | L1: =ALL!AL1 -> 00:00:00 | M1: =ALL!AM1 -> 00:00:00 | N1: =ALL!AQ1 -> 00:00:00 | O1: =ALL!AU1 -> 00:00:00 | P1: =ALL!AY1 -> 00:00:00 | Q1: =ALL!BC1 -> 00:00:00 | R1: =ALL!BG1 -> 00:00:00 | S1: =ALL!BK1 -> 00:00:00 | T1: =ALL!BO1 -> 00:00:00 | U1: =ALL!BS1 -> 00:00:00 | V1: =ALL!BW1 -> 00:00:00 | W1: =ALL!CA1 -> 00:00:00 | X1: =ALL!CE1 -> 00:00:00 | Y1: =ALL!CI1 -> 00:00:00 | Z1: =ALL!CM1 -> 00:00:00 | AA1: =ALL!CQ1 -> 00:00:00 | AB1: =ALL!CU1 -> 00:00:00 | AC1: =ALL!CY1 -> 00:00:00 | AD1: =ALL!DC1 -> 00:00:00 | AE1: =ALL!DG1 -> 00:00:00 | AF1: =ALL!DK1 -> 00:00:00 | AG1: =ALL!DO1 -> 00:00:00 | AH1: =ALL!DS1 -> 00:00:00
A2: كانون اول | B2: رمز | C2: المنصرم | D2: =ALL!C2 -> 02/12/ | E2: =ALL!G2 -> 09/12/ | F2: =ALL!K2 -> 15/12/ | G2: =ALL!O2 -> 21/12/ | H2: =ALL!S2 -> 23/12/ | I2: =ALL!W2 -> 00:00:00 | J2: =ALL!AA2 -> 00:00:00 | K2: =ALL!AE2 -> 00:00:00 | L2: =ALL!AL2 -> 00:00:00 | M2: =ALL!AM2 -> 00:00:00 | N2: =ALL!AQ2 -> 00:00:00 | O2: =ALL!AU2 -> 00:00:00 | P2: =ALL!AY2 -> 00:00:00 | Q2: =ALL!BC2 -> 00:00:00 | R2: =ALL!BG2 -> 00:00:00 | S2: =ALL!BK2 -> 00:00:00 | T2: =ALL!BO2 -> 00:00:00 | U2: =ALL!BS2 -> 00:00:00 | V2: =ALL!BW2 -> 00:00:00 | W2: =ALL!CA2 -> 00:00:00 | X2: =ALL!CE2 -> 00:00:00 | Y2: =ALL!CI2 -> 00:00:00 | Z2: =ALL!CM2 -> 00:00:00 | AA2: =ALL!CQ2 -> 00:00:00 | AB2: =ALL!CU2 -> 00:00:00 | AC2: =ALL!CY2 -> 00:00:00 | AD2: =ALL!DC2 -> 00:00:00 | AE2: =ALL!DG2 -> 00:00:00 | AF2: =ALL!DK2 -> 00:00:00 | AG2: =ALL!DO2 -> 00:00:00 | AH2: =ALL!DS2 -> 00:00:00 | AJ2: هويات مستلمة | AL2: هويات OMT مستلمة + المنصرم | AM2: هويات OMT غير مسلمة
A3: بيروت | B3: A | C3: =JARD_HA_OMT!D3 -> 0 | D3: =IFERROR(VLOOKUP($A3&$B3,CHOOSE({1,2},ALL!$A$4:$A$500&ALL!$B$4:$B$500,ALL!$F$4:$F$500),2,FALSE),"") -> 2 | E3: =ALL!J4 -> 13 | F3: =ALL!N4 -> 11 | G3: =ALL!R4 -> 0 | H3: =ALL!V4 -> 16 | I3: =ALL!Z4 -> 0 | J3: =ALL!AD4 -> 0 | K3: =ALL!AH4 -> 0 | L3: =ALL!AL4 -> 0 | M3: =ALL!AP4 -> 0 | N3: =ALL!AT4 -> 0 | O3: =ALL!AX4 -> 0 | P3: =ALL!BB4 -> 0 | Q3: =ALL!BF4 -> 0 | R3: =ALL!BJ4 -> 0 | S3: =ALL!BN4 -> 0 | T3: =ALL!BR4 -> 0 | U3: =ALL!BV4 -> 0 | V3: =ALL!BZ4 -> 0 | W3: =ALL!CC4 -> 0 | X3: =ALL!CH4 -> 0 | Y3: =ALL!CL4 -> 0 | Z3: =ALL!CP4 -> 0 | AA3: =ALL!CT4 -> 0 | AB3: =ALL!CX4 -> 0 | AC3: =ALL!DB4 -> 0 | AD3: =ALL!DF4 -> 0 | AE3: =ALL!DJ4 -> 0 | AF3: =ALL!DN4 -> 0 | AG3: =ALL!DR4 -> 0 | AH3: =ALL!DV4 -> 0 | AJ3: =SUM(C3:AH3) -> 42 | AL3: =SUM(AJ3+C3) -> 42 | AM3: 26
A4: بعبدا | B4: B1 | C4: =JARD_HA_OMT!D4 -> 0 | D4: =IFERROR(VLOOKUP($A4&$B4,CHOOSE({1,2},ALL!$A$4:$A$500&ALL!$B$4:$B$500,ALL!$F$4:$F$500),2,FALSE),"") -> 22 | E4: =ALL!J5 -> 11 | F4: =ALL!N5 -> 12 | G4: =ALL!R5 -> 7 | H4: =ALL!V5 -> 12 | I4: =ALL!Z5 -> 0 | J4: =ALL!AD5 -> 0 | K4: =ALL!AH5 -> 0 | L4: =ALL!AL5 -> 0 | M4: =ALL!AP5 -> 0 | N4: =ALL!AT5 -> 0 | O4: =ALL!AX5 -> 0 | P4: =ALL!BB5 -> 0 | Q4: =ALL!BF5 -> 0 | R4: =ALL!BJ5 -> 0 | S4: =ALL!BN5 -> 0 | T4: =ALL!BR5 -> 0 | U4: =ALL!BV5 -> 0 | V4: =ALL!BZ5 -> 0 | W4: =ALL!CC5 -> 0 | X4: =ALL!CH5 -> 0 | Y4: =ALL!CL5 -> 0 | Z4: =ALL!CP5 -> 0 | AA4: =ALL!CT5 -> 0 | AB4: =ALL!CX5 -> 0 | AC4: =ALL!DB5 -> 0 | AD4: =ALL!DF5 -> 0 | AE4: =ALL!DJ5 -> 0 | AF4: =ALL!DN5 -> 0 | AG4: =ALL!DR5 -> 0 | AH4: =ALL!DV5 -> 0 | AJ4: =SUM(C4:AH4) -> 64 | AL4: =SUM(AJ4+C4) -> 64 | AM4: 45
A5: بكفيا | B5: B10 | C5: =JARD_HA_OMT!D5 -> 0 | D5: =IFERROR(VLOOKUP($A5&$B5,CHOOSE({1,2},ALL!$A$4:$A$500&ALL!$B$4:$B$500,ALL!$F$4:$F$500),2,FALSE),"") -> 0 | E5: =ALL!J6 -> 9 | F5: =ALL!N6 -> 0 | G5: =ALL!R6 -> 7 | H5: =ALL!V6 -> 0 | I5: =ALL!Z6 -> 0 | J5: =ALL!AD6 -> 0 | K5: =ALL!AH6 -> 0 | L5: =ALL!AL6 -> 0 | M5: =ALL!AP6 -> 0 | N5: =ALL!AT6 -> 0 | O5: =ALL!AX6 -> 0 | P5: =ALL!BB6 -> 0 | Q5: =ALL!BF6 -> 0 | R5: =ALL!BJ6 -> 0 | S5: =ALL!BN6 -> 0 | T5: =ALL!BR6 -> 0 | U5: =ALL!BV6 -> 0 | V5: =ALL!BZ6 -> 0 | W5: =ALL!CC6 -> 0 | X5: =ALL!CH6 -> 0 | Y5: =ALL!CL6 -> 0 | Z5: =ALL!CP6 -> 0 | AA5: =ALL!CT6 -> 0 | AB5: =ALL!CX6 -> 0 | AC5: =ALL!DB6 -> 0 | AD5: =ALL!DF6 -> 0 | AE5: =ALL!DJ6 -> 0 | AF5: =ALL!DN6 -> 0 | AG5: =ALL!DR6 -> 0 | AH5: =ALL!DV6 -> 0 | AJ5: 16 | AL5: 16 | AM5: 9
A6: المتن الشمالي العالي | B6: B11 | C6: =JARD_HA_OMT!D6 -> 0 | D6: =IFERROR(VLOOKUP($A6&$B6,CHOOSE({1,2},ALL!$A$4:$A$500&ALL!$B$4:$B$500,ALL!$F$4:$F$500),2,FALSE),"") -> 0 | E6: =ALL!J7 -> 0 | F6: =ALL!N7 -> 0 | G6: =ALL!R7 -> 0 | H6: =ALL!V7 -> 0 | I6: =ALL!Z7 -> 0 | J6: =ALL!AD7 -> 0 | K6: =ALL!AH7 -> 0 | L6: =ALL!AL7 -> 0 | M6: =ALL!AP7 -> 0 | N6: =ALL!AT7 -> 0 | O6: =ALL!AX7 -> 0 | P6: =ALL!BB7 -> 0 | Q6: =ALL!BF7 -> 0 | R6: =ALL!BJ7 -> 0 | S6: =ALL!BN7 -> 0 | T6: =ALL!BR7 -> 0 | U6: =ALL!BV7 -> 0 | V6: =ALL!BZ7 -> 0 | W6: =ALL!CC7 -> 0 | X6: =ALL!CH7 -> 0 | Y6: =ALL!CL7 -> 0 | Z6: =ALL!CP7 -> 0 | AA6: =ALL!CT7 -> 0 | AB6: =ALL!CX7 -> 0 | AC6: =ALL!DB7 -> 0 | AD6: =ALL!DF7 -> 0 | AE6: =ALL!DJ7 -> 0 | AF6: =ALL!DN7 -> 0 | AG6: =ALL!DR7 -> 0 | AH6: =ALL!DV7 -> 0 | AJ6: 0 | AL6: 0 | AM6: 0
A7: كسروان | B7: B12 | C7: =JARD_HA_OMT!D7 -> 0 | D7: =IFERROR(VLOOKUP($A7&$B7,CHOOSE({1,2},ALL!$A$4:$A$500&ALL!$B$4:$B$500,ALL!$F$4:$F$500),2,FALSE),"") -> 13 | E7: =ALL!J8 -> 11 | F7: =ALL!N8 -> 2 | G7: =ALL!R8 -> 17 | H7: =ALL!V8 -> 2 | I7: =ALL!Z8 -> 0 | J7: =ALL!AD8 -> 0 | K7: =ALL!AH8 -> 0 | L7: =ALL!AL8 -> 0 | M7: =ALL!AP8 -> 0 | N7: =ALL!AT8 -> 0 | O7: =ALL!AX8 -> 0 | P7: =ALL!BB8 -> 0 | Q7: =ALL!BF8 -> 0 | R7: =ALL!BJ8 -> 0 | S7: =ALL!BN8 -> 0 | T7: =ALL!BR8 -> 0 | U7: =ALL!BV8 -> 0 | V7: =ALL!BZ8 -> 0 | W7: =ALL!CC8 -> 0 | X7: =ALL!CH8 -> 0 | Y7: =ALL!CL8 -> 0 | Z7: =ALL!CP8 -> 0 | AA7: =ALL!CT8 -> 0 | AB7: =ALL!CX8 -> 0 | AC7: =ALL!DB8 -> 0 | AD7: =ALL!DF8 -> 0 | AE7: =ALL!DJ8 -> 0 | AF7: =ALL!DN8 -> 0 | AG7: =ALL!DR8 -> 0 | AH7: =ALL!DV8 -> 0 | AJ7: 45 | AL7: 45 | AM7: 26
A8: جبيل | B8: B13 | C8: =JARD_HA_OMT!D8 -> 0 | D8: =IFERROR(VLOOKUP($A8&$B8,CHOOSE({1,2},ALL!$A$4:$A$500&ALL!$B$4:$B$500,ALL!$F$4:$F$500),2,FALSE),"") -> 0 | E8: =ALL!J9 -> 2 | F8: =ALL!N9 -> 4 | G8: =ALL!R9 -> 0 | H8: =ALL!V9 -> 2 | I8: =ALL!Z9 -> 0 | J8: =ALL!AD9 -> 0 | K8: =ALL!AH9 -> 0 | L8: =ALL!AL9 -> 0 | M8: =ALL!AP9 -> 0 | N8: =ALL!AT9 -> 0 | O8: =ALL!AX9 -> 0 | P8: =ALL!BB9 -> 0 | Q8: =ALL!BF9 -> 0 | R8: =ALL!BJ9 -> 0 | S8: =ALL!BN9 -> 0 | T8: =ALL!BR9 -> 0 | U8: =ALL!BV9 -> 0 | V8: =ALL!BZ9 -> 0 | W8: =ALL!CC9 -> 0 | X8: =ALL!CH9 -> 0 | Y8: =ALL!CL9 -> 0 | Z8: =ALL!CP9 -> 0 | AA8: =ALL!CT9 -> 0 | AB8: =ALL!CX9 -> 0 | AC8: =ALL!DB9 -> 0 | AD8: =ALL!DF9 -> 0 | AE8: =ALL!DJ9 -> 0 | AF8: =ALL!DN9 -> 0 | AG8: =ALL!DR9 -> 0 | AH8: =ALL!DV9 -> 0 | AJ8: 8 | AL8: 8 | AM8: 6
A9: فتوح كسروان | B9: B14 | C9: =JARD_HA_OMT!D9 -> 0 | D9: =IFERROR(VLOOKUP($A9&$B9,CHOOSE({1,2},ALL!$A$4:$A$500&ALL!$B$4:$B$500,ALL!$F$4:$F$500),2,FALSE),"") -> 0 | E9: =ALL!J10 -> 1 | F9: =ALL!N10 -> 0 | G9: =ALL!R10 -> 2 | H9: =ALL!V10 -> 0 | I9: =ALL!Z10 -> 0 | J9: =ALL!AD10 -> 0 | K9: =ALL!AH10 -> 0 | L9: =ALL!AL10 -> 0 | M9: =ALL!AP10 -> 0 | N9: =ALL!AT10 -> 0 | O9: =ALL!AX10 -> 0 | P9: =ALL!BB10 -> 0 | Q9: =ALL!BF10 -> 0 | R9: =ALL!BJ10 -> 0 | S9: =ALL!BN10 -> 0 | T9: =ALL!BR10 -> 0 | U9: =ALL!BV10 -> 0 | V9: =ALL!BZ10 -> 0 | W9: =ALL!CC10 -> 0 | X9: =ALL!CH10 -> 0 | Y9: =ALL!CL10 -> 0 | Z9: =ALL!CP10 -> 0 | AA9: =ALL!CT10 -> 0 | AB9: =ALL!CX10 -> 0 | AC9: =ALL!DB10 -> 0 | AD9: =ALL!DF10 -> 0 | AE9: =ALL!DJ10 -> 0 | AF9: =ALL!DN10 -> 0 | AG9: =ALL!DR10 -> 0 | AH9: =ALL!DV10 -> 0 | AJ9: 3 | AL9: 3 | AM9: 1
A10: الشويفات | B10: B2 | C10: =JARD_HA_OMT!D10 -> 0 | D10: =IFERROR(VLOOKUP($A10&$B10,CHOOSE({1,2},ALL!$A$4:$A$500&ALL!$B$4:$B$500,ALL!$F$4:$F$500),2,FALSE),"") -> 12 | E10: =ALL!J11 -> 15 | F10: =ALL!N11 -> 4 | G10: =ALL!R11 -> 20 | H10: =ALL!V11 -> 0 | I10: =ALL!Z11 -> 0 | J10: =ALL!AD11 -> 0 | K10: =ALL!AH11 -> 0 | L10: =ALL!AL11 -> 0 | M10: =ALL!AP11 -> 0 | N10: =ALL!AT11 -> 0 | O10: =ALL!AX11 -> 0 | P10: =ALL!BB11 -> 0 | Q10: =ALL!BF11 -> 0 | R10: =ALL!BJ11 -> 0 | S10: =ALL!BN11 -> 0 | T10: =ALL!BR11 -> 0 | U10: =ALL!BV11 -> 0 | V10: =ALL!BZ11 -> 0 | W10: =ALL!CC11 -> 0 | X10: =ALL!CH11 -> 0 | Y10: =ALL!CL11 -> 0 | Z10: =ALL!CP11 -> 0 | AA10: =ALL!CT11 -> 0 | AB10: =ALL!CX11 -> 0 | AC10: =ALL!DB11 -> 0 | AD10: =ALL!DF11 -> 0 | AE10: =ALL!DJ11 -> 0 | AF10: =ALL!DN11 -> 0 | AG10: =ALL!DR11 -> 0 | AH10: =ALL!DV11 -> 0 | AJ10: 51 | AL10: 51 | AM10: 31
A11: برجا | B11: B3 | C11: =JARD_HA_OMT!D11 -> 0 | D11: =IFERROR(VLOOKUP($A11&$B11,CHOOSE({1,2},ALL!$A$4:$A$500&ALL!$B$4:$B$500,ALL!$F$4:$F$500),2,FALSE),"") -> 0 | E11: =ALL!J12 -> 0 | F11: =ALL!N12 -> 3 | G11: =ALL!R12 -> 6 | H11: =ALL!V12 -> 0 | I11: =ALL!Z12 -> 0 | J11: =ALL!AD12 -> 0 | K11: =ALL!AH12 -> 0 | L11: =ALL!AL12 -> 0 | M11: =ALL!AP12 -> 0 | N11: =ALL!AT12 -> 0 | O11: =ALL!AX12 -> 0 | P11: =ALL!BB12 -> 0 | Q11: =ALL!BF12 -> 0 | R11: =ALL!BJ12 -> 0 | S11: =ALL!BN12 -> 0 | T11: =ALL!BR12 -> 0 | U11: =ALL!BV12 -> 0 | V11: =ALL!BZ12 -> 0 | W11: =ALL!CC12 -> 0 | X11: =ALL!CH12 -> 0 | Y11: =ALL!CL12 -> 0 | Z11: =ALL!CP12 -> 0 | AA11: =ALL!CT12 -> 0 | AB11: =ALL!CX12 -> 0 | AC11: =ALL!DB12 -> 0 | AD11: =ALL!DF12 -> 0 | AE11: =ALL!DJ12 -> 0 | AF11: =ALL!DN12 -> 0 | AG11: =ALL!DR12 -> 0 | AH11: =ALL!DV12 -> 0 | AJ11: 9 | AL11: 9 | AM11: 3
A12: شحيم | B12: B4 | C12: =JARD_HA_OMT!D12 -> 0 | D12: =IFERROR(VLOOKUP($A12&$B12,CHOOSE({1,2},ALL!$A$4:$A$500&ALL!$B$4:$B$500,ALL!$F$4:$F$500),2,FALSE),"") -> 0 | E12: =ALL!J13 -> 1 | F12: =ALL!N13 -> 0 | G12: =ALL!R13 -> 1 | H12: =ALL!V13 -> 0 | I12: =ALL!Z13 -> 0 | J12: =ALL!AD13 -> 0 | K12: =ALL!AH13 -> 0 | L12: =ALL!AL13 -> 0 | M12: =ALL!AP13 -> 0 | N12: =ALL!AT13 -> 0 | O12: =ALL!AX13 -> 0 | P12: =ALL!BB13 -> 0 | Q12: =ALL!BF13 -> 0 | R12: =ALL!BJ13 -> 0 | S12: =ALL!BN13 -> 0 | T12: =ALL!BR13 -> 0 | U12: =ALL!BV13 -> 0 | V12: =ALL!BZ13 -> 0 | W12: =ALL!CC13 -> 0 | X12: =ALL!CH13 -> 0 | Y12: =ALL!CL13 -> 0 | Z12: =ALL!CP13 -> 0 | AA12: =ALL!CT13 -> 0 | AB12: =ALL!CX13 -> 0 | AC12: =ALL!DB13 -> 0 | AD12: =ALL!DF13 -> 0 | AE12: =ALL!DJ13 -> 0 | AF12: =ALL!DN13 -> 0 | AG12: =ALL!DR13 -> 0 | AH12: =ALL!DV13 -> 0 | AJ12: 2 | AL12: 2 | AM12: 1
A13: عاليه | B13: B5 | C13: =JARD_HA_OMT!D13 -> 0 | D13: =IFERROR(VLOOKUP($A13&$B13,CHOOSE({1,2},ALL!$A$4:$A$500&ALL!$B$4:$B$500,ALL!$F$4:$F$500),2,FALSE),"") -> 7 | E13: =ALL!J14 -> 14 | F13: =ALL!N14 -> 4 | G13: =ALL!R14 -> 4 | H13: =ALL!V14 -> 0 | I13: =ALL!Z14 -> 0 | J13: =ALL!AD14 -> 0 | K13: =ALL!AH14 -> 0 | L13: =ALL!AL14 -> 0 | M13: =ALL!AP14 -> 0 | N13: =ALL!AT14 -> 0 | O13: =ALL!AX14 -> 0 | P13: =ALL!BB14 -> 0 | Q13: =ALL!BF14 -> 0 | R13: =ALL!BJ14 -> 0 | S13: =ALL!BN14 -> 0 | T13: =ALL!BR14 -> 0 | U13: =ALL!BV14 -> 0 | V13: =ALL!BZ14 -> 0 | W13: =ALL!CC14 -> 0 | X13: =ALL!CH14 -> 0 | Y13: =ALL!CL14 -> 0 | Z13: =ALL!CP14 -> 0 | AA13: =ALL!CT14 -> 0 | AB13: =ALL!CX14 -> 0 | AC13: =ALL!DB14 -> 0 | AD13: =ALL!DF14 -> 0 | AE13: =ALL!DJ14 -> 0 | AF13: =ALL!DN14 -> 0 | AG13: =ALL!DR14 -> 0 | AH13: =ALL!DV14 -> 0 | AJ13: 29 | AL13: 29 | AM13: 25
A14: حمانا | B14: B6 | C14: =JARD_HA_OMT!D14 -> 0 | D14: =IFERROR(VLOOKUP($A14&$B14,CHOOSE({1,2},ALL!$A$4:$A$500&ALL!$B$4:$B$500,ALL!$F$4:$F$500),2,FALSE),"") -> 0 | E14: =ALL!J15 -> 0 | F14: =ALL!N15 -> 2 | G14: =ALL!R15 -> 2 | H14: =ALL!V15 -> 2 | I14: =ALL!Z15 -> 0 | J14: =ALL!AD15 -> 0 | K14: =ALL!AH15 -> 0 | L14: =ALL!AL15 -> 0 | M14: =ALL!AP15 -> 0 | N14: =ALL!AT15 -> 0 | O14: =ALL!AX15 -> 0 | P14: =ALL!BB15 -> 0 | Q14: =ALL!BF15 -> 0 | R14: =ALL!BJ15 -> 0 | S14: =ALL!BN15 -> 0 | T14: =ALL!BR15 -> 0 | U14: =ALL!BV15 -> 0 | V14: =ALL!BZ15 -> 0 | W14: =ALL!CC15 -> 0 | X14: =ALL!CH15 -> 0 | Y14: =ALL!CL15 -> 0 | Z14: =ALL!CP15 -> 0 | AA14: =ALL!CT15 -> 0 | AB14: =ALL!CX15 -> 0 | AC14: =ALL!DB15 -> 0 | AD14: =ALL!DF15 -> 0 | AE14: =ALL!DJ15 -> 0 | AF14: =ALL!DN15 -> 0 | AG14: =ALL!DR15 -> 0 | AH14: =ALL!DV15 -> 0 | AJ14: 6 | AL14: 6 | AM14: 2
A15: الشوف | B15: B7 | C15: =JARD_HA_OMT!D15 -> 0 | D15: =IFERROR(VLOOKUP($A15&$B15,CHOOSE({1,2},ALL!$A$4:$A$500&ALL!$B$4:$B$500,ALL!$F$4:$F$500),2,FALSE),"") -> 1 | E15: =ALL!J16 -> 5 | F15: =ALL!N16 -> 0 | G15: =ALL!R16 -> 3 | H15: =ALL!V16 -> 0 | I15: =ALL!Z16 -> 0 | J15: =ALL!AD16 -> 0 | K15: =ALL!AH16 -> 0 | L15: =ALL!AL16 -> 0 | M15: =ALL!AP16 -> 0 | N15: =ALL!AT16 -> 0 | O15: =ALL!AX16 -> 0 | P15: =ALL!BB16 -> 0 | Q15: =ALL!BF16 -> 0 | R15: =ALL!BJ16 -> 0 | S15: =ALL!BN16 -> 0 | T15: =ALL!BR16 -> 0 | U15: =ALL!BV16 -> 0 | V15: =ALL!BZ16 -> 0 | W15: =ALL!CC16 -> 0 | X15: =ALL!CH16 -> 0 | Y15: =ALL!CL16 -> 0 | Z15: =ALL!CP16 -> 0 | AA15: =ALL!CT16 -> 0 | AB15: =ALL!CX16 -> 0 | AC15: =ALL!DB16 -> 0 | AD15: =ALL!DF16 -> 0 | AE15: =ALL!DJ16 -> 0 | AF15: =ALL!DN16 -> 0 | AG15: =ALL!DR16 -> 0 | AH15: =ALL!DV16 -> 0 | AJ15: 9 | AL15: 9 | AM15: 6
A16: المتن | B16: B8 | C16: =JARD_HA_OMT!D16 -> 0 | D16: =IFERROR(VLOOKUP($A16&$B16,CHOOSE({1,2},ALL!$A$4:$A$500&ALL!$B$4:$B$500,ALL!$F$4:$F$500),2,FALSE),"") -> 13 | E16: =ALL!J17 -> 22 | F16: =ALL!N17 -> 15 | G16: =ALL!R17 -> 9 | H16: =ALL!V17 -> 0 | I16: =ALL!Z17 -> 0 | J16: =ALL!AD17 -> 0 | K16: =ALL!AH17 -> 0 | L16: =ALL!AL17 -> 0 | M16: =ALL!AP17 -> 0 | N16: =ALL!AT17 -> 0 | O16: =ALL!AX17 -> 0 | P16: =ALL!BB17 -> 0 | Q16: =ALL!BF17 -> 0 | R16: =ALL!BJ17 -> 0 | S16: =ALL!BN17 -> 0 | T16: =ALL!BR17 -> 0 | U16: =ALL!BV17 -> 0 | V16: =ALL!BZ17 -> 0 | W16: =ALL!CC17 -> 0 | X16: =ALL!CH17 -> 0 | Y16: =ALL!CL17 -> 0 | Z16: =ALL!CP17 -> 0 | AA16: =ALL!CT17 -> 0 | AB16: =ALL!CX17 -> 0 | AC16: =ALL!DB17 -> 0 | AD16: =ALL!DF17 -> 0 | AE16: =ALL!DJ17 -> 0 | AF16: =ALL!DN17 -> 0 | AG16: =ALL!DR17 -> 0 | AH16: =ALL!DV17 -> 0 | AJ16: 59 | AL16: 59 | AM16: 50
A17: انطلياس | B17: B9 | C17: =JARD_HA_OMT!D17 -> 0 | D17: =IFERROR(VLOOKUP($A17&$B17,CHOOSE({1,2},ALL!$A$4:$A$500&ALL!$B$4:$B$500,ALL!$F$4:$F$500),2,FALSE),"") -> 14 | E17: =ALL!J18 -> 12 | F17: =ALL!N18 -> 0 | G17: =ALL!R18 -> 5 | H17: =ALL!V18 -> 8 | I17: =ALL!Z18 -> 0 | J17: =ALL!AD18 -> 0 | K17: =ALL!AH18 -> 0 | L17: =ALL!AL18 -> 0 | M17: =ALL!AP18 -> 0 | N17: =ALL!AT18 -> 0 | O17: =ALL!AX18 -> 0 | P17: =ALL!BB18 -> 0 | Q17: =ALL!BF18 -> 0 | R17: =ALL!BJ18 -> 0 | S17: =ALL!BN18 -> 0 | T17: =ALL!BR18 -> 0 | U17: =ALL!BV18 -> 0 | V17: =ALL!BZ18 -> 0 | W17: =ALL!CC18 -> 0 | X17: =ALL!CH18 -> 0 | Y17: =ALL!CL18 -> 0 | Z17: =ALL!CP18 -> 0 | AA17: =ALL!CT18 -> 0 | AB17: =ALL!CX18 -> 0 | AC17: =ALL!DB18 -> 0 | AD17: =ALL!DF18 -> 0 | AE17: =ALL!DJ18 -> 0 | AF17: =ALL!DN18 -> 0 | AG17: =ALL!DR18 -> 0 | AH17: =ALL!DV18 -> 0 | AJ17: 39 | AL17: 39 | AM17: 26
A18: صيدا | B18: C1 | C18: =JARD_HA_OMT!D18 -> 0 | D18: =IFERROR(VLOOKUP($A18&$B18,CHOOSE({1,2},ALL!$A$4:$A$500&ALL!$B$4:$B$500,ALL!$F$4:$F$500),2,FALSE),"") -> 0 | E18: =ALL!J19 -> 0 | F18: =ALL!N19 -> 0 | G18: =ALL!R19 -> 0 | H18: =ALL!V19 -> 0 | I18: =ALL!Z19 -> 0 | J18: =ALL!AD19 -> 0 | K18: =ALL!AH19 -> 0 | L18: =ALL!AL19 -> 0 | M18: =ALL!AP19 -> 0 | N18: =ALL!AT19 -> 0 | O18: =ALL!AX19 -> 0 | P18: =ALL!BB19 -> 0 | Q18: =ALL!BF19 -> 0 | R18: =ALL!BJ19 -> 0 | S18: =ALL!BN19 -> 0 | T18: =ALL!BR19 -> 0 | U18: =ALL!BV19 -> 0 | V18: =ALL!BZ19 -> 0 | W18: =ALL!CC19 -> 0 | X18: =ALL!CH19 -> 0 | Y18: =ALL!CL19 -> 0 | Z18: =ALL!CP19 -> 0 | AA18: =ALL!CT19 -> 0 | AB18: =ALL!CX19 -> 0 | AC18: =ALL!DB19 -> 0 | AD18: =ALL!DF19 -> 0 | AE18: =ALL!DJ19 -> 0 | AF18: =ALL!DN19 -> 0 | AG18: =ALL!DR19 -> 0 | AH18: =ALL!DV19 -> 0 | AJ18: 0 | AL18: 0 | AM18: 0
A19: جويا | B19: C10 | C19: =JARD_HA_OMT!D19 -> 0 | D19: =IFERROR(VLOOKUP($A19&$B19,CHOOSE({1,2},ALL!$A$4:$A$500&ALL!$B$4:$B$500,ALL!$F$4:$F$500),2,FALSE),"") -> 0 | E19: =ALL!J20 -> 18 | F19: =ALL!N20 -> 0 | G19: =ALL!R20 -> 0 | H19: =ALL!V20 -> 0 | I19: =ALL!Z20 -> 0 | J19: =ALL!AD20 -> 0 | K19: =ALL!AH20 -> 0 | L19: =ALL!AL20 -> 0 | M19: =ALL!AP20 -> 0 | N19: =ALL!AT20 -> 0 | O19: =ALL!AX20 -> 0 | P19: =ALL!BB20 -> 0 | Q19: =ALL!BF20 -> 0 | R19: =ALL!BJ20 -> 0 | S19: =ALL!BN20 -> 0 | T19: =ALL!BR20 -> 0 | U19: =ALL!BV20 -> 0 | V19: =ALL!BZ20 -> 0 | W19: =ALL!CC20 -> 0 | X19: =ALL!CH20 -> 0 | Y19: =ALL!CL20 -> 0 | Z19: =ALL!CP20 -> 0 | AA19: =ALL!CT20 -> 0 | AB19: =ALL!CX20 -> 0 | AC19: =ALL!DB20 -> 0 | AD19: =ALL!DF20 -> 0 | AE19: =ALL!DJ20 -> 0 | AF19: =ALL!DN20 -> 0 | AG19: =ALL!DR20 -> 0 | AH19: =ALL!DV20 -> 0 | AJ19: 18 | AL19: 18 | AM19: 18
A20: ميس الجبل | B20: C11 | C20: =JARD_HA_OMT!D20 -> 0 | D20: =IFERROR(VLOOKUP($A20&$B20,CHOOSE({1,2},ALL!$A$4:$A$500&ALL!$B$4:$B$500,ALL!$F$4:$F$500),2,FALSE),"") -> 0 | E20: =ALL!J21 -> 0 | F20: =ALL!N21 -> 0 | G20: =ALL!R21 -> 2 | H20: =ALL!V21 -> 0 | I20: =ALL!Z21 -> 0 | J20: =ALL!AD21 -> 0 | K20: =ALL!AH21 -> 0 | L20: =ALL!AL21 -> 0 | M20: =ALL!AP21 -> 0 | N20: =ALL!AT21 -> 0 | O20: =ALL!AX21 -> 0 | P20: =ALL!BB21 -> 0 | Q20: =ALL!BF21 -> 0 | R20: =ALL!BJ21 -> 0 | S20: =ALL!BN21 -> 0 | T20: =ALL!BR21 -> 0 | U20: =ALL!BV21 -> 0 | V20: =ALL!BZ21 -> 0 | W20: =ALL!CC21 -> 0 | X20: =ALL!CH21 -> 0 | Y20: =ALL!CL21 -> 0 | Z20: =ALL!CP21 -> 0 | AA20: =ALL!CT21 -> 0 | AB20: =ALL!CX21 -> 0 | AC20: =ALL!DB21 -> 0 | AD20: =ALL!DF21 -> 0 | AE20: =ALL!DJ21 -> 0 | AF20: =ALL!DN21 -> 0 | AG20: =ALL!DR21 -> 0 | AH20: =ALL!DV21 -> 0 | AJ20: 2 | AL20: 2 | AM20: 0
A21: صور | B21: C2 | C21: =JARD_HA_OMT!D21 -> 0 | D21: =IFERROR(VLOOKUP($A21&$B21,CHOOSE({1,2},ALL!$A$4:$A$500&ALL!$B$4:$B$500,ALL!$F$4:$F$500),2,FALSE),"") -> 0 | E21: =ALL!J22 -> 0 | F21: =ALL!N22 -> 0 | G21: =ALL!R22 -> 0 | H21: =ALL!V22 -> 0 | I21: =ALL!Z22 -> 0 | J21: =ALL!AD22 -> 0 | K21: =ALL!AH22 -> 0 | L21: =ALL!AL22 -> 0 | M21: =ALL!AP22 -> 0 | N21: =ALL!AT22 -> 0 | O21: =ALL!AX22 -> 0 | P21: =ALL!BB22 -> 0 | Q21: =ALL!BF22 -> 0 | R21: =ALL!BJ22 -> 0 | S21: =ALL!BN22 -> 0 | T21: =ALL!BR22 -> 0 | U21: =ALL!BV22 -> 0 | V21: =ALL!BZ22 -> 0 | W21: =ALL!CC22 -> 0 | X21: =ALL!CH22 -> 0 | Y21: =ALL!CL22 -> 0 | Z21: =ALL!CP22 -> 0 | AA21: =ALL!CT22 -> 0 | AB21: =ALL!CX22 -> 0 | AC21: =ALL!DB22 -> 0 | AD21: =ALL!DF22 -> 0 | AE21: =ALL!DJ22 -> 0 | AF21: =ALL!DN22 -> 0 | AG21: =ALL!DR22 -> 0 | AH21: =ALL!DV22 -> 0 | AJ21: 0 | AL21: 0 | AM21: 0
A22: جزين | B22: C3 | C22: =JARD_HA_OMT!D22 -> 0 | D22: =IFERROR(VLOOKUP($A22&$B22,CHOOSE({1,2},ALL!$A$4:$A$500&ALL!$B$4:$B$500,ALL!$F$4:$F$500),2,FALSE),"") -> 0 | E22: =ALL!J23 -> 0 | F22: =ALL!N23 -> 0 | G22: =ALL!R23 -> 0 | H22: =ALL!V23 -> 0 | I22: =ALL!Z23 -> 0 | J22: =ALL!AD23 -> 0 | K22: =ALL!AH23 -> 0 | L22: =ALL!AL23 -> 0 | M22: =ALL!AP23 -> 0 | N22: =ALL!AT23 -> 0 | O22: =ALL!AX23 -> 0 | P22: =ALL!BB23 -> 0 | Q22: =ALL!BF23 -> 0 | R22: =ALL!BJ23 -> 0 | S22: =ALL!BN23 -> 0 | T22: =ALL!BR23 -> 0 | U22: =ALL!BV23 -> 0 | V22: =ALL!BZ23 -> 0 | W22: =ALL!CC23 -> 0 | X22: =ALL!CH23 -> 0 | Y22: =ALL!CL23 -> 0 | Z22: =ALL!CP23 -> 0 | AA22: =ALL!CT23 -> 0 | AB22: =ALL!CX23 -> 0 | AC22: =ALL!DB23 -> 0 | AD22: =ALL!DF23 -> 0 | AE22: =ALL!DJ23 -> 0 | AF22: =ALL!DN23 -> 0 | AG22: =ALL!DR23 -> 0 | AH22: =ALL!DV23 -> 0 | AJ22: 0 | AL22: 0 | AM22: 0
A23: النبطية | B23: C4 | C23: =JARD_HA_OMT!D23 -> 0 | D23: =IFERROR(VLOOKUP($A23&$B23,CHOOSE({1,2},ALL!$A$4:$A$500&ALL!$B$4:$B$500,ALL!$F$4:$F$500),2,FALSE),"") -> 2 | E23: =ALL!J24 -> 4 | F23: =ALL!N24 -> 5 | G23: =ALL!R24 -> 15 | H23: =ALL!V24 -> 5 | I23: =ALL!Z24 -> 0 | J23: =ALL!AD24 -> 0 | K23: =ALL!AH24 -> 0 | L23: =ALL!AL24 -> 0 | M23: =ALL!AP24 -> 0 | N23: =ALL!AT24 -> 0 | O23: =ALL!AX24 -> 0 | P23: =ALL!BB24 -> 0 | Q23: =ALL!BF24 -> 0 | R23: =ALL!BJ24 -> 0 | S23: =ALL!BN24 -> 0 | T23: =ALL!BR24 -> 0 | U23: =ALL!BV24 -> 0 | V23: =ALL!BZ24 -> 0 | W23: =ALL!CC24 -> 0 | X23: =ALL!CH24 -> 0 | Y23: =ALL!CL24 -> 0 | Z23: =ALL!CP24 -> 0 | AA23: =ALL!CT24 -> 0 | AB23: =ALL!CX24 -> 0 | AC23: =ALL!DB24 -> 0 | AD23: =ALL!DF24 -> 0 | AE23: =ALL!DJ24 -> 0 | AF23: =ALL!DN24 -> 0 | AG23: =ALL!DR24 -> 0 | AH23: =ALL!DV24 -> 0 | AJ23: 31 | AL23: 31 | AM23: 11
A24: بنت جبيل | B24: C5 | C24: =JARD_HA_OMT!D24 -> 0 | D24: =IFERROR(VLOOKUP($A24&$B24,CHOOSE({1,2},ALL!$A$4:$A$500&ALL!$B$4:$B$500,ALL!$F$4:$F$500),2,FALSE),"") -> 3 | E24: =ALL!J25 -> 4 | F24: =ALL!N25 -> 3 | G24: =ALL!R25 -> 4 | H24: =ALL!V25 -> 10 | I24: =ALL!Z25 -> 0 | J24: =ALL!AD25 -> 0 | K24: =ALL!AH25 -> 0 | L24: =ALL!AL25 -> 0 | M24: =ALL!AP25 -> 0 | N24: =ALL!AT25 -> 0 | O24: =ALL!AX25 -> 0 | P24: =ALL!BB25 -> 0 | Q24: =ALL!BF25 -> 0 | R24: =ALL!BJ25 -> 0 | S24: =ALL!BN25 -> 0 | T24: =ALL!BR25 -> 0 | U24: =ALL!BV25 -> 0 | V24: =ALL!BZ25 -> 0 | W24: =ALL!CC25 -> 0 | X24: =ALL!CH25 -> 0 | Y24: =ALL!CL25 -> 0 | Z24: =ALL!CP25 -> 0 | AA24: =ALL!CT25 -> 0 | AB24: =ALL!CX25 -> 0 | AC24: =ALL!DB25 -> 0 | AD24: =ALL!DF25 -> 0 | AE24: =ALL!DJ25 -> 0 | AF24: =ALL!DN25 -> 0 | AG24: =ALL!DR25 -> 0 | AH24: =ALL!DV25 -> 0 | AJ24: 24 | AL24: 24 | AM24: 10
A25: مرجعيون | B25: C6 | C25: =JARD_HA_OMT!D25 -> 0 | D25: =IFERROR(VLOOKUP($A25&$B25,CHOOSE({1,2},ALL!$A$4:$A$500&ALL!$B$4:$B$500,ALL!$F$4:$F$500),2,FALSE),"") -> 0 | E25: =ALL!J26 -> 0 | F25: =ALL!N26 -> 0 | G25: =ALL!R26 -> 0 | H25: =ALL!V26 -> 0 | I25: =ALL!Z26 -> 0 | J25: =ALL!AD26 -> 0 | K25: =ALL!AH26 -> 0 | L25: =ALL!AL26 -> 0 | M25: =ALL!AP26 -> 0 | N25: =ALL!AT26 -> 0 | O25: =ALL!AX26 -> 0 | P25: =ALL!BB26 -> 0 | Q25: =ALL!BF26 -> 0 | R25: =ALL!BJ26 -> 0 | S25: =ALL!BN26 -> 0 | T25: =ALL!BR26 -> 0 | U25: =ALL!BV26 -> 0 | V25: =ALL!BZ26 -> 0 | W25: =ALL!CC26 -> 0 | X25: =ALL!CH26 -> 0 | Y25: =ALL!CL26 -> 0 | Z25: =ALL!CP26 -> 0 | AA25: =ALL!CT26 -> 0 | AB25: =ALL!CX26 -> 0 | AC25: =ALL!DB26 -> 0 | AD25: =ALL!DF26 -> 0 | AE25: =ALL!DJ26 -> 0 | AF25: =ALL!DN26 -> 0 | AG25: =ALL!DR26 -> 0 | AH25: =ALL!DV26 -> 0 | AJ25: 0 | AL25: 0 | AM25: 0
A26: حاصبيا | B26: C7 | C26: =JARD_HA_OMT!D26 -> 0 | D26: =IFERROR(VLOOKUP($A26&$B26,CHOOSE({1,2},ALL!$A$4:$A$500&ALL!$B$4:$B$500,ALL!$F$4:$F$500),2,FALSE),"") -> 0 | E26: =ALL!J27 -> 1 | F26: =ALL!N27 -> 3 | G26: =ALL!R27 -> 1 | H26: =ALL!V27 -> 2 | I26: =ALL!Z27 -> 0 | J26: =ALL!AD27 -> 0 | K26: =ALL!AH27 -> 0 | L26: =ALL!AL27 -> 0 | M26: =ALL!AP27 -> 0 | N26: =ALL!AT27 -> 0 | O26: =ALL!AX27 -> 0 | P26: =ALL!BB27 -> 0 | Q26: =ALL!BF27 -> 0 | R26: =ALL!BJ27 -> 0 | S26: =ALL!BN27 -> 0 | T26: =ALL!BR27 -> 0 | U26: =ALL!BV27 -> 0 | V26: =ALL!BZ27 -> 0 | W26: =ALL!CC27 -> 0 | X26: =ALL!CH27 -> 0 | Y26: =ALL!CL27 -> 0 | Z26: =ALL!CP27 -> 0 | AA26: =ALL!CT27 -> 0 | AB26: =ALL!CX27 -> 0 | AC26: =ALL!DB27 -> 0 | AD26: =ALL!DF27 -> 0 | AE26: =ALL!DJ27 -> 0 | AF26: =ALL!DN27 -> 0 | AG26: =ALL!DR27 -> 0 | AH26: =ALL!DV27 -> 0 | AJ26: 7 | AL26: 7 | AM26: 4
A27: تبنين | B27: C8 | C27: =JARD_HA_OMT!D27 -> 0 | D27: =IFERROR(VLOOKUP($A27&$B27,CHOOSE({1,2},ALL!$A$4:$A$500&ALL!$B$4:$B$500,ALL!$F$4:$F$500),2,FALSE),"") -> 3 | E27: =ALL!J28 -> 4 | F27: =ALL!N28 -> 11 | G27: =ALL!R28 -> 13 | H27: =ALL!V28 -> 2 | I27: =ALL!Z28 -> 0 | J27: =ALL!AD28 -> 0 | K27: =ALL!AH28 -> 0 | L27: =ALL!AL28 -> 0 | M27: =ALL!AP28 -> 0 | N27: =ALL!AT28 -> 0 | O27: =ALL!AX28 -> 0 | P27: =ALL!BB28 -> 0 | Q27: =ALL!BF28 -> 0 | R27: =ALL!BJ28 -> 0 | S27: =ALL!BN28 -> 0 | T27: =ALL!BR28 -> 0 | U27: =ALL!BV28 -> 0 | V27: =ALL!BZ28 -> 0 | W27: =ALL!CC28 -> 0 | X27: =ALL!CH28 -> 0 | Y27: =ALL!CL28 -> 0 | Z27: =ALL!CP28 -> 0 | AA27: =ALL!CT28 -> 0 | AB27: =ALL!CX28 -> 0 | AC27: =ALL!DB28 -> 0 | AD27: =ALL!DF28 -> 0 | AE27: =ALL!DJ28 -> 0 | AF27: =ALL!DN28 -> 0 | AG27: =ALL!DR28 -> 0 | AH27: =ALL!DV28 -> 0 | AJ27: 33 | AL27: 33 | AM27: 18
A28: جباع | B28: C9 | C28: =JARD_HA_OMT!D28 -> 0 | D28: =IFERROR(VLOOKUP($A28&$B28,CHOOSE({1,2},ALL!$A$4:$A$500&ALL!$B$4:$B$500,ALL!$F$4:$F$500),2,FALSE),"") -> 1 | E28: =ALL!J29 -> 0 | F28: =ALL!N29 -> 3 | G28: =ALL!R29 -> 8 | H28: =ALL!V29 -> 0 | I28: =ALL!Z29 -> 0 | J28: =ALL!AD29 -> 0 | K28: =ALL!AH29 -> 0 | L28: =ALL!AL29 -> 0 | M28: =ALL!AP29 -> 0 | N28: =ALL!AT29 -> 0 | O28: =ALL!AX29 -> 0 | P28: =ALL!BB29 -> 0 | Q28: =ALL!BF29 -> 0 | R28: =ALL!BJ29 -> 0 | S28: =ALL!BN29 -> 0 | T28: =ALL!BR29 -> 0 | U28: =ALL!BV29 -> 0 | V28: =ALL!BZ29 -> 0 | W28: =ALL!CC29 -> 0 | X28: =ALL!CH29 -> 0 | Y28: =ALL!CL29 -> 0 | Z28: =ALL!CP29 -> 0 | AA28: =ALL!CT29 -> 0 | AB28: =ALL!CX29 -> 0 | AC28: =ALL!DB29 -> 0 | AD28: =ALL!DF29 -> 0 | AE28: =ALL!DJ29 -> 0 | AF28: =ALL!DN29 -> 0 | AG28: =ALL!DR29 -> 0 | AH28: =ALL!DV29 -> 0 | AJ28: 12 | AL28: 12 | AM28: 4
A29: زحلة | B29: D1 | C29: =JARD_HA_OMT!D29 -> 0 | D29: =IFERROR(VLOOKUP($A29&$B29,CHOOSE({1,2},ALL!$A$4:$A$500&ALL!$B$4:$B$500,ALL!$F$4:$F$500),2,FALSE),"") -> 21 | E29: =ALL!J30 -> 49 | F29: =ALL!N30 -> 2 | G29: =ALL!R30 -> 64 | H29: =ALL!V30 -> 28 | I29: =ALL!Z30 -> 0 | J29: =ALL!AD30 -> 0 | K29: =ALL!AH30 -> 0 | L29: =ALL!AL30 -> 0 | M29: =ALL!AP30 -> 0 | N29: =ALL!AT30 -> 0 | O29: =ALL!AX30 -> 0 | P29: =ALL!BB30 -> 0 | Q29: =ALL!BF30 -> 0 | R29: =ALL!BJ30 -> 0 | S29: =ALL!BN30 -> 0 | T29: =ALL!BR30 -> 0 | U29: =ALL!BV30 -> 0 | V29: =ALL!BZ30 -> 0 | W29: =ALL!CC30 -> 0 | X29: =ALL!CH30 -> 0 | Y29: =ALL!CL30 -> 0 | Z29: =ALL!CP30 -> 0 | AA29: =ALL!CT30 -> 0 | AB29: =ALL!CX30 -> 0 | AC29: =ALL!DB30 -> 0 | AD29: =ALL!DF30 -> 0 | AE29: =ALL!DJ30 -> 0 | AF29: =ALL!DN30 -> 0 | AG29: =ALL!DR30 -> 0 | AH29: =ALL!DV30 -> 0 | AJ29: 164 | AL29: 164 | AM29: 72
A30: النبي شيت | B30: D10 | C30: =JARD_HA_OMT!D30 -> 0 | D30: =IFERROR(VLOOKUP($A30&$B30,CHOOSE({1,2},ALL!$A$4:$A$500&ALL!$B$4:$B$500,ALL!$F$4:$F$500),2,FALSE),"") -> 0 | E30: =ALL!J31 -> 3 | F30: =ALL!N31 -> 2 | G30: =ALL!R31 -> 0 | H30: =ALL!V31 -> 0 | I30: =ALL!Z31 -> 0 | J30: =ALL!AD31 -> 0 | K30: =ALL!AH31 -> 0 | L30: =ALL!AL31 -> 0 | M30: =ALL!AP31 -> 0 | N30: =ALL!AT31 -> 0 | O30: =ALL!AX31 -> 0 | P30: =ALL!BB31 -> 0 | Q30: =ALL!BF31 -> 0 | R30: =ALL!BJ31 -> 0 | S30: =ALL!BN31 -> 0 | T30: =ALL!BR31 -> 0 | U30: =ALL!BV31 -> 0 | V30: =ALL!BZ31 -> 0 | W30: =ALL!CC31 -> 0 | X30: =ALL!CH31 -> 0 | Y30: =ALL!CL31 -> 0 | Z30: =ALL!CP31 -> 0 | AA30: =ALL!CT31 -> 0 | AB30: =ALL!CX31 -> 0 | AC30: =ALL!DB31 -> 0 | AD30: =ALL!DF31 -> 0 | AE30: =ALL!DJ31 -> 0 | AF30: =ALL!DN31 -> 0 | AG30: =ALL!DR31 -> 0 | AH30: =ALL!DV31 -> 0 | AJ30: 5 | AL30: 5 | AM30: 5
A31: راشيا | B31: D2 | C31: =JARD_HA_OMT!D31 -> 0 | D31: =IFERROR(VLOOKUP($A31&$B31,CHOOSE({1,2},ALL!$A$4:$A$500&ALL!$B$4:$B$500,ALL!$F$4:$F$500),2,FALSE),"") -> 0 | E31: =ALL!J32 -> 0 | F31: =ALL!N32 -> 0 | G31: =ALL!R32 -> 4 | H31: =ALL!V32 -> 0 | I31: =ALL!Z32 -> 0 | J31: =ALL!AD32 -> 0 | K31: =ALL!AH32 -> 0 | L31: =ALL!AL32 -> 0 | M31: =ALL!AP32 -> 0 | N31: =ALL!AT32 -> 0 | O31: =ALL!AX32 -> 0 | P31: =ALL!BB32 -> 0 | Q31: =ALL!BF32 -> 0 | R31: =ALL!BJ32 -> 0 | S31: =ALL!BN32 -> 0 | T31: =ALL!BR32 -> 0 | U31: =ALL!BV32 -> 0 | V31: =ALL!BZ32 -> 0 | W31: =ALL!CC32 -> 0 | X31: =ALL!CH32 -> 0 | Y31: =ALL!CL32 -> 0 | Z31: =ALL!CP32 -> 0 | AA31: =ALL!CT32 -> 0 | AB31: =ALL!CX32 -> 0 | AC31: =ALL!DB32 -> 0 | AD31: =ALL!DF32 -> 0 | AE31: =ALL!DJ32 -> 0 | AF31: =ALL!DN32 -> 0 | AG31: =ALL!DR32 -> 0 | AH31: =ALL!DV32 -> 0 | AJ31: 4 | AL31: 4 | AM31: 0
A32: البقاع الغربي | B32: D3 | C32: =JARD_HA_OMT!D32 -> 0 | D32: =IFERROR(VLOOKUP($A32&$B32,CHOOSE({1,2},ALL!$A$4:$A$500&ALL!$B$4:$B$500,ALL!$F$4:$F$500),2,FALSE),"") -> 4 | E32: =ALL!J33 -> 9 | F32: =ALL!N33 -> 0 | G32: =ALL!R33 -> 4 | H32: =ALL!V33 -> 0 | I32: =ALL!Z33 -> 0 | J32: =ALL!AD33 -> 0 | K32: =ALL!AH33 -> 0 | L32: =ALL!AL33 -> 0 | M32: =ALL!AP33 -> 0 | N32: =ALL!AT33 -> 0 | O32: =ALL!AX33 -> 0 | P32: =ALL!BB33 -> 0 | Q32: =ALL!BF33 -> 0 | R32: =ALL!BJ33 -> 0 | S32: =ALL!BN33 -> 0 | T32: =ALL!BR33 -> 0 | U32: =ALL!BV33 -> 0 | V32: =ALL!BZ33 -> 0 | W32: =ALL!CC33 -> 0 | X32: =ALL!CH33 -> 0 | Y32: =ALL!CL33 -> 0 | Z32: =ALL!CP33 -> 0 | AA32: =ALL!CT33 -> 0 | AB32: =ALL!CX33 -> 0 | AC32: =ALL!DB33 -> 0 | AD32: =ALL!DF33 -> 0 | AE32: =ALL!DJ33 -> 0 | AF32: =ALL!DN33 -> 0 | AG32: =ALL!DR33 -> 0 | AH32: =ALL!DV33 -> 0 | AJ32: 17 | AL32: 17 | AM32: 13
A33: شمسطار | B33: D4 | C33: =JARD_HA_OMT!D33 -> 0 | D33: =IFERROR(VLOOKUP($A33&$B33,CHOOSE({1,2},ALL!$A$4:$A$500&ALL!$B$4:$B$500,ALL!$F$4:$F$500),2,FALSE),"") -> 0 | E33: =ALL!J34 -> 10 | F33: =ALL!N34 -> 17 | G33: =ALL!R34 -> 0 | H33: =ALL!V34 -> 41 | I33: =ALL!Z34 -> 0 | J33: =ALL!AD34 -> 0 | K33: =ALL!AH34 -> 0 | L33: =ALL!AL34 -> 0 | M33: =ALL!AP34 -> 0 | N33: =ALL!AT34 -> 0 | O33: =ALL!AX34 -> 0 | P33: =ALL!BB34 -> 0 | Q33: =ALL!BF34 -> 0 | R33: =ALL!BJ34 -> 0 | S33: =ALL!BN34 -> 0 | T33: =ALL!BR34 -> 0 | U33: =ALL!BV34 -> 0 | V33: =ALL!BZ34 -> 0 | W33: =ALL!CC34 -> 0 | X33: =ALL!CH34 -> 0 | Y33: =ALL!CL34 -> 0 | Z33: =ALL!CP34 -> 0 | AA33: =ALL!CT34 -> 0 | AB33: =ALL!CX34 -> 0 | AC33: =ALL!DB34 -> 0 | AD33: =ALL!DF34 -> 0 | AE33: =ALL!DJ34 -> 0 | AF33: =ALL!DN34 -> 0 | AG33: =ALL!DR34 -> 0 | AH33: =ALL!DV34 -> 0 | AJ33: 68 | AL33: 68 | AM33: 27
A34: بعلبك | B34: D5 | C34: =JARD_HA_OMT!D34 -> 0 | D34: =IFERROR(VLOOKUP($A34&$B34,CHOOSE({1,2},ALL!$A$4:$A$500&ALL!$B$4:$B$500,ALL!$F$4:$F$500),2,FALSE),"") -> 0 | E34: =ALL!J35 -> 0 | F34: =ALL!N35 -> 0 | G34: =ALL!R35 -> 4 | H34: =ALL!V35 -> 0 | I34: =ALL!Z35 -> 0 | J34: =ALL!AD35 -> 0 | K34: =ALL!AH35 -> 0 | L34: =ALL!AL35 -> 0 | M34: =ALL!AP35 -> 0 | N34: =ALL!AT35 -> 0 | O34: =ALL!AX35 -> 0 | P34: =ALL!BB35 -> 0 | Q34: =ALL!BF35 -> 0 | R34: =ALL!BJ35 -> 0 | S34: =ALL!BN35 -> 0 | T34: =ALL!BR35 -> 0 | U34: =ALL!BV35 -> 0 | V34: =ALL!BZ35 -> 0 | W34: =ALL!CC35 -> 0 | X34: =ALL!CH35 -> 0 | Y34: =ALL!CL35 -> 0 | Z34: =ALL!CP35 -> 0 | AA34: =ALL!CT35 -> 0 | AB34: =ALL!CX35 -> 0 | AC34: =ALL!DB35 -> 0 | AD34: =ALL!DF35 -> 0 | AE34: =ALL!DJ35 -> 0 | AF34: =ALL!DN35 -> 0 | AG34: =ALL!DR35 -> 0 | AH34: =ALL!DV35 -> 0 | AJ34: 4 | AL34: 4 | AM34: 0
A35: الهرمل | B35: D6 | C35: =JARD_HA_OMT!D35 -> 0 | D35: =IFERROR(VLOOKUP($A35&$B35,CHOOSE({1,2},ALL!$A$4:$A$500&ALL!$B$4:$B$500,ALL!$F$4:$F$500),2,FALSE),"") -> 0 | E35: =ALL!J36 -> 0 | F35: =ALL!N36 -> 0 | G35: =ALL!R36 -> 1 | H35: =ALL!V36 -> 0 | I35: =ALL!Z36 -> 0 | J35: =ALL!AD36 -> 0 | K35: =ALL!AH36 -> 0 | L35: =ALL!AL36 -> 0 | M35: =ALL!AP36 -> 0 | N35: =ALL!AT36 -> 0 | O35: =ALL!AX36 -> 0 | P35: =ALL!BB36 -> 0 | Q35: =ALL!BF36 -> 0 | R35: =ALL!BJ36 -> 0 | S35: =ALL!BN36 -> 0 | T35: =ALL!BR36 -> 0 | U35: =ALL!BV36 -> 0 | V35: =ALL!BZ36 -> 0 | W35: =ALL!CC36 -> 0 | X35: =ALL!CH36 -> 0 | Y35: =ALL!CL36 -> 0 | Z35: =ALL!CP36 -> 0 | AA35: =ALL!CT36 -> 0 | AB35: =ALL!CX36 -> 0 | AC35: =ALL!DB36 -> 0 | AD35: =ALL!DF36 -> 0 | AE35: =ALL!DJ36 -> 0 | AF35: =ALL!DN36 -> 0 | AG35: =ALL!DR36 -> 0 | AH35: =ALL!DV36 -> 0 | AJ35: 1 | AL35: 1 | AM35: 0
A36: دير الاحمر | B36: D7 | C36: =JARD_HA_OMT!D36 -> 0 | D36: =IFERROR(VLOOKUP($A36&$B36,CHOOSE({1,2},ALL!$A$4:$A$500&ALL!$B$4:$B$500,ALL!$F$4:$F$500),2,FALSE),"") -> 0 | E36: =ALL!J37 -> 0 | F36: =ALL!N37 -> 0 | G36: =ALL!R37 -> 9 | H36: =ALL!V37 -> 0 | I36: =ALL!Z37 -> 0 | J36: =ALL!AD37 -> 0 | K36: =ALL!AH37 -> 0 | L36: =ALL!AL37 -> 0 | M36: =ALL!AP37 -> 0 | N36: =ALL!AT37 -> 0 | O36: =ALL!AX37 -> 0 | P36: =ALL!BB37 -> 0 | Q36: =ALL!BF37 -> 0 | R36: =ALL!BJ37 -> 0 | S36: =ALL!BN37 -> 0 | T36: =ALL!BR37 -> 0 | U36: =ALL!BV37 -> 0 | V36: =ALL!BZ37 -> 0 | W36: =ALL!CC37 -> 0 | X36: =ALL!CH37 -> 0 | Y36: =ALL!CL37 -> 0 | Z36: =ALL!CP37 -> 0 | AA36: =ALL!CT37 -> 0 | AB36: =ALL!CX37 -> 0 | AC36: =ALL!DB37 -> 0 | AD36: =ALL!DF37 -> 0 | AE36: =ALL!DJ37 -> 0 | AF36: =ALL!DN37 -> 0 | AG36: =ALL!DR37 -> 0 | AH36: =ALL!DV37 -> 0 | AJ36: 9 | AL36: 9 | AM36: 0
A37: اللبوة | B37: D8 | C37: =JARD_HA_OMT!D37 -> 0 | D37: =IFERROR(VLOOKUP($A37&$B37,CHOOSE({1,2},ALL!$A$4:$A$500&ALL!$B$4:$B$500,ALL!$F$4:$F$500),2,FALSE),"") -> 0 | E37: =ALL!J38 -> 5 | F37: =ALL!N38 -> 12 | G37: =ALL!R38 -> 12 | H37: =ALL!V38 -> 8 | I37: =ALL!Z38 -> 0 | J37: =ALL!AD38 -> 0 | K37: =ALL!AH38 -> 0 | L37: =ALL!AL38 -> 0 | M37: =ALL!AP38 -> 0 | N37: =ALL!AT38 -> 0 | O37: =ALL!AX38 -> 0 | P37: =ALL!BB38 -> 0 | Q37: =ALL!BF38 -> 0 | R37: =ALL!BJ38 -> 0 | S37: =ALL!BN38 -> 0 | T37: =ALL!BR38 -> 0 | U37: =ALL!BV38 -> 0 | V37: =ALL!BZ38 -> 0 | W37: =ALL!CC38 -> 0 | X37: =ALL!CH38 -> 0 | Y37: =ALL!CL38 -> 0 | Z37: =ALL!CP38 -> 0 | AA37: =ALL!CT38 -> 0 | AB37: =ALL!CX38 -> 0 | AC37: =ALL!DB38 -> 0 | AD37: =ALL!DF38 -> 0 | AE37: =ALL!DJ38 -> 0 | AF37: =ALL!DN38 -> 0 | AG37: =ALL!DR38 -> 0 | AH37: =ALL!DV38 -> 0 | AJ37: 37 | AL37: 37 | AM37: 17
A38: صغبين | B38: D9 | C38: =JARD_HA_OMT!D38 -> 0 | D38: =IFERROR(VLOOKUP($A38&$B38,CHOOSE({1,2},ALL!$A$4:$A$500&ALL!$B$4:$B$500,ALL!$F$4:$F$500),2,FALSE),"") -> 2 | E38: =ALL!J39 -> 2 | F38: =ALL!N39 -> 0 | G38: =ALL!R39 -> 1 | H38: =ALL!V39 -> 0 | I38: =ALL!Z39 -> 0 | J38: =ALL!AD39 -> 0 | K38: =ALL!AH39 -> 0 | L38: =ALL!AL39 -> 0 | M38: =ALL!AP39 -> 0 | N38: =ALL!AT39 -> 0 | O38: =ALL!AX39 -> 0 | P38: =ALL!BB39 -> 0 | Q38: =ALL!BF39 -> 0 | R38: =ALL!BJ39 -> 0 | S38: =ALL!BN39 -> 0 | T38: =ALL!BR39 -> 0 | U38: =ALL!BV39 -> 0 | V38: =ALL!BZ39 -> 0 | W38: =ALL!CC39 -> 0 | X38: =ALL!CH39 -> 0 | Y38: =ALL!CL39 -> 0 | Z38: =ALL!CP39 -> 0 | AA38: =ALL!CT39 -> 0 | AB38: =ALL!CX39 -> 0 | AC38: =ALL!DB39 -> 0 | AD38: =ALL!DF39 -> 0 | AE38: =ALL!DJ39 -> 0 | AF38: =ALL!DN39 -> 0 | AG38: =ALL!DR39 -> 0 | AH38: =ALL!DV39 -> 0 | AJ38: 5 | AL38: 5 | AM38: 4
A39: طرابلس | B39: E1 | C39: =JARD_HA_OMT!D39 -> 0 | D39: =IFERROR(VLOOKUP($A39&$B39,CHOOSE({1,2},ALL!$A$4:$A$500&ALL!$B$4:$B$500,ALL!$F$4:$F$500),2,FALSE),"") -> 7 | E39: =ALL!J40 -> 8 | F39: =ALL!N40 -> 0 | G39: =ALL!R40 -> 9 | H39: =ALL!V40 -> 0 | I39: =ALL!Z40 -> 0 | J39: =ALL!AD40 -> 0 | K39: =ALL!AH40 -> 0 | L39: =ALL!AL40 -> 0 | M39: =ALL!AP40 -> 0 | N39: =ALL!AT40 -> 0 | O39: =ALL!AX40 -> 0 | P39: =ALL!BB40 -> 0 | Q39: =ALL!BF40 -> 0 | R39: =ALL!BJ40 -> 0 | S39: =ALL!BN40 -> 0 | T39: =ALL!BR40 -> 0 | U39: =ALL!BV40 -> 0 | V39: =ALL!BZ40 -> 0 | W39: =ALL!CC40 -> 0 | X39: =ALL!CH40 -> 0 | Y39: =ALL!CL40 -> 0 | Z39: =ALL!CP40 -> 0 | AA39: =ALL!CT40 -> 0 | AB39: =ALL!CX40 -> 0 | AC39: =ALL!DB40 -> 0 | AD39: =ALL!DF40 -> 0 | AE39: =ALL!DJ40 -> 0 | AF39: =ALL!DN40 -> 0 | AG39: =ALL!DR40 -> 0 | AH39: =ALL!DV40 -> 0 | AJ39: 24 | AL39: 24 | AM39: 15
A40: دوما | B40: E10 | C40: =JARD_HA_OMT!D40 -> 0 | D40: =IFERROR(VLOOKUP($A40&$B40,CHOOSE({1,2},ALL!$A$4:$A$500&ALL!$B$4:$B$500,ALL!$F$4:$F$500),2,FALSE),"") -> 0 | E40: =ALL!J41 -> 0 | F40: =ALL!N41 -> 0 | G40: =ALL!R41 -> 0 | H40: =ALL!V41 -> 0 | I40: =ALL!Z41 -> 0 | J40: =ALL!AD41 -> 0 | K40: =ALL!AH41 -> 0 | L40: =ALL!AL41 -> 0 | M40: =ALL!AP41 -> 0 | N40: =ALL!AT41 -> 0 | O40: =ALL!AX41 -> 0 | P40: =ALL!BB41 -> 0 | Q40: =ALL!BF41 -> 0 | R40: =ALL!BJ41 -> 0 | S40: =ALL!BN41 -> 0 | T40: =ALL!BR41 -> 0 | U40: =ALL!BV41 -> 0 | V40: =ALL!BZ41 -> 0 | W40: =ALL!CC41 -> 0 | X40: =ALL!CH41 -> 0 | Y40: =ALL!CL41 -> 0 | Z40: =ALL!CP41 -> 0 | AA40: =ALL!CT41 -> 0 | AB40: =ALL!CX41 -> 0 | AC40: =ALL!DB41 -> 0 | AD40: =ALL!DF41 -> 0 | AE40: =ALL!DJ41 -> 0 | AF40: =ALL!DN41 -> 0 | AG40: =ALL!DR41 -> 0 | AH40: =ALL!DV41 -> 0 | AJ40: 0 | AL40: 0 | AM40: 0
A41: العبدة | B41: E11 | C41: =JARD_HA_OMT!D41 -> 0 | D41: =IFERROR(VLOOKUP($A41&$B41,CHOOSE({1,2},ALL!$A$4:$A$500&ALL!$B$4:$B$500,ALL!$F$4:$F$500),2,FALSE),"") -> 0 | E41: =ALL!J42 -> 0 | F41: =ALL!N42 -> 1 | G41: =ALL!R42 -> 0 | H41: =ALL!V42 -> 4 | I41: =ALL!Z42 -> 0 | J41: =ALL!AD42 -> 0 | K41: =ALL!AH42 -> 0 | L41: =ALL!AL42 -> 0 | M41: =ALL!AP42 -> 0 | N41: =ALL!AT42 -> 0 | O41: =ALL!AX42 -> 0 | P41: =ALL!BB42 -> 0 | Q41: =ALL!BF42 -> 0 | R41: =ALL!BJ42 -> 0 | S41: =ALL!BN42 -> 0 | T41: =ALL!BR42 -> 0 | U41: =ALL!BV42 -> 0 | V41: =ALL!BZ42 -> 0 | W41: =ALL!CC42 -> 0 | X41: =ALL!CH42 -> 0 | Y41: =ALL!CL42 -> 0 | Z41: =ALL!CP42 -> 0 | AA41: =ALL!CT42 -> 0 | AB41: =ALL!CX42 -> 0 | AC41: =ALL!DB42 -> 0 | AD41: =ALL!DF42 -> 0 | AE41: =ALL!DJ42 -> 0 | AF41: =ALL!DN42 -> 0 | AG41: =ALL!DR42 -> 0 | AH41: =ALL!DV42 -> 0 | AJ41: 5 | AL41: 5 | AM41: 1
A42: بخعون | B42: E12 | C42: =JARD_HA_OMT!D42 -> 0 | D42: =IFERROR(VLOOKUP($A42&$B42,CHOOSE({1,2},ALL!$A$4:$A$500&ALL!$B$4:$B$500,ALL!$F$4:$F$500),2,FALSE),"") -> 0 | E42: =ALL!J43 -> 9 | F42: =ALL!N43 -> 0 | G42: =ALL!R43 -> 14 | H42: =ALL!V43 -> 0 | I42: =ALL!Z43 -> 0 | J42: =ALL!AD43 -> 0 | K42: =ALL!AH43 -> 0 | L42: =ALL!AL43 -> 0 | M42: =ALL!AP43 -> 0 | N42: =ALL!AT43 -> 0 | O42: =ALL!AX43 -> 0 | P42: =ALL!BB43 -> 0 | Q42: =ALL!BF43 -> 0 | R42: =ALL!BJ43 -> 0 | S42: =ALL!BN43 -> 0 | T42: =ALL!BR43 -> 0 | U42: =ALL!BV43 -> 0 | V42: =ALL!BZ43 -> 0 | W42: =ALL!CC43 -> 0 | X42: =ALL!CH43 -> 0 | Y42: =ALL!CL43 -> 0 | Z42: =ALL!CP43 -> 0 | AA42: =ALL!CT43 -> 0 | AB42: =ALL!CX43 -> 0 | AC42: =ALL!DB43 -> 0 | AD42: =ALL!DF43 -> 0 | AE42: =ALL!DJ43 -> 0 | AF42: =ALL!DN43 -> 0 | AG42: =ALL!DR43 -> 0 | AH42: =ALL!DV43 -> 0 | AJ42: 23 | AL42: 23 | AM42: 9
A43: بيت ملات | B43: E13 | C43: =JARD_HA_OMT!D43 -> 0 | D43: =IFERROR(VLOOKUP($A43&$B43,CHOOSE({1,2},ALL!$A$4:$A$500&ALL!$B$4:$B$500,ALL!$F$4:$F$500),2,FALSE),"") -> 0 | E43: =ALL!J44 -> 1 | F43: =ALL!N44 -> 1 | G43: =ALL!R44 -> 1 | H43: =ALL!V44 -> 2 | I43: =ALL!Z44 -> 0 | J43: =ALL!AD44 -> 0 | K43: =ALL!AH44 -> 0 | L43: =ALL!AL44 -> 0 | M43: =ALL!AP44 -> 0 | N43: =ALL!AT44 -> 0 | O43: =ALL!AX44 -> 0 | P43: =ALL!BB44 -> 0 | Q43: =ALL!BF44 -> 0 | R43: =ALL!BJ44 -> 0 | S43: =ALL!BN44 -> 0 | T43: =ALL!BR44 -> 0 | U43: =ALL!BV44 -> 0 | V43: =ALL!BZ44 -> 0 | W43: =ALL!CC44 -> 0 | X43: =ALL!CH44 -> 0 | Y43: =ALL!CL44 -> 0 | Z43: =ALL!CP44 -> 0 | AA43: =ALL!CT44 -> 0 | AB43: =ALL!CX44 -> 0 | AC43: =ALL!DB44 -> 0 | AD43: =ALL!DF44 -> 0 | AE43: =ALL!DJ44 -> 0 | AF43: =ALL!DN44 -> 0 | AG43: =ALL!DR44 -> 0 | AH43: =ALL!DV44 -> 0 | AJ43: 5 | AL43: 5 | AM43: 2
A44: المنية | B44: E2 | C44: =JARD_HA_OMT!D44 -> 0 | D44: =IFERROR(VLOOKUP($A44&$B44,CHOOSE({1,2},ALL!$A$4:$A$500&ALL!$B$4:$B$500,ALL!$F$4:$F$500),2,FALSE),"") -> 2 | E44: =ALL!J45 -> 1 | F44: =ALL!N45 -> 2 | G44: =ALL!R45 -> 7 | H44: =ALL!V45 -> 4 | I44: =ALL!Z45 -> 0 | J44: =ALL!AD45 -> 0 | K44: =ALL!AH45 -> 0 | L44: =ALL!AL45 -> 0 | M44: =ALL!AP45 -> 0 | N44: =ALL!AT45 -> 0 | O44: =ALL!AX45 -> 0 | P44: =ALL!BB45 -> 0 | Q44: =ALL!BF45 -> 0 | R44: =ALL!BJ45 -> 0 | S44: =ALL!BN45 -> 0 | T44: =ALL!BR45 -> 0 | U44: =ALL!BV45 -> 0 | V44: =ALL!BZ45 -> 0 | W44: =ALL!CC45 -> 0 | X44: =ALL!CH45 -> 0 | Y44: =ALL!CL45 -> 0 | Z44: =ALL!CP45 -> 0 | AA44: =ALL!CT45 -> 0 | AB44: =ALL!CX45 -> 0 | AC44: =ALL!DB45 -> 0 | AD44: =ALL!DF45 -> 0 | AE44: =ALL!DJ45 -> 0 | AF44: =ALL!DN45 -> 0 | AG44: =ALL!DR45 -> 0 | AH44: =ALL!DV45 -> 0 | AJ44: 16 | AL44: 16 | AM44: 5
A45: سير الضنية | B45: E3 | C45: =JARD_HA_OMT!D45 -> 0 | D45: =IFERROR(VLOOKUP($A45&$B45,CHOOSE({1,2},ALL!$A$4:$A$500&ALL!$B$4:$B$500,ALL!$F$4:$F$500),2,FALSE),"") -> 2 | E45: =ALL!J46 -> 0 | F45: =ALL!N46 -> 3 | G45: =ALL!R46 -> 3 | H45: =ALL!V46 -> 0 | I45: =ALL!Z46 -> 0 | J45: =ALL!AD46 -> 0 | K45: =ALL!AH46 -> 0 | L45: =ALL!AL46 -> 0 | M45: =ALL!AP46 -> 0 | N45: =ALL!AT46 -> 0 | O45: =ALL!AX46 -> 0 | P45: =ALL!BB46 -> 0 | Q45: =ALL!BF46 -> 0 | R45: =ALL!BJ46 -> 0 | S45: =ALL!BN46 -> 0 | T45: =ALL!BR46 -> 0 | U45: =ALL!BV46 -> 0 | V45: =ALL!BZ46 -> 0 | W45: =ALL!CC46 -> 0 | X45: =ALL!CH46 -> 0 | Y45: =ALL!CL46 -> 0 | Z45: =ALL!CP46 -> 0 | AA45: =ALL!CT46 -> 0 | AB45: =ALL!CX46 -> 0 | AC45: =ALL!DB46 -> 0 | AD45: =ALL!DF46 -> 0 | AE45: =ALL!DJ46 -> 0 | AF45: =ALL!DN46 -> 0 | AG45: =ALL!DR46 -> 0 | AH45: =ALL!DV46 -> 0 | AJ45: 8 | AL45: 8 | AM45: 5
A46: حلبا عكار | B46: E4 | C46: =JARD_HA_OMT!D46 -> 0 | D46: =IFERROR(VLOOKUP($A46&$B46,CHOOSE({1,2},ALL!$A$4:$A$500&ALL!$B$4:$B$500,ALL!$F$4:$F$500),2,FALSE),"") -> 0 | E46: =ALL!J47 -> 3 | F46: =ALL!N47 -> 8 | G46: =ALL!R47 -> 0 | H46: =ALL!V47 -> 5 | I46: =ALL!Z47 -> 0 | J46: =ALL!AD47 -> 0 | K46: =ALL!AH47 -> 0 | L46: =ALL!AL47 -> 0 | M46: =ALL!AP47 -> 0 | N46: =ALL!AT47 -> 0 | O46: =ALL!AX47 -> 0 | P46: =ALL!BB47 -> 0 | Q46: =ALL!BF47 -> 0 | R46: =ALL!BJ47 -> 0 | S46: =ALL!BN47 -> 0 | T46: =ALL!BR47 -> 0 | U46: =ALL!BV47 -> 0 | V46: =ALL!BZ47 -> 0 | W46: =ALL!CC47 -> 0 | X46: =ALL!CH47 -> 0 | Y46: =ALL!CL47 -> 0 | Z46: =ALL!CP47 -> 0 | AA46: =ALL!CT47 -> 0 | AB46: =ALL!CX47 -> 0 | AC46: =ALL!DB47 -> 0 | AD46: =ALL!DF47 -> 0 | AE46: =ALL!DJ47 -> 0 | AF46: =ALL!DN47 -> 0 | AG46: =ALL!DR47 -> 0 | AH46: =ALL!DV47 -> 0 | AJ46: 16 | AL46: 16 | AM46: 11
A47: القبيات | B47: E5 | C47: =JARD_HA_OMT!D47 -> 0 | D47: =IFERROR(VLOOKUP($A47&$B47,CHOOSE({1,2},ALL!$A$4:$A$500&ALL!$B$4:$B$500,ALL!$F$4:$F$500),2,FALSE),"") -> 0 | E47: =ALL!J48 -> 0 | F47: =ALL!N48 -> 0 | G47: =ALL!R48 -> 4 | H47: =ALL!V48 -> 0 | I47: =ALL!Z48 -> 0 | J47: =ALL!AD48 -> 0 | K47: =ALL!AH48 -> 0 | L47: =ALL!AL48 -> 0 | M47: =ALL!AP48 -> 0 | N47: =ALL!AT48 -> 0 | O47: =ALL!AX48 -> 0 | P47: =ALL!BB48 -> 0 | Q47: =ALL!BF48 -> 0 | R47: =ALL!BJ48 -> 0 | S47: =ALL!BN48 -> 0 | T47: =ALL!BR48 -> 0 | U47: =ALL!BV48 -> 0 | V47: =ALL!BZ48 -> 0 | W47: =ALL!CC48 -> 0 | X47: =ALL!CH48 -> 0 | Y47: =ALL!CL48 -> 0 | Z47: =ALL!CP48 -> 0 | AA47: =ALL!CT48 -> 0 | AB47: =ALL!CX48 -> 0 | AC47: =ALL!DB48 -> 0 | AD47: =ALL!DF48 -> 0 | AE47: =ALL!DJ48 -> 0 | AF47: =ALL!DN48 -> 0 | AG47: =ALL!DR48 -> 0 | AH47: =ALL!DV48 -> 0 | AJ47: 4 | AL47: 4 | AM47: 0
A48: البترون | B48: E6 | C48: =JARD_HA_OMT!D48 -> 0 | D48: =IFERROR(VLOOKUP($A48&$B48,CHOOSE({1,2},ALL!$A$4:$A$500&ALL!$B$4:$B$500,ALL!$F$4:$F$500),2,FALSE),"") -> 0 | E48: =ALL!J49 -> 0 | F48: =ALL!N49 -> 3 | G48: =ALL!R49 -> 1 | H48: =ALL!V49 -> 1 | I48: =ALL!Z49 -> 0 | J48: =ALL!AD49 -> 0 | K48: =ALL!AH49 -> 0 | L48: =ALL!AL49 -> 0 | M48: =ALL!AP49 -> 0 | N48: =ALL!AT49 -> 0 | O48: =ALL!AX49 -> 0 | P48: =ALL!BB49 -> 0 | Q48: =ALL!BF49 -> 0 | R48: =ALL!BJ49 -> 0 | S48: =ALL!BN49 -> 0 | T48: =ALL!BR49 -> 0 | U48: =ALL!BV49 -> 0 | V48: =ALL!BZ49 -> 0 | W48: =ALL!CC49 -> 0 | X48: =ALL!CH49 -> 0 | Y48: =ALL!CL49 -> 0 | Z48: =ALL!CP49 -> 0 | AA48: =ALL!CT49 -> 0 | AB48: =ALL!CX49 -> 0 | AC48: =ALL!DB49 -> 0 | AD48: =ALL!DF49 -> 0 | AE48: =ALL!DJ49 -> 0 | AF48: =ALL!DN49 -> 0 | AG48: =ALL!DR49 -> 0 | AH48: =ALL!DV49 -> 0 | AJ48: 5 | AL48: 5 | AM48: 3
A49: الكورة | B49: E7 | C49: =JARD_HA_OMT!D49 -> 0 | D49: 0 | E49: =ALL!J50 -> 5 | F49: =ALL!N50 -> 0 | G49: =ALL!R50 -> 6 | H49: =ALL!V50 -> 0 | I49: =ALL!Z50 -> 0 | J49: =ALL!AD50 -> 0 | K49: =ALL!AH50 -> 0 | L49: =ALL!AL50 -> 0 | M49: =ALL!AP50 -> 0 | N49: =ALL!AT50 -> 0 | O49: =ALL!AX50 -> 0 | P49: =ALL!BB50 -> 0 | Q49: =ALL!BF50 -> 0 | R49: =ALL!BJ50 -> 0 | S49: =ALL!BN50 -> 0 | T49: =ALL!BR50 -> 0 | U49: =ALL!BV50 -> 0 | V49: =ALL!BZ50 -> 0 | W49: =ALL!CC50 -> 0 | X49: =ALL!CH50 -> 0 | Y49: =ALL!CL50 -> 0 | Z49: =ALL!CP50 -> 0 | AA49: =ALL!CT50 -> 0 | AB49: =ALL!CX50 -> 0 | AC49: =ALL!DB50 -> 0 | AD49: =ALL!DF50 -> 0 | AE49: =ALL!DJ50 -> 0 | AF49: =ALL!DN50 -> 0 | AG49: =ALL!DR50 -> 0 | AH49: =ALL!DV50 -> 0 | AJ49: 11 | AL49: 11 | AM49: 5
A50: زغرتا | B50: E8 | C50: =JARD_HA_OMT!D50 -> 0 | D50: 0 | E50: =ALL!J51 -> 1 | F50: =ALL!N51 -> 1 | G50: =ALL!R51 -> 0 | H50: =ALL!V51 -> 0 | I50: =ALL!Z51 -> 0 | J50: =ALL!AD51 -> 0 | K50: =ALL!AH51 -> 0 | L50: =ALL!AL51 -> 0 | M50: =ALL!AP51 -> 0 | N50: =ALL!AT51 -> 0 | O50: =ALL!AX51 -> 0 | P50: =ALL!BB51 -> 0 | Q50: =ALL!BF51 -> 0 | R50: =ALL!BJ51 -> 0 | S50: =ALL!BN51 -> 0 | T50: =ALL!BR51 -> 0 | U50: =ALL!BV51 -> 0 | V50: =ALL!BZ51 -> 0 | W50: =ALL!CC51 -> 0 | X50: =ALL!CH51 -> 0 | Y50: =ALL!CL51 -> 0 | Z50: =ALL!CP51 -> 0 | AA50: =ALL!CT51 -> 0 | AB50: =ALL!CX51 -> 0 | AC50: =ALL!DB51 -> 0 | AD50: =ALL!DF51 -> 0 | AE50: =ALL!DJ51 -> 0 | AF50: =ALL!DN51 -> 0 | AG50: =ALL!DR51 -> 0 | AH50: =ALL!DV51 -> 0 | AJ50: 2 | AL50: 2 | AM50: 2
A51: بشري | B51: E9 | C51: =JARD_HA_OMT!D51 -> 0 | D51: =IFERROR(VLOOKUP($A51&$B51,CHOOSE({1,2},ALL!$A$4:$A$500&ALL!$B$4:$B$500,ALL!$F$4:$F$500),2,FALSE),"") -> 0 | E51: =ALL!J52 -> 0 | F51: =ALL!N52 -> 1 | G51: =ALL!R52 -> 0 | H51: =ALL!V52 -> 0 | I51: =ALL!Z52 -> 0 | J51: =ALL!AD52 -> 0 | K51: =ALL!AH52 -> 0 | L51: =ALL!AL52 -> 0 | M51: =ALL!AP52 -> 0 | N51: =ALL!AT52 -> 0 | O51: =ALL!AX52 -> 0 | P51: =ALL!BB52 -> 0 | Q51: =ALL!BF52 -> 0 | R51: =ALL!BJ52 -> 0 | S51: =ALL!BN52 -> 0 | T51: =ALL!BR52 -> 0 | U51: =ALL!BV52 -> 0 | V51: =ALL!BZ52 -> 0 | W51: =ALL!CC52 -> 0 | X51: =ALL!CH52 -> 0 | Y51: =ALL!CL52 -> 0 | Z51: =ALL!CP52 -> 0 | AA51: =ALL!CT52 -> 0 | AB51: =ALL!CX52 -> 0 | AC51: =ALL!DB52 -> 0 | AD51: =ALL!DF52 -> 0 | AE51: =ALL!DJ52 -> 0 | AF51: =ALL!DN52 -> 0 | AG51: =ALL!DR52 -> 0 | AH51: =ALL!DV52 -> 0 | AJ51: 1 | AL51: 1 | AM51: 1
A52: المجموع | C52: =SUM(C3:C51) -> 0 | D52: =SUM(D3:D51) -> 131 | E52: 253 | F52: 135 | G52: 270 | H52: 154 | I52: 0 | J52: 0 | K52: 0 | L52: 0 | M52: 0 | N52: 0 | O52: 0 | P52: 0 | Q52: 0 | R52: 0 | S52: 0 | T52: 0 | U52: 0 | V52: 0 | W52: 0 | X52: 0 | Y52: 0 | Z52: 0 | AA52: 0 | AB52: 0 | AC52: 0 | AD52: 0 | AE52: 0 | AF52: 0 | AG52: 0 | AH52: =SUM(AH3:AH51) -> 0 | AJ52: =SUM(AJ3:AJ51) -> 943 | AL52: =SUM(AL3:AL51) -> 943 | AM52: =SUM(AM3:AM51) -> 519

Sheet JARD_MOG
B1: جدول بعدد المغلفات المستلمة من المشغل والمسلمة الى اقلام النفوس والتي هي قيد التسليم من 2020/12/1 لغــاية 2020/12/31
A2: قلم النفوس | B2: رمز | C2: المجموع العام لغاية2020/12/31 | D2: مغلفات الشهر المنصرم | E2: مغلفات المسلمة لغاية 2020/12/31 | F2: مغلفات قيد التسليم
A3: بيروت | B3: A | C3: =IFERROR(VLOOKUP($A3&$B3,CHOOSE({1,2},MOG!$A$3:$A$500&MOG!$B$3:$B$500,MOG!$AK$3:$AK$500),2,FALSE),"") -> 77 | E3: =SUM((D3+C3)-F3) -> 77 | F3: =IFERROR(VLOOKUP($A3&$B3,CHOOSE({1,2},MOG!$A$3:$A$500&MOG!$B$3:$B$500,MOG!$AM$3:$AM$500),2,FALSE),"") -> 0
A4: بعبدا | B4: B1 | C4: =IFERROR(VLOOKUP($A4&$B4,CHOOSE({1,2},MOG!$A$3:$A$500&MOG!$B$3:$B$500,MOG!$AK$3:$AK$500),2,FALSE),"") -> 15 | E4: =SUM((D4+C4)-F4) -> 9 | F4: =IFERROR(VLOOKUP($A4&$B4,CHOOSE({1,2},MOG!$A$3:$A$500&MOG!$B$3:$B$500,MOG!$AM$3:$AM$500),2,FALSE),"") -> 6
A5: بكفيا | B5: B10 | C5: =IFERROR(VLOOKUP($A5&$B5,CHOOSE({1,2},MOG!$A$3:$A$500&MOG!$B$3:$B$500,MOG!$AK$3:$AK$500),2,FALSE),"") -> 17 | E5: 8 | F5: =IFERROR(VLOOKUP($A5&$B5,CHOOSE({1,2},MOG!$A$3:$A$500&MOG!$B$3:$B$500,MOG!$AM$3:$AM$500),2,FALSE),"") -> 9
A6: المتن الشمالي العالي | B6: B11 | C6: =IFERROR(VLOOKUP($A6&$B6,CHOOSE({1,2},MOG!$A$3:$A$500&MOG!$B$3:$B$500,MOG!$AK$3:$AK$500),2,FALSE),"") -> 10 | E6: 5 | F6: =IFERROR(VLOOKUP($A6&$B6,CHOOSE({1,2},MOG!$A$3:$A$500&MOG!$B$3:$B$500,MOG!$AM$3:$AM$500),2,FALSE),"") -> 5
A7: كسروان | B7: B12 | C7: =IFERROR(VLOOKUP($A7&$B7,CHOOSE({1,2},MOG!$A$3:$A$500&MOG!$B$3:$B$500,MOG!$AK$3:$AK$500),2,FALSE),"") -> 33 | E7: 19 | F7: =IFERROR(VLOOKUP($A7&$B7,CHOOSE({1,2},MOG!$A$3:$A$500&MOG!$B$3:$B$500,MOG!$AM$3:$AM$500),2,FALSE),"") -> 14
A8: جبيل | B8: B13 | C8: =IFERROR(VLOOKUP($A8&$B8,CHOOSE({1,2},MOG!$A$3:$A$500&MOG!$B$3:$B$500,MOG!$AK$3:$AK$500),2,FALSE),"") -> 9 | E8: 3 | F8: =IFERROR(VLOOKUP($A8&$B8,CHOOSE({1,2},MOG!$A$3:$A$500&MOG!$B$3:$B$500,MOG!$AM$3:$AM$500),2,FALSE),"") -> 6
A9: فتوح كسروان | B9: B14 | C9: =IFERROR(VLOOKUP($A9&$B9,CHOOSE({1,2},MOG!$A$3:$A$500&MOG!$B$3:$B$500,MOG!$AK$3:$AK$500),2,FALSE),"") -> 11 | E9: 5 | F9: =IFERROR(VLOOKUP($A9&$B9,CHOOSE({1,2},MOG!$A$3:$A$500&MOG!$B$3:$B$500,MOG!$AM$3:$AM$500),2,FALSE),"") -> 6
A10: الشويفات | B10: B2 | C10: =IFERROR(VLOOKUP($A10&$B10,CHOOSE({1,2},MOG!$A$3:$A$500&MOG!$B$3:$B$500,MOG!$AK$3:$AK$500),2,FALSE),"") -> 30 | E10: 19 | F10: =IFERROR(VLOOKUP($A10&$B10,CHOOSE({1,2},MOG!$A$3:$A$500&MOG!$B$3:$B$500,MOG!$AM$3:$AM$500),2,FALSE),"") -> 11
A11: برجا | B11: B3 | C11: =IFERROR(VLOOKUP($A11&$B11,CHOOSE({1,2},MOG!$A$3:$A$500&MOG!$B$3:$B$500,MOG!$AK$3:$AK$500),2,FALSE),"") -> 7 | E11: 0 | F11: =IFERROR(VLOOKUP($A11&$B11,CHOOSE({1,2},MOG!$A$3:$A$500&MOG!$B$3:$B$500,MOG!$AM$3:$AM$500),2,FALSE),"") -> 7
A12: شحيم | B12: B4 | C12: =IFERROR(VLOOKUP($A12&$B12,CHOOSE({1,2},MOG!$A$3:$A$500&MOG!$B$3:$B$500,MOG!$AK$3:$AK$500),2,FALSE),"") -> 8 | E12: 1 | F12: =IFERROR(VLOOKUP($A12&$B12,CHOOSE({1,2},MOG!$A$3:$A$500&MOG!$B$3:$B$500,MOG!$AM$3:$AM$500),2,FALSE),"") -> 7
A13: عاليه | B13: B5 | C13: =IFERROR(VLOOKUP($A13&$B13,CHOOSE({1,2},MOG!$A$3:$A$500&MOG!$B$3:$B$500,MOG!$AK$3:$AK$500),2,FALSE),"") -> 17 | E13: 14 | F13: =IFERROR(VLOOKUP($A13&$B13,CHOOSE({1,2},MOG!$A$3:$A$500&MOG!$B$3:$B$500,MOG!$AM$3:$AM$500),2,FALSE),"") -> 3
A14: حمانا | B14: B6 | C14: =IFERROR(VLOOKUP($A14&$B14,CHOOSE({1,2},MOG!$A$3:$A$500&MOG!$B$3:$B$500,MOG!$AK$3:$AK$500),2,FALSE),"") -> 5 | E14: 2 | F14: =IFERROR(VLOOKUP($A14&$B14,CHOOSE({1,2},MOG!$A$3:$A$500&MOG!$B$3:$B$500,MOG!$AM$3:$AM$500),2,FALSE),"") -> 3
A15: الشوف | B15: B7 | C15: =IFERROR(VLOOKUP($A15&$B15,CHOOSE({1,2},MOG!$A$3:$A$500&MOG!$B$3:$B$500,MOG!$AK$3:$AK$500),2,FALSE),"") -> 9 | E15: 3 | F15: =IFERROR(VLOOKUP($A15&$B15,CHOOSE({1,2},MOG!$A$3:$A$500&MOG!$B$3:$B$500,MOG!$AM$3:$AM$500),2,FALSE),"") -> 6
A16: المتن | B16: B8 | C16: =IFERROR(VLOOKUP($A16&$B16,CHOOSE({1,2},MOG!$A$3:$A$500&MOG!$B$3:$B$500,MOG!$AK$3:$AK$500),2,FALSE),"") -> 26 | E16: 12 | F16: =IFERROR(VLOOKUP($A16&$B16,CHOOSE({1,2},MOG!$A$3:$A$500&MOG!$B$3:$B$500,MOG!$AM$3:$AM$500),2,FALSE),"") -> 14
A17: انطلياس | B17: B9 | C17: =IFERROR(VLOOKUP($A17&$B17,CHOOSE({1,2},MOG!$A$3:$A$500&MOG!$B$3:$B$500,MOG!$AK$3:$AK$500),2,FALSE),"") -> 20 | E17: 11 | F17: =IFERROR(VLOOKUP($A17&$B17,CHOOSE({1,2},MOG!$A$3:$A$500&MOG!$B$3:$B$500,MOG!$AM$3:$AM$500),2,FALSE),"") -> 9
A18: صيدا | B18: C1 | C18: =IFERROR(VLOOKUP($A18&$B18,CHOOSE({1,2},MOG!$A$3:$A$500&MOG!$B$3:$B$500,MOG!$AK$3:$AK$500),2,FALSE),"") -> 0 | E18: 0 | F18: =IFERROR(VLOOKUP($A18&$B18,CHOOSE({1,2},MOG!$A$3:$A$500&MOG!$B$3:$B$500,MOG!$AM$3:$AM$500),2,FALSE),"") -> 0
A19: جويا | B19: C10 | C19: =IFERROR(VLOOKUP($A19&$B19,CHOOSE({1,2},MOG!$A$3:$A$500&MOG!$B$3:$B$500,MOG!$AK$3:$AK$500),2,FALSE),"") -> 27 | E19: 0 | F19: =IFERROR(VLOOKUP($A19&$B19,CHOOSE({1,2},MOG!$A$3:$A$500&MOG!$B$3:$B$500,MOG!$AM$3:$AM$500),2,FALSE),"") -> 27
A20: ميس الجبل | B20: C11 | C20: =IFERROR(VLOOKUP($A20&$B20,CHOOSE({1,2},MOG!$A$3:$A$500&MOG!$B$3:$B$500,MOG!$AK$3:$AK$500),2,FALSE),"") -> 14 | E20: 0 | F20: =IFERROR(VLOOKUP($A20&$B20,CHOOSE({1,2},MOG!$A$3:$A$500&MOG!$B$3:$B$500,MOG!$AM$3:$AM$500),2,FALSE),"") -> 14
A21: صور | B21: C2 | C21: =IFERROR(VLOOKUP($A21&$B21,CHOOSE({1,2},MOG!$A$3:$A$500&MOG!$B$3:$B$500,MOG!$AK$3:$AK$500),2,FALSE),"") -> 30 | E21: 0 | F21: =IFERROR(VLOOKUP($A21&$B21,CHOOSE({1,2},MOG!$A$3:$A$500&MOG!$B$3:$B$500,MOG!$AM$3:$AM$500),2,FALSE),"") -> 30
A22: جزين | B22: C3 | C22: =IFERROR(VLOOKUP($A22&$B22,CHOOSE({1,2},MOG!$A$3:$A$500&MOG!$B$3:$B$500,MOG!$AK$3:$AK$500),2,FALSE),"") -> 10 | E22: 0 | F22: =IFERROR(VLOOKUP($A22&$B22,CHOOSE({1,2},MOG!$A$3:$A$500&MOG!$B$3:$B$500,MOG!$AM$3:$AM$500),2,FALSE),"") -> 10
A23: النبطية | B23: C4 | C23: =IFERROR(VLOOKUP($A23&$B23,CHOOSE({1,2},MOG!$A$3:$A$500&MOG!$B$3:$B$500,MOG!$AK$3:$AK$500),2,FALSE),"") -> 29 | E23: 5 | F23: =IFERROR(VLOOKUP($A23&$B23,CHOOSE({1,2},MOG!$A$3:$A$500&MOG!$B$3:$B$500,MOG!$AM$3:$AM$500),2,FALSE),"") -> 24
A24: بنت جبيل | B24: C5 | C24: =IFERROR(VLOOKUP($A24&$B24,CHOOSE({1,2},MOG!$A$3:$A$500&MOG!$B$3:$B$500,MOG!$AK$3:$AK$500),2,FALSE),"") -> 36 | E24: 2 | F24: =IFERROR(VLOOKUP($A24&$B24,CHOOSE({1,2},MOG!$A$3:$A$500&MOG!$B$3:$B$500,MOG!$AM$3:$AM$500),2,FALSE),"") -> 34
A25: مرجعيون | B25: C6 | C25: =IFERROR(VLOOKUP($A25&$B25,CHOOSE({1,2},MOG!$A$3:$A$500&MOG!$B$3:$B$500,MOG!$AK$3:$AK$500),2,FALSE),"") -> 20 | E25: 0 | F25: =IFERROR(VLOOKUP($A25&$B25,CHOOSE({1,2},MOG!$A$3:$A$500&MOG!$B$3:$B$500,MOG!$AM$3:$AM$500),2,FALSE),"") -> 20
A26: حاصبيا | B26: C7 | C26: =IFERROR(VLOOKUP($A26&$B26,CHOOSE({1,2},MOG!$A$3:$A$500&MOG!$B$3:$B$500,MOG!$AK$3:$AK$500),2,FALSE),"") -> 18 | E26: 1 | F26: =IFERROR(VLOOKUP($A26&$B26,CHOOSE({1,2},MOG!$A$3:$A$500&MOG!$B$3:$B$500,MOG!$AM$3:$AM$500),2,FALSE),"") -> 17
A27: تبنين | B27: C8 | C27: =IFERROR(VLOOKUP($A27&$B27,CHOOSE({1,2},MOG!$A$3:$A$500&MOG!$B$3:$B$500,MOG!$AK$3:$AK$500),2,FALSE),"") -> 31 | E27: 2 | F27: =IFERROR(VLOOKUP($A27&$B27,CHOOSE({1,2},MOG!$A$3:$A$500&MOG!$B$3:$B$500,MOG!$AM$3:$AM$500),2,FALSE),"") -> 29
A28: جباع | B28: C9 | C28: =IFERROR(VLOOKUP($A28&$B28,CHOOSE({1,2},MOG!$A$3:$A$500&MOG!$B$3:$B$500,MOG!$AK$3:$AK$500),2,FALSE),"") -> 13 | E28: 1 | F28: =IFERROR(VLOOKUP($A28&$B28,CHOOSE({1,2},MOG!$A$3:$A$500&MOG!$B$3:$B$500,MOG!$AM$3:$AM$500),2,FALSE),"") -> 12
A29: زحلة | B29: D1 | C29: =IFERROR(VLOOKUP($A29&$B29,CHOOSE({1,2},MOG!$A$3:$A$500&MOG!$B$3:$B$500,MOG!$AK$3:$AK$500),2,FALSE),"") -> 74 | E29: 4 | F29: =IFERROR(VLOOKUP($A29&$B29,CHOOSE({1,2},MOG!$A$3:$A$500&MOG!$B$3:$B$500,MOG!$AM$3:$AM$500),2,FALSE),"") -> 70
A30: النبي شيت | B30: D10 | C30: =IFERROR(VLOOKUP($A30&$B30,CHOOSE({1,2},MOG!$A$3:$A$500&MOG!$B$3:$B$500,MOG!$AK$3:$AK$500),2,FALSE),"") -> 22 | E30: 13 | F30: =IFERROR(VLOOKUP($A30&$B30,CHOOSE({1,2},MOG!$A$3:$A$500&MOG!$B$3:$B$500,MOG!$AM$3:$AM$500),2,FALSE),"") -> 9
A31: راشيا | B31: D2 | C31: =IFERROR(VLOOKUP($A31&$B31,CHOOSE({1,2},MOG!$A$3:$A$500&MOG!$B$3:$B$500,MOG!$AK$3:$AK$500),2,FALSE),"") -> 27 | E31: 0 | F31: =IFERROR(VLOOKUP($A31&$B31,CHOOSE({1,2},MOG!$A$3:$A$500&MOG!$B$3:$B$500,MOG!$AM$3:$AM$500),2,FALSE),"") -> 27
A32: البقاع الغربي | B32: D3 | C32: =IFERROR(VLOOKUP($A32&$B32,CHOOSE({1,2},MOG!$A$3:$A$500&MOG!$B$3:$B$500,MOG!$AK$3:$AK$500),2,FALSE),"") -> 8 | E32: 0 | F32: =IFERROR(VLOOKUP($A32&$B32,CHOOSE({1,2},MOG!$A$3:$A$500&MOG!$B$3:$B$500,MOG!$AM$3:$AM$500),2,FALSE),"") -> 8
A33: شمسطار | B33: D4 | C33: =IFERROR(VLOOKUP($A33&$B33,CHOOSE({1,2},MOG!$A$3:$A$500&MOG!$B$3:$B$500,MOG!$AK$3:$AK$500),2,FALSE),"") -> 26 | E33: 11 | F33: =IFERROR(VLOOKUP($A33&$B33,CHOOSE({1,2},MOG!$A$3:$A$500&MOG!$B$3:$B$500,MOG!$AM$3:$AM$500),2,FALSE),"") -> 15
A34: بعلبك | B34: D5 | C34: =IFERROR(VLOOKUP($A34&$B34,CHOOSE({1,2},MOG!$A$3:$A$500&MOG!$B$3:$B$500,MOG!$AK$3:$AK$500),2,FALSE),"") -> 55 | E34: 19 | F34: =IFERROR(VLOOKUP($A34&$B34,CHOOSE({1,2},MOG!$A$3:$A$500&MOG!$B$3:$B$500,MOG!$AM$3:$AM$500),2,FALSE),"") -> 36
A35: الهرمل | B35: D6 | C35: =IFERROR(VLOOKUP($A35&$B35,CHOOSE({1,2},MOG!$A$3:$A$500&MOG!$B$3:$B$500,MOG!$AK$3:$AK$500),2,FALSE),"") -> 5 | E35: 0 | F35: =IFERROR(VLOOKUP($A35&$B35,CHOOSE({1,2},MOG!$A$3:$A$500&MOG!$B$3:$B$500,MOG!$AM$3:$AM$500),2,FALSE),"") -> 5
A36: دير الاحمر | B36: D7 | C36: =IFERROR(VLOOKUP($A36&$B36,CHOOSE({1,2},MOG!$A$3:$A$500&MOG!$B$3:$B$500,MOG!$AK$3:$AK$500),2,FALSE),"") -> 14 | E36: 6 | F36: =IFERROR(VLOOKUP($A36&$B36,CHOOSE({1,2},MOG!$A$3:$A$500&MOG!$B$3:$B$500,MOG!$AM$3:$AM$500),2,FALSE),"") -> 8
A37: اللبوة | B37: D8 | C37: =IFERROR(VLOOKUP($A37&$B37,CHOOSE({1,2},MOG!$A$3:$A$500&MOG!$B$3:$B$500,MOG!$AK$3:$AK$500),2,FALSE),"") -> 26 | E37: 0 | F37: =IFERROR(VLOOKUP($A37&$B37,CHOOSE({1,2},MOG!$A$3:$A$500&MOG!$B$3:$B$500,MOG!$AM$3:$AM$500),2,FALSE),"") -> 26
A38: صغبين | B38: D9 | C38: =IFERROR(VLOOKUP($A38&$B38,CHOOSE({1,2},MOG!$A$3:$A$500&MOG!$B$3:$B$500,MOG!$AK$3:$AK$500),2,FALSE),"") -> 15 | E38: 2 | F38: =IFERROR(VLOOKUP($A38&$B38,CHOOSE({1,2},MOG!$A$3:$A$500&MOG!$B$3:$B$500,MOG!$AM$3:$AM$500),2,FALSE),"") -> 13
A39: طرابلس | B39: E1 | C39: =IFERROR(VLOOKUP($A39&$B39,CHOOSE({1,2},MOG!$A$3:$A$500&MOG!$B$3:$B$500,MOG!$AK$3:$AK$500),2,FALSE),"") -> 50 | E39: 9 | F39: =IFERROR(VLOOKUP($A39&$B39,CHOOSE({1,2},MOG!$A$3:$A$500&MOG!$B$3:$B$500,MOG!$AM$3:$AM$500),2,FALSE),"") -> 41
A40: دوما | B40: E10 | C40: =IFERROR(VLOOKUP($A40&$B40,CHOOSE({1,2},MOG!$A$3:$A$500&MOG!$B$3:$B$500,MOG!$AK$3:$AK$500),2,FALSE),"") -> 4 | E40: 4 | F40: =IFERROR(VLOOKUP($A40&$B40,CHOOSE({1,2},MOG!$A$3:$A$500&MOG!$B$3:$B$500,MOG!$AM$3:$AM$500),2,FALSE),"") -> 0
A41: العبدة | B41: E11 | C41: =IFERROR(VLOOKUP($A41&$B41,CHOOSE({1,2},MOG!$A$3:$A$500&MOG!$B$3:$B$500,MOG!$AK$3:$AK$500),2,FALSE),"") -> 17 | E41: 1 | F41: =IFERROR(VLOOKUP($A41&$B41,CHOOSE({1,2},MOG!$A$3:$A$500&MOG!$B$3:$B$500,MOG!$AM$3:$AM$500),2,FALSE),"") -> 16
A42: بخعون | B42: E12 | C42: =IFERROR(VLOOKUP($A42&$B42,CHOOSE({1,2},MOG!$A$3:$A$500&MOG!$B$3:$B$500,MOG!$AK$3:$AK$500),2,FALSE),"") -> 8 | E42: 5 | F42: =IFERROR(VLOOKUP($A42&$B42,CHOOSE({1,2},MOG!$A$3:$A$500&MOG!$B$3:$B$500,MOG!$AM$3:$AM$500),2,FALSE),"") -> 3
A43: بيت ملات | B43: E13 | C43: =IFERROR(VLOOKUP($A43&$B43,CHOOSE({1,2},MOG!$A$3:$A$500&MOG!$B$3:$B$500,MOG!$AK$3:$AK$500),2,FALSE),"") -> 12 | E43: 2 | F43: =IFERROR(VLOOKUP($A43&$B43,CHOOSE({1,2},MOG!$A$3:$A$500&MOG!$B$3:$B$500,MOG!$AM$3:$AM$500),2,FALSE),"") -> 10
A44: المنية | B44: E2 | C44: =IFERROR(VLOOKUP($A44&$B44,CHOOSE({1,2},MOG!$A$3:$A$500&MOG!$B$3:$B$500,MOG!$AK$3:$AK$500),2,FALSE),"") -> 18 | E44: 4 | F44: =IFERROR(VLOOKUP($A44&$B44,CHOOSE({1,2},MOG!$A$3:$A$500&MOG!$B$3:$B$500,MOG!$AM$3:$AM$500),2,FALSE),"") -> 14
A45: سير الضنية | B45: E3 | C45: =IFERROR(VLOOKUP($A45&$B45,CHOOSE({1,2},MOG!$A$3:$A$500&MOG!$B$3:$B$500,MOG!$AK$3:$AK$500),2,FALSE),"") -> 10 | E45: 4 | F45: =IFERROR(VLOOKUP($A45&$B45,CHOOSE({1,2},MOG!$A$3:$A$500&MOG!$B$3:$B$500,MOG!$AM$3:$AM$500),2,FALSE),"") -> 6
A46: حلبا عكار | B46: E4 | C46: =IFERROR(VLOOKUP($A46&$B46,CHOOSE({1,2},MOG!$A$3:$A$500&MOG!$B$3:$B$500,MOG!$AK$3:$AK$500),2,FALSE),"") -> 20 | E46: 8 | F46: =IFERROR(VLOOKUP($A46&$B46,CHOOSE({1,2},MOG!$A$3:$A$500&MOG!$B$3:$B$500,MOG!$AM$3:$AM$500),2,FALSE),"") -> 12
A47: القبيات | B47: E5 | C47: =IFERROR(VLOOKUP($A47&$B47,CHOOSE({1,2},MOG!$A$3:$A$500&MOG!$B$3:$B$500,MOG!$AK$3:$AK$500),2,FALSE),"") -> 25 | E47: 0 | F47: =IFERROR(VLOOKUP($A47&$B47,CHOOSE({1,2},MOG!$A$3:$A$500&MOG!$B$3:$B$500,MOG!$AM$3:$AM$500),2,FALSE),"") -> 25
A48: البترون | B48: E6 | C48: =IFERROR(VLOOKUP($A48&$B48,CHOOSE({1,2},MOG!$A$3:$A$500&MOG!$B$3:$B$500,MOG!$AK$3:$AK$500),2,FALSE),"") -> 8 | E48: 6 | F48: =IFERROR(VLOOKUP($A48&$B48,CHOOSE({1,2},MOG!$A$3:$A$500&MOG!$B$3:$B$500,MOG!$AM$3:$AM$500),2,FALSE),"") -> 2
A49: الكورة | B49: E7 | C49: =IFERROR(VLOOKUP($A49&$B49,CHOOSE({1,2},MOG!$A$3:$A$500&MOG!$B$3:$B$500,MOG!$AK$3:$AK$500),2,FALSE),"") -> 13 | E49: 9 | F49: =IFERROR(VLOOKUP($A49&$B49,CHOOSE({1,2},MOG!$A$3:$A$500&MOG!$B$3:$B$500,MOG!$AM$3:$AM$500),2,FALSE),"") -> 4
A50: زغرتا | B50: E8 | C50: =IFERROR(VLOOKUP($A50&$B50,CHOOSE({1,2},MOG!$A$3:$A$500&MOG!$B$3:$B$500,MOG!$AK$3:$AK$500),2,FALSE),"") -> 6 | E50: 3 | F50: =IFERROR(VLOOKUP($A50&$B50,CHOOSE({1,2},MOG!$A$3:$A$500&MOG!$B$3:$B$500,MOG!$AM$3:$AM$500),2,FALSE),"") -> 3
A51: بشري | B51: E9 | C51: =IFERROR(VLOOKUP($A51&$B51,CHOOSE({1,2},MOG!$A$3:$A$500&MOG!$B$3:$B$500,MOG!$AK$3:$AK$500),2,FALSE),"") -> 5 | E51: 5 | F51: =IFERROR(VLOOKUP($A51&$B51,CHOOSE({1,2},MOG!$A$3:$A$500&MOG!$B$3:$B$500,MOG!$AM$3:$AM$500),2,FALSE),"") -> 0
A52: المجموع العام | C52: =SUM(C3:C51) -> 990 | E52: =SUM(E3:E51) -> 314 | F52: =SUM(F3:F51) -> 676

Sheet JARD_HA
B1: جدول بعدد الهويات المستلمة من المشغل والمسلمة الى اقلام النفوس والتي هي قيد التسليم من 2020/12/1 لغــاية 2020/12/31
A2: قلم النفوس | B2: رمز | C2: المجموع العام لغاية2020/12/31 | D2: بطاقات الشهر المنصرم | E2: بطاقات المسلمة لغاية 2020/12/31 | F2: بطاقات قيد التسليم
A3: بيروت | B3: A | C3: =IFERROR(VLOOKUP($A3&$B3,CHOOSE({1,2},HA!$A$3:$A$500&HA!$B$3:$B$500,HA!$AK$3:$AK$500),2,FALSE),"") -> 660 | D3: 0 | E3: =SUM((D3+C3)-F3) -> 660 | F3: =IFERROR(VLOOKUP($A3&$B3,CHOOSE({1,2},HA!$A$3:$A$500&HA!$B$3:$B$500,HA!$AM$3:$AM$500),2,FALSE),"") -> 0
A4: بعبدا | B4: B1 | C4: =IFERROR(VLOOKUP($A4&$B4,CHOOSE({1,2},HA!$A$3:$A$500&HA!$B$3:$B$500,HA!$AK$3:$AK$500),2,FALSE),"") -> 64 | D4: 48 | E4: =SUM((D4+C4)-F4) -> 93 | F4: =IFERROR(VLOOKUP($A4&$B4,CHOOSE({1,2},HA!$A$3:$A$500&HA!$B$3:$B$500,HA!$AM$3:$AM$500),2,FALSE),"") -> 19
A5: بكفيا | B5: B10 | C5: =IFERROR(VLOOKUP($A5&$B5,CHOOSE({1,2},HA!$A$3:$A$500&HA!$B$3:$B$500,HA!$AK$3:$AK$500),2,FALSE),"") -> 129 | D5: 11 | E5: 102 | F5: =IFERROR(VLOOKUP($A5&$B5,CHOOSE({1,2},HA!$A$3:$A$500&HA!$B$3:$B$500,HA!$AM$3:$AM$500),2,FALSE),"") -> 38
A6: المتن الشمالي العالي | B6: B11 | C6: =IFERROR(VLOOKUP($A6&$B6,CHOOSE({1,2},HA!$A$3:$A$500&HA!$B$3:$B$500,HA!$AK$3:$AK$500),2,FALSE),"") -> 20 | D6: 0 | E6: 9 | F6: =IFERROR(VLOOKUP($A6&$B6,CHOOSE({1,2},HA!$A$3:$A$500&HA!$B$3:$B$500,HA!$AM$3:$AM$500),2,FALSE),"") -> 11
A7: كسروان | B7: B12 | C7: =IFERROR(VLOOKUP($A7&$B7,CHOOSE({1,2},HA!$A$3:$A$500&HA!$B$3:$B$500,HA!$AK$3:$AK$500),2,FALSE),"") -> 116 | D7: 0 | E7: 74 | F7: =IFERROR(VLOOKUP($A7&$B7,CHOOSE({1,2},HA!$A$3:$A$500&HA!$B$3:$B$500,HA!$AM$3:$AM$500),2,FALSE),"") -> 42
A8: جبيل | B8: B13 | C8: =IFERROR(VLOOKUP($A8&$B8,CHOOSE({1,2},HA!$A$3:$A$500&HA!$B$3:$B$500,HA!$AK$3:$AK$500),2,FALSE),"") -> 54 | D8: 68 | E8: 74 | F8: =IFERROR(VLOOKUP($A8&$B8,CHOOSE({1,2},HA!$A$3:$A$500&HA!$B$3:$B$500,HA!$AM$3:$AM$500),2,FALSE),"") -> 48
A9: فتوح كسروان | B9: B14 | C9: =IFERROR(VLOOKUP($A9&$B9,CHOOSE({1,2},HA!$A$3:$A$500&HA!$B$3:$B$500,HA!$AK$3:$AK$500),2,FALSE),"") -> 36 | D9: 0 | E9: 23 | F9: =IFERROR(VLOOKUP($A9&$B9,CHOOSE({1,2},HA!$A$3:$A$500&HA!$B$3:$B$500,HA!$AM$3:$AM$500),2,FALSE),"") -> 13
A10: الشويفات | B10: B2 | C10: =IFERROR(VLOOKUP($A10&$B10,CHOOSE({1,2},HA!$A$3:$A$500&HA!$B$3:$B$500,HA!$AK$3:$AK$500),2,FALSE),"") -> 63 | D10: 14 | E10: 57 | F10: =IFERROR(VLOOKUP($A10&$B10,CHOOSE({1,2},HA!$A$3:$A$500&HA!$B$3:$B$500,HA!$AM$3:$AM$500),2,FALSE),"") -> 20
A11: برجا | B11: B3 | C11: =IFERROR(VLOOKUP($A11&$B11,CHOOSE({1,2},HA!$A$3:$A$500&HA!$B$3:$B$500,HA!$AK$3:$AK$500),2,FALSE),"") -> 9 | D11: 40 | E11: 40 | F11: =IFERROR(VLOOKUP($A11&$B11,CHOOSE({1,2},HA!$A$3:$A$500&HA!$B$3:$B$500,HA!$AM$3:$AM$500),2,FALSE),"") -> 9
A12: شحيم | B12: B4 | C12: =IFERROR(VLOOKUP($A12&$B12,CHOOSE({1,2},HA!$A$3:$A$500&HA!$B$3:$B$500,HA!$AK$3:$AK$500),2,FALSE),"") -> 23 | D12: 13 | E12: 14 | F12: =IFERROR(VLOOKUP($A12&$B12,CHOOSE({1,2},HA!$A$3:$A$500&HA!$B$3:$B$500,HA!$AM$3:$AM$500),2,FALSE),"") -> 22
A13: عاليه | B13: B5 | C13: =IFERROR(VLOOKUP($A13&$B13,CHOOSE({1,2},HA!$A$3:$A$500&HA!$B$3:$B$500,HA!$AK$3:$AK$500),2,FALSE),"") -> 29 | D13: 78 | E13: 103 | F13: =IFERROR(VLOOKUP($A13&$B13,CHOOSE({1,2},HA!$A$3:$A$500&HA!$B$3:$B$500,HA!$AM$3:$AM$500),2,FALSE),"") -> 4
A14: حمانا | B14: B6 | C14: =IFERROR(VLOOKUP($A14&$B14,CHOOSE({1,2},HA!$A$3:$A$500&HA!$B$3:$B$500,HA!$AK$3:$AK$500),2,FALSE),"") -> 6 | D14: 10 | E14: 12 | F14: =IFERROR(VLOOKUP($A14&$B14,CHOOSE({1,2},HA!$A$3:$A$500&HA!$B$3:$B$500,HA!$AM$3:$AM$500),2,FALSE),"") -> 4
A15: الشوف | B15: B7 | C15: =IFERROR(VLOOKUP($A15&$B15,CHOOSE({1,2},HA!$A$3:$A$500&HA!$B$3:$B$500,HA!$AK$3:$AK$500),2,FALSE),"") -> 17 | D15: 14 | E15: 20 | F15: =IFERROR(VLOOKUP($A15&$B15,CHOOSE({1,2},HA!$A$3:$A$500&HA!$B$3:$B$500,HA!$AM$3:$AM$500),2,FALSE),"") -> 11
A16: المتن | B16: B8 | C16: =IFERROR(VLOOKUP($A16&$B16,CHOOSE({1,2},HA!$A$3:$A$500&HA!$B$3:$B$500,HA!$AK$3:$AK$500),2,FALSE),"") -> 96 | D16: 15 | E16: 51 | F16: =IFERROR(VLOOKUP($A16&$B16,CHOOSE({1,2},HA!$A$3:$A$500&HA!$B$3:$B$500,HA!$AM$3:$AM$500),2,FALSE),"") -> 60
A17: انطلياس | B17: B9 | C17: =IFERROR(VLOOKUP($A17&$B17,CHOOSE({1,2},HA!$A$3:$A$500&HA!$B$3:$B$500,HA!$AK$3:$AK$500),2,FALSE),"") -> 75 | D17: 0 | E17: 40 | F17: =IFERROR(VLOOKUP($A17&$B17,CHOOSE({1,2},HA!$A$3:$A$500&HA!$B$3:$B$500,HA!$AM$3:$AM$500),2,FALSE),"") -> 35
A18: صيدا | B18: C1 | C18: =IFERROR(VLOOKUP($A18&$B18,CHOOSE({1,2},HA!$A$3:$A$500&HA!$B$3:$B$500,HA!$AK$3:$AK$500),2,FALSE),"") -> 0 | D18: 52 | E18: 52 | F18: =IFERROR(VLOOKUP($A18&$B18,CHOOSE({1,2},HA!$A$3:$A$500&HA!$B$3:$B$500,HA!$AM$3:$AM$500),2,FALSE),"") -> 0
A19: جويا | B19: C10 | C19: =IFERROR(VLOOKUP($A19&$B19,CHOOSE({1,2},HA!$A$3:$A$500&HA!$B$3:$B$500,HA!$AK$3:$AK$500),2,FALSE),"") -> 105 | D19: 107 | E19: 107 | F19: =IFERROR(VLOOKUP($A19&$B19,CHOOSE({1,2},HA!$A$3:$A$500&HA!$B$3:$B$500,HA!$AM$3:$AM$500),2,FALSE),"") -> 105
A20: ميس الجبل | B20: C11 | C20: =IFERROR(VLOOKUP($A20&$B20,CHOOSE({1,2},HA!$A$3:$A$500&HA!$B$3:$B$500,HA!$AK$3:$AK$500),2,FALSE),"") -> 110 | D20: 14 | E20: 14 | F20: =IFERROR(VLOOKUP($A20&$B20,CHOOSE({1,2},HA!$A$3:$A$500&HA!$B$3:$B$500,HA!$AM$3:$AM$500),2,FALSE),"") -> 110
A21: صور | B21: C2 | C21: =IFERROR(VLOOKUP($A21&$B21,CHOOSE({1,2},HA!$A$3:$A$500&HA!$B$3:$B$500,HA!$AK$3:$AK$500),2,FALSE),"") -> 130 | D21: 35 | E21: 35 | F21: =IFERROR(VLOOKUP($A21&$B21,CHOOSE({1,2},HA!$A$3:$A$500&HA!$B$3:$B$500,HA!$AM$3:$AM$500),2,FALSE),"") -> 130
A22: جزين | B22: C3 | C22: =IFERROR(VLOOKUP($A22&$B22,CHOOSE({1,2},HA!$A$3:$A$500&HA!$B$3:$B$500,HA!$AK$3:$AK$500),2,FALSE),"") -> 20 | D22: 0 | E22: 0 | F22: =IFERROR(VLOOKUP($A22&$B22,CHOOSE({1,2},HA!$A$3:$A$500&HA!$B$3:$B$500,HA!$AM$3:$AM$500),2,FALSE),"") -> 20
A23: النبطية | B23: C4 | C23: =IFERROR(VLOOKUP($A23&$B23,CHOOSE({1,2},HA!$A$3:$A$500&HA!$B$3:$B$500,HA!$AK$3:$AK$500),2,FALSE),"") -> 44 | D23: 84 | E23: 90 | F23: =IFERROR(VLOOKUP($A23&$B23,CHOOSE({1,2},HA!$A$3:$A$500&HA!$B$3:$B$500,HA!$AM$3:$AM$500),2,FALSE),"") -> 38
A24: بنت جبيل | B24: C5 | C24: =IFERROR(VLOOKUP($A24&$B24,CHOOSE({1,2},HA!$A$3:$A$500&HA!$B$3:$B$500,HA!$AK$3:$AK$500),2,FALSE),"") -> 98 | D24: 50 | E24: 53 | F24: =IFERROR(VLOOKUP($A24&$B24,CHOOSE({1,2},HA!$A$3:$A$500&HA!$B$3:$B$500,HA!$AM$3:$AM$500),2,FALSE),"") -> 95
A25: مرجعيون | B25: C6 | C25: =IFERROR(VLOOKUP($A25&$B25,CHOOSE({1,2},HA!$A$3:$A$500&HA!$B$3:$B$500,HA!$AK$3:$AK$500),2,FALSE),"") -> 41 | D25: 48 | E25: 48 | F25: =IFERROR(VLOOKUP($A25&$B25,CHOOSE({1,2},HA!$A$3:$A$500&HA!$B$3:$B$500,HA!$AM$3:$AM$500),2,FALSE),"") -> 41
A26: حاصبيا | B26: C7 | C26: =IFERROR(VLOOKUP($A26&$B26,CHOOSE({1,2},HA!$A$3:$A$500&HA!$B$3:$B$500,HA!$AK$3:$AK$500),2,FALSE),"") -> 26 | D26: 10 | E26: 11 | F26: =IFERROR(VLOOKUP($A26&$B26,CHOOSE({1,2},HA!$A$3:$A$500&HA!$B$3:$B$500,HA!$AM$3:$AM$500),2,FALSE),"") -> 25
A27: تبنين | B27: C8 | C27: =IFERROR(VLOOKUP($A27&$B27,CHOOSE({1,2},HA!$A$3:$A$500&HA!$B$3:$B$500,HA!$AK$3:$AK$500),2,FALSE),"") -> 78 | D27: 80 | E27: 83 | F27: =IFERROR(VLOOKUP($A27&$B27,CHOOSE({1,2},HA!$A$3:$A$500&HA!$B$3:$B$500,HA!$AM$3:$AM$500),2,FALSE),"") -> 75
A28: جباع | B28: C9 | C28: =IFERROR(VLOOKUP($A28&$B28,CHOOSE({1,2},HA!$A$3:$A$500&HA!$B$3:$B$500,HA!$AK$3:$AK$500),2,FALSE),"") -> 35 | D28: 43 | E28: 44 | F28: =IFERROR(VLOOKUP($A28&$B28,CHOOSE({1,2},HA!$A$3:$A$500&HA!$B$3:$B$500,HA!$AM$3:$AM$500),2,FALSE),"") -> 34
A29: زحلة | B29: D1 | C29: =IFERROR(VLOOKUP($A29&$B29,CHOOSE({1,2},HA!$A$3:$A$500&HA!$B$3:$B$500,HA!$AK$3:$AK$500),2,FALSE),"") -> 266 | D29: 229 | E29: 250 | F29: =IFERROR(VLOOKUP($A29&$B29,CHOOSE({1,2},HA!$A$3:$A$500&HA!$B$3:$B$500,HA!$AM$3:$AM$500),2,FALSE),"") -> 245
A30: النبي شيت | B30: D10 | C30: =IFERROR(VLOOKUP($A30&$B30,CHOOSE({1,2},HA!$A$3:$A$500&HA!$B$3:$B$500,HA!$AK$3:$AK$500),2,FALSE),"") -> 98 | D30: 1 | E30: 72 | F30: =IFERROR(VLOOKUP($A30&$B30,CHOOSE({1,2},HA!$A$3:$A$500&HA!$B$3:$B$500,HA!$AM$3:$AM$500),2,FALSE),"") -> 27
A31: راشيا | B31: D2 | C31: =IFERROR(VLOOKUP($A31&$B31,CHOOSE({1,2},HA!$A$3:$A$500&HA!$B$3:$B$500,HA!$AK$3:$AK$500),2,FALSE),"") -> 64 | D31: 0 | E31: 0 | F31: =IFERROR(VLOOKUP($A31&$B31,CHOOSE({1,2},HA!$A$3:$A$500&HA!$B$3:$B$500,HA!$AM$3:$AM$500),2,FALSE),"") -> 64
A32: البقاع الغربي | B32: D3 | C32: =IFERROR(VLOOKUP($A32&$B32,CHOOSE({1,2},HA!$A$3:$A$500&HA!$B$3:$B$500,HA!$AK$3:$AK$500),2,FALSE),"") -> 17 | D32: 95 | E32: 95 | F32: =IFERROR(VLOOKUP($A32&$B32,CHOOSE({1,2},HA!$A$3:$A$500&HA!$B$3:$B$500,HA!$AM$3:$AM$500),2,FALSE),"") -> 17
A33: شمسطار | B33: D4 | C33: =IFERROR(VLOOKUP($A33&$B33,CHOOSE({1,2},HA!$A$3:$A$500&HA!$B$3:$B$500,HA!$AK$3:$AK$500),2,FALSE),"") -> 83 | D33: 29 | E33: 49 | F33: =IFERROR(VLOOKUP($A33&$B33,CHOOSE({1,2},HA!$A$3:$A$500&HA!$B$3:$B$500,HA!$AM$3:$AM$500),2,FALSE),"") -> 63
A34: بعلبك | B34: D5 | C34: =IFERROR(VLOOKUP($A34&$B34,CHOOSE({1,2},HA!$A$3:$A$500&HA!$B$3:$B$500,HA!$AK$3:$AK$500),2,FALSE),"") -> 205 | D34: 3 | E34: 61 | F34: =IFERROR(VLOOKUP($A34&$B34,CHOOSE({1,2},HA!$A$3:$A$500&HA!$B$3:$B$500,HA!$AM$3:$AM$500),2,FALSE),"") -> 147
A35: الهرمل | B35: D6 | C35: =IFERROR(VLOOKUP($A35&$B35,CHOOSE({1,2},HA!$A$3:$A$500&HA!$B$3:$B$500,HA!$AK$3:$AK$500),2,FALSE),"") -> 8 | D35: 47 | E35: 47 | F35: =IFERROR(VLOOKUP($A35&$B35,CHOOSE({1,2},HA!$A$3:$A$500&HA!$B$3:$B$500,HA!$AM$3:$AM$500),2,FALSE),"") -> 8
A36: دير الاحمر | B36: D7 | C36: =IFERROR(VLOOKUP($A36&$B36,CHOOSE({1,2},HA!$A$3:$A$500&HA!$B$3:$B$500,HA!$AK$3:$AK$500),2,FALSE),"") -> 37 | D36: 0 | E36: 14 | F36: =IFERROR(VLOOKUP($A36&$B36,CHOOSE({1,2},HA!$A$3:$A$500&HA!$B$3:$B$500,HA!$AM$3:$AM$500),2,FALSE),"") -> 23
A37: اللبوة | B37: D8 | C37: =IFERROR(VLOOKUP($A37&$B37,CHOOSE({1,2},HA!$A$3:$A$500&HA!$B$3:$B$500,HA!$AK$3:$AK$500),2,FALSE),"") -> 61 | D37: 80 | E37: 80 | F37: =IFERROR(VLOOKUP($A37&$B37,CHOOSE({1,2},HA!$A$3:$A$500&HA!$B$3:$B$500,HA!$AM$3:$AM$500),2,FALSE),"") -> 61
A38: صغبين | B38: D9 | C38: =IFERROR(VLOOKUP($A38&$B38,CHOOSE({1,2},HA!$A$3:$A$500&HA!$B$3:$B$500,HA!$AK$3:$AK$500),2,FALSE),"") -> 37 | D38: 44 | E38: 46 | F38: =IFERROR(VLOOKUP($A38&$B38,CHOOSE({1,2},HA!$A$3:$A$500&HA!$B$3:$B$500,HA!$AM$3:$AM$500),2,FALSE),"") -> 35
A39: طرابلس | B39: E1 | C39: =IFERROR(VLOOKUP($A39&$B39,CHOOSE({1,2},HA!$A$3:$A$500&HA!$B$3:$B$500,HA!$AK$3:$AK$500),2,FALSE),"") -> 203 | D39: 159 | E39: 174 | F39: =IFERROR(VLOOKUP($A39&$B39,CHOOSE({1,2},HA!$A$3:$A$500&HA!$B$3:$B$500,HA!$AM$3:$AM$500),2,FALSE),"") -> 188
A40: دوما | B40: E10 | C40: =IFERROR(VLOOKUP($A40&$B40,CHOOSE({1,2},HA!$A$3:$A$500&HA!$B$3:$B$500,HA!$AK$3:$AK$500),2,FALSE),"") -> 9 | D40: 0 | E40: 9 | F40: =IFERROR(VLOOKUP($A40&$B40,CHOOSE({1,2},HA!$A$3:$A$500&HA!$B$3:$B$500,HA!$AM$3:$AM$500),2,FALSE),"") -> 0
A41: العبدة | B41: E11 | C41: =IFERROR(VLOOKUP($A41&$B41,CHOOSE({1,2},HA!$A$3:$A$500&HA!$B$3:$B$500,HA!$AK$3:$AK$500),2,FALSE),"") -> 29 | D41: 16 | E41: 17 | F41: =IFERROR(VLOOKUP($A41&$B41,CHOOSE({1,2},HA!$A$3:$A$500&HA!$B$3:$B$500,HA!$AM$3:$AM$500),2,FALSE),"") -> 28
A42: بخعون | B42: E12 | C42: =IFERROR(VLOOKUP($A42&$B42,CHOOSE({1,2},HA!$A$3:$A$500&HA!$B$3:$B$500,HA!$AK$3:$AK$500),2,FALSE),"") -> 23 | D42: 22 | E42: 31 | F42: =IFERROR(VLOOKUP($A42&$B42,CHOOSE({1,2},HA!$A$3:$A$500&HA!$B$3:$B$500,HA!$AM$3:$AM$500),2,FALSE),"") -> 14
A43: بيت ملات | B43: E13 | C43: =IFERROR(VLOOKUP($A43&$B43,CHOOSE({1,2},HA!$A$3:$A$500&HA!$B$3:$B$500,HA!$AK$3:$AK$500),2,FALSE),"") -> 25 | D43: 56 | E43: 58 | F43: =IFERROR(VLOOKUP($A43&$B43,CHOOSE({1,2},HA!$A$3:$A$500&HA!$B$3:$B$500,HA!$AM$3:$AM$500),2,FALSE),"") -> 23
A44: المنية | B44: E2 | C44: =IFERROR(VLOOKUP($A44&$B44,CHOOSE({1,2},HA!$A$3:$A$500&HA!$B$3:$B$500,HA!$AK$3:$AK$500),2,FALSE),"") -> 53 | D44: 45 | E44: 50 | F44: =IFERROR(VLOOKUP($A44&$B44,CHOOSE({1,2},HA!$A$3:$A$500&HA!$B$3:$B$500,HA!$AM$3:$AM$500),2,FALSE),"") -> 48
A45: سير الضنية | B45: E3 | C45: =IFERROR(VLOOKUP($A45&$B45,CHOOSE({1,2},HA!$A$3:$A$500&HA!$B$3:$B$500,HA!$AK$3:$AK$500),2,FALSE),"") -> 26 | D45: 43 | E45: 48 | F45: =IFERROR(VLOOKUP($A45&$B45,CHOOSE({1,2},HA!$A$3:$A$500&HA!$B$3:$B$500,HA!$AM$3:$AM$500),2,FALSE),"") -> 21
A46: حلبا عكار | B46: E4 | C46: =IFERROR(VLOOKUP($A46&$B46,CHOOSE({1,2},HA!$A$3:$A$500&HA!$B$3:$B$500,HA!$AK$3:$AK$500),2,FALSE),"") -> 121 | D46: 91 | E46: 102 | F46: =IFERROR(VLOOKUP($A46&$B46,CHOOSE({1,2},HA!$A$3:$A$500&HA!$B$3:$B$500,HA!$AM$3:$AM$500),2,FALSE),"") -> 110
A47: القبيات | B47: E5 | C47: =IFERROR(VLOOKUP($A47&$B47,CHOOSE({1,2},HA!$A$3:$A$500&HA!$B$3:$B$500,HA!$AK$3:$AK$500),2,FALSE),"") -> 53 | D47: 54 | E47: 54 | F47: =IFERROR(VLOOKUP($A47&$B47,CHOOSE({1,2},HA!$A$3:$A$500&HA!$B$3:$B$500,HA!$AM$3:$AM$500),2,FALSE),"") -> 53
A48: البترون | B48: E6 | C48: =IFERROR(VLOOKUP($A48&$B48,CHOOSE({1,2},HA!$A$3:$A$500&HA!$B$3:$B$500,HA!$AK$3:$AK$500),2,FALSE),"") -> 13 | D48: 3 | E48: 14 | F48: =IFERROR(VLOOKUP($A48&$B48,CHOOSE({1,2},HA!$A$3:$A$500&HA!$B$3:$B$500,HA!$AM$3:$AM$500),2,FALSE),"") -> 2
A49: الكورة | B49: E7 | C49: =IFERROR(VLOOKUP($A49&$B49,CHOOSE({1,2},HA!$A$3:$A$500&HA!$B$3:$B$500,HA!$AK$3:$AK$500),2,FALSE),"") -> 47 | D49: 3 | E49: 44 | F49: =IFERROR(VLOOKUP($A49&$B49,CHOOSE({1,2},HA!$A$3:$A$500&HA!$B$3:$B$500,HA!$AM$3:$AM$500),2,FALSE),"") -> 6
A50: زغرتا | B50: E8 | C50: =IFERROR(VLOOKUP($A50&$B50,CHOOSE({1,2},HA!$A$3:$A$500&HA!$B$3:$B$500,HA!$AK$3:$AK$500),2,FALSE),"") -> 30 | D50: 68 | E50: 72 | F50: =IFERROR(VLOOKUP($A50&$B50,CHOOSE({1,2},HA!$A$3:$A$500&HA!$B$3:$B$500,HA!$AM$3:$AM$500),2,FALSE),"") -> 26
A51: بشري | B51: E9 | C51: =IFERROR(VLOOKUP($A51&$B51,CHOOSE({1,2},HA!$A$3:$A$500&HA!$B$3:$B$500,HA!$AK$3:$AK$500),2,FALSE),"") -> 23 | D51: 0 | E51: 23 | F51: =IFERROR(VLOOKUP($A51&$B51,CHOOSE({1,2},HA!$A$3:$A$500&HA!$B$3:$B$500,HA!$AM$3:$AM$500),2,FALSE),"") -> 0
A52: المجموع العام | C52: =SUM(C3:C51) -> 3615 | D52: =SUM(D3:D51) -> 1922 | E52: =SUM(E3:E51) -> 3319 | F52: =SUM(F3:F51) -> 2218

Sheet JARD_MOG_OMT
B1: جدول بعدد المغلفات المستلمة من المشغل والمسلمة الى اقلام النفوس والتي هي قيد التسليم من 2020/12/1 لغــاية 2020/12/31
A2: قلم النفوس | B2: رمز | C2: المجموع العام لغاية2020/12/31 | D2: مغلفات الشهر المنصرم | E2: مغلفات المسلمة لغاية 2020/12/31 | F2: مغلفات قيد التسليم
A3: بيروت | B3: A | C3: =IFERROR(VLOOKUP($A3&$B3,CHOOSE({1,2},MOG_OMT!$A$3:$A$500&MOG_OMT!$B$3:$B$500,MOG_OMT!$AJ$3:$AJ$500),2,FALSE),"") -> 23 | D3: 0 | E3: =SUM((D3+C3)-F3) -> 6 | F3: =IFERROR(VLOOKUP($A3&$B3,CHOOSE({1,2},MOG_OMT!$A$3:$A$500&MOG_OMT!$B$3:$B$500,MOG_OMT!$AM$3:$AM$500),2,FALSE),"") -> 17
A4: بعبدا | B4: B1 | C4: =IFERROR(VLOOKUP($A4&$B4,CHOOSE({1,2},MOG_OMT!$A$3:$A$500&MOG_OMT!$B$3:$B$500,MOG_OMT!$AJ$4:$AJ$500),2,FALSE),"") -> 15 | D4: 0 | E4: =SUM((D4+C4)-F4) -> 6 | F4: =IFERROR(VLOOKUP($A4&$B4,CHOOSE({1,2},MOG_OMT!$A$3:$A$500&MOG_OMT!$B$3:$B$500,MOG_OMT!$AM$4:$AM$500),2,FALSE),"") -> 9
A5: بكفيا | B5: B10 | C5: =IFERROR(VLOOKUP($A5&$B5,CHOOSE({1,2},MOG_OMT!$A$3:$A$500&MOG_OMT!$B$3:$B$500,MOG_OMT!$AJ$5:$AJ$500),2,FALSE),"") -> 7 | D5: 0 | E5: 3 | F5: =IFERROR(VLOOKUP($A5&$B5,CHOOSE({1,2},MOG_OMT!$A$3:$A$500&MOG_OMT!$B$3:$B$500,MOG_OMT!$AM$5:$AM$500),2,FALSE),"") -> 4
A6: المتن الشمالي العالي | B6: B11 | C6: =IFERROR(VLOOKUP($A6&$B6,CHOOSE({1,2},MOG_OMT!$A$3:$A$500&MOG_OMT!$B$3:$B$500,MOG_OMT!$AJ$6:$AJ$500),2,FALSE),"") -> 0 | D6: 0 | E6: 0 | F6: =IFERROR(VLOOKUP($A6&$B6,CHOOSE({1,2},MOG_OMT!$A$3:$A$500&MOG_OMT!$B$3:$B$500,MOG_OMT!$AM$6:$AM$500),2,FALSE),"") -> 0
A7: كسروان | B7: B12 | C7: =IFERROR(VLOOKUP($A7&$B7,CHOOSE({1,2},MOG_OMT!$A$3:$A$500&MOG_OMT!$B$3:$B$500,MOG_OMT!$AJ$7:$AJ$500),2,FALSE),"") -> 20 | D7: 0 | E7: 8 | F7: =IFERROR(VLOOKUP($A7&$B7,CHOOSE({1,2},MOG_OMT!$A$3:$A$500&MOG_OMT!$B$3:$B$500,MOG_OMT!$AM$7:$AM$500),2,FALSE),"") -> 12
A8: جبيل | B8: B13 | C8: =IFERROR(VLOOKUP($A8&$B8,CHOOSE({1,2},MOG_OMT!$A$3:$A$500&MOG_OMT!$B$3:$B$500,MOG_OMT!$AL$8:$AL$500),2,FALSE),"") -> 4 | D8: 0 | E8: 1 | F8: =IFERROR(VLOOKUP($A8&$B8,CHOOSE({1,2},MOG_OMT!$A$3:$A$500&MOG_OMT!$B$3:$B$500,MOG_OMT!$AM$8:$AM$500),2,FALSE),"") -> 3
A9: فتوح كسروان | B9: B14 | C9: =IFERROR(VLOOKUP($A9&$B9,CHOOSE({1,2},MOG_OMT!$A$3:$A$500&MOG_OMT!$B$3:$B$500,MOG_OMT!$AJ$9:$AJ$500),2,FALSE),"") -> 3 | D9: 0 | E9: 2 | F9: =IFERROR(VLOOKUP($A9&$B9,CHOOSE({1,2},MOG_OMT!$A$3:$A$500&MOG_OMT!$B$3:$B$500,MOG_OMT!$AM$9:$AM$500),2,FALSE),"") -> 1
A10: الشويفات | B10: B2 | C10: =IFERROR(VLOOKUP($A10&$B10,CHOOSE({1,2},MOG_OMT!$A$3:$A$500&MOG_OMT!$B$3:$B$500,MOG_OMT!$AJ$10:$AJ$500),2,FALSE),"") -> 27 | D10: 0 | E10: 11 | F10: =IFERROR(VLOOKUP($A10&$B10,CHOOSE({1,2},MOG_OMT!$A$3:$A$500&MOG_OMT!$B$3:$B$500,MOG_OMT!$AM$10:$AM$500),2,FALSE),"") -> 16
A11: برجا | B11: B3 | C11: =IFERROR(VLOOKUP($A11&$B11,CHOOSE({1,2},MOG_OMT!$A$3:$A$500&MOG_OMT!$B$3:$B$500,MOG_OMT!$AJ$11:$AJ$500),2,FALSE),"") -> 7 | D11: 0 | E11: 5 | F11: =IFERROR(VLOOKUP($A11&$B11,CHOOSE({1,2},MOG_OMT!$A$3:$A$500&MOG_OMT!$B$3:$B$500,MOG_OMT!$AM$11:$AM$500),2,FALSE),"") -> 2
A12: شحيم | B12: B4 | C12: =IFERROR(VLOOKUP($A12&$B12,CHOOSE({1,2},MOG_OMT!$A$3:$A$500&MOG_OMT!$B$3:$B$500,MOG_OMT!$AJ$12:$AJ$500),2,FALSE),"") -> 2 | D12: 0 | E12: 1 | F12: =IFERROR(VLOOKUP($A12&$B12,CHOOSE({1,2},MOG_OMT!$A$3:$A$500&MOG_OMT!$B$3:$B$500,MOG_OMT!$AM$12:$AM$500),2,FALSE),"") -> 1
A13: عاليه | B13: B5 | C13: =IFERROR(VLOOKUP($A13&$B13,CHOOSE({1,2},MOG_OMT!$A$3:$A$500&MOG_OMT!$B$3:$B$500,MOG_OMT!$AJ$13:$AJ$500),2,FALSE),"") -> 17 | D13: 0 | E13: 3 | F13: =IFERROR(VLOOKUP($A13&$B13,CHOOSE({1,2},MOG_OMT!$A$3:$A$500&MOG_OMT!$B$3:$B$500,MOG_OMT!$AM$13:$AM$500),2,FALSE),"") -> 14
A14: حمانا | B14: B6 | C14: =IFERROR(VLOOKUP($A14&$B14,CHOOSE({1,2},MOG_OMT!$A$3:$A$500&MOG_OMT!$B$3:$B$500,MOG_OMT!$AJ$14:$AJ$500),2,FALSE),"") -> 5 | D14: 0 | E14: 3 | F14: =IFERROR(VLOOKUP($A14&$B14,CHOOSE({1,2},MOG_OMT!$A$3:$A$500&MOG_OMT!$B$3:$B$500,MOG_OMT!$AM$14:$AM$500),2,FALSE),"") -> 2
A15: الشوف | B15: B7 | C15: =IFERROR(VLOOKUP($A15&$B15,CHOOSE({1,2},MOG_OMT!$A$3:$A$500&MOG_OMT!$B$3:$B$500,MOG_OMT!$AJ$15:$AJ$500),2,FALSE),"") -> 5 | D15: 0 | E15: 2 | F15: =IFERROR(VLOOKUP($A15&$B15,CHOOSE({1,2},MOG_OMT!$A$3:$A$500&MOG_OMT!$B$3:$B$500,MOG_OMT!$AM$15:$AM$500),2,FALSE),"") -> 3
A16: المتن | B16: B8 | C16: =IFERROR(VLOOKUP($A16&$B16,CHOOSE({1,2},MOG_OMT!$A$3:$A$500&MOG_OMT!$B$3:$B$500,MOG_OMT!$AJ$16:$AJ$500),2,FALSE),"") -> 17 | D16: 0 | E16: 3 | F16: =IFERROR(VLOOKUP($A16&$B16,CHOOSE({1,2},MOG_OMT!$A$3:$A$500&MOG_OMT!$B$3:$B$500,MOG_OMT!$AM$16:$AM$500),2,FALSE),"") -> 14
A17: انطلياس | B17: B9 | C17: =IFERROR(VLOOKUP($A17&$B17,CHOOSE({1,2},MOG_OMT!$A$3:$A$500&MOG_OMT!$B$3:$B$500,MOG_OMT!$AJ$17:$AJ$500),2,FALSE),"") -> 13 | D17: 0 | E17: 6 | F17: =IFERROR(VLOOKUP($A17&$B17,CHOOSE({1,2},MOG_OMT!$A$3:$A$500&MOG_OMT!$B$3:$B$500,MOG_OMT!$AM$17:$AM$500),2,FALSE),"") -> 7
A18: صيدا | B18: C1 | C18: =IFERROR(VLOOKUP($A18&$B18,CHOOSE({1,2},MOG_OMT!$A$3:$A$500&MOG_OMT!$B$3:$B$500,MOG_OMT!$AJ$18:$AJ$500),2,FALSE),"") -> 0 | D18: 0 | E18: 0 | F18: =IFERROR(VLOOKUP($A18&$B18,CHOOSE({1,2},MOG_OMT!$A$3:$A$500&MOG_OMT!$B$3:$B$500,MOG_OMT!$AM$18:$AM$500),2,FALSE),"") -> 0
A19: جويا | B19: C10 | C19: =IFERROR(VLOOKUP($A19&$B19,CHOOSE({1,2},MOG_OMT!$A$3:$A$500&MOG_OMT!$B$3:$B$500,MOG_OMT!$AJ$19:$AJ$500),2,FALSE),"") -> 9 | D19: 0 | E19: 0 | F19: =IFERROR(VLOOKUP($A19&$B19,CHOOSE({1,2},MOG_OMT!$A$3:$A$500&MOG_OMT!$B$3:$B$500,MOG_OMT!$AM$19:$AM$500),2,FALSE),"") -> 9
A20: ميس الجبل | B20: C11 | C20: =IFERROR(VLOOKUP($A20&$B20,CHOOSE({1,2},MOG_OMT!$A$3:$A$500&MOG_OMT!$B$3:$B$500,MOG_OMT!$AJ$20:$AJ$500),2,FALSE),"") -> 2 | D20: 0 | E20: 2 | F20: =IFERROR(VLOOKUP($A20&$B20,CHOOSE({1,2},MOG_OMT!$A$3:$A$500&MOG_OMT!$B$3:$B$500,MOG_OMT!$AM$20:$AM$500),2,FALSE),"") -> 0
A21: صور | B21: C2 | C21: =IFERROR(VLOOKUP($A21&$B21,CHOOSE({1,2},MOG_OMT!$A$3:$A$500&MOG_OMT!$B$3:$B$500,MOG_OMT!$AJ$21:$AJ$500),2,FALSE),"") -> 0 | D21: 0 | E21: 0 | F21: =IFERROR(VLOOKUP($A21&$B21,CHOOSE({1,2},MOG_OMT!$A$3:$A$500&MOG_OMT!$B$3:$B$500,MOG_OMT!$AM$21:$AM$500),2,FALSE),"") -> 0
A22: جزين | B22: C3 | C22: =IFERROR(VLOOKUP($A22&$B22,CHOOSE({1,2},MOG_OMT!$A$3:$A$500&MOG_OMT!$B$3:$B$500,MOG_OMT!$AJ$22:$AJ$500),2,FALSE),"") -> 0 | D22: 0 | E22: 0 | F22: =IFERROR(VLOOKUP($A22&$B22,CHOOSE({1,2},MOG_OMT!$A$3:$A$500&MOG_OMT!$B$3:$B$500,MOG_OMT!$AM$22:$AM$500),2,FALSE),"") -> 0
A23: النبطية | B23: C4 | C23: =IFERROR(VLOOKUP($A23&$B23,CHOOSE({1,2},MOG_OMT!$A$3:$A$500&MOG_OMT!$B$3:$B$500,MOG_OMT!$AJ$23:$AJ$500),2,FALSE),"") -> 24 | D23: 0 | E23: 14 | F23: =IFERROR(VLOOKUP($A23&$B23,CHOOSE({1,2},MOG_OMT!$A$3:$A$500&MOG_OMT!$B$3:$B$500,MOG_OMT!$AM$23:$AM$500),2,FALSE),"") -> 10
A24: بنت جبيل | B24: C5 | C24: =IFERROR(VLOOKUP($A24&$B24,CHOOSE({1,2},MOG_OMT!$A$3:$A$500&MOG_OMT!$B$3:$B$500,MOG_OMT!$AJ$24:$AJ$500),2,FALSE),"") -> 15 | D24: 0 | E24: 9 | F24: =IFERROR(VLOOKUP($A24&$B24,CHOOSE({1,2},MOG_OMT!$A$3:$A$500&MOG_OMT!$B$3:$B$500,MOG_OMT!$AM$24:$AM$500),2,FALSE),"") -> 6
A25: مرجعيون | B25: C6 | C25: =IFERROR(VLOOKUP($A25&$B25,CHOOSE({1,2},MOG_OMT!$A$3:$A$500&MOG_OMT!$B$3:$B$500,MOG_OMT!$AJ$25:$AJ$500),2,FALSE),"") -> 0 | D25: 0 | E25: 0 | F25: =IFERROR(VLOOKUP($A25&$B25,CHOOSE({1,2},MOG_OMT!$A$3:$A$500&MOG_OMT!$B$3:$B$500,MOG_OMT!$AM$25:$AM$500),2,FALSE),"") -> 0
A26: حاصبيا | B26: C7 | C26: =IFERROR(VLOOKUP($A26&$B26,CHOOSE({1,2},MOG_OMT!$A$3:$A$500&MOG_OMT!$B$3:$B$500,MOG_OMT!$AJ$26:$AJ$500),2,FALSE),"") -> 7 | D26: 0 | E26: 3 | F26: =IFERROR(VLOOKUP($A26&$B26,CHOOSE({1,2},MOG_OMT!$A$3:$A$500&MOG_OMT!$B$3:$B$500,MOG_OMT!$AM$26:$AM$500),2,FALSE),"") -> 4
A27: تبنين | B27: C8 | C27: =IFERROR(VLOOKUP($A27&$B27,CHOOSE({1,2},MOG_OMT!$A$3:$A$500&MOG_OMT!$B$3:$B$500,MOG_OMT!$AJ$27:$AJ$500),2,FALSE),"") -> 18 | D27: 0 | E27: 7 | F27: =IFERROR(VLOOKUP($A27&$B27,CHOOSE({1,2},MOG_OMT!$A$3:$A$500&MOG_OMT!$B$3:$B$500,MOG_OMT!$AM$27:$AM$500),2,FALSE),"") -> 11
A28: جباع | B28: C9 | C28: =IFERROR(VLOOKUP($A28&$B28,CHOOSE({1,2},MOG_OMT!$A$3:$A$500&MOG_OMT!$B$3:$B$500,MOG_OMT!$AJ$28:$AJ$500),2,FALSE),"") -> 5 | D28: 0 | E28: 3 | F28: =IFERROR(VLOOKUP($A28&$B28,CHOOSE({1,2},MOG_OMT!$A$3:$A$500&MOG_OMT!$B$3:$B$500,MOG_OMT!$AM$28:$AM$500),2,FALSE),"") -> 2
A29: زحلة | B29: D1 | C29: =IFERROR(VLOOKUP($A29&$B29,CHOOSE({1,2},MOG_OMT!$A$3:$A$500&MOG_OMT!$B$3:$B$500,MOG_OMT!$AJ$29:$AJ$500),2,FALSE),"") -> 44 | D29: 0 | E29: 24 | F29: =IFERROR(VLOOKUP($A29&$B29,CHOOSE({1,2},MOG_OMT!$A$3:$A$500&MOG_OMT!$B$3:$B$500,MOG_OMT!$AM$29:$AM$500),2,FALSE),"") -> 20
A30: النبي شيت | B30: D10 | C30: =IFERROR(VLOOKUP($A30&$B30,CHOOSE({1,2},MOG_OMT!$A$3:$A$500&MOG_OMT!$B$3:$B$500,MOG_OMT!$AJ$30:$AJ$500),2,FALSE),"") -> 4 | D30: 0 | E30: 0 | F30: =IFERROR(VLOOKUP($A30&$B30,CHOOSE({1,2},MOG_OMT!$A$3:$A$500&MOG_OMT!$B$3:$B$500,MOG_OMT!$AM$30:$AM$500),2,FALSE),"") -> 4
A31: راشيا | B31: D2 | C31: =IFERROR(VLOOKUP($A31&$B31,CHOOSE({1,2},MOG_OMT!$A$3:$A$500&MOG_OMT!$B$3:$B$500,MOG_OMT!$AJ$31:$AJ$500),2,FALSE),"") -> 2 | D31: 0 | E31: 2 | F31: =IFERROR(VLOOKUP($A31&$B31,CHOOSE({1,2},MOG_OMT!$A$3:$A$500&MOG_OMT!$B$3:$B$500,MOG_OMT!$AM$31:$AM$500),2,FALSE),"") -> 0
A32: البقاع الغربي | B32: D3 | C32: =IFERROR(VLOOKUP($A32&$B32,CHOOSE({1,2},MOG_OMT!$A$3:$A$500&MOG_OMT!$B$3:$B$500,MOG_OMT!$AJ$32:$AJ$500),2,FALSE),"") -> 8 | D32: 0 | E32: 2 | F32: =IFERROR(VLOOKUP($A32&$B32,CHOOSE({1,2},MOG_OMT!$A$3:$A$500&MOG_OMT!$B$3:$B$500,MOG_OMT!$AM$32:$AM$500),2,FALSE),"") -> 6
A33: شمسطار | B33: D4 | C33: =IFERROR(VLOOKUP($A33&$B33,CHOOSE({1,2},MOG_OMT!$A$3:$A$500&MOG_OMT!$B$3:$B$500,MOG_OMT!$AJ$33:$AJ$500),2,FALSE),"") -> 18 | D33: 0 | E33: 8 | F33: =IFERROR(VLOOKUP($A33&$B33,CHOOSE({1,2},MOG_OMT!$A$3:$A$500&MOG_OMT!$B$3:$B$500,MOG_OMT!$AM$33:$AM$500),2,FALSE),"") -> 10
A34: بعلبك | B34: D5 | C34: =IFERROR(VLOOKUP($A34&$B34,CHOOSE({1,2},MOG_OMT!$A$3:$A$500&MOG_OMT!$B$3:$B$500,MOG_OMT!$AJ$34:$AJ$500),2,FALSE),"") -> 4 | D34: 0 | E34: 4 | F34: =IFERROR(VLOOKUP($A34&$B34,CHOOSE({1,2},MOG_OMT!$A$3:$A$500&MOG_OMT!$B$3:$B$500,MOG_OMT!$AM$34:$AM$500),2,FALSE),"") -> 0
A35: الهرمل | B35: D6 | C35: =IFERROR(VLOOKUP($A35&$B35,CHOOSE({1,2},MOG_OMT!$A$3:$A$500&MOG_OMT!$B$3:$B$500,MOG_OMT!$AJ$35:$AJ$500),2,FALSE),"") -> 1 | D35: 0 | E35: 1 | F35: =IFERROR(VLOOKUP($A35&$B35,CHOOSE({1,2},MOG_OMT!$A$3:$A$500&MOG_OMT!$B$3:$B$500,MOG_OMT!$AM$35:$AM$500),2,FALSE),"") -> 0
A36: دير الاحمر | B36: D7 | C36: =IFERROR(VLOOKUP($A36&$B36,CHOOSE({1,2},MOG_OMT!$A$3:$A$500&MOG_OMT!$B$3:$B$500,MOG_OMT!$AJ$36:$AJ$500),2,FALSE),"") -> 4 | D36: 0 | E36: 4 | F36: =IFERROR(VLOOKUP($A36&$B36,CHOOSE({1,2},MOG_OMT!$A$3:$A$500&MOG_OMT!$B$3:$B$500,MOG_OMT!$AM$36:$AM$500),2,FALSE),"") -> 0
A37: اللبوة | B37: D8 | C37: =IFERROR(VLOOKUP($A37&$B37,CHOOSE({1,2},MOG_OMT!$A$3:$A$500&MOG_OMT!$B$3:$B$500,MOG_OMT!$AJ$37:$AJ$500),2,FALSE),"") -> 16 | D37: 0 | E37: 10 | F37: =IFERROR(VLOOKUP($A37&$B37,CHOOSE({1,2},MOG_OMT!$A$3:$A$500&MOG_OMT!$B$3:$B$500,MOG_OMT!$AM$37:$AM$500),2,FALSE),"") -> 6
A38: صغبين | B38: D9 | C38: =IFERROR(VLOOKUP($A38&$B38,CHOOSE({1,2},MOG_OMT!$A$3:$A$500&MOG_OMT!$B$3:$B$500,MOG_OMT!$AJ$38:$AJ$500),2,FALSE),"") -> 4 | D38: 0 | E38: 1 | F38: =IFERROR(VLOOKUP($A38&$B38,CHOOSE({1,2},MOG_OMT!$A$3:$A$500&MOG_OMT!$B$3:$B$500,MOG_OMT!$AM$38:$AM$500),2,FALSE),"") -> 3
A39: طرابلس | B39: E1 | C39: =IFERROR(VLOOKUP($A39&$B39,CHOOSE({1,2},MOG_OMT!$A$3:$A$500&MOG_OMT!$B$3:$B$500,MOG_OMT!$AJ$39:$AJ$500),2,FALSE),"") -> 13 | D39: 0 | E39: 4 | F39: =IFERROR(VLOOKUP($A39&$B39,CHOOSE({1,2},MOG_OMT!$A$3:$A$500&MOG_OMT!$B$3:$B$500,MOG_OMT!$AM$39:$AM$500),2,FALSE),"") -> 9
A40: دوما | B40: E10 | C40: =IFERROR(VLOOKUP($A40&$B40,CHOOSE({1,2},MOG_OMT!$A$3:$A$500&MOG_OMT!$B$3:$B$500,MOG_OMT!$AJ$40:$AJ$500),2,FALSE),"") -> 0 | D40: 0 | E40: 0 | F40: =IFERROR(VLOOKUP($A40&$B40,CHOOSE({1,2},MOG_OMT!$A$3:$A$500&MOG_OMT!$B$3:$B$500,MOG_OMT!$AM$40:$AM$500),2,FALSE),"") -> 0
A41: العبدة | B41: E11 | C41: =IFERROR(VLOOKUP($A41&$B41,CHOOSE({1,2},MOG_OMT!$A$3:$A$500&MOG_OMT!$B$3:$B$500,MOG_OMT!$AJ$41:$AJ$500),2,FALSE),"") -> 4 | D41: 0 | E41: 3 | F41: =IFERROR(VLOOKUP($A41&$B41,CHOOSE({1,2},MOG_OMT!$A$3:$A$500&MOG_OMT!$B$3:$B$500,MOG_OMT!$AM$41:$AM$500),2,FALSE),"") -> 1
A42: بخعون | B42: E12 | C42: =IFERROR(VLOOKUP($A42&$B42,CHOOSE({1,2},MOG_OMT!$A$3:$A$500&MOG_OMT!$B$3:$B$500,MOG_OMT!$AJ$42:$AJ$500),2,FALSE),"") -> 8 | D42: 0 | E42: 3 | F42: =IFERROR(VLOOKUP($A42&$B42,CHOOSE({1,2},MOG_OMT!$A$3:$A$500&MOG_OMT!$B$3:$B$500,MOG_OMT!$AM$42:$AM$500),2,FALSE),"") -> 5
A43: بيت ملات | B43: E13 | C43: =IFERROR(VLOOKUP($A43&$B43,CHOOSE({1,2},MOG_OMT!$A$3:$A$500&MOG_OMT!$B$3:$B$500,MOG_OMT!$AJ$43:$AJ$500),2,FALSE),"") -> 6 | D43: 0 | E43: 4 | F43: =IFERROR(VLOOKUP($A43&$B43,CHOOSE({1,2},MOG_OMT!$A$3:$A$500&MOG_OMT!$B$3:$B$500,MOG_OMT!$AM$43:$AM$500),2,FALSE),"") -> 2
A44: المنية | B44: E2 | C44: =IFERROR(VLOOKUP($A44&$B44,CHOOSE({1,2},MOG_OMT!$A$3:$A$500&MOG_OMT!$B$3:$B$500,MOG_OMT!$AJ$44:$AJ$500),2,FALSE),"") -> 11 | D44: 0 | E44: 7 | F44: =IFERROR(VLOOKUP($A44&$B44,CHOOSE({1,2},MOG_OMT!$A$3:$A$500&MOG_OMT!$B$3:$B$500,MOG_OMT!$AM$44:$AM$500),2,FALSE),"") -> 4
A45: سير الضنية | B45: E3 | C45: =IFERROR(VLOOKUP($A45&$B45,CHOOSE({1,2},MOG_OMT!$A$3:$A$500&MOG_OMT!$B$3:$B$500,MOG_OMT!$AJ$45:$AJ$500),2,FALSE),"") -> 7 | D45: 0 | E45: 3 | F45: =IFERROR(VLOOKUP($A45&$B45,CHOOSE({1,2},MOG_OMT!$A$3:$A$500&MOG_OMT!$B$3:$B$500,MOG_OMT!$AM$45:$AM$500),2,FALSE),"") -> 4
A46: حلبا عكار | B46: E4 | C46: =IFERROR(VLOOKUP($A46&$B46,CHOOSE({1,2},MOG_OMT!$A$3:$A$500&MOG_OMT!$B$3:$B$500,MOG_OMT!$AJ$46:$AJ$500),2,FALSE),"") -> 10 | D46: 0 | E46: 2 | F46: =IFERROR(VLOOKUP($A46&$B46,CHOOSE({1,2},MOG_OMT!$A$3:$A$500&MOG_OMT!$B$3:$B$500,MOG_OMT!$AM$46:$AM$500),2,FALSE),"") -> 8
A47: القبيات | B47: E5 | C47: =IFERROR(VLOOKUP($A47&$B47,CHOOSE({1,2},MOG_OMT!$A$3:$A$500&MOG_OMT!$B$3:$B$500,MOG_OMT!$AJ$47:$AJ$500),2,FALSE),"") -> 3 | D47: 0 | E47: 3 | F47: =IFERROR(VLOOKUP($A47&$B47,CHOOSE({1,2},MOG_OMT!$A$3:$A$500&MOG_OMT!$B$3:$B$500,MOG_OMT!$AM$47:$AM$500),2,FALSE),"") -> 0
A48: البترون | B48: E6 | C48: =IFERROR(VLOOKUP($A48&$B48,CHOOSE({1,2},MOG_OMT!$A$3:$A$500&MOG_OMT!$B$3:$B$500,MOG_OMT!$AJ$48:$AJ$500),2,FALSE),"") -> 5 | D48: 0 | E48: 2 | F48: =IFERROR(VLOOKUP($A48&$B48,CHOOSE({1,2},MOG_OMT!$A$3:$A$500&MOG_OMT!$B$3:$B$500,MOG_OMT!$AM$48:$AM$500),2,FALSE),"") -> 3
A49: الكورة | B49: E7 | C49: =IFERROR(VLOOKUP($A49&$B49,CHOOSE({1,2},MOG_OMT!$A$3:$A$500&MOG_OMT!$B$3:$B$500,MOG_OMT!$AJ$49:$AJ$500),2,FALSE),"") -> 8 | D49: 0 | E49: 4 | F49: =IFERROR(VLOOKUP($A49&$B49,CHOOSE({1,2},MOG_OMT!$A$3:$A$500&MOG_OMT!$B$3:$B$500,MOG_OMT!$AM$49:$AM$500),2,FALSE),"") -> 4
A50: زغرتا | B50: E8 | C50: =IFERROR(VLOOKUP($A50&$B50,CHOOSE({1,2},MOG_OMT!$A$3:$A$500&MOG_OMT!$B$3:$B$500,MOG_OMT!$AJ$50:$AJ$500),2,FALSE),"") -> 3 | D50: 0 | E50: 0 | F50: =IFERROR(VLOOKUP($A50&$B50,CHOOSE({1,2},MOG_OMT!$A$3:$A$500&MOG_OMT!$B$3:$B$500,MOG_OMT!$AM$50:$AM$500),2,FALSE),"") -> 3
A51: بشري | B51: E9 | C51: =IFERROR(VLOOKUP($A51&$B51,CHOOSE({1,2},MOG_OMT!$A$3:$A$500&MOG_OMT!$B$3:$B$500,MOG_OMT!$AJ$51:$AJ$500),2,FALSE),"") -> 1 | D51: 0 | E51: 0 | F51: =IFERROR(VLOOKUP($A51&$B51,CHOOSE({1,2},MOG_OMT!$A$3:$A$500&MOG_OMT!$B$3:$B$500,MOG_OMT!$AM$51:$AM$500),2,FALSE),"") -> 1
A52: المجموع العام | C52: =SUM(C3:C51) -> 429 | D52: =SUM(D3:D51) -> 0 | E52: =SUM(E3:E51) -> 189 | F52: =SUM(F3:F51) -> 240

Sheet JARD_HA_OMT
B1: جدول بعدد الهويات المستلمة من المشغل والمسلمة الى اقلام النفوس والتي هي قيد التسليم من 2020/12/1 لغــاية 2020/12/31
A2: قلم النفوس | B2: رمز | C2: المجموع العام لغاية2020/12/31 | D2: بطاقات الشهر المنصرم | E2: بطاقات المسلمة لغاية 2020/12/31 | F2: بطاقات قيد التسليم
A3: بيروت | B3: A | C3: =IFERROR(VLOOKUP($A3&$B3,CHOOSE({1,2},HA_OMT!$A$3:$A$500&HA_OMT!$B$3:$B$500,HA_OMT!$AJ$3:$AJ$500),2,FALSE),"") -> 42 | D3: 0 | E3: =SUM((D3+C3)-F3) -> 16 | F3: =IFERROR(VLOOKUP($A3&$B3,CHOOSE({1,2},HA_OMT!$A$3:$A$500&HA_OMT!$B$3:$B$500,HA_OMT!$AM$3:$AM$500),2,FALSE),"") -> 26
A4: بعبدا | B4: B1 | C4: =IFERROR(VLOOKUP($A4&$B4,CHOOSE({1,2},HA_OMT!$A$3:$A$500&HA_OMT!$B$3:$B$500,HA_OMT!$AJ$4:$AJ$500),2,FALSE),"") -> 64 | D4: 0 | E4: =SUM((D4+C4)-F4) -> 19 | F4: =IFERROR(VLOOKUP($A4&$B4,CHOOSE({1,2},HA_OMT!$A$3:$A$500&HA_OMT!$B$3:$B$500,HA_OMT!$AM$3:$AM$500),2,FALSE),"") -> 45
A5: بكفيا | B5: B10 | C5: =IFERROR(VLOOKUP($A5&$B5,CHOOSE({1,2},HA_OMT!$A$3:$A$500&HA_OMT!$B$3:$B$500,HA_OMT!$AJ$5:$AJ$500),2,FALSE),"") -> 16 | D5: 0 | E5: 7 | F5: =IFERROR(VLOOKUP($A5&$B5,CHOOSE({1,2},HA_OMT!$A$3:$A$500&HA_OMT!$B$3:$B$500,HA_OMT!$AM$3:$AM$500),2,FALSE),"") -> 9
A6: المتن الشمالي العالي | B6: B11 | C6: =IFERROR(VLOOKUP($A6&$B6,CHOOSE({1,2},HA_OMT!$A$3:$A$500&HA_OMT!$B$3:$B$500,HA_OMT!$AJ$6:$AJ$500),2,FALSE),"") -> 0 | D6: 0 | E6: 0 | F6: =IFERROR(VLOOKUP($A6&$B6,CHOOSE({1,2},HA_OMT!$A$3:$A$500&HA_OMT!$B$3:$B$500,HA_OMT!$AM$3:$AM$500),2,FALSE),"") -> 0
A7: كسروان | B7: B12 | C7: =IFERROR(VLOOKUP($A7&$B7,CHOOSE({1,2},HA_OMT!$A$3:$A$500&HA_OMT!$B$3:$B$500,HA_OMT!$AJ$7:$AJ$500),2,FALSE),"") -> 45 | D7: 0 | E7: 19 | F7: =IFERROR(VLOOKUP($A7&$B7,CHOOSE({1,2},HA_OMT!$A$3:$A$500&HA_OMT!$B$3:$B$500,HA_OMT!$AM$3:$AM$500),2,FALSE),"") -> 26
A8: جبيل | B8: B13 | C8: =IFERROR(VLOOKUP($A8&$B8,CHOOSE({1,2},HA_OMT!$A$3:$A$500&HA_OMT!$B$3:$B$500,HA_OMT!$AJ$8:$AJ$500),2,FALSE),"") -> 8 | D8: 0 | E8: 2 | F8: =IFERROR(VLOOKUP($A8&$B8,CHOOSE({1,2},HA_OMT!$A$3:$A$500&HA_OMT!$B$3:$B$500,HA_OMT!$AM$3:$AM$500),2,FALSE),"") -> 6
A9: فتوح كسروان | B9: B14 | C9: =IFERROR(VLOOKUP($A9&$B9,CHOOSE({1,2},HA_OMT!$A$3:$A$500&HA_OMT!$B$3:$B$500,HA_OMT!$AJ$9:$AJ$500),2,FALSE),"") -> 3 | D9: 0 | E9: 2 | F9: =IFERROR(VLOOKUP($A9&$B9,CHOOSE({1,2},HA_OMT!$A$3:$A$500&HA_OMT!$B$3:$B$500,HA_OMT!$AM$3:$AM$500),2,FALSE),"") -> 1
A10: الشويفات | B10: B2 | C10: =IFERROR(VLOOKUP($A10&$B10,CHOOSE({1,2},HA_OMT!$A$3:$A$500&HA_OMT!$B$3:$B$500,HA_OMT!$AJ$10:$AJ$500),2,FALSE),"") -> 51 | D10: 0 | E10: 20 | F10: =IFERROR(VLOOKUP($A10&$B10,CHOOSE({1,2},HA_OMT!$A$3:$A$500&HA_OMT!$B$3:$B$500,HA_OMT!$AM$3:$AM$500),2,FALSE),"") -> 31
A11: برجا | B11: B3 | C11: =IFERROR(VLOOKUP($A11&$B11,CHOOSE({1,2},HA_OMT!$A$3:$A$500&HA_OMT!$B$3:$B$500,HA_OMT!$AJ$11:$AJ$500),2,FALSE),"") -> 9 | D11: 0 | E11: 6 | F11: =IFERROR(VLOOKUP($A11&$B11,CHOOSE({1,2},HA_OMT!$A$3:$A$500&HA_OMT!$B$3:$B$500,HA_OMT!$AM$3:$AM$500),2,FALSE),"") -> 3
A12: شحيم | B12: B4 | C12: =IFERROR(VLOOKUP($A12&$B12,CHOOSE({1,2},HA_OMT!$A$3:$A$500&HA_OMT!$B$3:$B$500,HA_OMT!$AJ$12:$AJ$500),2,FALSE),"") -> 2 | D12: 0 | E12: 1 | F12: =IFERROR(VLOOKUP($A12&$B12,CHOOSE({1,2},HA_OMT!$A$3:$A$500&HA_OMT!$B$3:$B$500,HA_OMT!$AM$3:$AM$500),2,FALSE),"") -> 1
A13: عاليه | B13: B5 | C13: =IFERROR(VLOOKUP($A13&$B13,CHOOSE({1,2},HA_OMT!$A$3:$A$500&HA_OMT!$B$3:$B$500,HA_OMT!$AJ$13:$AJ$500),2,FALSE),"") -> 29 | D13: 0 | E13: 4 | F13: =IFERROR(VLOOKUP($A13&$B13,CHOOSE({1,2},HA_OMT!$A$3:$A$500&HA_OMT!$B$3:$B$500,HA_OMT!$AM$3:$AM$500),2,FALSE),"") -> 25
A14: حمانا | B14: B6 | C14: =IFERROR(VLOOKUP($A14&$B14,CHOOSE({1,2},HA_OMT!$A$3:$A$500&HA_OMT!$B$3:$B$500,HA_OMT!$AJ$14:$AJ$500),2,FALSE),"") -> 6 | D14: 0 | E14: 4 | F14: =IFERROR(VLOOKUP($A14&$B14,CHOOSE({1,2},HA_OMT!$A$3:$A$500&HA_OMT!$B$3:$B$500,HA_OMT!$AM$3:$AM$500),2,FALSE),"") -> 2
A15: الشوف | B15: B7 | C15: =IFERROR(VLOOKUP($A15&$B15,CHOOSE({1,2},HA_OMT!$A$3:$A$500&HA_OMT!$B$3:$B$500,HA_OMT!$AJ$15:$AJ$500),2,FALSE),"") -> 9 | D15: 0 | E15: 3 | F15: =IFERROR(VLOOKUP($A15&$B15,CHOOSE({1,2},HA_OMT!$A$3:$A$500&HA_OMT!$B$3:$B$500,HA_OMT!$AM$3:$AM$500),2,FALSE),"") -> 6
A16: المتن | B16: B8 | C16: =IFERROR(VLOOKUP($A16&$B16,CHOOSE({1,2},HA_OMT!$A$3:$A$500&HA_OMT!$B$3:$B$500,HA_OMT!$AJ$16:$AJ$500),2,FALSE),"") -> 59 | D16: 0 | E16: 9 | F16: =IFERROR(VLOOKUP($A16&$B16,CHOOSE({1,2},HA_OMT!$A$3:$A$500&HA_OMT!$B$3:$B$500,HA_OMT!$AM$3:$AM$500),2,FALSE),"") -> 50
A17: انطلياس | B17: B9 | C17: =IFERROR(VLOOKUP($A17&$B17,CHOOSE({1,2},HA_OMT!$A$3:$A$500&HA_OMT!$B$3:$B$500,HA_OMT!$AJ$17:$AJ$500),2,FALSE),"") -> 39 | D17: 0 | E17: 13 | F17: =IFERROR(VLOOKUP($A17&$B17,CHOOSE({1,2},HA_OMT!$A$3:$A$500&HA_OMT!$B$3:$B$500,HA_OMT!$AM$3:$AM$500),2,FALSE),"") -> 26
A18: صيدا | B18: C1 | C18: =IFERROR(VLOOKUP($A18&$B18,CHOOSE({1,2},HA_OMT!$A$3:$A$500&HA_OMT!$B$3:$B$500,HA_OMT!$AJ$18:$AJ$500),2,FALSE),"") -> 0 | D18: 0 | E18: 0 | F18: =IFERROR(VLOOKUP($A18&$B18,CHOOSE({1,2},HA_OMT!$A$3:$A$500&HA_OMT!$B$3:$B$500,HA_OMT!$AM$3:$AM$500),2,FALSE),"") -> 0
A19: جويا | B19: C10 | C19: =IFERROR(VLOOKUP($A19&$B19,CHOOSE({1,2},HA_OMT!$A$3:$A$500&HA_OMT!$B$3:$B$500,HA_OMT!$AJ$19:$AJ$500),2,FALSE),"") -> 18 | D19: 0 | E19: 0 | F19: =IFERROR(VLOOKUP($A19&$B19,CHOOSE({1,2},HA_OMT!$A$3:$A$500&HA_OMT!$B$3:$B$500,HA_OMT!$AM$3:$AM$500),2,FALSE),"") -> 18
A20: ميس الجبل | B20: C11 | C20: =IFERROR(VLOOKUP($A20&$B20,CHOOSE({1,2},HA_OMT!$A$3:$A$500&HA_OMT!$B$3:$B$500,HA_OMT!$AJ$20:$AJ$500),2,FALSE),"") -> 2 | D20: 0 | E20: 2 | F20: =IFERROR(VLOOKUP($A20&$B20,CHOOSE({1,2},HA_OMT!$A$3:$A$500&HA_OMT!$B$3:$B$500,HA_OMT!$AM$3:$AM$500),2,FALSE),"") -> 0
A21: صور | B21: C2 | C21: =IFERROR(VLOOKUP($A21&$B21,CHOOSE({1,2},HA_OMT!$A$3:$A$500&HA_OMT!$B$3:$B$500,HA_OMT!$AJ$21:$AJ$500),2,FALSE),"") -> 0 | D21: 0 | E21: 0 | F21: =IFERROR(VLOOKUP($A21&$B21,CHOOSE({1,2},HA_OMT!$A$3:$A$500&HA_OMT!$B$3:$B$500,HA_OMT!$AM$3:$AM$500),2,FALSE),"") -> 0
A22: جزين | B22: C3 | C22: =IFERROR(VLOOKUP($A22&$B22,CHOOSE({1,2},HA_OMT!$A$3:$A$500&HA_OMT!$B$3:$B$500,HA_OMT!$AJ$22:$AJ$500),2,FALSE),"") -> 0 | D22: 0 | E22: 0 | F22: =IFERROR(VLOOKUP($A22&$B22,CHOOSE({1,2},HA_OMT!$A$3:$A$500&HA_OMT!$B$3:$B$500,HA_OMT!$AM$3:$AM$500),2,FALSE),"") -> 0
A23: النبطية | B23: C4 | C23: =IFERROR(VLOOKUP($A23&$B23,CHOOSE({1,2},HA_OMT!$A$3:$A$500&HA_OMT!$B$3:$B$500,HA_OMT!$AJ$23:$AJ$500),2,FALSE),"") -> 31 | D23: 0 | E23: 20 | F23: =IFERROR(VLOOKUP($A23&$B23,CHOOSE({1,2},HA_OMT!$A$3:$A$500&HA_OMT!$B$3:$B$500,HA_OMT!$AM$3:$AM$500),2,FALSE),"") -> 11
A24: بنت جبيل | B24: C5 | C24: =IFERROR(VLOOKUP($A24&$B24,CHOOSE({1,2},HA_OMT!$A$3:$A$500&HA_OMT!$B$3:$B$500,HA_OMT!$AJ$24:$AJ$500),2,FALSE),"") -> 24 | D24: 0 | E24: 14 | F24: =IFERROR(VLOOKUP($A24&$B24,CHOOSE({1,2},HA_OMT!$A$3:$A$500&HA_OMT!$B$3:$B$500,HA_OMT!$AM$3:$AM$500),2,FALSE),"") -> 10
A25: مرجعيون | B25: C6 | C25: =IFERROR(VLOOKUP($A25&$B25,CHOOSE({1,2},HA_OMT!$A$3:$A$500&HA_OMT!$B$3:$B$500,HA_OMT!$AJ$25:$AJ$500),2,FALSE),"") -> 0 | D25: 0 | E25: 0 | F25: =IFERROR(VLOOKUP($A25&$B25,CHOOSE({1,2},HA_OMT!$A$3:$A$500&HA_OMT!$B$3:$B$500,HA_OMT!$AM$3:$AM$500),2,FALSE),"") -> 0
A26: حاصبيا | B26: C7 | C26: =IFERROR(VLOOKUP($A26&$B26,CHOOSE({1,2},HA_OMT!$A$3:$A$500&HA_OMT!$B$3:$B$500,HA_OMT!$AJ$26:$AJ$500),2,FALSE),"") -> 7 | D26: 0 | E26: 3 | F26: =IFERROR(VLOOKUP($A26&$B26,CHOOSE({1,2},HA_OMT!$A$3:$A$500&HA_OMT!$B$3:$B$500,HA_OMT!$AM$3:$AM$500),2,FALSE),"") -> 4
A27: تبنين | B27: C8 | C27: =IFERROR(VLOOKUP($A27&$B27,CHOOSE({1,2},HA_OMT!$A$3:$A$500&HA_OMT!$B$3:$B$500,HA_OMT!$AJ$27:$AJ$500),2,FALSE),"") -> 33 | D27: 0 | E27: 15 | F27: =IFERROR(VLOOKUP($A27&$B27,CHOOSE({1,2},HA_OMT!$A$3:$A$500&HA_OMT!$B$3:$B$500,HA_OMT!$AM$3:$AM$500),2,FALSE),"") -> 18
A28: جباع | B28: C9 | C28: =IFERROR(VLOOKUP($A28&$B28,CHOOSE({1,2},HA_OMT!$A$3:$A$500&HA_OMT!$B$3:$B$500,HA_OMT!$AJ$28:$AJ$500),2,FALSE),"") -> 12 | D28: 0 | E28: 8 | F28: =IFERROR(VLOOKUP($A28&$B28,CHOOSE({1,2},HA_OMT!$A$3:$A$500&HA_OMT!$B$3:$B$500,HA_OMT!$AM$3:$AM$500),2,FALSE),"") -> 4
A29: زحلة | B29: D1 | C29: =IFERROR(VLOOKUP($A29&$B29,CHOOSE({1,2},HA_OMT!$A$3:$A$500&HA_OMT!$B$3:$B$500,HA_OMT!$AJ$29:$AJ$500),2,FALSE),"") -> 164 | D29: 0 | E29: 92 | F29: =IFERROR(VLOOKUP($A29&$B29,CHOOSE({1,2},HA_OMT!$A$3:$A$500&HA_OMT!$B$3:$B$500,HA_OMT!$AM$3:$AM$500),2,FALSE),"") -> 72
A30: النبي شيت | B30: D10 | C30: =IFERROR(VLOOKUP($A30&$B30,CHOOSE({1,2},HA_OMT!$A$3:$A$500&HA_OMT!$B$3:$B$500,HA_OMT!$AJ$30:$AJ$500),2,FALSE),"") -> 5 | D30: 0 | E30: 0 | F30: =IFERROR(VLOOKUP($A30&$B30,CHOOSE({1,2},HA_OMT!$A$3:$A$500&HA_OMT!$B$3:$B$500,HA_OMT!$AM$3:$AM$500),2,FALSE),"") -> 5
A31: راشيا | B31: D2 | C31: =IFERROR(VLOOKUP($A31&$B31,CHOOSE({1,2},HA_OMT!$A$3:$A$500&HA_OMT!$B$3:$B$500,HA_OMT!$AJ$31:$AJ$500),2,FALSE),"") -> 4 | D31: 0 | E31: 4 | F31: =IFERROR(VLOOKUP($A31&$B31,CHOOSE({1,2},HA_OMT!$A$3:$A$500&HA_OMT!$B$3:$B$500,HA_OMT!$AM$3:$AM$500),2,FALSE),"") -> 0
A32: البقاع الغربي | B32: D3 | C32: =IFERROR(VLOOKUP($A32&$B32,CHOOSE({1,2},HA_OMT!$A$3:$A$500&HA_OMT!$B$3:$B$500,HA_OMT!$AJ$32:$AJ$500),2,FALSE),"") -> 17 | D32: 0 | E32: 4 | F32: =IFERROR(VLOOKUP($A32&$B32,CHOOSE({1,2},HA_OMT!$A$3:$A$500&HA_OMT!$B$3:$B$500,HA_OMT!$AM$3:$AM$500),2,FALSE),"") -> 13
A33: شمسطار | B33: D4 | C33: =IFERROR(VLOOKUP($A33&$B33,CHOOSE({1,2},HA_OMT!$A$3:$A$500&HA_OMT!$B$3:$B$500,HA_OMT!$AJ$33:$AJ$500),2,FALSE),"") -> 68 | D33: 0 | E33: 41 | F33: =IFERROR(VLOOKUP($A33&$B33,CHOOSE({1,2},HA_OMT!$A$3:$A$500&HA_OMT!$B$3:$B$500,HA_OMT!$AM$3:$AM$500),2,FALSE),"") -> 27
A34: بعلبك | B34: D5 | C34: =IFERROR(VLOOKUP($A34&$B34,CHOOSE({1,2},HA_OMT!$A$3:$A$500&HA_OMT!$B$3:$B$500,HA_OMT!$AJ$34:$AJ$500),2,FALSE),"") -> 4 | D34: 0 | E34: 4 | F34: =IFERROR(VLOOKUP($A34&$B34,CHOOSE({1,2},HA_OMT!$A$3:$A$500&HA_OMT!$B$3:$B$500,HA_OMT!$AM$3:$AM$500),2,FALSE),"") -> 0
A35: الهرمل | B35: D6 | C35: =IFERROR(VLOOKUP($A35&$B35,CHOOSE({1,2},HA_OMT!$A$3:$A$500&HA_OMT!$B$3:$B$500,HA_OMT!$AJ$35:$AJ$500),2,FALSE),"") -> 1 | D35: 0 | E35: 1 | F35: =IFERROR(VLOOKUP($A35&$B35,CHOOSE({1,2},HA_OMT!$A$3:$A$500&HA_OMT!$B$3:$B$500,HA_OMT!$AM$3:$AM$500),2,FALSE),"") -> 0
A36: دير الاحمر | B36: D7 | C36: =IFERROR(VLOOKUP($A36&$B36,CHOOSE({1,2},HA_OMT!$A$3:$A$500&HA_OMT!$B$3:$B$500,HA_OMT!$AJ$36:$AJ$500),2,FALSE),"") -> 9 | D36: 0 | E36: 9 | F36: =IFERROR(VLOOKUP($A36&$B36,CHOOSE({1,2},HA_OMT!$A$3:$A$500&HA_OMT!$B$3:$B$500,HA_OMT!$AM$3:$AM$500),2,FALSE),"") -> 0
A37: اللبوة | B37: D8 | C37: =IFERROR(VLOOKUP($A37&$B37,CHOOSE({1,2},HA_OMT!$A$3:$A$500&HA_OMT!$B$3:$B$500,HA_OMT!$AJ$37:$AJ$500),2,FALSE),"") -> 37 | D37: 0 | E37: 20 | F37: =IFERROR(VLOOKUP($A37&$B37,CHOOSE({1,2},HA_OMT!$A$3:$A$500&HA_OMT!$B$3:$B$500,HA_OMT!$AM$3:$AM$500),2,FALSE),"") -> 17
A38: صغبين | B38: D9 | C38: =IFERROR(VLOOKUP($A38&$B38,CHOOSE({1,2},HA_OMT!$A$3:$A$500&HA_OMT!$B$3:$B$500,HA_OMT!$AJ$38:$AJ$500),2,FALSE),"") -> 5 | D38: 0 | E38: 1 | F38: =IFERROR(VLOOKUP($A38&$B38,CHOOSE({1,2},HA_OMT!$A$3:$A$500&HA_OMT!$B$3:$B$500,HA_OMT!$AM$3:$AM$500),2,FALSE),"") -> 4
A39: طرابلس | B39: E1 | C39: =IFERROR(VLOOKUP($A39&$B39,CHOOSE({1,2},HA_OMT!$A$3:$A$500&HA_OMT!$B$3:$B$500,HA_OMT!$AJ$39:$AJ$500),2,FALSE),"") -> 24 | D39: 0 | E39: 9 | F39: =IFERROR(VLOOKUP($A39&$B39,CHOOSE({1,2},HA_OMT!$A$3:$A$500&HA_OMT!$B$3:$B$500,HA_OMT!$AM$3:$AM$500),2,FALSE),"") -> 15
A40: دوما | B40: E10 | C40: =IFERROR(VLOOKUP($A40&$B40,CHOOSE({1,2},HA_OMT!$A$3:$A$500&HA_OMT!$B$3:$B$500,HA_OMT!$AJ$40:$AJ$500),2,FALSE),"") -> 0 | D40: 0 | E40: 0 | F40: =IFERROR(VLOOKUP($A40&$B40,CHOOSE({1,2},HA_OMT!$A$3:$A$500&HA_OMT!$B$3:$B$500,HA_OMT!$AM$3:$AM$500),2,FALSE),"") -> 0
A41: العبدة | B41: E11 | C41: =IFERROR(VLOOKUP($A41&$B41,CHOOSE({1,2},HA_OMT!$A$3:$A$500&HA_OMT!$B$3:$B$500,HA_OMT!$AJ$41:$AJ$500),2,FALSE),"") -> 5 | D41: 0 | E41: 4 | F41: =IFERROR(VLOOKUP($A41&$B41,CHOOSE({1,2},HA_OMT!$A$3:$A$500&HA_OMT!$B$3:$B$500,HA_OMT!$AM$3:$AM$500),2,FALSE),"") -> 1
A42: بخعون | B42: E12 | C42: =IFERROR(VLOOKUP($A42&$B42,CHOOSE({1,2},HA_OMT!$A$3:$A$500&HA_OMT!$B$3:$B$500,HA_OMT!$AJ$42:$AJ$500),2,FALSE),"") -> 23 | D42: 0 | E42: 14 | F42: =IFERROR(VLOOKUP($A42&$B42,CHOOSE({1,2},HA_OMT!$A$3:$A$500&HA_OMT!$B$3:$B$500,HA_OMT!$AM$3:$AM$500),2,FALSE),"") -> 9
A43: بيت ملات | B43: E13 | C43: =IFERROR(VLOOKUP($A43&$B43,CHOOSE({1,2},HA_OMT!$A$3:$A$500&HA_OMT!$B$3:$B$500,HA_OMT!$AJ$43:$AJ$500),2,FALSE),"") -> 5 | D43: 0 | E43: 3 | F43: =IFERROR(VLOOKUP($A43&$B43,CHOOSE({1,2},HA_OMT!$A$3:$A$500&HA_OMT!$B$3:$B$500,HA_OMT!$AM$3:$AM$500),2,FALSE),"") -> 2
A44: المنية | B44: E2 | C44: =IFERROR(VLOOKUP($A44&$B44,CHOOSE({1,2},HA_OMT!$A$3:$A$500&HA_OMT!$B$3:$B$500,HA_OMT!$AJ$44:$AJ$500),2,FALSE),"") -> 16 | D44: 0 | E44: 11 | F44: =IFERROR(VLOOKUP($A44&$B44,CHOOSE({1,2},HA_OMT!$A$3:$A$500&HA_OMT!$B$3:$B$500,HA_OMT!$AM$3:$AM$500),2,FALSE),"") -> 5
A45: سير الضنية | B45: E3 | C45: =IFERROR(VLOOKUP($A45&$B45,CHOOSE({1,2},HA_OMT!$A$3:$A$500&HA_OMT!$B$3:$B$500,HA_OMT!$AJ$45:$AJ$500),2,FALSE),"") -> 8 | D45: 0 | E45: 3 | F45: =IFERROR(VLOOKUP($A45&$B45,CHOOSE({1,2},HA_OMT!$A$3:$A$500&HA_OMT!$B$3:$B$500,HA_OMT!$AM$3:$AM$500),2,FALSE),"") -> 5
A46: حلبا عكار | B46: E4 | C46: =IFERROR(VLOOKUP($A46&$B46,CHOOSE({1,2},HA_OMT!$A$3:$A$500&HA_OMT!$B$3:$B$500,HA_OMT!$AJ$46:$AJ$500),2,FALSE),"") -> 16 | D46: 0 | E46: 5 | F46: =IFERROR(VLOOKUP($A46&$B46,CHOOSE({1,2},HA_OMT!$A$3:$A$500&HA_OMT!$B$3:$B$500,HA_OMT!$AM$3:$AM$500),2,FALSE),"") -> 11
A47: القبيات | B47: E5 | C47: =IFERROR(VLOOKUP($A47&$B47,CHOOSE({1,2},HA_OMT!$A$3:$A$500&HA_OMT!$B$3:$B$500,HA_OMT!$AJ$47:$AJ$500),2,FALSE),"") -> 4 | D47: 0 | E47: 4 | F47: =IFERROR(VLOOKUP($A47&$B47,CHOOSE({1,2},HA_OMT!$A$3:$A$500&HA_OMT!$B$3:$B$500,HA_OMT!$AM$3:$AM$500),2,FALSE),"") -> 0
A48: البترون | B48: E6 | C48: =IFERROR(VLOOKUP($A48&$B48,CHOOSE({1,2},HA_OMT!$A$3:$A$500&HA_OMT!$B$3:$B$500,HA_OMT!$AJ$48:$AJ$500),2,FALSE),"") -> 5 | D48: 0 | E48: 2 | F48: =IFERROR(VLOOKUP($A48&$B48,CHOOSE({1,2},HA_OMT!$A$3:$A$500&HA_OMT!$B$3:$B$500,HA_OMT!$AM$3:$AM$500),2,FALSE),"") -> 3
A49: الكورة | B49: E7 | C49: =IFERROR(VLOOKUP($A49&$B49,CHOOSE({1,2},HA_OMT!$A$3:$A$500&HA_OMT!$B$3:$B$500,HA_OMT!$AJ$49:$AJ$500),2,FALSE),"") -> 11 | D49: 0 | E49: 6 | F49: =IFERROR(VLOOKUP($A49&$B49,CHOOSE({1,2},HA_OMT!$A$3:$A$500&HA_OMT!$B$3:$B$500,HA_OMT!$AM$3:$AM$500),2,FALSE),"") -> 5
A50: زغرتا | B50: E8 | C50: =IFERROR(VLOOKUP($A50&$B50,CHOOSE({1,2},HA_OMT!$A$3:$A$500&HA_OMT!$B$3:$B$500,HA_OMT!$AJ$50:$AJ$500),2,FALSE),"") -> 2 | D50: 0 | E50: 0 | F50: =IFERROR(VLOOKUP($A50&$B50,CHOOSE({1,2},HA_OMT!$A$3:$A$500&HA_OMT!$B$3:$B$500,HA_OMT!$AM$3:$AM$500),2,FALSE),"") -> 2
A51: بشري | B51: E9 | C51: =IFERROR(VLOOKUP($A51&$B51,CHOOSE({1,2},HA_OMT!$A$3:$A$500&HA_OMT!$B$3:$B$500,HA_OMT!$AJ$51:$AJ$500),2,FALSE),"") -> 1 | D51: 0 | E51: 0 | F51: =IFERROR(VLOOKUP($A51&$B51,CHOOSE({1,2},HA_OMT!$A$3:$A$500&HA_OMT!$B$3:$B$500,HA_OMT!$AM$3:$AM$500),2,FALSE),"") -> 1
A52: المجموع العام | C52: =SUM(C3:C51) -> 943 | D52: =SUM(D3:D51) -> 0 | E52: =SUM(E3:E51) -> 424 | F52: =SUM(F3:F51) -> 519

Sheet ALL
A1: 2020 | B1: ALL | C1: 2020-12-01 | G1: 2020-12-08 | K1: 2020-12-14 | O1: 2020-12-18 | S1: 2020-12-22
A2: كانون اول | B2: رمز | C2: 02/12/ | G2: 09/12/ | K2: 15/12/ | O2: 21/12/ | S2: 23/12/
C3: مغلفات | D3: هويات | E3: مغلفات OMT | F3: هويات OMT | G3: مغلفات | H3: هويات | I3: مغلفات OMT | J3: هويات OMT | K3: مغلفات | L3: هويات | M3: مغلفات OMT | N3: هويات OMT | O3: مغلفات | P3: هويات | Q3: مغلفات OMT | R3: هويات OMT | S3: مغلفات | T3: هويات | U3: مغلفات OMT | V3: هويات OMT | W3: مغلفات | X3: هويات | Y3: مغلفات OMT | Z3: هويات OMT | AA3: مغلفات | AB3: هويات | AC3: مغلفات OMT | AD3: هويات OMT | AE3: مغلفات | AF3: هويات | AG3: مغلفات OMT | AH3: هويات OMT | AI3: مغلفات | AJ3: هويات | AK3: مغلفات OMT | AL3: هويات OMT | AM3: مغلفات | AN3: هويات | AO3: مغلفات OMT | AP3: هويات OMT | AQ3: مغلفات | AR3: هويات | AS3: مغلفات OMT | AT3: هويات OMT | AU3: مغلفات | AV3: هويات | AW3: مغلفات OMT | AX3: هويات OMT | AY3: مغلفات | AZ3: هويات | BA3: مغلفات OMT | BB3: هويات OMT | BC3: مغلفات | BD3: هويات | BE3: مغلفات OMT | BF3: هويات OMT | BG3: مغلفات | BH3: هويات | BI3: مغلفات OMT | BJ3: هويات OMT | BK3: مغلفات | BL3: هويات | BM3: مغلفات OMT | BN3: هويات OMT | BO3: مغلفات | BP3: هويات | BQ3: مغلفات OMT | BR3: هويات OMT | BS3: مغلفات | BT3: هويات | BU3: مغلفات OMT | BV3: هويات OMT | BW3: مغلفات | BX3: هويات | BY3: مغلفات OMT | BZ3: هويات OMT | CA3: مغلفات | CB3: هويات | CC3: مغلفات OMT | CD3: هويات OMT | CE3: مغلفات | CF3: هويات | CG3: مغلفات OMT | CH3: هويات OMT | CI3: مغلفات | CJ3: هويات | CK3: مغلفات OMT | CL3: هويات OMT | CM3: مغلفات | CN3: هويات | CO3: مغلفات OMT | CP3: هويات OMT | CQ3: مغلفات | CR3: هويات | CS3: مغلفات OMT | CT3: هويات OMT | CU3: مغلفات | CV3: هويات | CW3: مغلفات OMT | CX3: هويات OMT | CY3: مغلفات | CZ3: هويات | DA3: مغلفات OMT | DB3: هويات OMT | DC3: مغلفات | DD3: هويات | DE3: مغلفات OMT | DF3: هويات OMT | DG3: مغلفات | DH3: هويات | DI3: مغلفات OMT | DJ3: هويات OMT | DK3: مغلفات | DL3: هويات | DM3: مغلفات OMT | DN3: هويات OMT | DO3: مغلفات | DP3: هويات | DQ3: مغلفات OMT | DR3: هويات OMT | DS3: مغلفات | DT3: هويات | DU3: مغلفات OMT | DV3: هويات OMT | DZ3: مغلفات | EA3: هويات | EB3: مغلفات OMT | EC3: هويات OMT
A4: بيروت | B4: A | C4: 4 | D4: 4 | E4: 2 | F4: 2 | G4: 30 | H4: 266 | I4: 6 | J4: 13 | K4: 17 | L4: 107 | M4: 9 | N4: 11 | O4: 12 | P4: 146 | S4: 14 | T4: 137 | U4: 6 | V4: 16 | DZ4: =SUM(C4+G4+K4+O4+S4+W4+AA4+AE4+AI4+AM4+AQ4+AU4+AY4+BC4+BG4+BK4+BO4+BS4+BW4+CA4+CE4+CI4+CM4+CQ4+CU4+CY4+DC4+DG4+DK4+DO4+DS4) -> 77 | EA4: =SUM(D4+H4+L4+P4+T4+X4+AB4+AF4+AJ4+AN4+AR4+AV4+AZ4+BD4+BH4+BL4+BP4+BT4+BX4+CB4+CF4+CJ4+CN4+CR4+CV4+CZ4+DD4+DH4+DL4+DP4+DT4) -> 660 | EB4: =SUM(E4+I4+M4+Q4+U4+Y4+AC4+AG4+AK4+AO4+AS4+AW4+BA4+BE4+BI4+BM4+BQ4+BU4+BY4+CC4+CG4+CK4+CO4+CS4+CW4+DA4+DE4+DI4+DM4+DQ4+DU4) -> 23 | EC4: =SUM(F4+J4+N4+R4+V4+Z4+AD4+AH4+AL4+AP4+AT4+AX4+BB4+BF4+BJ4+BN4+BR4+BV4+BZ4+CD4+CH4+CL4+CP4+CT4+CX4+DB4+DF4+DJ4+DN4+DR4+DV4) -> 42
A5: بعبدا | B5: B1 | C5: 3 | D5: 22 | E5: 3 | F5: 22 | G5: 3 | H5: 11 | I5: 3 | J5: 11 | K5: 3 | L5: 12 | M5: 3 | N5: 12 | O5: 3 | P5: 7 | Q5: 3 | R5: 7 | S5: 3 | T5: 12 | U5: 3 | V5: 12 | DZ5: =SUM(C5+G5+K5+O5+S5+W5+AA5+AE5+AI5+AM5+AQ5+AU5+AY5+BC5+BG5+BK5+BO5+BS5+BW5+CA5+CE5+CI5+CM5+CQ5+CU5+CY5+DC5+DG5+DK5+DO5+DS5) -> 15 | EA5: =SUM(D5+H5+L5+P5+T5+X5+AB5+AF5+AJ5+AN5+AR5+AV5+AZ5+BD5+BH5+BL5+BP5+BT5+BX5+CB5+CF5+CJ5+CN5+CR5+CV5+CZ5+DD5+DH5+DL5+DP5+DT5) -> 64 | EB5: =SUM(E5+I5+M5+Q5+U5+Y5+AC5+AG5+AK5+AO5+AS5+AW5+BA5+BE5+BI5+BM5+BQ5+BU5+BY5+CC5+CG5+CK5+CO5+CS5+CW5+DA5+DE5+DI5+DM5+DQ5+DU5) -> 15 | EC5: =SUM(F5+J5+N5+R5+V5+Z5+AD5+AH5+AL5+AP5+AT5+AX5+BB5+BF5+BJ5+BN5+BR5+BV5+BZ5+CD5+CH5+CL5+CP5+CT5+CX5+DB5+DF5+DJ5+DN5+DR5+DV5) -> 64
A6: بكفيا | B6: B10 | C6: 4 | D6: 82 | G6: 4 | H6: 9 | I6: 4 | J6: 9 | O6: 9 | P6: 38 | Q6: 3 | R6: 7 | DZ6: 17 | EA6: 129 | EB6: 7 | EC6: 16
A7: المتن الشمالي العالي | B7: B11 | C7: 5 | D7: 9 | O7: 5 | P7: 11 | DZ7: 10 | EA7: 20 | EB7: 0 | EC7: 0
A8: كسروان | B8: B12 | C8: 12 | D8: 63 | E8: 3 | F8: 13 | G8: 7 | H8: 11 | I8: 7 | J8: 11 | K8: 2 | L8: 2 | M8: 2 | N8: 2 | O8: 11 | P8: 38 | Q8: 7 | R8: 17 | S8: 1 | T8: 2 | U8: 1 | V8: 2 | DZ8: 33 | EA8: 116 | EB8: 20 | EC8: 45
A9: جبيل | B9: B13 | G9: 1 | H9: 2 | I9: 1 | J9: 2 | K9: 2 | L9: 4 | M9: 2 | N9: 4 | S9: 6 | T9: 48 | U9: 1 | V9: 2 | DZ9: 9 | EA9: 54 | EB9: 4 | EC9: 8
A10: فتوح كسروان | B10: B14 | C10: 4 | D10: 22 | G10: 1 | H10: 1 | I10: 1 | J10: 1 | O10: 6 | P10: 13 | Q10: 2 | R10: 2 | DZ10: 11 | EA10: 36 | EB10: 3 | EC10: 3
A11: الشويفات | B11: B2 | C11: 8 | D11: 24 | E11: 5 | F11: 12 | G11: 8 | H11: 15 | I11: 8 | J11: 15 | K11: 3 | L11: 4 | M11: 3 | N11: 4 | O11: 11 | P11: 20 | Q11: 11 | R11: 20 | DZ11: 30 | EA11: 63 | EB11: 27 | EC11: 51
A12: برجا | B12: B3 | K12: 2 | L12: 3 | M12: 2 | N12: 3 | O12: 5 | P12: 6 | Q12: 5 | R12: 6 | DZ12: 7 | EA12: 9 | EB12: 7 | EC12: 9
A13: شحيم | B13: B4 | G13: 1 | H13: 1 | I13: 1 | J13: 1 | O13: 7 | P13: 22 | Q13: 1 | R13: 1 | DZ13: 8 | EA13: 23 | EB13: 2 | EC13: 2
A14: عاليه | B14: B5 | C14: 5 | D14: 7 | E14: 5 | F14: 7 | G14: 6 | H14: 14 | I14: 6 | J14: 14 | K14: 3 | L14: 4 | M14: 3 | N14: 4 | O14: 3 | P14: 4 | Q14: 3 | R14: 4 | DZ14: 17 | EA14: 29 | EB14: 17 | EC14: 29
A15: حمانا | B15: B6 | G15: 1 | H15: 0 | I15: 1 | J15: 0 | K15: 1 | L15: 2 | M15: 1 | N15: 2 | O15: 1 | P15: 2 | Q15: 1 | R15: 2 | S15: 2 | T15: 2 | U15: 2 | V15: 2 | DZ15: 5 | EA15: 6 | EB15: 5 | EC15: 6
A16: الشوف | B16: B7 | C16: 1 | D16: 1 | E16: 1 | F16: 1 | G16: 2 | H16: 5 | I16: 2 | J16: 5 | O16: 6 | P16: 11 | Q16: 2 | R16: 3 | DZ16: 9 | EA16: 17 | EB16: 5 | EC16: 9
A17: المتن | B17: B8 | C17: 6 | D17: 14 | E17: 5 | F17: 13 | G17: 6 | H17: 22 | I17: 6 | J17: 22 | K17: 3 | L17: 15 | M17: 3 | N17: 15 | O17: 11 | P17: 45 | Q17: 3 | R17: 9 | DZ17: 26 | EA17: 96 | EB17: 17 | EC17: 59
A18: انطلياس | B18: B9 | C18: 7 | D18: 28 | E18: 3 | F18: 14 | G18: 4 | H18: 12 | I18: 4 | J18: 12 | O18: 6 | P18: 27 | Q18: 3 | R18: 5 | S18: 3 | T18: 8 | U18: 3 | V18: 8 | DZ18: 20 | EA18: 75 | EB18: 13 | EC18: 39
A19: صيدا | B19: C1 | DZ19: 0 | EA19: 0 | EB19: 0 | EC19: 0
A20: جويا | B20: C10 | G20: 9 | H20: 18 | I20: 9 | J20: 18 | K20: 14 | L20: 30 | O20: 4 | P20: 57 | DZ20: 27 | EA20: 105 | EB20: 9 | EC20: 18
A21: ميس الجبل | B21: C11 | O21: 14 | P21: 110 | Q21: 2 | R21: 2 | DZ21: 14 | EA21: 110 | EB21: 2 | EC21: 2
A22: صور | B22: C2 | K22: 30 | L22: 130 | DZ22: 30 | EA22: 130 | EB22: 0 | EC22: 0
A23: جزين | B23: C3 | O23: 10 | P23: 20 | DZ23: 10 | EA23: 20 | EB23: 0 | EC23: 0
A24: النبطية | B24: C4 | C24: 2 | D24: 2 | E24: 2 | F24: 2 | G24: 3 | H24: 4 | I24: 3 | J24: 4 | K24: 5 | L24: 5 | M24: 5 | N24: 5 | O24: 16 | P24: 28 | Q24: 11 | R24: 15 | S24: 3 | T24: 5 | U24: 3 | V24: 5 | DZ24: 29 | EA24: 44 | EB24: 24 | EC24: 31
A25: بنت جبيل | B25: C5 | C25: 2 | D25: 3 | E25: 2 | F25: 3 | G25: 2 | H25: 4 | I25: 2 | J25: 4 | K25: 23 | L25: 77 | M25: 2 | N25: 3 | O25: 3 | P25: 4 | Q25: 3 | R25: 4 | S25: 6 | T25: 10 | U25: 6 | V25: 10 | DZ25: 36 | EA25: 98 | EB25: 15 | EC25: 24
A26: مرجعيون | B26: C6 | O26: 20 | P26: 41 | DZ26: 20 | EA26: 41 | EB26: 0 | EC26: 0
A27: حاصبيا | B27: C7 | G27: 1 | H27: 1 | I27: 1 | J27: 1 | K27: 3 | L27: 3 | M27: 3 | N27: 3 | O27: 12 | P27: 20 | Q27: 1 | R27: 1 | S27: 2 | T27: 2 | U27: 2 | V27: 2 | DZ27: 18 | EA27: 26 | EB27: 7 | EC27: 7
A28: تبنين | B28: C8 | C28: 2 | D28: 3 | E28: 2 | F28: 3 | G28: 4 | H28: 4 | I28: 4 | J28: 4 | K28: 17 | L28: 55 | M28: 5 | N28: 11 | O28: 6 | P28: 14 | Q28: 5 | R28: 13 | S28: 2 | T28: 2 | U28: 2 | V28: 2 | DZ28: 31 | EA28: 78 | EB28: 18 | EC28: 33
A29: جباع | B29: C9 | C29: 1 | D29: 1 | E29: 1 | F29: 1 | K29: 1 | L29: 3 | M29: 1 | N29: 3 | O29: 11 | P29: 31 | Q29: 3 | R29: 8 | DZ29: 13 | EA29: 35 | EB29: 5 | EC29: 12
A30: زحلة | B30: D1 | C30: 4 | D30: 21 | E30: 4 | F30: 21 | G30: 14 | H30: 49 | I30: 14 | J30: 49 | K30: 32 | L30: 104 | M30: 2 | N30: 2 | O30: 16 | P30: 64 | Q30: 16 | R30: 64 | S30: 8 | T30: 28 | U30: 8 | V30: 28 | DZ30: 74 | EA30: 266 | EB30: 44 | EC30: 164
A31: النبي شيت | B31: D10 | C31: 11 | D31: 68 | G31: 2 | H31: 3 | I31: 2 | J31: 3 | K31: 2 | L31: 2 | M31: 2 | N31: 2 | O31: 7 | P31: 25 | DZ31: 22 | EA31: 98 | EB31: 4 | EC31: 5
A32: راشيا | B32: D2 | K32: 25 | L32: 60 | O32: 2 | P32: 4 | Q32: 2 | R32: 4 | DZ32: 27 | EA32: 64 | EB32: 2 | EC32: 4
A33: البقاع الغربي | B33: D3 | C33: 2 | D33: 4 | E33: 2 | F33: 4 | G33: 4 | H33: 9 | I33: 4 | J33: 9 | O33: 2 | P33: 4 | Q33: 2 | R33: 4 | DZ33: 8 | EA33: 17 | EB33: 8 | EC33: 17
A34: شمسطار | B34: D4 | C34: 5 | D34: 10 | G34: 6 | H34: 10 | I34: 6 | J34: 10 | K34: 4 | L34: 17 | M34: 4 | N34: 17 | O34: 3 | P34: 5 | S34: 8 | T34: 41 | U34: 8 | V34: 41 | DZ34: 26 | EA34: 83 | EB34: 18 | EC34: 68
A35: بعلبك | B35: D5 | C35: 19 | D35: 58 | O35: 36 | P35: 147 | Q35: 4 | R35: 4 | DZ35: 55 | EA35: 205 | EB35: 4 | EC35: 4
A36: الهرمل | B36: D6 | K36: 4 | L36: 7 | O36: 1 | P36: 1 | Q36: 1 | R36: 1 | DZ36: 5 | EA36: 8 | EB36: 1 | EC36: 1
A37: دير الاحمر | B37: D7 | C37: 6 | D37: 14 | O37: 8 | P37: 23 | Q37: 4 | R37: 9 | DZ37: 14 | EA37: 37 | EB37: 4 | EC37: 9
A38: اللبوة | B38: D8 | G38: 2 | H38: 5 | I38: 2 | J38: 5 | K38: 14 | L38: 36 | M38: 4 | N38: 12 | O38: 5 | P38: 12 | Q38: 5 | R38: 12 | S38: 5 | T38: 8 | U38: 5 | V38: 8 | DZ38: 26 | EA38: 61 | EB38: 16 | EC38: 37
A39: صغبين | B39: D9 | C39: 2 | D39: 2 | E39: 2 | F39: 2 | G39: 1 | H39: 2 | I39: 1 | J39: 2 | K39: 11 | L39: 32 | O39: 1 | P39: 1 | Q39: 1 | R39: 1 | DZ39: 15 | EA39: 37 | EB39: 4 | EC39: 5
A40: طرابلس | B40: E1 | C40: 4 | D40: 7 | E40: 4 | F40: 7 | G40: 5 | H40: 8 | I40: 5 | J40: 8 | O40: 4 | P40: 9 | Q40: 4 | R40: 9 | S40: 37 | T40: 179 | U40: 0 | V40: 0 | DZ40: 50 | EA40: 203 | EB40: 13 | EC40: 24
A41: دوما | B41: E10 | C41: 4 | D41: 9 | DZ41: 4 | EA41: 9 | EB41: 0 | EC41: 0
A42: العبدة | B42: E11 | K42: 1 | L42: 1 | M42: 1 | N42: 1 | O42: 1 | P42: 1 | S42: 15 | T42: 27 | U42: 3 | V42: 4 | DZ42: 17 | EA42: 29 | EB42: 4 | EC42: 5
A43: بخعون | B43: E12 | G43: 5 | H43: 9 | I43: 5 | J43: 9 | O43: 3 | P43: 14 | Q43: 3 | R43: 14 | DZ43: 8 | EA43: 23 | EB43: 8 | EC43: 23
A44: بيت ملات | B44: E13 | G44: 1 | H44: 1 | I44: 1 | J44: 1 | K44: 1 | L44: 1 | M44: 1 | N44: 1 | O44: 1 | P44: 1 | Q44: 1 | R44: 1 | S44: 9 | T44: 22 | U44: 3 | V44: 2 | DZ44: 12 | EA44: 25 | EB44: 6 | EC44: 5
A45: المنية | B45: E2 | C45: 1 | D45: 2 | E45: 1 | F45: 2 | G45: 1 | H45: 1 | I45: 1 | J45: 1 | K45: 2 | L45: 2 | M45: 2 | N45: 2 | O45: 4 | P45: 7 | Q45: 4 | R45: 7 | S45: 10 | T45: 41 | U45: 3 | V45: 4 | DZ45: 18 | EA45: 53 | EB45: 11 | EC45: 16
A46: سير الضنية | B46: E3 | C46: 2 | D46: 2 | E46: 2 | F46: 2 | K46: 2 | L46: 3 | M46: 2 | N46: 3 | O46: 3 | P46: 3 | Q46: 3 | R46: 3 | S46: 3 | T46: 18 | U46: 0 | V46: 0 | DZ46: 10 | EA46: 26 | EB46: 7 | EC46: 8
A47: حلبا عكار | B47: E4 | G47: 3 | H47: 3 | I47: 3 | J47: 3 | K47: 5 | L47: 8 | M47: 5 | N47: 8 | S47: 12 | T47: 110 | U47: 2 | V47: 5 | DZ47: 20 | EA47: 121 | EB47: 10 | EC47: 16
A48: القبيات | B48: E5 | O48: 3 | P48: 4 | Q48: 3 | R48: 4 | S48: 22 | T48: 49 | U48: 0 | V48: 0 | DZ48: 25 | EA48: 53 | EB48: 3 | EC48: 4
A49: البترون | B49: E6 | C49: 3 | D49: 8 | K49: 3 | L49: 3 | M49: 3 | N49: 3 | O49: 1 | P49: 1 | Q49: 1 | R49: 1 | S49: 1 | T49: 1 | U49: 1 | V49: 1 | DZ49: 8 | EA49: 13 | EB49: 5 | EC49: 5
A50: الكورة | B50: E7 | C50: 5 | D50: 36 | G50: 4 | H50: 5 | I50: 4 | J50: 5 | O50: 4 | P50: 6 | Q50: 4 | R50: 6 | DZ50: 13 | EA50: 47 | EB50: 8 | EC50: 11
A51: زغرتا | B51: E8 | C51: 1 | D51: 2 | E51: 1 | F51: 2 | G51: 1 | H51: 1 | I51: 1 | J51: 1 | K51: 1 | L51: 1 | M51: 1 | N51: 1 | S51: 3 | T51: 26 | U51: 0 | V51: 0 | DZ51: 6 | EA51: 30 | EB51: 3 | EC51: 4
A52: بشري | B52: E9 | C52: 4 | D52: 22 | K52: 1 | L52: 1 | M52: 1 | N52: 1 | DZ52: 5 | EA52: 23 | EB52: 1 | EC52: 1
A53: المجموع | C53: =SUM(C4:C52) -> 139 | D53: =SUM(D4:D52) -> 550 | E53: =SUM(E4:E52) -> 50 | F53: =SUM(F4:F52) -> 133 | G53: =SUM(G4:G52) -> 142 | H53: 506 | I53: 118 | J53: 253 | K53: 237 | L53: 734 | M53: 72 | N53: 135 | O53: 297 | P53: 1047 | Q53: 127 | R53: 270 | S53: 175 | T53: 778 | U53: 62 | V53: 154 | W53: 0 | X53: 0 | Y53: 0 | Z53: 0 | AA53: 0 | AB53: 0 | AC53: 0 | AD53: 0 | AE53: 0 | AF53: 0 | AG53: 0 | AH53: 0 | AI53: 0 | AJ53: 0 | AK53: 0 | AL53: 0 | AM53: 0 | AN53: 0 | AO53: 0 | AP53: 0 | AQ53: 0 | AR53: 0 | AS53: 0 | AT53: 0 | AU53: 0 | AV53: 0 | AW53: 0 | AX53: 0 | AY53: =SUM(AY4:AY52) -> 0 | AZ53: =SUM(AZ4:AZ52) -> 0 | BA53: =SUM(BA4:BA52) -> 0 | BB53: =SUM(BB4:BB52) -> 0 | BC53: =SUM(BC4:BC52) -> 0 | BD53: =SUM(BD4:BD52) -> 0 | BE53: =SUM(BE4:BE52) -> 0 | BF53: =SUM(BF4:BF52) -> 0 | BG53: =SUM(BG4:BG52) -> 0 | BH53: =SUM(BH4:BH52) -> 0 | BI53: =SUM(BI4:BI52) -> 0 | BJ53: =SUM(BJ4:BJ52) -> 0 | BK53: =SUM(BK4:BK52) -> 0 | BL53: =SUM(BL4:BL52) -> 0 | BM53: =SUM(BM4:BM52) -> 0 | BN53: =SUM(BN4:BN52) -> 0 | BO53: =SUM(BO4:BO52) -> 0 | BP53: =SUM(BP4:BP52) -> 0 | BQ53: =SUM(BQ4:BQ52) -> 0 | BR53: =SUM(BR4:BR52) -> 0 | BS53: =SUM(BS4:BS52) -> 0 | BT53: =SUM(BT4:BT52) -> 0 | BU53: =SUM(BU4:BU52) -> 0 | BV53: =SUM(BV4:BV52) -> 0 | BW53: =SUM(BW4:BW52) -> 0 | BX53: =SUM(BX4:BX52) -> 0 | BY53: =SUM(BY4:BY52) -> 0 | BZ53: =SUM(BZ4:BZ52) -> 0 | CA53: =SUM(CA4:CA52) -> 0 | CB53: =SUM(CB4:CB52) -> 0 | CC53: =SUM(CC4:CC52) -> 0 | CD53: =SUM(CD4:CD52) -> 0 | CE53: =SUM(CE4:CE52) -> 0 | CF53: =SUM(CF4:CF52) -> 0 | CG53: =SUM(CG4:CG52) -> 0 | CH53: =SUM(CH4:CH52) -> 0 | CI53: =SUM(CI4:CI52) -> 0 | CJ53: =SUM(CJ4:CJ52) -> 0 | CK53: =SUM(CK4:CK52) -> 0 | CL53: =SUM(CL4:CL52) -> 0 | CM53: =SUM(CM4:CM52) -> 0 | CN53: =SUM(CN4:CN52) -> 0 | CO53: =SUM(CO4:CO52) -> 0 | CP53: =SUM(CP4:CP52) -> 0 | CQ53: =SUM(CQ4:CQ52) -> 0 | CR53: =SUM(CR4:CR52) -> 0 | CS53: =SUM(CS4:CS52) -> 0 | CT53: =SUM(CT4:CT52) -> 0 | CU53: =SUM(CU4:CU52) -> 0 | CV53: =SUM(CV4:CV52) -> 0 | CW53: =SUM(CW4:CW52) -> 0 | CX53: =SUM(CX4:CX52) -> 0 | CY53: =SUM(CY4:CY52) -> 0 | CZ53: =SUM(CZ4:CZ52) -> 0 | DA53: =SUM(DA4:DA52) -> 0 | DB53: =SUM(DB4:DB52) -> 0 | DC53: =SUM(DC4:DC52) -> 0 | DD53: =SUM(DD4:DD52) -> 0 | DE53: =SUM(DE4:DE52) -> 0 | DF53: =SUM(DF4:DF52) -> 0 | DG53: =SUM(DG4:DG52) -> 0 | DH53: =SUM(DH4:DH52) -> 0 | DI53: =SUM(DI4:DI52) -> 0 | DJ53: =SUM(DJ4:DJ52) -> 0 | DK53: =SUM(DK4:DK52) -> 0 | DL53: =SUM(DL4:DL52) -> 0 | DM53: =SUM(DM4:DM52) -> 0 | DN53: =SUM(DN4:DN52) -> 0 | DO53: =SUM(DO4:DO52) -> 0 | DP53: =SUM(DP4:DP52) -> 0 | DQ53: =SUM(DQ4:DQ52) -> 0 | DR53: =SUM(DR4:DR52) -> 0 | DS53: =SUM(DS4:DS52) -> 0 | DT53: =SUM(DT4:DT52) -> 0 | DU53: =SUM(DU4:DU52) -> 0 | DV53: =SUM(DV4:DV52) -> 0 | DZ53: 990 | EA53: 3615 | EB53: 429 | EC53: 945

Sheet جدول تسليم البطاقات
A1: وزارة الداخــلية والبلــديات
A2: المديرية العامة للاحوال الشخصية | G2: جانب: رئيس دائرة التنسيق والمراقبة .
A4: رقم المحفوظات:
A5: رقم الصادر:
F6: الموضوع: بيان بحركة استمارات وبطاقات الهوية في مشغل بطاقة الهوية .
F7: المرجع: المذكرة رقم 3/ص تاريخ 2007/3/9 .
A9: نودعكم بياناً بعدد بطاقات الهوية المسلمة الى اقلام النفوس وعدد الاستمارات المسلمة الينا من
A10: قبل هذه الاقلام خلال شهر كانون الاول من العـام 2020
A11: اقلام النفوس | C11: عدد الهويات | D11: استمارات | E11: عدد الاستمارات | G11: اقلام النفوس | I11: عدد الهويات | J11: استمارات | K11: عدد الاستمارات
C12: المسلمة الى القلم | D12: محطة التبصيم | E12: المستلمة من القلم | I12: المسلمة الى القلم | J12: محطة التبصيم | K12: المستلمة من القلم
A13: بيروت | B13: A | C13: =IFERROR(VLOOKUP($A13&$B13,CHOOSE({1,2},HA!$A$3:$A$500&HA!$B$3:$B$500,HA!$AK$3:$AK$500),2,FALSE),"") -> 660 | G13: جباع | H13: C9 | I13: =IFERROR(VLOOKUP($G13&$H13,CHOOSE({1,2},HA!$A$28:$A$500&HA!$B$28:$B$500,HA!$AK$28:$AK$500),2,FALSE),"") -> 35
A14: بعبدا | B14: B1 | C14: =IFERROR(VLOOKUP($A14&$B14,CHOOSE({1,2},HA!$A$3:$A$500&HA!$B$3:$B$500,HA!$AK$3:$AK$500),2,FALSE),"") -> 64 | G14: زحلة | H14: D1 | I14: =IFERROR(VLOOKUP($G14&$H14,CHOOSE({1,2},HA!$A$28:$A$500&HA!$B$28:$B$500,HA!$AK$28:$AK$500),2,FALSE),"") -> 266
A15: بكفيا | B15: B10 | C15: =IFERROR(VLOOKUP($A15&$B15,CHOOSE({1,2},HA!$A$3:$A$500&HA!$B$3:$B$500,HA!$AK$3:$AK$500),2,FALSE),"") -> 129 | G15: النبي شيت | H15: D10 | I15: =IFERROR(VLOOKUP($G15&$H15,CHOOSE({1,2},HA!$A$28:$A$500&HA!$B$28:$B$500,HA!$AK$28:$AK$500),2,FALSE),"") -> 98
A16: المتن الشمالي العالي | B16: B11 | C16: =IFERROR(VLOOKUP($A16&$B16,CHOOSE({1,2},HA!$A$3:$A$500&HA!$B$3:$B$500,HA!$AK$3:$AK$500),2,FALSE),"") -> 20 | G16: راشيا | H16: D2 | I16: =IFERROR(VLOOKUP($G16&$H16,CHOOSE({1,2},HA!$A$28:$A$500&HA!$B$28:$B$500,HA!$AK$28:$AK$500),2,FALSE),"") -> 64
A17: كسروان | B17: B12 | C17: =IFERROR(VLOOKUP($A17&$B17,CHOOSE({1,2},HA!$A$3:$A$500&HA!$B$3:$B$500,HA!$AK$3:$AK$500),2,FALSE),"") -> 116 | G17: البقاع الغربي | H17: D3 | I17: =IFERROR(VLOOKUP($G17&$H17,CHOOSE({1,2},HA!$A$28:$A$500&HA!$B$28:$B$500,HA!$AK$28:$AK$500),2,FALSE),"") -> 17
A18: جبيل | B18: B13 | C18: =IFERROR(VLOOKUP($A18&$B18,CHOOSE({1,2},HA!$A$3:$A$500&HA!$B$3:$B$500,HA!$AK$3:$AK$500),2,FALSE),"") -> 54 | G18: شمسطار | H18: D4 | I18: =IFERROR(VLOOKUP($G18&$H18,CHOOSE({1,2},HA!$A$28:$A$500&HA!$B$28:$B$500,HA!$AK$28:$AK$500),2,FALSE),"") -> 83
A19: فتوح كسروان | B19: B14 | C19: =IFERROR(VLOOKUP($A19&$B19,CHOOSE({1,2},HA!$A$3:$A$500&HA!$B$3:$B$500,HA!$AK$3:$AK$500),2,FALSE),"") -> 36 | G19: بعلبك | H19: D5 | I19: =IFERROR(VLOOKUP($G19&$H19,CHOOSE({1,2},HA!$A$28:$A$500&HA!$B$28:$B$500,HA!$AK$28:$AK$500),2,FALSE),"") -> 205
A20: الشويفات | B20: B2 | C20: =IFERROR(VLOOKUP($A20&$B20,CHOOSE({1,2},HA!$A$3:$A$500&HA!$B$3:$B$500,HA!$AK$3:$AK$500),2,FALSE),"") -> 63 | G20: الهرمل | H20: D6 | I20: =IFERROR(VLOOKUP($G20&$H20,CHOOSE({1,2},HA!$A$28:$A$500&HA!$B$28:$B$500,HA!$AK$28:$AK$500),2,FALSE),"") -> 8
A21: برجا | B21: B3 | C21: =IFERROR(VLOOKUP($A21&$B21,CHOOSE({1,2},HA!$A$3:$A$500&HA!$B$3:$B$500,HA!$AK$3:$AK$500),2,FALSE),"") -> 9 | G21: دير الاحمر | H21: D7 | I21: =IFERROR(VLOOKUP($G21&$H21,CHOOSE({1,2},HA!$A$28:$A$500&HA!$B$28:$B$500,HA!$AK$28:$AK$500),2,FALSE),"") -> 37
A22: شحيم | B22: B4 | C22: =IFERROR(VLOOKUP($A22&$B22,CHOOSE({1,2},HA!$A$3:$A$500&HA!$B$3:$B$500,HA!$AK$3:$AK$500),2,FALSE),"") -> 23 | G22: اللبوة | H22: D8 | I22: =IFERROR(VLOOKUP($G22&$H22,CHOOSE({1,2},HA!$A$28:$A$500&HA!$B$28:$B$500,HA!$AK$28:$AK$500),2,FALSE),"") -> 61
A23: عاليه | B23: B5 | C23: =IFERROR(VLOOKUP($A23&$B23,CHOOSE({1,2},HA!$A$3:$A$500&HA!$B$3:$B$500,HA!$AK$3:$AK$500),2,FALSE),"") -> 29 | G23: صغبين | H23: D9 | I23: =IFERROR(VLOOKUP($G23&$H23,CHOOSE({1,2},HA!$A$28:$A$500&HA!$B$28:$B$500,HA!$AK$28:$AK$500),2,FALSE),"") -> 37
A24: حمانا | B24: B6 | C24: =IFERROR(VLOOKUP($A24&$B24,CHOOSE({1,2},HA!$A$3:$A$500&HA!$B$3:$B$500,HA!$AK$3:$AK$500),2,FALSE),"") -> 6 | G24: طرابلس | H24: E1 | I24: =IFERROR(VLOOKUP($G24&$H24,CHOOSE({1,2},HA!$A$28:$A$500&HA!$B$28:$B$500,HA!$AK$28:$AK$500),2,FALSE),"") -> 203
A25: الشوف | B25: B7 | C25: =IFERROR(VLOOKUP($A25&$B25,CHOOSE({1,2},HA!$A$3:$A$500&HA!$B$3:$B$500,HA!$AK$3:$AK$500),2,FALSE),"") -> 17 | G25: دوما | H25: E10 | I25: =IFERROR(VLOOKUP($G25&$H25,CHOOSE({1,2},HA!$A$28:$A$500&HA!$B$28:$B$500,HA!$AK$28:$AK$500),2,FALSE),"") -> 9
A26: المتن | B26: B8 | C26: =IFERROR(VLOOKUP($A26&$B26,CHOOSE({1,2},HA!$A$3:$A$500&HA!$B$3:$B$500,HA!$AK$3:$AK$500),2,FALSE),"") -> 96 | G26: العبدة | H26: E11 | I26: =IFERROR(VLOOKUP($G26&$H26,CHOOSE({1,2},HA!$A$28:$A$500&HA!$B$28:$B$500,HA!$AK$28:$AK$500),2,FALSE),"") -> 29
A27: انطلياس | B27: B9 | C27: =IFERROR(VLOOKUP($A27&$B27,CHOOSE({1,2},HA!$A$3:$A$500&HA!$B$3:$B$500,HA!$AK$3:$AK$500),2,FALSE),"") -> 75 | G27: بخعون | H27: E12 | I27: =IFERROR(VLOOKUP($G27&$H27,CHOOSE({1,2},HA!$A$28:$A$500&HA!$B$28:$B$500,HA!$AK$28:$AK$500),2,FALSE),"") -> 23
A28: صيدا | B28: C1 | C28: =IFERROR(VLOOKUP($A28&$B28,CHOOSE({1,2},HA!$A$3:$A$500&HA!$B$3:$B$500,HA!$AK$3:$AK$500),2,FALSE),"") -> 0 | G28: بيت ملات | H28: E13 | I28: =IFERROR(VLOOKUP($G28&$H28,CHOOSE({1,2},HA!$A$28:$A$500&HA!$B$28:$B$500,HA!$AK$28:$AK$500),2,FALSE),"") -> 25
A29: جويا | B29: C10 | C29: =IFERROR(VLOOKUP($A29&$B29,CHOOSE({1,2},HA!$A$3:$A$500&HA!$B$3:$B$500,HA!$AK$3:$AK$500),2,FALSE),"") -> 105 | G29: المنية | H29: E2 | I29: =IFERROR(VLOOKUP($G29&$H29,CHOOSE({1,2},HA!$A$28:$A$500&HA!$B$28:$B$500,HA!$AK$28:$AK$500),2,FALSE),"") -> 53
A30: ميس الجبل | B30: C11 | C30: =IFERROR(VLOOKUP($A30&$B30,CHOOSE({1,2},HA!$A$3:$A$500&HA!$B$3:$B$500,HA!$AK$3:$AK$500),2,FALSE),"") -> 110 | G30: سير الضنية | H30: E3 | I30: =IFERROR(VLOOKUP($G30&$H30,CHOOSE({1,2},HA!$A$28:$A$500&HA!$B$28:$B$500,HA!$AK$28:$AK$500),2,FALSE),"") -> 26
A31: صور | B31: C2 | C31: =IFERROR(VLOOKUP($A31&$B31,CHOOSE({1,2},HA!$A$3:$A$500&HA!$B$3:$B$500,HA!$AK$3:$AK$500),2,FALSE),"") -> 130 | G31: حلبا عكار | H31: E4 | I31: =IFERROR(VLOOKUP($G31&$H31,CHOOSE({1,2},HA!$A$28:$A$500&HA!$B$28:$B$500,HA!$AK$28:$AK$500),2,FALSE),"") -> 121
A32: جزين | B32: C3 | C32: =IFERROR(VLOOKUP($A32&$B32,CHOOSE({1,2},HA!$A$3:$A$500&HA!$B$3:$B$500,HA!$AK$3:$AK$500),2,FALSE),"") -> 20 | G32: القبيات | H32: E5 | I32: =IFERROR(VLOOKUP($G32&$H32,CHOOSE({1,2},HA!$A$28:$A$500&HA!$B$28:$B$500,HA!$AK$28:$AK$500),2,FALSE),"") -> 53
A33: النبطية | B33: C4 | C33: =IFERROR(VLOOKUP($A33&$B33,CHOOSE({1,2},HA!$A$3:$A$500&HA!$B$3:$B$500,HA!$AK$3:$AK$500),2,FALSE),"") -> 44 | G33: البترون | H33: E6 | I33: =IFERROR(VLOOKUP($G33&$H33,CHOOSE({1,2},HA!$A$28:$A$500&HA!$B$28:$B$500,HA!$AK$28:$AK$500),2,FALSE),"") -> 13
A34: بنت جبيل | B34: C5 | C34: =IFERROR(VLOOKUP($A34&$B34,CHOOSE({1,2},HA!$A$3:$A$500&HA!$B$3:$B$500,HA!$AK$3:$AK$500),2,FALSE),"") -> 98 | G34: الكورة | H34: E7 | I34: =IFERROR(VLOOKUP($G34&$H34,CHOOSE({1,2},HA!$A$28:$A$500&HA!$B$28:$B$500,HA!$AK$28:$AK$500),2,FALSE),"") -> 47
A35: مرجعيون | B35: C6 | C35: =IFERROR(VLOOKUP($A35&$B35,CHOOSE({1,2},HA!$A$3:$A$500&HA!$B$3:$B$500,HA!$AK$3:$AK$500),2,FALSE),"") -> 41 | G35: زغرتا | H35: E8 | I35: =IFERROR(VLOOKUP($G35&$H35,CHOOSE({1,2},HA!$A$28:$A$500&HA!$B$28:$B$500,HA!$AK$28:$AK$500),2,FALSE),"") -> 30
A36: حاصبيا | B36: C7 | C36: =IFERROR(VLOOKUP($A36&$B36,CHOOSE({1,2},HA!$A$3:$A$500&HA!$B$3:$B$500,HA!$AK$3:$AK$500),2,FALSE),"") -> 26 | G36: بشري | H36: E9 | I36: =IFERROR(VLOOKUP($G36&$H36,CHOOSE({1,2},HA!$A$28:$A$500&HA!$B$28:$B$500,HA!$AK$28:$AK$500),2,FALSE),"") -> 23
A37: تبنين | B37: C8 | C37: =IFERROR(VLOOKUP($A37&$B37,CHOOSE({1,2},HA!$A$3:$A$500&HA!$B$3:$B$500,HA!$AK$3:$AK$500),2,FALSE),"") -> 78 | I37: =SUM(I13:I36) -> 1566
C38: =SUM(C13:C37) -> 2049 | G38: المجموع العام | I38: =SUM(C38+I37) -> 3615
A40: مكتب الفـرز والتوزيـع | G40: مكتـب المقـاصة
A41: التوقيــع | G41: التوقيــع

Sheet MOG+MOG_OMT
A1: 2020 | B1: ALL | D1: =ALL!C1 -> 2020-12-01 | F1: =ALL!G1 -> 2020-12-08 | H1: =ALL!K1 -> 2020-12-14 | J1: =ALL!O1 -> 2020-12-18 | L1: =ALL!S1 -> 2020-12-22
A2: كانون اول | B2: رمز | D2: =ALL!C2 -> 02/12/ | F2: =ALL!G2 -> 09/12/ | H2: =ALL!K2 -> 15/12/ | J2: =ALL!O2 -> 21/12/ | L2: =ALL!S2 -> 23/12/
C3: المنصرم | D3: مغلفات | E3: مغلفات OMT | F3: مغلفات | G3: مغلفات OMT | H3: مغلفات | I3: مغلفات OMT | J3: مغلفات | K3: مغلفات OMT | L3: مغلفات | M3: مغلفات OMT | N3: مغلفات | O3: مغلفات OMT | P3: مغلفات | Q3: مغلفات OMT | R3: مغلفات | S3: مغلفات OMT | T3: مغلفات | U3: مغلفات OMT
A4: بيروت | B4: A | C4: =JARD_MOG!D3 -> 0 | D4: =ALL!C4 -> 4 | E4: =ALL!E4 -> 2 | F4: =ALL!G4 -> 30 | G4: =ALL!I4 -> 6 | H4: =ALL!K4 -> 17 | I4: =ALL!M4 -> 9 | J4: =ALL!O4 -> 12 | K4: =ALL!Q4 -> 0 | L4: =ALL!S4 -> 14 | M4: =ALL!U4 -> 6
A5: بعبدا | B5: B1 | C5: =JARD_MOG!D4 -> 0 | D5: =ALL!C5 -> 3 | E5: =ALL!E5 -> 3 | F5: =ALL!G5 -> 3 | G5: =ALL!I5 -> 3 | H5: =ALL!K5 -> 3 | I5: =ALL!M5 -> 3 | J5: =ALL!O5 -> 3 | K5: =ALL!Q5 -> 3 | L5: =ALL!S5 -> 3 | M5: =ALL!U5 -> 3
A6: بكفيا | B6: B10 | C6: =JARD_MOG!D5 -> 0 | D6: =ALL!C6 -> 4 | E6: =ALL!E6 -> 0 | F6: =ALL!G6 -> 4 | G6: =ALL!I6 -> 4 | H6: =ALL!K6 -> 0 | I6: =ALL!M6 -> 0 | J6: =ALL!O6 -> 9 | K6: =ALL!Q6 -> 3 | L6: =ALL!S6 -> 0 | M6: =ALL!U6 -> 0
A7: المتن الشمالي العالي | B7: B11 | C7: =JARD_MOG!D6 -> 0 | D7: =ALL!C7 -> 5 | E7: =ALL!E7 -> 0 | F7: =ALL!G7 -> 0 | G7: =ALL!I7 -> 0 | H7: =ALL!K7 -> 0 | I7: =ALL!M7 -> 0 | J7: =ALL!O7 -> 5 | K7: =ALL!Q7 -> 0 | L7: =ALL!S7 -> 0 | M7: =ALL!U7 -> 0
A8: كسروان | B8: B12 | C8: =JARD_MOG!D7 -> 0 | D8: =ALL!C8 -> 12 | E8: =ALL!E8 -> 3 | F8: =ALL!G8 -> 7 | G8: =ALL!I8 -> 7 | H8: =ALL!K8 -> 2 | I8: =ALL!M8 -> 2 | J8: =ALL!O8 -> 11 | K8: =ALL!Q8 -> 7 | L8: =ALL!S8 -> 1 | M8: =ALL!U8 -> 1
A9: جبيل | B9: B13 | C9: =JARD_MOG!D8 -> 0 | D9: =ALL!C9 -> 0 | E9: =ALL!E9 -> 0 | F9: =ALL!G9 -> 1 | G9: =ALL!I9 -> 1 | H9: =ALL!K9 -> 2 | I9: =ALL!M9 -> 2 | J9: =ALL!O9 -> 0 | K9: =ALL!Q9 -> 0 | L9: =ALL!S9 -> 6 | M9: =ALL!U9 -> 1
A10: فتوح كسروان | B10: B14 | C10: =JARD_MOG!D9 -> 0 | D10: =ALL!C10 -> 4 | E10: =ALL!E10 -> 0 | F10: =ALL!G10 -> 1 | G10: =ALL!I10 -> 1 | H10: =ALL!K10 -> 0 | I10: =ALL!M10 -> 0 | J10: =ALL!O10 -> 6 | K10: =ALL!Q10 -> 2 | L10: =ALL!S10 -> 0 | M10: =ALL!U10 -> 0
A11: الشويفات | B11: B2 | C11: =JARD_MOG!D10 -> 0 | D11: =ALL!C11 -> 8 | E11: =ALL!E11 -> 5 | F11: =ALL!G11 -> 8 | G11: =ALL!I11 -> 8 | H11: =ALL!K11 -> 3 | I11: =ALL!M11 -> 3 | J11: =ALL!O11 -> 11 | K11: =ALL!Q11 -> 11 | L11: =ALL!S11 -> 0 | M11: =ALL!U11 -> 0
A12: برجا | B12: B3 | C12: =JARD_MOG!D11 -> 0 | D12: =ALL!C12 -> 0 | E12: =ALL!E12 -> 0 | F12: =ALL!G12 -> 0 | G12: =ALL!I12 -> 0 | H12: =ALL!K12 -> 2 | I12: =ALL!M12 -> 2 | J12: =ALL!O12 -> 5 | K12: =ALL!Q12 -> 5 | L12: =ALL!S12 -> 0 | M12: =ALL!U12 -> 0
A13: شحيم | B13: B4 | C13: =JARD_MOG!D12 -> 0 | D13: =ALL!C13 -> 0 | E13: =ALL!E13 -> 0 | F13: =ALL!G13 -> 1 | G13: =ALL!I13 -> 1 | H13: =ALL!K13 -> 0 | I13: =ALL!M13 -> 0 | J13: =ALL!O13 -> 7 | K13: =ALL!Q13 -> 1 | L13: =ALL!S13 -> 0 | M13: =ALL!U13 -> 0
A14: عاليه | B14: B5 | C14: =JARD_MOG!D13 -> 0 | D14: =ALL!C14 -> 5 | E14: =ALL!E14 -> 5 | F14: =ALL!G14 -> 6 | G14: =ALL!I14 -> 6 | H14: =ALL!K14 -> 3 | I14: =ALL!M14 -> 3 | J14: =ALL!O14 -> 3 | K14: =ALL!Q14 -> 3 | L14: =ALL!S14 -> 0 | M14: =ALL!U14 -> 0
A15: حمانا | B15: B6 | C15: =JARD_MOG!D14 -> 0 | D15: =ALL!C15 -> 0 | E15: =ALL!E15 -> 0 | F15: =ALL!G15 -> 1 | G15: =ALL!I15 -> 1 | H15: =ALL!K15 -> 1 | I15: =ALL!M15 -> 1 | J15: =ALL!O15 -> 1 | K15: =ALL!Q15 -> 1 | L15: =ALL!S15 -> 2 | M15: =ALL!U15 -> 2
A16: الشوف | B16: B7 | C16: =JARD_MOG!D15 -> 0 | D16: =ALL!C16 -> 1 | E16: =ALL!E16 -> 1 | F16: =ALL!G16 -> 2 | G16: =ALL!I16 -> 2 | H16: =ALL!K16 -> 0 | I16: =ALL!M16 -> 0 | J16: =ALL!O16 -> 6 | K16: =ALL!Q16 -> 2 | L16: =ALL!S16 -> 0 | M16: =ALL!U16 -> 0
A17: المتن | B17: B8 | C17: =JARD_MOG!D16 -> 0 | D17: =ALL!C17 -> 6 | E17: =ALL!E17 -> 5 | F17: =ALL!G17 -> 6 | G17: =ALL!I17 -> 6 | H17: =ALL!K17 -> 3 | I17: =ALL!M17 -> 3 | J17: =ALL!O17 -> 11 | K17: =ALL!Q17 -> 3 | L17: =ALL!S17 -> 0 | M17: =ALL!U17 -> 0
A18: انطلياس | B18: B9 | C18: =JARD_MOG!D17 -> 0 | D18: =ALL!C18 -> 7 | E18: =ALL!E18 -> 3 | F18: =ALL!G18 -> 4 | G18: =ALL!I18 -> 4 | H18: =ALL!K18 -> 0 | I18: =ALL!M18 -> 0 | J18: =ALL!O18 -> 6 | K18: =ALL!Q18 -> 3 | L18: =ALL!S18 -> 3 | M18: =ALL!U18 -> 3
A19: صيدا | B19: C1 | C19: =JARD_MOG!D18 -> 0 | D19: =ALL!C19 -> 0 | E19: =ALL!E19 -> 0 | F19: =ALL!G19 -> 0 | G19: =ALL!I19 -> 0 | H19: =ALL!K19 -> 0 | I19: =ALL!M19 -> 0 | J19: =ALL!O19 -> 0 | K19: =ALL!Q19 -> 0 | L19: =ALL!S19 -> 0 | M19: =ALL!U19 -> 0
A20: جويا | B20: C10 | C20: =JARD_MOG!D19 -> 0 | D20: =ALL!C20 -> 0 | E20: =ALL!E20 -> 0 | F20: =ALL!G20 -> 9 | G20: =ALL!I20 -> 9 | H20: =ALL!K20 -> 14 | I20: =ALL!M20 -> 0 | J20: =ALL!O20 -> 4 | K20: =ALL!Q20 -> 0 | L20: =ALL!S20 -> 0 | M20: =ALL!U20 -> 0
A21: ميس الجبل | B21: C11 | C21: =JARD_MOG!D20 -> 0 | D21: =ALL!C21 -> 0 | E21: =ALL!E21 -> 0 | F21: =ALL!G21 -> 0 | G21: =ALL!I21 -> 0 | H21: =ALL!K21 -> 0 | I21: =ALL!M21 -> 0 | J21: =ALL!O21 -> 14 | K21: =ALL!Q21 -> 2 | L21: =ALL!S21 -> 0 | M21: =ALL!U21 -> 0
A22: صور | B22: C2 | C22: =JARD_MOG!D21 -> 0 | D22: =ALL!C22 -> 0 | E22: =ALL!E22 -> 0 | F22: =ALL!G22 -> 0 | G22: =ALL!I22 -> 0 | H22: =ALL!K22 -> 30 | I22: =ALL!M22 -> 0 | J22: =ALL!O22 -> 0 | K22: =ALL!Q22 -> 0 | L22: =ALL!S22 -> 0 | M22: =ALL!U22 -> 0
A23: جزين | B23: C3 | C23: =JARD_MOG!D22 -> 0 | D23: =ALL!C23 -> 0 | E23: =ALL!E23 -> 0 | F23: =ALL!G23 -> 0 | G23: =ALL!I23 -> 0 | H23: =ALL!K23 -> 0 | I23: =ALL!M23 -> 0 | J23: =ALL!O23 -> 10 | K23: =ALL!Q23 -> 0 | L23: =ALL!S23 -> 0 | M23: =ALL!U23 -> 0
A24: النبطية | B24: C4 | C24: =JARD_MOG!D23 -> 0 | D24: =ALL!C24 -> 2 | E24: =ALL!E24 -> 2 | F24: =ALL!G24 -> 3 | G24: =ALL!I24 -> 3 | H24: =ALL!K24 -> 5 | I24: =ALL!M24 -> 5 | J24: =ALL!O24 -> 16 | K24: =ALL!Q24 -> 11 | L24: =ALL!S24 -> 3 | M24: =ALL!U24 -> 3
A25: بنت جبيل | B25: C5 | C25: =JARD_MOG!D24 -> 0 | D25: =ALL!C25 -> 2 | E25: =ALL!E25 -> 2 | F25: =ALL!G25 -> 2 | G25: =ALL!I25 -> 2 | H25: =ALL!K25 -> 23 | I25: =ALL!M25 -> 2 | J25: =ALL!O25 -> 3 | K25: =ALL!Q25 -> 3 | L25: =ALL!S25 -> 6 | M25: =ALL!U25 -> 6
A26: مرجعيون | B26: C6 | C26: =JARD_MOG!D25 -> 0 | D26: =ALL!C26 -> 0 | E26: =ALL!E26 -> 0 | F26: =ALL!G26 -> 0 | G26: =ALL!I26 -> 0 | H26: =ALL!K26 -> 0 | I26: =ALL!M26 -> 0 | J26: =ALL!O26 -> 20 | K26: =ALL!Q26 -> 0 | L26: =ALL!S26 -> 0 | M26: =ALL!U26 -> 0
A27: حاصبيا | B27: C7 | C27: =JARD_MOG!D26 -> 0 | D27: =ALL!C27 -> 0 | E27: =ALL!E27 -> 0 | F27: =ALL!G27 -> 1 | G27: =ALL!I27 -> 1 | H27: =ALL!K27 -> 3 | I27: =ALL!M27 -> 3 | J27: =ALL!O27 -> 12 | K27: =ALL!Q27 -> 1 | L27: =ALL!S27 -> 2 | M27: =ALL!U27 -> 2
A28: تبنين | B28: C8 | C28: =JARD_MOG!D27 -> 0 | D28: =ALL!C28 -> 2 | E28: =ALL!E28 -> 2 | F28: =ALL!G28 -> 4 | G28: =ALL!I28 -> 4 | H28: =ALL!K28 -> 17 | I28: =ALL!M28 -> 5 | J28: =ALL!O28 -> 6 | K28: =ALL!Q28 -> 5 | L28: =ALL!S28 -> 2 | M28: =ALL!U28 -> 2
A29: جباع | B29: C9 | C29: =JARD_MOG!D28 -> 0 | D29: =ALL!C29 -> 1 | E29: =ALL!E29 -> 1 | F29: =ALL!G29 -> 0 | G29: =ALL!I29 -> 0 | H29: =ALL!K29 -> 1 | I29: =ALL!M29 -> 1 | J29: =ALL!O29 -> 11 | K29: =ALL!Q29 -> 3 | L29: =ALL!S29 -> 0 | M29: =ALL!U29 -> 0
A30: زحلة | B30: D1 | C30: =JARD_MOG!D29 -> 0 | D30: =ALL!C30 -> 4 | E30: =ALL!E30 -> 4 | F30: =ALL!G30 -> 14 | G30: =ALL!I30 -> 14 | H30: =ALL!K30 -> 32 | I30: =ALL!M30 -> 2 | J30: =ALL!O30 -> 16 | K30: =ALL!Q30 -> 16 | L30: =ALL!S30 -> 8 | M30: =ALL!U30 -> 8
A31: النبي شيت | B31: D10 | C31: =JARD_MOG!D30 -> 0 | D31: =ALL!C31 -> 11 | E31: =ALL!E31 -> 0 | F31: =ALL!G31 -> 2 | G31: =ALL!I31 -> 2 | H31: =ALL!K31 -> 2 | I31: =ALL!M31 -> 2 | J31: =ALL!O31 -> 7 | K31: =ALL!Q31 -> 0 | L31: =ALL!S31 -> 0 | M31: =ALL!U31 -> 0
A32: راشيا | B32: D2 | C32: =JARD_MOG!D31 -> 0 | D32: =ALL!C32 -> 0 | E32: =ALL!E32 -> 0 | F32: =ALL!G32 -> 0 | G32: =ALL!I32 -> 0 | H32: =ALL!K32 -> 25 | I32: =ALL!M32 -> 0 | J32: =ALL!O32 -> 2 | K32: =ALL!Q32 -> 2 | L32: =ALL!S32 -> 0 | M32: =ALL!U32 -> 0
A33: البقاع الغربي | B33: D3 | C33: =JARD_MOG!D32 -> 0 | D33: =ALL!C33 -> 2 | E33: =ALL!E33 -> 2 | F33: =ALL!G33 -> 4 | G33: =ALL!I33 -> 4 | H33: =ALL!K33 -> 0 | I33: =ALL!M33 -> 0 | J33: =ALL!O33 -> 2 | K33: =ALL!Q33 -> 2 | L33: =ALL!S33 -> 0 | M33: =ALL!U33 -> 0
A34: شمسطار | B34: D4 | C34: =JARD_MOG!D33 -> 0 | D34: =ALL!C34 -> 5 | E34: =ALL!E34 -> 0 | F34: =ALL!G34 -> 6 | G34: =ALL!I34 -> 6 | H34: =ALL!K34 -> 4 | I34: =ALL!M34 -> 4 | J34: =ALL!O34 -> 3 | K34: =ALL!Q34 -> 0 | L34: =ALL!S34 -> 8 | M34: =ALL!U34 -> 8
A35: بعلبك | B35: D5 | C35: =JARD_MOG!D34 -> 0 | D35: =ALL!C35 -> 19 | E35: =ALL!E35 -> 0 | F35: =ALL!G35 -> 0 | G35: =ALL!I35 -> 0 | H35: =ALL!K35 -> 0 | I35: =ALL!M35 -> 0 | J35: =ALL!O35 -> 36 | K35: =ALL!Q35 -> 4 | L35: =ALL!S35 -> 0 | M35: =ALL!U35 -> 0
A36: الهرمل | B36: D6 | C36: =JARD_MOG!D35 -> 0 | D36: =ALL!C36 -> 0 | E36: =ALL!E36 -> 0 | F36: =ALL!G36 -> 0 | G36: =ALL!I36 -> 0 | H36: =ALL!K36 -> 4 | I36: =ALL!M36 -> 0 | J36: =ALL!O36 -> 1 | K36: =ALL!Q36 -> 1 | L36: =ALL!S36 -> 0 | M36: =ALL!U36 -> 0
A37: دير الاحمر | B37: D7 | C37: =JARD_MOG!D36 -> 0 | D37: =ALL!C37 -> 6 | E37: =ALL!E37 -> 0 | F37: =ALL!G37 -> 0 | G37: =ALL!I37 -> 0 | H37: =ALL!K37 -> 0 | I37: =ALL!M37 -> 0 | J37: =ALL!O37 -> 8 | K37: =ALL!Q37 -> 4 | L37: =ALL!S37 -> 0 | M37: =ALL!U37 -> 0
A38: اللبوة | B38: D8 | C38: =JARD_MOG!D37 -> 0 | D38: =ALL!C38 -> 0 | E38: =ALL!E38 -> 0 | F38: =ALL!G38 -> 2 | G38: =ALL!I38 -> 2 | H38: =ALL!K38 -> 14 | I38: =ALL!M38 -> 4 | J38: =ALL!O38 -> 5 | K38: =ALL!Q38 -> 5 | L38: =ALL!S38 -> 5 | M38: =ALL!U38 -> 5
A39: صغبين | B39: D9 | C39: =JARD_MOG!D38 -> 0 | D39: =ALL!C39 -> 2 | E39: =ALL!E39 -> 2 | F39: =ALL!G39 -> 1 | G39: =ALL!I39 -> 1 | H39: =ALL!K39 -> 11 | I39: =ALL!M39 -> 0 | J39: =ALL!O39 -> 1 | K39: =ALL!Q39 -> 1 | L39: =ALL!S39 -> 0 | M39: =ALL!U39 -> 0
A40: طرابلس | B40: E1 | C40: =JARD_MOG!D39 -> 0 | D40: =ALL!C40 -> 4 | E40: =ALL!E40 -> 4 | F40: =ALL!G40 -> 5 | G40: =ALL!I40 -> 5 | H40: =ALL!K40 -> 0 | I40: =ALL!M40 -> 0 | J40: =ALL!O40 -> 4 | K40: =ALL!Q40 -> 4 | L40: =ALL!S40 -> 37 | M40: =ALL!U40 -> 0
A41: دوما | B41: E10 | C41: =JARD_MOG!D40 -> 0 | D41: =ALL!C41 -> 4 | E41: =ALL!E41 -> 0 | F41: =ALL!G41 -> 0 | G41: =ALL!I41 -> 0 | H41: =ALL!K41 -> 0 | I41: =ALL!M41 -> 0 | J41: =ALL!O41 -> 0 | K41: =ALL!Q41 -> 0 | L41: =ALL!S41 -> 0 | M41: =ALL!U41 -> 0
A42: العبدة | B42: E11 | C42: =JARD_MOG!D41 -> 0 | D42: =ALL!C42 -> 0 | E42: =ALL!E42 -> 0 | F42: =ALL!G42 -> 0 | G42: =ALL!I42 -> 0 | H42: =ALL!K42 -> 1 | I42: =ALL!M42 -> 1 | J42: =ALL!O42 -> 1 | K42: =ALL!Q42 -> 0 | L42: =ALL!S42 -> 15 | M42: =ALL!U42 -> 3
A43: بخعون | B43: E12 | C43: =JARD_MOG!D42 -> 0 | D43: =ALL!C43 -> 0 | E43: =ALL!E43 -> 0 | F43: =ALL!G43 -> 5 | G43: =ALL!I43 -> 5 | H43: =ALL!K43 -> 0 | I43: =ALL!M43 -> 0 | J43: =ALL!O43 -> 3 | K43: =ALL!Q43 -> 3 | L43: =ALL!S43 -> 0 | M43: =ALL!U43 -> 0
A44: بيت ملات | B44: E13 | C44: =JARD_MOG!D43 -> 0 | D44: =ALL!C44 -> 0 | E44: =ALL!E44 -> 0 | F44: =ALL!G44 -> 1 | G44: =ALL!I44 -> 1 | H44: =ALL!K44 -> 1 | I44: =ALL!M44 -> 1 | J44: =ALL!O44 -> 1 | K44: =ALL!Q44 -> 1 | L44: =ALL!S44 -> 9 | M44: =ALL!U44 -> 3
A45: المنية | B45: E2 | C45: =JARD_MOG!D44 -> 0 | D45: =ALL!C45 -> 1 | E45: =ALL!E45 -> 1 | F45: =ALL!G45 -> 1 | G45: =ALL!I45 -> 1 | H45: =ALL!K45 -> 2 | I45: =ALL!M45 -> 2 | J45: =ALL!O45 -> 4 | K45: =ALL!Q45 -> 4 | L45: =ALL!S45 -> 10 | M45: =ALL!U45 -> 3
A46: سير الضنية | B46: E3 | C46: =JARD_MOG!D45 -> 0 | D46: =ALL!C46 -> 2 | E46: =ALL!E46 -> 2 | F46: =ALL!G46 -> 0 | G46: =ALL!I46 -> 0 | H46: =ALL!K46 -> 2 | I46: =ALL!M46 -> 2 | J46: =ALL!O46 -> 3 | K46: =ALL!Q46 -> 3 | L46: =ALL!S46 -> 3 | M46: =ALL!U46 -> 0
A47: حلبا عكار | B47: E4 | C47: =JARD_MOG!D46 -> 0 | D47: =ALL!C47 -> 0 | E47: =ALL!E47 -> 0 | F47: =ALL!G47 -> 3 | G47: =ALL!I47 -> 3 | H47: =ALL!K47 -> 5 | I47: =ALL!M47 -> 5 | J47: =ALL!O47 -> 0 | K47: =ALL!Q47 -> 0 | L47: =ALL!S47 -> 12 | M47: =ALL!U47 -> 2
A48: القبيات | B48: E5 | C48: =JARD_MOG!D47 -> 0 | D48: =ALL!C48 -> 0 | E48: =ALL!E48 -> 0 | F48: =ALL!G48 -> 0 | G48: =ALL!I48 -> 0 | H48: =ALL!K48 -> 0 | I48: =ALL!M48 -> 0 | J48: =ALL!O48 -> 3 | K48: =ALL!Q48 -> 3 | L48: =ALL!S48 -> 22 | M48: =ALL!U48 -> 0
A49: البترون | B49: E6 | C49: =JARD_MOG!D48 -> 0 | D49: =ALL!C49 -> 3 | E49: =ALL!E49 -> 0 | F49: =ALL!G49 -> 0 | G49: =ALL!I49 -> 0 | H49: =ALL!K49 -> 3 | I49: =ALL!M49 -> 3 | J49: =ALL!O49 -> 1 | K49: =ALL!Q49 -> 1 | L49: =ALL!S49 -> 1 | M49: =ALL!U49 -> 1
A50: الكورة | B50: E7 | C50: =JARD_MOG!D49 -> 0 | D50: =ALL!C50 -> 5 | E50: =ALL!E50 -> 0 | F50: =ALL!G50 -> 4 | G50: =ALL!I50 -> 4 | H50: =ALL!K50 -> 0 | I50: =ALL!M50 -> 0 | J50: =ALL!O50 -> 4 | K50: =ALL!Q50 -> 4 | L50: =ALL!S50 -> 0 | M50: =ALL!U50 -> 0
A51: زغرتا | B51: E8 | C51: =JARD_MOG!D50 -> 0 | D51: =ALL!C51 -> 1 | E51: =ALL!E51 -> 1 | F51: =ALL!G51 -> 1 | G51: =ALL!I51 -> 1 | H51: =ALL!K51 -> 1 | I51: =ALL!M51 -> 1 | J51: =ALL!O51 -> 0 | K51: =ALL!Q51 -> 0 | L51: =ALL!S51 -> 3 | M51: =ALL!U51 -> 0
A52: بشري | B52: E9 | C52: =JARD_MOG!D51 -> 0 | D52: =ALL!C52 -> 4 | E52: =ALL!E52 -> 0 | F52: =ALL!G52 -> 0 | G52: =ALL!I52 -> 0 | H52: =ALL!K52 -> 1 | I52: =ALL!M52 -> 1 | J52: =ALL!O52 -> 0 | K52: =ALL!Q52 -> 0 | L52: =ALL!S52 -> 0 | M52: =ALL!U52 -> 0
A53: المجموع | C53: =JARD_MOG!D52 -> 0 | D53: =ALL!C53 -> 139 | E53: =ALL!E53 -> 50 | F53: =ALL!G53 -> 142 | G53: =ALL!I53 -> 118 | H53: =ALL!K53 -> 237 | I53: =ALL!M53 -> 72 | J53: =ALL!O53 -> 297 | K53: =ALL!Q53 -> 127 | L53: =ALL!S53 -> 175 | M53: =ALL!U53 -> 62
